Workbook

Sheet Scenario Generator
B1: =CONCATENATE("AAA Economic Scenario Generator (Version ",Version,")") -> AAA Economic Scenario Generator (Version 7.1.201309)
B3: Starting date: | C3: 201312 | D3: Use YYYYMM form for the starting date. Example: December 31, 2008 = 200812
B5: Yield curve on starting date:
B6: 3 Month | C6: 0.0007
B7: 6 Month | C7: 0.001
B8: 1 Years | C8: 0.0013
B9: 2 Years | C9: 0.0038
B10: 3 Years | C10: 0.0078 | G10: Press button above to generate the scenarios selected at right.
B11: 5 Years | C11: 0.0175
B12: 7 Years | C12: 0.0245
B13: 10 Years | C13: 0.0304
B14: 20 Years | C14: 0.0372
B15: 30 Years | C15: 0.0396
B17: Mean reversion to: | C17: =Parameters!C4 -> 0.04 | D17: The 20-yr rate tends towards this mean, which depends on the start date (go to the Parameters tab to override this)
B19: Years to project: | C19: 61 | H19: Maximum digits to retain after the decimal: | I19: 5
B21: Output folder:
B23: Optional suffix to append to output file names: | F23: _test | G23: (Suffix can be blank)
B25: Output files: | H25: Time step: | L25: Output
L26: rates:
D40: Check Boxes Selected
D41: Separate | E41: Single | F41: Random
B42: File name produced | D42: by maturity | E42: File | F42: Numbers
B44: UST_3m | D44: X
B45: UST_6m | D45: X
B46: UST_1y | D46: X
B47: UST_2y | D47: X
B48: UST_3y | D48: X
B49: UST_5y | D49: X
B50: UST_7y | D50: X
B51: UST_10y | D51: X
B52: UST_20y | D52: X
B53: UST_30y | D53: X
B54: UST | E54: X
B55: AGGR | D55: X
B56: INT | D56: X
B57: US | D57: X
B58: SMALL | D58: X
B59: MONEY | D59: X
B60: INTGOV | D60: X
B61: LTCORP | D61: X
B62: UST_Z1 | D62: X | F62: X | G62: Must check both boxes
B63: UST_Z2 | D63: X | F63: X | G63: Must check both boxes
B64: UST_Z3 | D64: X | F64: X | G64: Must check both boxes
B65: FundNormalDraws | F65: X
B66: InterestNormalDraws | E66: X | F66: X | G66: Must check both boxes

Sheet Distance Test
G1: Average | H1: Standard Dev | I1: Skewness | J1: Kurtosis | K1: 6th Moment | L1: Std Dev Dln | M1: Skew Dln | N1: Kurt Dln | O1: 6th Dln
F2: Historical Scenario Average | G2: 0.06314801642 | H2: 0.02661353719 | I2: 0.9215090027 | J2: 3.536794511 | K2: 21.68754811 | L2: 0.0361393065 | M2: -0.8361673009 | N2: 10.75581656 | O2: 467.5809492
F3: Model Scenario Average | G3: 0.03971385859 | H3: 0.01081585706 | I3: 0.5773242323 | J3: 3.087423207 | K3: 18.52427755 | L3: 0.03379949202 | M3: 0.003951339685 | N3: 5.294087043 | O3: 76.6600858
F4: Model Scenario Standard Dev | G4: 0.007627061806 | H4: 0.005312583 | I4: 0.5542450973 | J4: 1.29938271 | K4: 26.11652574 | L4: 0.003913064249 | M4: 0.2670130846 | N4: 1.62932862 | O4: 126.971132
F5: Model Scenario Skewness | G5: 1.041312072 | H5: 5.224346552 | I5: 0.5166410444 | J5: 3.145803306 | K5: 9.242453432 | L5: 2.7477837e+12 | M5: 8648401.286 | N5: 38068.51436 | O5: 23.8435034
F6: Model Scenario Kurtosis | G6: 5.27790004 | H6: 32.86860022 | I6: 3.792407221 | J6: 20.89419165 | K6: 166.7639476 | L6: 3.308993111e+17 | M6: 1.526277852e+10 | N6: 11008592.56 | O6: 956.8347353
F7: Model Scenario 6th Moment | G7: 82.06827974 | H7: 1014.153116 | I7: 32.88094457 | J7: 1545.925005 | K7: 100439.6371 | L7: 8.877602164e+27 | M7: 8.794320469e+16 | N7: 1.703512955e+12 | O7: 1927125.595
F9: R | G9: Mean | H9: Median | I9: Max | J9: Min | K9: StDev | L9: 90th Percentile | M9: 10th Percentile
F10: Distance 1 | G10: 0.5084607387 | H10: 0.5143638851 | I10: 0.8987688098 | J10: 0.06703146375 | K10: 0.1559407506 | L10: 0.7127222982 | M10: 0.2982216142
F11: Distance 2 | G11: 0.08951657724 | H11: 0.09228429645 | I11: 0.1623795807 | J11: 0.01134688993 | K11: 0.02613714334 | L11: 0.1209924453 | M11: 0.05281366104
F12: Distance 3 | G12: 0.02391027155 | H12: 0.02458960328 | I12: 0.04331737346 | J12: 0.003125854993 | K12: 0.006741348324 | L12: 0.03205198358 | M12: 0.01452735978
F13: Distance 4 | G13: 41.4622435 | H13: 39.94528044 | I13: 114.9110807 | J13: 7.660738714 | K13: 15.47015883 | L13: 62.10670315 | M13: 22.70861833
F14: Distance 5 | G14: 4.550661513 | H14: 4.483081933 | I14: 9.065175366 | J14: 1.142578004 | K14: 1.268086632 | L14: 6.258037849 | M14: 2.945582549
F15: Distance 6 | G15: 1.067773187 | H15: 1.064295486 | I15: 1.79753762 | J15: 0.3228454172 | K15: 0.2626072644 | L15: 1.425444596 | M15: 0.7222982216
F17: Ln_R
F18: Distance 1 | G18: 0.5092528044 | H18: 0.5157318741 | I18: 0.9001367989 | J18: 0.07113543092 | K18: 0.1565125898 | L18: 0.7113543092 | M18: 0.2968536252
F19: Distance 2 | G19: 0.394777958 | H19: 0.4008273006 | I19: 0.8610547915 | J19: 0.05025474953 | K19: 0.1326489262 | L19: 0.5622702495 | M19: 0.2132562468
F20: Distance 3 | G20: 0.4414157832 | H20: 0.4392270862 | I20: 1.092681259 | J20: 0.05458276334 | K20: 0.1611642579 | L20: 0.651002052 | M20: 0.2287859097
F21: Distance 4 | G21: 1.724 | H21: 1.641586867 | I21: 4.614683083 | J21: 0.5289557684 | K21: 0.5593585782 | L21: 2.480620155 | M21: 1.057911537
F22: Distance 5 | G22: 0.969278895 | H22: 0.9670821535 | I22: 1.760575873 | J22: 0.3100238681 | K22: 0.2196259901 | L22: 1.257796321 | M22: 0.6825886122
F23: Distance 6 | G23: 1.083984131 | H23: 1.083447332 | I23: 1.800273598 | J23: 0.3529411765 | K23: 0.2571494214 | L23: 1.425444596 | M23: 0.7469220246
F25: DLn_R
F26: Distance 1 | G26: 0.0401369357 | H26: 0.03830369357 | I26: 0.1135430917 | J26: 0.0123119015 | K26: 0.01337985599 | L26: 0.05882352941 | M26: 0.02462380301
F27: Distance 2 | G27: 0.007584961932 | H27: 0.006791552397 | I27: 0.02705075133 | J27: 0.002404705312 | K27: 0.003013325302 | L27: 0.01187249794 | M27: 0.004539168269
F28: Distance 3 | G28: 0.003156625855 | H28: 0.002770177839 | I28: 0.01295485636 | J28: 0.001094391245 | K28: 0.001254044003 | L28: 0.004918604651 | M28: 0.00194254446
F29: Distance 4 | G29: 5.381313269 | H29: 5.198358413 | I29: 12.03830369 | J29: 1.641586867 | K29: 1.316396622 | L29: 7.113543092 | M29: 3.830369357
F30: Distance 5 | G30: 0.7802229081 | H30: 0.7733676621 | I30: 1.420865901 | J30: 0.3471567043 | K30: 0.1146256164 | L30: 0.9278556502 | M30: 0.6393062351
F31: Distance 6 | G31: 0.2612467852 | H31: 0.2599179207 | I31: 0.4295485636 | J31: 0.1395348837 | K31: 0.0328511129 | L31: 0.3036935705 | M31: 0.2216142271
F34: Distance 1
F36: Distance 2
F38: Distance 3
F40: Distance 4
F42: Distance 5
F44: Distance 6

Sheet Percentile Plot

Sheet Worst Scenario
A39: 0.04 | B39: 0.04 | C39: 0.04 | D39: 0.04 | E39: 0.04 | F39: 0.04 | G39: 0.04 | H39: 0.04 | I39: 0.04 | J39: 0.04 | K39: 0.04 | L39: 0.04 | M39: 0.04 | N39: 0.04 | O39: 0.04 | P39: 0.04 | Q39: 0.04 | R39: 0.04 | S39: 0.04 | T39: 0.04 | U39: 0.04 | V39: 0.04 | W39: 0.04 | X39: 0.04 | Y39: 0.04 | Z39: 0.04 | AA39: 0.04 | AB39: 0.04 | AC39: 0.04 | AD39: 0.04 | AE39: 0.04 | AF39: 0.04 | AG39: 0.04 | AH39: 0.04 | AI39: 0.04 | AJ39: 0.04 | AK39: 0.04 | AL39: 0.04 | AM39: 0.04 | AN39: 0.04 | AO39: 0.04 | AP39: 0.04 | AQ39: 0.04 | AR39: 0.04 | AS39: 0.04 | AT39: 0.04 | AU39: 0.04 | AV39: 0.04 | AW39: 0.04 | AX39: 0.04 | AY39: 0.04 | AZ39: 0.04 | BA39: 0.04 | BB39: 0.04 | BC39: 0.04 | BD39: 0.04 | BE39: 0.04 | BF39: 0.04 | BG39: 0.04 | BH39: 0.04 | BI39: 0.04 | BJ39: 0.04 | BK39: 0.04 | BL39: 0.04 | BM39: 0.04 | BN39: 0.04 | BO39: 0.04 | BP39: 0.04 | BQ39: 0.04 | BR39: 0.04 | BS39: 0.04 | BT39: 0.04 | BU39: 0.04 | BV39: 0.04 | BW39: 0.04 | BX39: 0.04 | BY39: 0.04 | BZ39: 0.04 | CA39: 0.04 | CB39: 0.04 | CC39: 0.04 | CD39: 0.04 | CE39: 0.04 | CF39: 0.04 | CG39: 0.04 | CH39: 0.04 | CI39: 0.04 | CJ39: 0.04 | CK39: 0.04 | CL39: 0.04 | CM39: 0.04 | CN39: 0.04 | CO39: 0.04 | CP39: 0.04 | CQ39: 0.04 | CR39: 0.04 | CS39: 0.04 | CT39: 0.04 | CU39: 0.04 | CV39: 0.04 | CW39: 0.04 | CX39: 0.04 | CY39: 0.04 | CZ39: 0.04 | DA39: 0.04 | DB39: 0.04 | DC39: 0.04 | DD39: 0.04 | DE39: 0.04 | DF39: 0.04 | DG39: 0.04 | DH39: 0.04 | DI39: 0.04 | DJ39: 0.04 | DK39: 0.04 | DL39: 0.04 | DM39: 0.04 | DN39: 0.04 | DO39: 0.04 | DP39: 0.04 | DQ39: 0.04 | DR39: 0.04 | DS39: 0.04 | DT39: 0.04 | DU39: 0.04 | DV39: 0.04 | DW39: 0.04 | DX39: 0.04 | DY39: 0.04 | DZ39: 0.04 | EA39: 0.04 | EB39: 0.04 | EC39: 0.04 | ED39: 0.04 | EE39: 0.04 | EF39: 0.04 | EG39: 0.04 | EH39: 0.04 | EI39: 0.04 | EJ39: 0.04 | EK39: 0.04 | EL39: 0.04 | EM39: 0.04 | EN39: 0.04 | EO39: 0.04 | EP39: 0.04 | EQ39: 0.04 | ER39: 0.04 | ES39: 0.04 | ET39: 0.04 | EU39: 0.04 | EV39: 0.04 | EW39: 0.04 | EX39: 0.04 | EY39: 0.04 | EZ39: 0.04 | FA39: 0.04 | FB39: 0.04 | FC39: 0.04 | FD39: 0.04 | FE39: 0.04 | FF39: 0.04 | FG39: 0.04 | FH39: 0.04 | FI39: 0.04 | FJ39: 0.04 | FK39: 0.04 | FL39: 0.04 | FM39: 0.04 | FN39: 0.04 | FO39: 0.04 | FP39: 0.04 | FQ39: 0.04 | FR39: 0.04 | FS39: 0.04 | FT39: 0.04 | FU39: 0.04 | FV39: 0.04 | FW39: 0.04 | FX39: 0.04 | FY39: 0.04 | FZ39: 0.04 | GA39: 0.04 | GB39: 0.04 | GC39: 0.04 | GD39: 0.04 | GE39: 0.04 | GF39: 0.04 | GG39: 0.04 | GH39: 0.04 | GI39: 0.04 | GJ39: 0.04 | GK39: 0.04 | GL39: 0.04 | GM39: 0.04 | GN39: 0.04 | GO39: 0.04 | GP39: 0.04 | GQ39: 0.04 | GR39: 0.04 | GS39: 0.04 | GT39: 0.04 | GU39: 0.04 | GV39: 0.04 | GW39: 0.04 | GX39: 0.04 | GY39: 0.04 | GZ39: 0.04 | HA39: 0.04 | HB39: 0.04 | HC39: 0.04 | HD39: 0.04 | HE39: 0.04 | HF39: 0.04 | HG39: 0.04 | HH39: 0.04 | HI39: 0.04 | HJ39: 0.04 | HK39: 0.04 | HL39: 0.04 | HM39: 0.04 | HN39: 0.04 | HO39: 0.04 | HP39: 0.04 | HQ39: 0.04 | HR39: 0.04 | HS39: 0.04 | HT39: 0.04 | HU39: 0.04 | HV39: 0.04 | HW39: 0.04 | HX39: 0.04 | HY39: 0.04 | HZ39: 0.04 | IA39: 0.04 | IB39: 0.04 | IC39: 0.04 | ID39: 0.04 | IE39: 0.04 | IF39: 0.04 | IG39: 0.04 | IH39: 0.04 | II39: 0.04 | IJ39: 0.04 | IK39: 0.04 | IL39: 0.04 | IM39: 0.04 | IN39: 0.04 | IO39: 0.04 | IP39: 0.04 | IQ39: 0.04 | IR39: 0.04 | IS39: 0.04 | IT39: 0.04 | IU39: 0.04 | IV39: 0.04 | IW39: 0.04 | IX39: 0.04 | IY39: 0.04 | IZ39: 0.04 | JA39: 0.04 | JB39: 0.04 | JC39: 0.04 | JD39: 0.04 | JE39: 0.04 | JF39: 0.04 | JG39: 0.04 | JH39: 0.04 | JI39: 0.04 | JJ39: 0.04 | JK39: 0.04 | JL39: 0.04 | JM39: 0.04 | JN39: 0.04 | JO39: 0.04 | JP39: 0.04 | JQ39: 0.04 | JR39: 0.04 | JS39: 0.04 | JT39: 0.04 | JU39: 0.04 | JV39: 0.04 | JW39: 0.04 | JX39: 0.04 | JY39: 0.04 | JZ39: 0.04 | KA39: 0.04 | KB39: 0.04 | KC39: 0.04 | KD39: 0.04 | KE39: 0.04 | KF39: 0.04 | KG39: 0.04 | KH39: 0.04 | KI39: 0.04 | KJ39: 0.04 | KK39: 0.04 | KL39: 0.04 | KM39: 0.04 | KN39: 0.04 | KO39: 0.04 | KP39: 0.04 | KQ39: 0.04 | KR39: 0.04 | KS39: 0.04 | KT39: 0.04 | KU39: 0.04 | KV39: 0.04 | KW39: 0.04 | KX39: 0.04 | KY39: 0.04 | KZ39: 0.04 | LA39: 0.04 | LB39: 0.04 | LC39: 0.04 | LD39: 0.04 | LE39: 0.04 | LF39: 0.04 | LG39: 0.04 | LH39: 0.04 | LI39: 0.04 | LJ39: 0.04 | LK39: 0.04 | LL39: 0.04 | LM39: 0.04 | LN39: 0.04 | LO39: 0.04 | LP39: 0.04 | LQ39: 0.04 | LR39: 0.04 | LS39: 0.04 | LT39: 0.04 | LU39: 0.04 | LV39: 0.04 | LW39: 0.04 | LX39: 0.04 | LY39: 0.04 | LZ39: 0.04 | MA39: 0.04 | MB39: 0.04 | MC39: 0.04 | MD39: 0.04 | ME39: 0.04 | MF39: 0.04 | MG39: 0.04 | MH39: 0.04 | MI39: 0.04 | MJ39: 0.04 | MK39: 0.04 | ML39: 0.04 | MM39: 0.04 | MN39: 0.04 | MO39: 0.04 | MP39: 0.04 | MQ39: 0.04 | MR39: 0.04 | MS39: 0.04 | MT39: 0.04 | MU39: 0.04 | MV39: 0.04 | MW39: 0.04 | MX39: 0.04 | MY39: 0.04 | MZ39: 0.04 | NA39: 0.04 | NB39: 0.04 | NC39: 0.04 | ND39: 0.04 | NE39: 0.04 | NF39: 0.04 | NG39: 0.04 | NH39: 0.04 | NI39: 0.04 | NJ39: 0.04 | NK39: 0.04 | NL39: 0.04 | NM39: 0.04 | NN39: 0.04 | NO39: 0.04 | NP39: 0.04 | NQ39: 0.04 | NR39: 0.04 | NS39: 0.04 | NT39: 0.04 | NU39: 0.04 | NV39: 0.04 | NW39: 0.04 | NX39: 0.04 | NY39: 0.04 | NZ39: 0.04 | OA39: 0.04 | OB39: 0.04 | OC39: 0.04 | OD39: 0.04 | OE39: 0.04 | OF39: 0.04 | OG39: 0.04 | OH39: 0.04 | OI39: 0.04 | OJ39: 0.04 | OK39: 0.04 | OL39: 0.04 | OM39: 0.04 | ON39: 0.04 | OO39: 0.04 | OP39: 0.04 | OQ39: 0.04 | OR39: 0.04 | OS39: 0.04 | OT39: 0.04 | OU39: 0.04 | OV39: 0.04 | OW39: 0.04 | OX39: 0.04 | OY39: 0.04 | OZ39: 0.04 | PA39: 0.04 | PB39: 0.04 | PC39: 0.04 | PD39: 0.04 | PE39: 0.04 | PF39: 0.04 | PG39: 0.04 | PH39: 0.04 | PI39: 0.04 | PJ39: 0.04 | PK39: 0.04 | PL39: 0.04 | PM39: 0.04 | PN39: 0.04 | PO39: 0.04 | PP39: 0.04 | PQ39: 0.04 | PR39: 0.04 | PS39: 0.04 | PT39: 0.04 | PU39: 0.04 | PV39: 0.04 | PW39: 0.04 | PX39: 0.04 | PY39: 0.04 | PZ39: 0.04 | QA39: 0.04 | QB39: 0.04 | QC39: 0.04 | QD39: 0.04 | QE39: 0.04 | QF39: 0.04 | QG39: 0.04 | QH39: 0.04 | QI39: 0.04 | QJ39: 0.04 | QK39: 0.04 | QL39: 0.04 | QM39: 0.04 | QN39: 0.04 | QO39: 0.04 | QP39: 0.04 | QQ39: 0.04 | QR39: 0.04 | QS39: 0.04 | QT39: 0.04 | QU39: 0.04 | QV39: 0.04 | QW39: 0.04 | QX39: 0.04 | QY39: 0.04 | QZ39: 0.04 | RA39: 0.04 | RB39: 0.04 | RC39: 0.04 | RD39: 0.04 | RE39: 0.04 | RF39: 0.04 | RG39: 0.04 | RH39: 0.04 | RI39: 0.04 | RJ39: 0.04 | RK39: 0.04 | RL39: 0.04 | RM39: 0.04 | RN39: 0.04 | RO39: 0.04 | RP39: 0.04 | RQ39: 0.04 | RR39: 0.04 | RS39: 0.04 | RT39: 0.04 | RU39: 0.04 | RV39: 0.04 | RW39: 0.04 | RX39: 0.04 | RY39: 0.04 | RZ39: 0.04 | SA39: 0.04 | SB39: 0.04 | SC39: 0.04 | SD39: 0.04 | SE39: 0.04 | SF39: 0.04 | SG39: 0.04 | SH39: 0.04 | SI39: 0.04 | SJ39: 0.04 | SK39: 0.04 | SL39: 0.04 | SM39: 0.04 | SN39: 0.04 | SO39: 0.04 | SP39: 0.04 | SQ39: 0.04 | SR39: 0.04 | SS39: 0.04 | ST39: 0.04 | SU39: 0.04 | SV39: 0.04 | SW39: 0.04 | SX39: 0.04 | SY39: 0.04 | SZ39: 0.04 | TA39: 0.04 | TB39: 0.04 | TC39: 0.04 | TD39: 0.04 | TE39: 0.04 | TF39: 0.04 | TG39: 0.04 | TH39: 0.04 | TI39: 0.04 | TJ39: 0.04 | TK39: 0.04 | TL39: 0.04 | TM39: 0.04 | TN39: 0.04 | TO39: 0.04 | TP39: 0.04 | TQ39: 0.04 | TR39: 0.04 | TS39: 0.04 | TT39: 0.04 | TU39: 0.04 | TV39: 0.04 | TW39: 0.04 | TX39: 0.04 | TY39: 0.04 | TZ39: 0.04 | UA39: 0.04 | UB39: 0.04 | UC39: 0.04 | UD39: 0.04 | UE39: 0.04 | UF39: 0.04 | UG39: 0.04 | UH39: 0.04 | UI39: 0.04 | UJ39: 0.04 | UK39: 0.04 | UL39: 0.04 | UM39: 0.04 | UN39: 0.04 | UO39: 0.04 | UP39: 0.04 | UQ39: 0.04 | UR39: 0.04 | US39: 0.04 | UT39: 0.04 | UU39: 0.04 | UV39: 0.04 | UW39: 0.04 | UX39: 0.04 | UY39: 0.04 | UZ39: 0.04 | VA39: 0.04 | VB39: 0.04 | VC39: 0.04 | VD39: 0.04 | VE39: 0.04 | VF39: 0.04 | VG39: 0.04 | VH39: 0.04 | VI39: 0.04 | VJ39: 0.04 | VK39: 0.04 | VL39: 0.04 | VM39: 0.04 | VN39: 0.04 | VO39: 0.04 | VP39: 0.04 | VQ39: 0.04 | VR39: 0.04 | VS39: 0.04 | VT39: 0.04 | VU39: 0.04 | VV39: 0.04 | VW39: 0.04 | VX39: 0.04 | VY39: 0.04 | VZ39: 0.04 | WA39: 0.04 | WB39: 0.04 | WC39: 0.04 | WD39: 0.04 | WE39: 0.04 | WF39: 0.04 | WG39: 0.04 | WH39: 0.04 | WI39: 0.04 | WJ39: 0.04 | WK39: 0.04 | WL39: 0.04 | WM39: 0.04 | WN39: 0.04 | WO39: 0.04 | WP39: 0.04 | WQ39: 0.04 | WR39: 0.04 | WS39: 0.04 | WT39: 0.04 | WU39: 0.04 | WV39: 0.04 | WW39: 0.04 | WX39: 0.04 | WY39: 0.04 | WZ39: 0.04 | XA39: 0.04 | XB39: 0.04 | XC39: 0.04 | XD39: 0.04 | XE39: 0.04 | XF39: 0.04 | XG39: 0.04 | XH39: 0.04 | XI39: 0.04 | XJ39: 0.04 | XK39: 0.04 | XL39: 0.04 | XM39: 0.04 | XN39: 0.04 | XO39: 0.04 | XP39: 0.04 | XQ39: 0.04 | XR39: 0.04 | XS39: 0.04 | XT39: 0.04 | XU39: 0.04 | XV39: 0.04 | XW39: 0.04 | XX39: 0.04 | XY39: 0.04 | XZ39: 0.04 | YA39: 0.04 | YB39: 0.04 | YC39: 0.04 | YD39: 0.04 | YE39: 0.04 | YF39: 0.04 | YG39: 0.04 | YH39: 0.04 | YI39: 0.04 | YJ39: 0.04 | YK39: 0.04 | YL39: 0.04 | YM39: 0.04 | YN39: 0.04 | YO39: 0.04 | YP39: 0.04 | YQ39: 0.04 | YR39: 0.04 | YS39: 0.04 | YT39: 0.04 | YU39: 0.04 | YV39: 0.04 | YW39: 0.04 | YX39: 0.04 | YY39: 0.04 | YZ39: 0.04 | ZA39: 0.04 | ZB39: 0.04 | ZC39: 0.04 | ZD39: 0.04 | ZE39: 0.04 | ZF39: 0.04 | ZG39: 0.04 | ZH39: 0.04 | ZI39: 0.04 | ZJ39: 0.04 | ZK39: 0.04 | ZL39: 0.04 | ZM39: 0.04 | ZN39: 0.04 | ZO39: 0.04 | ZP39: 0.04 | ZQ39: 0.04 | ZR39: 0.04 | ZS39: 0.04 | ZT39: 0.04 | ZU39: 0.04 | ZV39: 0.04 | ZW39: 0.04 | ZX39: 0.04 | ZY39: 0.04 | ZZ39: 0.04 | AAA39: 0.04 | AAB39: 0.04 | AAC39: 0.04 | AAD39: 0.04 | AAE39: 0.04 | AAF39: 0.04 | AAG39: 0.04 | AAH39: 0.04 | AAI39: 0.04 | AAJ39: 0.04 | AAK39: 0.04 | AAL39: 0.04 | AAM39: 0.04 | AAN39: 0.04 | AAO39: 0.04 | AAP39: 0.04 | AAQ39: 0.04 | AAR39: 0.04 | AAS39: 0.04 | AAT39: 0.04 | AAU39: 0.04 | AAV39: 0.04 | AAW39: 0.04 | AAX39: 0.04 | AAY39: 0.04 | AAZ39: 0.04 | ABA39: 0.04 | ABB39: 0.04 | ABC39: 0.04
A40: 1 | B40: =A40+1 -> 2 | C40: =B40+1 -> 3 | D40: 4 | E40: 5 | F40: 6 | G40: 7 | H40: 8 | I40: 9 | J40: 10 | K40: 11 | L40: 12 | M40: 13 | N40: 14 | O40: 15 | P40: 16 | Q40: 17 | R40: 18 | S40: 19 | T40: 20 | U40: 21 | V40: 22 | W40: 23 | X40: 24 | Y40: 25 | Z40: 26 | AA40: 27 | AB40: 28 | AC40: 29 | AD40: 30 | AE40: 31 | AF40: 32 | AG40: 33 | AH40: 34 | AI40: 35 | AJ40: 36 | AK40: 37 | AL40: 38 | AM40: 39 | AN40: 40 | AO40: 41 | AP40: 42 | AQ40: 43 | AR40: 44 | AS40: 45 | AT40: 46 | AU40: 47 | AV40: 48 | AW40: 49 | AX40: 50 | AY40: 51 | AZ40: 52 | BA40: 53 | BB40: 54 | BC40: 55 | BD40: 56 | BE40: 57 | BF40: 58 | BG40: 59 | BH40: 60 | BI40: 61 | BJ40: 62 | BK40: 63 | BL40: 64 | BM40: 65 | BN40: 66 | BO40: =BN40+1 -> 67 | BP40: 68 | BQ40: 69 | BR40: 70 | BS40: 71 | BT40: 72 | BU40: 73 | BV40: 74 | BW40: 75 | BX40: 76 | BY40: 77 | BZ40: 78 | CA40: 79 | CB40: 80 | CC40: 81 | CD40: 82 | CE40: 83 | CF40: 84 | CG40: 85 | CH40: 86 | CI40: 87 | CJ40: 88 | CK40: 89 | CL40: 90 | CM40: 91 | CN40: 92 | CO40: 93 | CP40: 94 | CQ40: 95 | CR40: 96 | CS40: 97 | CT40: 98 | CU40: 99 | CV40: 100 | CW40: 101 | CX40: 102 | CY40: 103 | CZ40: 104 | DA40: 105 | DB40: 106 | DC40: 107 | DD40: 108 | DE40: 109 | DF40: 110 | DG40: 111 | DH40: 112 | DI40: 113 | DJ40: 114 | DK40: 115 | DL40: 116 | DM40: 117 | DN40: 118 | DO40: 119 | DP40: 120 | DQ40: 121 | DR40: 122 | DS40: 123 | DT40: 124 | DU40: 125 | DV40: 126 | DW40: 127 | DX40: 128 | DY40: 129 | DZ40: 130 | EA40: =DZ40+1 -> 131 | EB40: 132 | EC40: 133 | ED40: 134 | EE40: 135 | EF40: 136 | EG40: 137 | EH40: 138 | EI40: 139 | EJ40: 140 | EK40: 141 | EL40: 142 | EM40: 143 | EN40: 144 | EO40: 145 | EP40: 146 | EQ40: 147 | ER40: 148 | ES40: 149 | ET40: 150 | EU40: 151 | EV40: 152 | EW40: 153 | EX40: 154 | EY40: 155 | EZ40: 156 | FA40: 157 | FB40: 158 | FC40: 159 | FD40: 160 | FE40: 161 | FF40: 162 | FG40: 163 | FH40: 164 | FI40: 165 | FJ40: 166 | FK40: 167 | FL40: 168 | FM40: 169 | FN40: 170 | FO40: 171 | FP40: 172 | FQ40: 173 | FR40: 174 | FS40: 175 | FT40: 176 | FU40: 177 | FV40: 178 | FW40: 179 | FX40: 180 | FY40: 181 | FZ40: 182 | GA40: 183 | GB40: 184 | GC40: 185 | GD40: 186 | GE40: 187 | GF40: 188 | GG40: 189 | GH40: 190 | GI40: 191 | GJ40: 192 | GK40: 193 | GL40: 194 | GM40: =GL40+1 -> 195 | GN40: 196 | GO40: 197 | GP40: 198 | GQ40: 199 | GR40: 200 | GS40: 201 | GT40: 202 | GU40: 203 | GV40: 204 | GW40: 205 | GX40: 206 | GY40: 207 | GZ40: 208 | HA40: 209 | HB40: 210 | HC40: 211 | HD40: 212 | HE40: 213 | HF40: 214 | HG40: 215 | HH40: 216 | HI40: 217 | HJ40: 218 | HK40: 219 | HL40: 220 | HM40: 221 | HN40: 222 | HO40: 223 | HP40: 224 | HQ40: 225 | HR40: 226 | HS40: 227 | HT40: 228 | HU40: 229 | HV40: 230 | HW40: 231 | HX40: 232 | HY40: 233 | HZ40: 234 | IA40: 235 | IB40: 236 | IC40: 237 | ID40: 238 | IE40: 239 | IF40: 240 | IG40: 241 | IH40: 242 | II40: 243 | IJ40: 244 | IK40: 245 | IL40: 246 | IM40: 247 | IN40: 248 | IO40: 249 | IP40: 250 | IQ40: 251 | IR40: 252 | IS40: 253 | IT40: 254 | IU40: 255 | IV40: 256 | IW40: 257 | IX40: 258 | IY40: =IX40+1 -> 259 | IZ40: 260 | JA40: 261 | JB40: 262 | JC40: 263 | JD40: 264 | JE40: 265 | JF40: 266 | JG40: 267 | JH40: 268 | JI40: 269 | JJ40: 270 | JK40: 271 | JL40: 272 | JM40: 273 | JN40: 274 | JO40: 275 | JP40: 276 | JQ40: 277 | JR40: 278 | JS40: 279 | JT40: 280 | JU40: 281 | JV40: 282 | JW40: 283 | JX40: 284 | JY40: 285 | JZ40: 286 | KA40: 287 | KB40: 288 | KC40: 289 | KD40: 290 | KE40: 291 | KF40: 292 | KG40: 293 | KH40: 294 | KI40: 295 | KJ40: 296 | KK40: 297 | KL40: 298 | KM40: 299 | KN40: 300 | KO40: 301 | KP40: 302 | KQ40: 303 | KR40: 304 | KS40: 305 | KT40: 306 | KU40: 307 | KV40: 308 | KW40: 309 | KX40: 310 | KY40: 311 | KZ40: 312 | LA40: 313 | LB40: 314 | LC40: 315 | LD40: 316 | LE40: 317 | LF40: 318 | LG40: 319 | LH40: 320 | LI40: 321 | LJ40: 322 | LK40: =LJ40+1 -> 323 | LL40: 324 | LM40: 325 | LN40: 326 | LO40: 327 | LP40: 328 | LQ40: 329 | LR40: 330 | LS40: 331 | LT40: 332 | LU40: 333 | LV40: 334 | LW40: 335 | LX40: 336 | LY40: 337 | LZ40: 338 | MA40: 339 | MB40: 340 | MC40: 341 | MD40: 342 | ME40: 343 | MF40: 344 | MG40: 345 | MH40: 346 | MI40: 347 | MJ40: 348 | MK40: 349 | ML40: 350 | MM40: 351 | MN40: 352 | MO40: 353 | MP40: 354 | MQ40: 355 | MR40: 356 | MS40: 357 | MT40: 358 | MU40: 359 | MV40: 360 | MW40: 361 | MX40: 362 | MY40: 363 | MZ40: 364 | NA40: 365 | NB40: 366 | NC40: 367 | ND40: 368 | NE40: 369 | NF40: 370 | NG40: 371 | NH40: 372 | NI40: 373 | NJ40: 374 | NK40: 375 | NL40: 376 | NM40: 377 | NN40: 378 | NO40: 379 | NP40: 380 | NQ40: 381 | NR40: 382 | NS40: 383 | NT40: 384 | NU40: 385 | NV40: 386 | NW40: =NV40+1 -> 387 | NX40: 388 | NY40: 389 | NZ40: 390 | OA40: 391 | OB40: 392 | OC40: 393 | OD40: 394 | OE40: 395 | OF40: 396 | OG40: 397 | OH40: 398 | OI40: 399 | OJ40: 400 | OK40: 401 | OL40: 402 | OM40: 403 | ON40: 404 | OO40: 405 | OP40: 406 | OQ40: 407 | OR40: 408 | OS40: 409 | OT40: 410 | OU40: 411 | OV40: 412 | OW40: 413 | OX40: 414 | OY40: 415 | OZ40: 416 | PA40: 417 | PB40: 418 | PC40: 419 | PD40: 420 | PE40: 421 | PF40: 422 | PG40: 423 | PH40: 424 | PI40: 425 | PJ40: 426 | PK40: 427 | PL40: 428 | PM40: 429 | PN40: 430 | PO40: 431 | PP40: 432 | PQ40: 433 | PR40: 434 | PS40: 435 | PT40: 436 | PU40: 437 | PV40: 438 | PW40: 439 | PX40: 440 | PY40: 441 | PZ40: 442 | QA40: 443 | QB40: 444 | QC40: 445 | QD40: 446 | QE40: 447 | QF40: 448 | QG40: 449 | QH40: 450 | QI40: =QH40+1 -> 451 | QJ40: 452 | QK40: 453 | QL40: 454 | QM40: 455 | QN40: 456 | QO40: 457 | QP40: 458 | QQ40: 459 | QR40: 460 | QS40: 461 | QT40: 462 | QU40: 463 | QV40: 464 | QW40: 465 | QX40: 466 | QY40: 467 | QZ40: 468 | RA40: 469 | RB40: 470 | RC40: 471 | RD40: 472 | RE40: 473 | RF40: 474 | RG40: 475 | RH40: 476 | RI40: 477 | RJ40: 478 | RK40: 479 | RL40: 480 | RM40: 481 | RN40: 482 | RO40: 483 | RP40: 484 | RQ40: 485 | RR40: 486 | RS40: 487 | RT40: 488 | RU40: 489 | RV40: 490 | RW40: 491 | RX40: 492 | RY40: 493 | RZ40: 494 | SA40: 495 | SB40: 496 | SC40: 497 | SD40: 498 | SE40: 499 | SF40: 500 | SG40: 501 | SH40: 502 | SI40: 503 | SJ40: 504 | SK40: 505 | SL40: 506 | SM40: 507 | SN40: 508 | SO40: 509 | SP40: 510 | SQ40: 511 | SR40: 512 | SS40: 513 | ST40: 514 | SU40: =ST40+1 -> 515 | SV40: 516 | SW40: 517 | SX40: 518 | SY40: 519 | SZ40: 520 | TA40: 521 | TB40: 522 | TC40: 523 | TD40: 524 | TE40: 525 | TF40: 526 | TG40: 527 | TH40: 528 | TI40: 529 | TJ40: 530 | TK40: 531 | TL40: 532 | TM40: 533 | TN40: 534 | TO40: 535 | TP40: 536 | TQ40: 537 | TR40: 538 | TS40: 539 | TT40: 540 | TU40: 541 | TV40: 542 | TW40: 543 | TX40: 544 | TY40: 545 | TZ40: 546 | UA40: 547 | UB40: 548 | UC40: 549 | UD40: 550 | UE40: 551 | UF40: 552 | UG40: 553 | UH40: 554 | UI40: 555 | UJ40: 556 | UK40: 557 | UL40: 558 | UM40: 559 | UN40: 560 | UO40: 561 | UP40: 562 | UQ40: 563 | UR40: 564 | US40: 565 | UT40: 566 | UU40: 567 | UV40: 568 | UW40: 569 | UX40: 570 | UY40: 571 | UZ40: 572 | VA40: 573 | VB40: 574 | VC40: 575 | VD40: 576 | VE40: 577 | VF40: 578 | VG40: =VF40+1 -> 579 | VH40: 580 | VI40: 581 | VJ40: 582 | VK40: 583 | VL40: 584 | VM40: 585 | VN40: 586 | VO40: 587 | VP40: 588 | VQ40: 589 | VR40: 590 | VS40: 591 | VT40: 592 | VU40: 593 | VV40: 594 | VW40: 595 | VX40: 596 | VY40: 597 | VZ40: 598 | WA40: 599 | WB40: 600 | WC40: 601 | WD40: 602 | WE40: 603 | WF40: 604 | WG40: 605 | WH40: 606 | WI40: 607 | WJ40: 608 | WK40: 609 | WL40: 610 | WM40: 611 | WN40: 612 | WO40: 613 | WP40: 614 | WQ40: 615 | WR40: 616 | WS40: 617 | WT40: 618 | WU40: 619 | WV40: 620 | WW40: 621 | WX40: 622 | WY40: 623 | WZ40: 624 | XA40: 625 | XB40: 626 | XC40: 627 | XD40: 628 | XE40: 629 | XF40: 630 | XG40: 631 | XH40: 632 | XI40: 633 | XJ40: 634 | XK40: 635 | XL40: 636 | XM40: 637 | XN40: 638 | XO40: 639 | XP40: 640 | XQ40: 641 | XR40: 642 | XS40: =XR40+1 -> 643 | XT40: 644 | XU40: 645 | XV40: 646 | XW40: 647 | XX40: 648 | XY40: 649 | XZ40: 650 | YA40: 651 | YB40: 652 | YC40: 653 | YD40: 654 | YE40: 655 | YF40: 656 | YG40: 657 | YH40: 658 | YI40: 659 | YJ40: 660 | YK40: 661 | YL40: 662 | YM40: 663 | YN40: 664 | YO40: 665 | YP40: 666 | YQ40: 667 | YR40: 668 | YS40: 669 | YT40: 670 | YU40: 671 | YV40: 672 | YW40: 673 | YX40: 674 | YY40: 675 | YZ40: 676 | ZA40: 677 | ZB40: 678 | ZC40: 679 | ZD40: 680 | ZE40: 681 | ZF40: 682 | ZG40: 683 | ZH40: 684 | ZI40: 685 | ZJ40: 686 | ZK40: 687 | ZL40: 688 | ZM40: 689 | ZN40: 690 | ZO40: 691 | ZP40: 692 | ZQ40: 693 | ZR40: 694 | ZS40: 695 | ZT40: 696 | ZU40: 697 | ZV40: 698 | ZW40: 699 | ZX40: 700 | ZY40: 701 | ZZ40: 702 | AAA40: 703 | AAB40: 704 | AAC40: 705 | AAD40: 706 | AAE40: =AAD40+1 -> 707 | AAF40: 708 | AAG40: 709 | AAH40: 710 | AAI40: 711 | AAJ40: 712 | AAK40: 713 | AAL40: 714 | AAM40: 715 | AAN40: 716 | AAO40: 717 | AAP40: 718 | AAQ40: 719 | AAR40: 720 | AAS40: 721 | AAT40: 722 | AAU40: 723 | AAV40: 724 | AAW40: 725 | AAX40: 726 | AAY40: 727 | AAZ40: 728 | ABA40: 729 | ABB40: 730 | ABC40: 731

Sheet Distribution Plot
A2: R - Value | B2: 0 | C2: 0.005 | D2: 0.01 | E2: 0.015 | F2: 0.02 | G2: 0.025 | H2: 0.03 | I2: 0.035 | J2: 0.04 | K2: 0.045 | L2: 0.05 | M2: 0.055 | N2: 0.06 | O2: 0.065 | P2: 0.07 | Q2: 0.075 | R2: 0.08 | S2: 0.085 | T2: 0.09 | U2: 0.095 | V2: 0.1 | W2: 0.105 | X2: 0.11 | Y2: 0.115 | Z2: 0.12 | AA2: 0.125 | AB2: 0.13 | AC2: 0.135 | AD2: 0.14 | AE2: 0.145 | AF2: 0.15 | AG2: 0.155 | AH2: 0.16 | AI2: 0.165 | AJ2: 0.17 | AK2: 0.175 | AL2: 0.18 | AM2: 0.185 | AN2: 0.19 | AO2: 0.195 | AP2: 0.2
A3: History | B3: 0 | C3: 0 | D3: 0 | E3: 0 | F3: 0.001367989056 | G3: 0.03283173735 | H3: 0.05882352941 | I3: 0.04377564979 | J3: 0.1299589603 | K3: 0.0779753762 | L3: 0.07523939808 | M3: 0.05471956224 | N3: 0.07934336525 | O3: 0.06292749658 | P3: 0.0560875513 | Q3: 0.06566347469 | R3: 0.06703146375 | S3: 0.04103967168 | T3: 0.04377564979 | U3: 0.00683994528 | V3: 0.00683994528 | W3: 0.01641586867 | X3: 0.01094391245 | Y3: 0.0123119015 | Z3: 0.01504787962 | AA3: 0.01094391245 | AB3: 0.005471956224 | AC3: 0.01094391245 | AD3: 0.00683994528 | AE3: 0.004103967168 | AF3: 0.002735978112 | AG3: 0 | AH3: 0 | AI3: 0 | AJ3: 0 | AK3: 0 | AL3: 0 | AM3: 0 | AN3: 0 | AO3: 0 | AP3: 0
A4: Average - Frequency | B4: 0 | C4: 0 | D4: 0.0004670314637 | E4: 0.007908481532 | F4: 0.03840506156 | G4: 0.1045942544 | H4: 0.1733009576 | I4: 0.1989062927 | J4: 0.1545863201 | K4: 0.1067716826 | L4: 0.07191846785 | M4: 0.04754842681 | N4: 0.03084404925 | O4: 0.02072831737 | P4: 0.01363939808 | Q4: 0.009056361149 | R4: 0.006154309166 | S4: 0.00423378933 | T4: 0.002924897401 | U4: 0.002048563611 | V4: 0.001424897401 | W4: 0.001015868673 | X4: 0.0007627906977 | Y4: 0.0005804377565 | Z4: 0.0004592339261 | AA4: 0.0003534883721 | AB4: 0.0002800273598 | AC4: 0.0002233926129 | AD4: 0.0001763337893 | AE4: 0.0001495212038 | AF4: 0.0001149110807 | AG4: 9.069767442e-05 | AH4: 8.112175103e-05 | AI4: 6.511627907e-05 | AJ4: 5.786593707e-05 | AK4: 5.321477428e-05 | AL4: 3.885088919e-05 | AM4: 2.18878249e-05 | AN4: 8.891928865e-06 | AO4: 3.556771546e-06 | AP4: 1.23119015e-06
A5: Std Dev | B5: 0 | C5: 0 | D5: 0.003901874598 | E5: 0.02587971309 | F5: 0.06164210918 | G5: 0.09550803744 | H5: 0.1001059332 | I5: 0.08822298454 | J5: 0.07756062439 | K5: 0.06730030666 | L5: 0.05684262948 | M5: 0.04647862931 | N5: 0.03658954145 | O5: 0.02947131611 | P5: 0.02300974362 | Q5: 0.01806618742 | R5: 0.01456114943 | S5: 0.01145150609 | T5: 0.00913835411 | U5: 0.007235406984 | V5: 0.005723897273 | W5: 0.004619864365 | X5: 0.003962609353 | Y5: 0.003392907822 | Z5: 0.002934968 | AA5: 0.002574521036 | AB5: 0.002245585562 | AC5: 0.001901275026 | AD5: 0.001662140362 | AE5: 0.001503016934 | AF5: 0.001278132315 | AG5: 0.001121003646 | AH5: 0.00116350144 | AI5: 0.0009275472628 | AJ5: 0.0009445176493 | AK5: 0.00096614007 | AL5: 0.0006902497017 | AM5: 0.0004219619843 | AN5: 0.0001765593791 | AO5: 8.425346755e-05 | AP5: 4.535435629e-05
A7: ln R - Value | B7: -5.025 | C7: -4.95 | D7: -4.875 | E7: -4.8 | F7: -4.725 | G7: -4.65 | H7: -4.575 | I7: -4.5 | J7: -4.425 | K7: -4.35 | L7: -4.275 | M7: -4.2 | N7: -4.125 | O7: -4.05 | P7: -3.975 | Q7: -3.9 | R7: -3.825 | S7: -3.75 | T7: -3.675 | U7: -3.6 | V7: -3.525 | W7: -3.45 | X7: -3.375 | Y7: -3.3 | Z7: -3.225 | AA7: -3.15 | AB7: -3.075 | AC7: -3 | AD7: -2.925 | AE7: -2.85 | AF7: -2.775 | AG7: -2.7 | AH7: -2.625 | AI7: -2.55 | AJ7: -2.475 | AK7: -2.4 | AL7: -2.325 | AM7: -2.25 | AN7: -2.175 | AO7: -2.1 | AP7: -2.025 | AQ7: -1.95 | AR7: -1.875 | AS7: -1.8 | AT7: -1.725 | AU7: -1.65 | AV7: -1.575 | AW7: -1.5 | AX7: -1.425 | AY7: -1.35 | AZ7: -1.275 | BA7: -1.2
A8: History | B8: 0 | C8: 0 | D8: 0 | E8: 0 | F8: 0 | G8: 0 | H8: 0 | I8: 0 | J8: 0 | K8: 0 | L8: 0 | M8: 0 | N8: 0 | O8: 0 | P8: 0 | Q8: 0 | R8: 0.001367989056 | S8: 0.004103967168 | T8: 0.01504787962 | U8: 0.02462380301 | V8: 0.02599179207 | W8: 0.02735978112 | X8: 0.02872777018 | Y8: 0.02325581395 | Z8: 0.0683994528 | AA8: 0.0779753762 | AB8: 0.05471956224 | AC8: 0.05745554036 | AD8: 0.04787961696 | AE8: 0.0560875513 | AF8: 0.07250341997 | AG8: 0.05745554036 | AH8: 0.05745554036 | AI8: 0.08071135431 | AJ8: 0.06429548564 | AK8: 0.04787961696 | AL8: 0.008207934337 | AM8: 0.02325581395 | AN8: 0.02051983584 | AO8: 0.02462380301 | AP8: 0.01504787962 | AQ8: 0.0123119015 | AR8: 0.002735978112 | AS8: 0 | AT8: 0 | AU8: 0 | AV8: 0 | AW8: 0 | AX8: 0 | AY8: 0 | AZ8: 0 | BA8: 0
A9: Average - Frequency | B9: 0 | C9: 0 | D9: 0 | E9: 0 | F9: 2.735978112e-07 | G9: 2.599179207e-06 | H9: 1.258549932e-05 | I9: 9.740082079e-05 | J9: 0.0003203830369 | K9: 0.0005827633379 | L9: 0.0009679890561 | M9: 0.001556634747 | N9: 0.002618467852 | O9: 0.004439671683 | P9: 0.007438987688 | Q9: 0.01185253078 | R9: 0.01893543092 | S9: 0.0287875513 | T9: 0.04217277702 | U9: 0.05746716826 | V9: 0.07439179207 | W9: 0.09119001368 | X9: 0.102578933 | Y9: 0.1065348837 | Z9: 0.09331477428 | AA9: 0.08028604651 | AB9: 0.06723597811 | AC9: 0.05437031464 | AD9: 0.04255294118 | AE9: 0.03210588235 | AF9: 0.02379179207 | AG9: 0.0172629275 | AH9: 0.01207961696 | AI9: 0.00835129959 | AJ9: 0.005674692202 | AK9: 0.003787688098 | AL9: 0.002461696306 | AM9: 0.001565116279 | AN9: 0.001080164159 | AO9: 0.0007411764706 | AP9: 0.0005075239398 | AQ9: 0.0003497948016 | AR9: 0.0002269493844 | AS9: 0.0001667578659 | AT9: 0.0001151846785 | AU9: 2.18878249e-05 | AV9: 9.575923393e-07 | AW9: 0 | AX9: 0 | AY9: 0 | AZ9: 0 | BA9: 0
A10: Std Dev | B10: 0 | C10: 0 | D10: 0 | E10: 0 | F10: 1.934435204e-05 | G10: 6.555494337e-05 | H10: 0.0001920812525 | I10: 0.001000532794 | J10: 0.002713640124 | K10: 0.003768735118 | L10: 0.00499113619 | M10: 0.006625825526 | N10: 0.008893519924 | O10: 0.01229670584 | P10: 0.01659638232 | Q10: 0.02162808602 | R10: 0.02765364661 | S10: 0.03439294775 | T10: 0.04168083781 | U10: 0.046701488 | V10: 0.0499312313 | W10: 0.05200158145 | X10: 0.05155348717 | Y10: 0.05179023498 | Z10: 0.05037698571 | AA10: 0.04885965605 | AB10: 0.04673635558 | AC10: 0.04394667178 | AD10: 0.04026168938 | AE10: 0.03546170838 | AF10: 0.0310305904 | AG10: 0.02645063322 | AH10: 0.02202384922 | AI10: 0.01843249475 | AJ10: 0.0148541715 | AK10: 0.0117997717 | AL10: 0.009094822924 | AM10: 0.006982794939 | AN10: 0.005919004551 | AO10: 0.004827674422 | AP10: 0.003963005269 | AQ10: 0.003223731594 | AR10: 0.002548493188 | AS10: 0.002373782444 | AT10: 0.001984720822 | AU10: 0.0003867902875 | AV10: 4.102849825e-05 | AW10: 0 | AX10: 0 | AY10: 0 | AZ10: 0 | BA10: 0
A12: dln R - Value | B12: -0.15 | C12: -0.145 | D12: -0.14 | E12: -0.135 | F12: -0.13 | G12: -0.125 | H12: -0.12 | I12: -0.115 | J12: -0.11 | K12: -0.105 | L12: -0.1 | M12: -0.095 | N12: -0.09 | O12: -0.085 | P12: -0.08 | Q12: -0.075 | R12: -0.07 | S12: -0.065 | T12: -0.06 | U12: -0.055 | V12: -0.05 | W12: -0.045 | X12: -0.04 | Y12: -0.035 | Z12: -0.03 | AA12: -0.025 | AB12: -0.02 | AC12: -0.015 | AD12: -0.01 | AE12: -0.005 | AF12: 0 | AG12: 0.005 | AH12: 0.01 | AI12: 0.015 | AJ12: 0.02 | AK12: 0.025 | AL12: 0.03 | AM12: 0.035 | AN12: 0.04 | AO12: 0.045 | AP12: 0.05 | AQ12: 0.055 | AR12: 0.06 | AS12: 0.065 | AT12: 0.07 | AU12: 0.075 | AV12: 0.08 | AW12: 0.085 | AX12: 0.09 | AY12: 0.095 | AZ12: 0.1 | BA12: 0.105 | BB12: 0.11 | BC12: 0.115 | BD12: 0.12 | BE12: 0.125 | BF12: 0.13 | BG12: 0.135 | BH12: 0.14 | BI12: 0.145 | BJ12: 0.15
A13: History | B13: 0.002735978112 | C13: 0 | D13: 0 | E13: 0.001367989056 | F13: 0 | G13: 0 | H13: 0 | I13: 0.001367989056 | J13: 0.002735978112 | K13: 0.001367989056 | L13: 0 | M13: 0.001367989056 | N13: 0.004103967168 | O13: 0.002735978112 | P13: 0 | Q13: 0.002735978112 | R13: 0.001367989056 | S13: 0.00683994528 | T13: 0.009575923393 | U13: 0.009575923393 | V13: 0.01367989056 | W13: 0.01778385773 | X13: 0.02872777018 | Y13: 0.03830369357 | Z13: 0.04377564979 | AA13: 0.03967168263 | AB13: 0.03967168263 | AC13: 0.05061559508 | AD13: 0.06566347469 | AE13: 0.05745554036 | AF13: 0.08891928865 | AG13: 0.06429548564 | AH13: 0.07387140903 | AI13: 0.04924760602 | AJ13: 0.05471956224 | AK13: 0.04787961696 | AL13: 0.03283173735 | AM13: 0.03556771546 | AN13: 0.02599179207 | AO13: 0.0123119015 | AP13: 0.01094391245 | AQ13: 0.01504787962 | AR13: 0.008207934337 | AS13: 0.005471956224 | AT13: 0.00683994528 | AU13: 0.002735978112 | AV13: 0.00683994528 | AW13: 0.001367989056 | AX13: 0.004103967168 | AY13: 0.002735978112 | AZ13: 0.001367989056 | BA13: 0 | BB13: 0 | BC13: 0.001367989056 | BD13: 0 | BE13: 0.001367989056 | BF13: 0.001367989056 | BG13: 0.001367989056 | BH13: 0 | BI13: 0 | BJ13: 0
A14: Average - Frequency | B14: 0.001021340629 | C14: 0.0002132694938 | D14: 0.000253625171 | E14: 0.0003142270862 | F14: 0.0003764705882 | G14: 0.0004712722298 | H14: 0.0005879616963 | I14: 0.0007299589603 | J14: 0.0009109439124 | K14: 0.001111627907 | L14: 0.001371682627 | M14: 0.0017250342 | N14: 0.002178522572 | O14: 0.002727359781 | P14: 0.003437072503 | Q14: 0.004345417237 | R14: 0.005453077975 | S14: 0.006949110807 | T14: 0.008765526676 | U14: 0.01112366621 | V14: 0.01401874145 | W14: 0.01767305062 | X14: 0.02226894665 | Y14: 0.02776785226 | Z14: 0.03422886457 | AA14: 0.04198043776 | AB14: 0.05038659371 | AC14: 0.05896552668 | AD14: 0.06688153215 | AE14: 0.07247086183 | AF14: 0.07600232558 | AG14: 0.07230478796 | AH14: 0.06706744186 | AI14: 0.0593626539 | AJ14: 0.05081094391 | AK14: 0.04233050616 | AL14: 0.03453324213 | AM14: 0.02804172367 | AN14: 0.0223120383 | AO14: 0.01778522572 | AP14: 0.01413173735 | AQ14: 0.01118290014 | AR14: 0.008831600547 | AS14: 0.006963201094 | AT14: 0.005490150479 | AU14: 0.004396990424 | AV14: 0.003446922025 | AW14: 0.002795348837 | AX14: 0.002229138167 | AY14: 0.001777701778 | AZ14: 0.001400820793 | BA14: 0.001122571819 | BB14: 0.0009091655267 | BC14: 0.000737619699 | BD14: 0.0006017783858 | BE14: 0.0004905608755 | BF14: 0.0003932968536 | BG14: 0.0003121751026 | BH14: 0.0002692202462 | BI14: 0.0002094391245 | BJ14: 0.001047195622
A15: Std Dev | B15: 0.001503785539 | C15: 0.000559698458 | D15: 0.0006173054822 | E15: 0.0006874575944 | F15: 0.0007516038134 | G15: 0.0008433070034 | H15: 0.000947249163 | I15: 0.001064635705 | J15: 0.001202023571 | K15: 0.001320999565 | L15: 0.00147380916 | M15: 0.001646980992 | N15: 0.001886359068 | O15: 0.002148683784 | P15: 0.002345789624 | Q15: 0.002671591128 | R15: 0.002971784098 | S15: 0.003337061175 | T15: 0.003778043572 | U15: 0.004248334899 | V15: 0.00465416832 | W15: 0.00520944153 | X15: 0.005745029948 | Y15: 0.006235437144 | Z15: 0.00670192433 | AA15: 0.007426072704 | AB15: 0.008109738337 | AC15: 0.009325735567 | AD15: 0.01066047003 | AE15: 0.01167561097 | AF15: 0.01201565388 | AG15: 0.01169139479 | AH15: 0.01056757231 | AI15: 0.009452357463 | AJ15: 0.008370819731 | AK15: 0.007511296309 | AL15: 0.006851448816 | AM15: 0.006260010856 | AN15: 0.005691383285 | AO15: 0.005097700491 | AP15: 0.004702143138 | AQ15: 0.00421455647 | AR15: 0.003757080566 | AS15: 0.003388633978 | AT15: 0.00297307901 | AU15: 0.002668005985 | AV15: 0.00238650853 | AW15: 0.002126823298 | AX15: 0.001867507869 | AY15: 0.001686348108 | AZ15: 0.001459602654 | BA15: 0.001310998692 | BB15: 0.001179891029 | BC15: 0.001045472477 | BD15: 0.0009536640061 | BE15: 0.0008492623699 | BF15: 0.0007617178161 | BG15: 0.0006778448029 | BH15: 0.000633823093 | BI15: 0.0005581334828 | BJ15: 0.001514030656

Sheet Historical Data
A1: DATE | B1: R | C1: VALUE% | D1: ln R | E1: Dln R
A2: 1953-04-19 | B2: =C2/100 -> 0.0308 | C2: 3.08 | D2: =LN(B2) -> -3.480240589 | E2: 0
A3: 1953-05-19 | B3: 0.0318 | C3: 3.18 | D3: =LN(B3) -> -3.448288989 | E3: =D3-D2 -> 0.03195159981
A4: 1953-06-19 | B4: 0.0321 | C4: 3.21 | D4: -3.438899249 | E4: =D4-D3 -> 0.00938974035
A5: 1953-07-19 | B5: 0.0312 | C5: 3.12 | D5: -3.467337184 | E5: -0.02843793532
A6: 1953-08-19 | B6: 0.031 | C6: 3.1 | D6: -3.473768074 | E6: -0.00643089033
A7: 1953-09-19 | B7: 0.0307 | C7: 3.07 | D7: -3.483492624 | E7: -0.009724549892
A8: 1953-10-19 | B8: 0.0295 | C8: 2.95 | D8: -3.523365016 | E8: -0.03987239125
A9: 1953-11-19 | B9: 0.0295 | C9: 2.95 | D9: -3.523365016 | E9: 0
A10: 1953-12-19 | B10: 0.0289 | C10: 2.89 | D10: -3.543913684 | E10: -0.02054866823
A11: 1954-01-19 | B11: 0.028 | C11: 2.8 | D11: -3.575550769 | E11: -0.03163708494
A12: 1954-02-19 | B12: 0.0272 | C12: 2.72 | D12: -3.604538306 | E12: -0.02898753687
A13: 1954-03-19 | B13: 0.0261 | C13: 2.61 | D13: -3.645819965 | E13: -0.04128165897
A14: 1954-04-19 | B14: 0.026 | C14: 2.6 | D14: -3.649658741 | E14: -0.003838776307
A15: 1954-05-19 | B15: 0.0266 | C15: 2.66 | D15: -3.626844063 | E15: 0.02281467777
A16: 1954-06-19 | B16: 0.0264 | C16: 2.64 | D16: -3.634391269 | E16: -0.007547205635
A17: 1954-07-19 | B17: 0.0257 | C17: 2.57 | D17: -3.661264287 | E17: -0.02687301825
A18: 1954-08-19 | B18: 0.0258 | C18: 2.58 | D18: -3.657380787 | E18: 0.003883500026
A19: 1954-09-19 | B19: 0.026 | C19: 2.6 | D19: -3.649658741 | E19: 0.007722046094
A20: 1954-10-19 | B20: 0.0261 | C20: 2.61 | D20: -3.645819965 | E20: 0.003838776307
A21: 1954-11-19 | B21: 0.0265 | C21: 2.65 | D21: -3.630610546 | E21: 0.01520941866
A22: 1954-12-19 | B22: 0.0267 | C22: 2.67 | D22: -3.623091714 | E22: 0.007518832414
A23: 1955-01-19 | B23: 0.0275 | C23: 2.75 | D23: -3.593569274 | E23: 0.02952243927
A24: 1955-02-19 | B24: 0.0283 | C24: 2.83 | D24: -3.564893474 | E24: 0.02867579998
A25: 1955-03-19 | B25: 0.0284 | C25: 2.84 | D25: -3.561366134 | E25: 0.003527340518
A26: 1955-04-19 | B26: 0.0285 | C26: 2.85 | D26: -3.557851192 | E26: 0.003514942107
A27: 1955-05-19 | B27: 0.0287 | C27: 2.87 | D27: -3.550858156 | E27: 0.006993035491
A28: 1955-06-19 | B28: 0.0286 | C28: 2.86 | D28: -3.554348561 | E28: -0.00349040494
A29: 1955-07-19 | B29: 0.0294 | C29: 2.94 | D29: -3.526760605 | E29: 0.02758795652
A30: 1955-08-19 | B30: 0.0301 | C30: 3.01 | D30: -3.503230107 | E30: 0.02353049741
A31: 1955-09-19 | B31: 0.03 | C31: 3 | D31: -3.506557897 | E31: -0.003327790093
A32: 1955-10-19 | B32: 0.0293 | C32: 2.93 | D32: -3.530167763 | E32: -0.02360986564
A33: 1955-11-19 | B33: 0.0293 | C33: 2.93 | D33: -3.530167763 | E33: 0
A34: 1955-12-19 | B34: 0.0298 | C34: 2.98 | D34: -3.513246885 | E34: 0.01692087749
A35: 1956-01-19 | B35: 0.0294 | C35: 2.94 | D35: -3.526760605 | E35: -0.01351371917
A36: 1956-02-19 | B36: 0.0291 | C36: 2.91 | D36: -3.537017105 | E36: -0.01025650017
A37: 1956-03-19 | B37: 0.0299 | C37: 2.99 | D37: -3.509896799 | E37: 0.02712030622
A38: 1956-04-19 | B38: 0.0314 | C38: 3.14 | D38: -3.460947386 | E38: 0.04894941252
A39: 1956-05-19 | B39: 0.0306 | C39: 3.06 | D39: -3.48675527 | E39: -0.02580788396
A40: 1956-06-19 | B40: 0.03 | C40: 3 | D40: -3.506557897 | E40: -0.0198026273
A41: 1956-07-19 | B41: 0.0308 | C41: 3.08 | D41: -3.480240589 | E41: 0.02631730832
A42: 1956-08-19 | B42: 0.0322 | C42: 3.22 | D42: -3.435788826 | E42: 0.04445176257
A43: 1956-09-19 | B43: 0.0328 | C43: 3.28 | D43: -3.417326764 | E43: 0.01846206284
A44: 1956-10-19 | B44: 0.0326 | C44: 3.26 | D44: -3.423442991 | E44: -0.006116227017
A45: 1956-11-19 | B45: 0.0337 | C45: 3.37 | D45: -3.390257442 | E45: 0.03318554899
A46: 1956-12-19 | B46: 0.0345 | C46: 3.45 | D46: -3.366795955 | E46: 0.02346148668
A47: 1957-01-19 | B47: 0.0341 | C47: 3.41 | D47: -3.378457895 | E47: -0.01166193975
A48: 1957-02-19 | B48: 0.033 | C48: 3.3 | D48: -3.411247718 | E48: -0.03278982282
A49: 1957-03-19 | B49: 0.0332 | C49: 3.32 | D49: -3.405205403 | E49: 0.006042314456
A50: 1957-04-19 | B50: 0.034 | C50: 3.4 | D50: -3.381394754 | E50: 0.02381064869
A51: 1957-05-19 | B51: 0.0349 | C51: 3.49 | D51: -3.35526845 | E51: 0.02612630459
A52: 1957-06-19 | B52: 0.0365 | C52: 3.65 | D52: -3.310443018 | E52: 0.04482543138
A53: 1957-07-19 | B53: 0.0372 | C53: 3.72 | D53: -3.291446518 | E53: 0.01899650069
A54: 1957-08-19 | B54: 0.0375 | C54: 3.75 | D54: -3.283414346 | E54: 0.008032171697
A55: 1957-09-19 | B55: 0.0373 | C55: 3.73 | D55: -3.288761952 | E55: -0.005347606327
A56: 1957-10-19 | B56: 0.0376 | C56: 3.76 | D56: -3.280751229 | E56: 0.008010723746
A57: 1957-11-19 | B57: 0.0361 | C57: 3.61 | D57: -3.321462414 | E57: -0.04071118506
A58: 1957-12-19 | B58: 0.0338 | C58: 3.38 | D58: -3.387294476 | E58: -0.06583206285
A59: 1958-01-19 | B59: 0.0327 | C59: 3.27 | D59: -3.420380201 | E59: -0.03308572459
A60: 1958-02-19 | B60: 0.0331 | C60: 3.31 | D60: -3.408221997 | E60: 0.01215820448
A61: 1958-03-19 | B61: 0.0329 | C61: 3.29 | D61: -3.414282621 | E61: -0.006060624612
A62: 1958-04-19 | B62: 0.0317 | C62: 3.17 | D62: -3.451438598 | E62: -0.03715597689
A63: 1958-05-19 | B63: 0.0317 | C63: 3.17 | D63: -3.451438598 | E63: 0
A64: 1958-06-19 | B64: 0.0323 | C64: 3.23 | D64: -3.432688049 | E64: 0.01875054935
A65: 1958-07-19 | B65: 0.0339 | C65: 3.39 | D65: -3.384340265 | E65: 0.04834778416
A66: 1958-08-19 | B66: =C66/100 -> 0.0365 | C66: 3.65 | D66: -3.310443018 | E66: 0.0738972462
A67: 1958-09-19 | B67: 0.038 | C67: 3.8 | D67: =LN(B67) -> -3.270169119 | E67: 0.04027389914
A68: 1958-10-19 | B68: 0.0381 | C68: 3.81 | D68: -3.267540997 | E68: =D68-D67 -> 0.002628122406
A69: 1958-11-19 | B69: 0.0376 | C69: 3.76 | D69: -3.280751229 | E69: -0.01321023174
A70: 1958-12-19 | B70: 0.0386 | C70: 3.86 | D70: -3.254503003 | E70: 0.02624822607
A71: 1959-01-19 | B71: 0.0395 | C71: 3.95 | D71: -3.231454607 | E71: 0.02304839544
A72: 1959-02-19 | B72: 0.0396 | C72: 3.96 | D72: -3.228926161 | E72: 0.002528446353
A73: 1959-03-19 | B73: 0.0399 | C73: 3.99 | D73: -3.221378955 | E73: 0.007547205635
A74: 1959-04-19 | B74: 0.0406 | C74: 4.06 | D74: -3.203987212 | E74: 0.01739174271
A75: 1959-05-19 | B75: 0.0413 | C75: 4.13 | D75: -3.186892779 | E75: 0.01709443336
A76: 1959-06-19 | B76: 0.0414 | C76: 4.14 | D76: -3.184474398 | E76: 0.002418380864
A77: 1959-07-19 | B77: 0.0416 | C77: 4.16 | D77: -3.179655112 | E77: 0.004819286436
A78: 1959-08-19 | B78: 0.0415 | C78: 4.15 | D78: -3.182061852 | E78: -0.002406740031
A79: 1959-09-19 | B79: 0.0429 | C79: 4.29 | D79: -3.148883453 | E79: 0.0331783987
A80: 1959-10-19 | B80: 0.0419 | C80: 4.19 | D80: -3.172469452 | E80: -0.02358599901
A81: 1959-11-19 | B81: 0.042 | C81: 4.2 | D81: -3.170085661 | E81: 0.002383791355
A82: 1959-12-19 | B82: 0.0433 | C82: 4.33 | D82: -3.139602644 | E82: 0.03048301673
A83: 1960-01-19 | B83: 0.0442 | C83: 4.42 | D83: -3.11903049 | E83: 0.02057215408
A84: 1960-02-19 | B84: 0.0428 | C84: 4.28 | D84: -3.151217176 | E84: -0.0321866865
A85: 1960-03-19 | B85: 0.0414 | C85: 4.14 | D85: -3.184474398 | E85: -0.03325722176
A86: 1960-04-19 | B86: 0.0423 | C86: 4.23 | D86: -3.162968193 | E86: 0.02150620522
A87: 1960-05-19 | B87: 0.042 | C87: 4.2 | D87: -3.170085661 | E87: -0.007117467769
A88: 1960-06-19 | B88: 0.0404 | C88: 4.04 | D88: -3.208925494 | E88: -0.03883983332
A89: 1960-07-19 | B89: 0.0391 | C89: 3.91 | D89: -3.241632812 | E89: -0.03270731798
A90: 1960-08-19 | B90: 0.0384 | C90: 3.84 | D90: -3.259697819 | E90: -0.0180650074
A91: 1960-09-19 | B91: 0.0386 | C91: 3.86 | D91: -3.254503003 | E91: 0.005194816877
A92: 1960-10-19 | B92: 0.0392 | C92: 3.92 | D92: -3.239078532 | E92: 0.01542447033
A93: 1960-11-19 | B93: 0.0396 | C93: 3.96 | D93: -3.228926161 | E93: 0.01015237146
A94: 1960-12-19 | B94: 0.0391 | C94: 3.91 | D94: -3.241632812 | E94: -0.01270665127
A95: 1961-01-19 | B95: 0.039 | C95: 3.9 | D95: -3.244193633 | E95: -0.002560820862
A96: 1961-02-19 | B96: 0.0384 | C96: 3.84 | D96: -3.259697819 | E96: -0.01550418654
A97: 1961-03-19 | B97: 0.0381 | C97: 3.81 | D97: -3.267540997 | E97: -0.007843177461
A98: 1961-04-19 | B98: 0.0381 | C98: 3.81 | D98: -3.267540997 | E98: 0
A99: 1961-05-19 | B99: 0.0374 | C99: 3.74 | D99: -3.286084575 | E99: -0.01854357771
A100: 1961-06-19 | B100: 0.0389 | C100: 3.89 | D100: -3.246761028 | E100: 0.0393235462
A101: 1961-07-19 | B101: 0.0393 | C101: 3.93 | D101: -3.23653076 | E101: 0.01023026825
A102: 1961-08-19 | B102: 0.0404 | C102: 4.04 | D102: -3.208925494 | E102: 0.02760526609
A103: 1961-09-19 | B103: 0.0404 | C103: 4.04 | D103: -3.208925494 | E103: 0
A104: 1961-10-19 | B104: 0.0401 | C104: 4.01 | D104: -3.216378945 | E104: -0.007453450655
A105: 1961-11-19 | B105: 0.04 | C105: 4 | D105: -3.218875825 | E105: -0.002496880199
A106: 1961-12-19 | B106: 0.0407 | C106: 4.07 | D106: -3.201527187 | E106: 0.01734863833
A107: 1962-01-19 | B107: 0.041 | C107: 4.1 | D107: -3.194183212 | E107: 0.007343974256
A108: 1962-02-19 | B108: 0.0412 | C108: 4.12 | D108: -3.189317023 | E108: 0.004866189651
A109: 1962-03-19 | B109: 0.0404 | C109: 4.04 | D109: -3.208925494 | E109: -0.01960847139
A110: 1962-04-19 | B110: 0.0393 | C110: 3.93 | D110: -3.23653076 | E110: -0.02760526609
A111: 1962-05-19 | B111: 0.0392 | C111: 3.92 | D111: -3.239078532 | E111: -0.002547772079
A112: 1962-06-19 | B112: 0.0396 | C112: 3.96 | D112: -3.228926161 | E112: 0.01015237146
A113: 1962-07-19 | B113: 0.0405 | C113: 4.05 | D113: -3.206453305 | E113: 0.02247285585
A114: 1962-08-19 | B114: 0.0401 | C114: 4.01 | D114: -3.216378945 | E114: -0.0099256398
A115: 1962-09-19 | B115: 0.04 | C115: 4 | D115: -3.218875825 | E115: -0.002496880199
A116: 1962-10-19 | B116: 0.0394 | C116: 3.94 | D116: -3.233989463 | E116: -0.01511363781
A117: 1962-11-19 | B117: 0.0393 | C117: 3.93 | D117: -3.23653076 | E117: -0.002541297429
A118: 1962-12-19 | B118: 0.0392 | C118: 3.92 | D118: -3.239078532 | E118: -0.002547772079
A119: 1963-01-19 | B119: 0.0393 | C119: 3.93 | D119: -3.23653076 | E119: 0.002547772079
A120: 1963-02-19 | B120: 0.0397 | C120: 3.97 | D120: -3.226404091 | E120: 0.01012666882
A121: 1963-03-19 | B121: 0.0398 | C121: 3.98 | D121: -3.223888367 | E121: 0.002515724597
A122: 1963-04-19 | B122: 0.0403 | C122: 4.03 | D122: -3.21140381 | E122: 0.01248455666
A123: 1963-05-19 | B123: 0.0402 | C123: 4.02 | D123: -3.213888283 | E123: -0.002484473328
A124: 1963-06-19 | B124: 0.0402 | C124: 4.02 | D124: -3.213888283 | E124: 0
A125: 1963-07-19 | B125: 0.0406 | C125: 4.06 | D125: -3.203987212 | E125: 0.009901070983
A126: 1963-08-19 | B126: 0.0403 | C126: 4.03 | D126: -3.21140381 | E126: -0.007416597655
A127: 1963-09-19 | B127: 0.0409 | C127: 4.09 | D127: -3.196625216 | E127: 0.0147785941
A128: 1963-10-19 | B128: 0.0412 | C128: 4.12 | D128: -3.189317023 | E128: 0.007308193307
A129: 1963-11-19 | B129: 0.0416 | C129: 4.16 | D129: -3.179655112 | E129: 0.009661910912
A130: 1963-12-19 | B130: =C130/100 -> 0.0419 | C130: 4.19 | D130: -3.172469452 | E130: 0.007185659661
A131: 1964-01-19 | B131: 0.0419 | C131: 4.19 | D131: =LN(B131) -> -3.172469452 | E131: 0
A132: 1964-02-19 | B132: 0.0417 | C132: 4.17 | D132: -3.17725415 | E132: =D132-D131 -> -0.004784698123
A133: 1964-03-19 | B133: 0.0422 | C133: 4.22 | D133: -3.165335058 | E133: 0.01191909224
A134: 1964-04-19 | B134: 0.0424 | C134: 4.24 | D134: -3.160606917 | E134: 0.004728141196
A135: 1964-05-19 | B135: 0.042 | C135: 4.2 | D135: -3.170085661 | E135: -0.009478743955
A136: 1964-06-19 | B136: 0.0417 | C136: 4.17 | D136: -3.17725415 | E136: -0.007168489479
A137: 1964-07-19 | B137: 0.0416 | C137: 4.16 | D137: -3.179655112 | E137: -0.002400961538
A138: 1964-08-19 | B138: 0.0418 | C138: 4.18 | D138: -3.174858939 | E138: 0.004796172263
A139: 1964-09-19 | B139: 0.042 | C139: 4.2 | D139: -3.170085661 | E139: 0.004773278753
A140: 1964-10-19 | B140: 0.042 | C140: 4.2 | D140: -3.170085661 | E140: 0
A141: 1964-11-19 | B141: 0.0417 | C141: 4.17 | D141: -3.17725415 | E141: -0.007168489479
A142: 1964-12-19 | B142: 0.0418 | C142: 4.18 | D142: -3.174858939 | E142: 0.002395210726
A143: 1965-01-19 | B143: 0.0419 | C143: 4.19 | D143: -3.172469452 | E143: 0.002389487397
A144: 1965-02-19 | B144: 0.0421 | C144: 4.21 | D144: -3.167707538 | E144: 0.00476191376
A145: 1965-03-19 | B145: 0.042 | C145: 4.2 | D145: -3.170085661 | E145: -0.002378122405
A146: 1965-04-19 | B146: 0.042 | C146: 4.2 | D146: -3.170085661 | E146: 0
A147: 1965-05-19 | B147: 0.0421 | C147: 4.21 | D147: -3.167707538 | E147: 0.002378122405
A148: 1965-06-19 | B148: 0.0421 | C148: 4.21 | D148: -3.167707538 | E148: 0
A149: 1965-07-19 | B149: 0.0421 | C149: 4.21 | D149: -3.167707538 | E149: 0
A150: 1965-08-19 | B150: 0.0425 | C150: 4.25 | D150: -3.158251203 | E150: 0.009456335242
A151: 1965-09-19 | B151: 0.043 | C151: 4.3 | D151: -3.146555163 | E151: 0.01169603976
A152: 1965-10-19 | B152: 0.0432 | C152: 4.32 | D152: -3.141914784 | E152: 0.004640379557
A153: 1965-11-19 | B153: 0.044 | C153: 4.4 | D153: -3.123565645 | E153: 0.01834913867
A154: 1965-12-19 | B154: 0.045 | C154: 4.5 | D154: -3.101092789 | E154: 0.02247285585
A155: 1966-01-19 | B155: 0.0452 | C155: 4.52 | D155: -3.096658192 | E155: 0.004434597068
A156: 1966-02-19 | B156: 0.0471 | C156: 4.71 | D156: -3.055482278 | E156: 0.04117591418
A157: 1966-03-19 | B157: 0.0472 | C157: 4.72 | D157: -3.053361386 | E157: 0.002120891569
A158: 1966-04-19 | B158: 0.0465 | C158: 4.65 | D158: -3.068302966 | E158: -0.01494158
A159: 1966-05-19 | B159: 0.0469 | C159: 4.69 | D159: -3.059737604 | E159: 0.008565362859
A160: 1966-06-19 | B160: 0.0473 | C160: 4.73 | D160: -3.051244983 | E160: 0.008492620046
A161: 1966-07-19 | B161: 0.0484 | C161: 4.84 | D161: -3.028255465 | E161: 0.02298951822
A162: 1966-08-19 | B162: 0.0495 | C162: 4.95 | D162: -3.005782609 | E162: 0.02247285585
A163: 1966-09-19 | B163: 0.0494 | C163: 4.94 | D163: -3.007804855 | E163: -0.002022245381
A164: 1966-10-19 | B164: 0.0483 | C164: 4.83 | D164: -3.030323718 | E164: -0.02251886354
A165: 1966-11-19 | B165: 0.0487 | C165: 4.87 | D165: -3.022076249 | E165: 0.00824746943
A166: 1966-12-19 | B166: 0.0476 | C166: 4.76 | D166: -3.044922518 | E166: -0.02284626885
A167: 1967-01-19 | B167: 0.0451 | C167: 4.51 | D167: -3.098873032 | E167: -0.05395051473
A168: 1967-02-19 | B168: 0.0461 | C168: 4.61 | D168: -3.076942329 | E168: 0.02193070349
A169: 1967-03-19 | B169: 0.0456 | C169: 4.56 | D169: -3.087847562 | E169: -0.01090523348
A170: 1967-04-19 | B170: 0.0464 | C170: 4.64 | D170: -3.07045582 | E170: 0.01739174271
A171: 1967-05-19 | B171: 0.049 | C171: 4.9 | D171: -3.015934981 | E171: 0.05452083888
A172: 1967-06-19 | B172: 0.0499 | C172: 4.99 | D172: -2.997734276 | E172: 0.01820070465
A173: 1967-07-19 | B173: 0.0501 | C173: 5.01 | D173: -2.993734271 | E173: 0.004000005333
A174: 1967-08-19 | B174: 0.0512 | C174: 5.12 | D174: -2.972015747 | E174: 0.02171852395
A175: 1967-09-19 | B175: 0.0516 | C175: 5.16 | D175: -2.964233606 | E175: 0.007782140442
A176: 1967-10-19 | B176: 0.0536 | C176: 5.36 | D176: -2.926206211 | E176: 0.03802739559
A177: 1967-11-19 | B177: 0.0566 | C177: 5.66 | D177: -2.871746294 | E177: 0.05445991713
A178: 1967-12-19 | B178: 0.0559 | C178: 5.59 | D178: -2.884190899 | E178: -0.01244460505
A179: 1968-01-19 | B179: 0.0539 | C179: 5.39 | D179: -2.920624801 | E179: -0.03643390225
A180: 1968-02-19 | B180: 0.0538 | C180: 5.38 | D180: -2.922481812 | E180: -0.001857010747
A181: 1968-03-19 | B181: 0.0559 | C181: 5.59 | D181: -2.884190899 | E181: 0.03829091299
A182: 1968-04-19 | B182: 0.0546 | C182: 5.46 | D182: -2.907721396 | E182: -0.02353049741
A183: 1968-05-19 | B183: 0.0555 | C183: 5.55 | D183: -2.891372258 | E183: 0.016349138
A184: 1968-06-19 | B184: 0.054 | C184: 5.4 | D184: -2.918771232 | E184: -0.02739897419
A185: 1968-07-19 | B185: 0.0529 | C185: 5.29 | D185: -2.93935194 | E185: -0.0205807077
A186: 1968-08-19 | B186: 0.0523 | C186: 5.23 | D186: -2.950758908 | E186: -0.01140696779
A187: 1968-09-19 | B187: 0.0528 | C187: 5.28 | D187: -2.941244088 | E187: 0.009514819641
A188: 1968-10-19 | B188: 0.0544 | C188: 5.44 | D188: -2.911391125 | E188: 0.02985296315
A189: 1968-11-19 | B189: 0.0556 | C189: 5.56 | D189: -2.889572078 | E189: 0.02181904739
A190: 1968-12-19 | B190: 0.0588 | C190: 5.88 | D190: -2.833613424 | E190: 0.05595865365
A191: 1969-01-19 | B191: 0.0599 | C191: 5.99 | D191: -2.815078774 | E191: 0.01853465022
A192: 1969-02-19 | B192: 0.0611 | C192: 6.11 | D192: -2.795243413 | E192: 0.01983536106
A193: 1969-03-19 | B193: 0.0622 | C193: 6.22 | D193: -2.777400279 | E193: 0.01784313357
A194: 1969-04-19 | B194: =C194/100 -> 0.0603 | C194: 6.03 | D194: -2.808423175 | E194: -0.03102289601
A195: 1969-05-19 | B195: 0.0611 | C195: 6.11 | D195: =LN(B195) -> -2.795243413 | E195: 0.01317976244
A196: 1969-06-19 | B196: 0.0628 | C196: 6.28 | D196: -2.767800206 | E196: =D196-D195 -> 0.0274432073
A197: 1969-07-19 | B197: 0.0627 | C197: 6.27 | D197: -2.769393831 | E197: -0.001593625835
A198: 1969-08-19 | B198: 0.0622 | C198: 6.22 | D198: -2.777400279 | E198: -0.008006447894
A199: 1969-09-19 | B199: 0.0655 | C199: 6.55 | D199: -2.725705136 | E199: 0.0516951429
A200: 1969-10-19 | B200: 0.0649 | C200: 6.49 | D200: -2.734907655 | E200: -0.009202518931
... 532 more rows

Sheet Historical Curves
A1: Historic U.S. Treasury Yields
B2: No. curves: | C2: =COUNT(D6:D1058) -> 729
C3: Maturity: | D3: 0.25 | E3: 0.5 | F3: 1 | G3: 2 | H3: 3 | I3: 5 | J3: 7 | K3: 10 | L3: 20 | M3: 30
A4: Year | B4: Month | C4: Curve# | D4: =CONCATENATE(D3,"y UST") -> 0.25y UST | E4: 0.5y UST | F4: 1y UST | G4: 2y UST | H4: 3y UST | I4: 5y UST | J4: 7y UST | K4: 10y UST | L4: 20y UST | M4: 30y UST
A6: =1953 -> 1953 | B6: 4 | C6: 1 | D6: 0.0219 | E6: 0.0226 | F6: 0.0236 | G6: 0.0241 | H6: 0.0251 | I6: 0.0262 | J6: 0.0273 | K6: 0.0283 | L6: 0.0308 | M6: 0.0309
A7: =IF(B6=12,A6+1,A6) -> 1953 | B7: =MOD(B6,12)+1 -> 5 | C7: =C6+1 -> 2 | D7: 0.0216 | E7: 0.0228 | F7: 0.0248 | G7: 0.0258 | H7: 0.0272 | I7: 0.0287 | J7: 0.0301 | K7: 0.0305 | L7: 0.0318 | M7: 0.0319
A8: =IF(B7=12,A7+1,A7) -> 1953 | B8: =MOD(B7,12)+1 -> 6 | C8: 3 | D8: 0.0211 | E8: 0.0224 | F8: 0.0245 | G8: 0.026 | H8: 0.0274 | I8: 0.0294 | J8: 0.0306 | K8: 0.0311 | L8: 0.0321 | M8: 0.0322
A9: 1953 | B9: 7 | C9: 4 | D9: 0.0204 | E9: 0.0218 | F9: 0.0238 | G9: 0.0246 | H9: 0.0262 | I9: 0.0275 | J9: 0.029 | K9: 0.0293 | L9: 0.0312 | M9: 0.0313
A10: 1953 | B10: 8 | C10: 5 | D10: 0.0204 | E10: 0.0213 | F10: 0.0228 | G10: 0.0244 | H10: 0.0258 | I10: 0.028 | J10: 0.029 | K10: 0.0295 | L10: 0.031 | M10: 0.0311
A11: 1953 | B11: 9 | C11: 6 | D11: 0.0179 | E11: 0.0195 | F11: 0.022 | G11: 0.0236 | H11: 0.0256 | I11: 0.0271 | J11: 0.0287 | K11: 0.0287 | L11: 0.0307 | M11: 0.0308
A12: 1953 | B12: 10 | C12: 7 | D12: 0.0138 | E12: 0.0154 | F12: 0.0179 | G12: 0.0197 | H12: 0.0223 | I12: 0.0243 | J12: 0.0263 | K12: 0.0266 | L12: 0.0295 | M12: 0.0296
A13: 1953 | B13: 11 | C13: 8 | D13: 0.0144 | E13: 0.0153 | F13: 0.0167 | G13: 0.0194 | H13: 0.022 | I13: 0.0242 | J13: 0.0261 | K13: 0.0268 | L13: 0.0295 | M13: 0.0296
A14: 1953 | B14: 12 | C14: 9 | D14: 0.016 | E14: 0.0162 | F14: 0.0166 | G14: 0.019 | H14: 0.0207 | I14: 0.0232 | J14: 0.0246 | K14: 0.0259 | L14: 0.0289 | M14: 0.029
A15: 1954 | B15: 1 | C15: 10 | D15: 0.0118 | E15: 0.0127 | F15: 0.0141 | G15: 0.0165 | H15: 0.0189 | I15: 0.0217 | J15: 0.0236 | K15: 0.0248 | L15: 0.028 | M15: 0.0281
A16: 1954 | B16: 2 | C16: 11 | D16: 0.0097 | E16: 0.0102 | F16: 0.0114 | G16: 0.0141 | H16: 0.0163 | I16: 0.0204 | J16: 0.0227 | K16: 0.0247 | L16: 0.0272 | M16: 0.0273
A17: 1954 | B17: 3 | C17: 12 | D17: 0.0103 | E17: 0.0106 | F17: 0.0113 | G17: 0.0137 | H17: 0.0159 | I17: 0.0193 | J17: 0.0216 | K17: 0.0237 | L17: 0.0261 | M17: 0.0262
A18: 1954 | B18: 4 | C18: 13 | D18: 0.0097 | E18: 0.0096 | F18: 0.0096 | G18: 0.0128 | H18: 0.0154 | I18: 0.0187 | J18: 0.0211 | K18: 0.0229 | L18: 0.026 | M18: 0.0261
A19: 1954 | B19: 5 | C19: 14 | D19: 0.0076 | E19: 0.0079 | F19: 0.0085 | G19: 0.0125 | H19: 0.0156 | I19: 0.0192 | J19: 0.0217 | K19: 0.0237 | L19: 0.0266 | M19: 0.0267
A20: 1954 | B20: 6 | C20: 15 | D20: 0.0064 | E20: 0.007 | F20: 0.0082 | G20: 0.0122 | H20: 0.0153 | I20: 0.0192 | J20: 0.0218 | K20: 0.0238 | L20: 0.0264 | M20: 0.0265
A21: 1954 | B21: 7 | C21: 16 | D21: 0.0072 | E21: 0.0076 | F21: 0.0084 | G21: 0.0119 | H21: 0.0147 | I21: 0.0185 | J21: 0.021 | K21: 0.023 | L21: 0.0257 | M21: 0.0258
A22: 1954 | B22: 8 | C22: 17 | D22: 0.0092 | E22: 0.0089 | F22: 0.0088 | G22: 0.0116 | H22: 0.0149 | I22: 0.019 | J22: 0.0221 | K22: 0.0236 | L22: 0.0258 | M22: 0.0259
A23: 1954 | B23: 9 | C23: 18 | D23: 0.0101 | E23: 0.0101 | F23: 0.0103 | G23: 0.0131 | H23: 0.016 | I23: 0.0196 | J23: 0.0223 | K23: 0.0238 | L23: 0.026 | M23: 0.0261
A24: 1954 | B24: 10 | C24: 19 | D24: 0.0098 | E24: 0.0105 | F24: 0.0117 | G24: 0.0147 | H24: 0.0172 | I24: 0.0202 | J24: 0.0225 | K24: 0.0243 | L24: 0.0261 | M24: 0.0262
A25: 1954 | B25: 11 | C25: 20 | D25: 0.0093 | E25: 0.01 | F25: 0.0114 | G25: 0.0148 | H25: 0.0175 | I25: 0.0209 | J25: 0.0231 | K25: 0.0248 | L25: 0.0265 | M25: 0.0266
A26: 1954 | B26: 12 | C26: 21 | D26: 0.0115 | E26: 0.0116 | F26: 0.0121 | G26: 0.015 | H26: 0.0181 | I26: 0.0216 | J26: 0.0241 | K26: 0.0251 | L26: 0.0267 | M26: 0.0268
A27: 1955 | B27: 1 | C27: 22 | D27: 0.0122 | E27: 0.0128 | F27: 0.0139 | G27: 0.0171 | H27: 0.0199 | I27: 0.0232 | J27: 0.0252 | K27: 0.0261 | L27: 0.0275 | M27: 0.0276
A28: 1955 | B28: 2 | C28: 23 | D28: 0.0117 | E28: 0.0132 | F28: 0.0157 | G28: 0.0185 | H28: 0.0212 | I28: 0.0238 | J28: 0.0258 | K28: 0.0265 | L28: 0.0283 | M28: 0.0284
A29: 1955 | B29: 3 | C29: 24 | D29: 0.0128 | E29: 0.014 | F29: 0.0159 | G29: 0.0196 | H29: 0.0226 | I29: 0.0248 | J29: 0.0265 | K29: 0.0268 | L29: 0.0284 | M29: 0.0285
A30: 1955 | B30: 4 | C30: 25 | D30: 0.0159 | E30: 0.0164 | F30: 0.0175 | G30: 0.0207 | H30: 0.0237 | I30: 0.0255 | J30: 0.0273 | K30: 0.0275 | L30: 0.0285 | M30: 0.0286
A31: 1955 | B31: 5 | C31: 26 | D31: 0.0145 | E31: 0.0162 | F31: 0.019 | G31: 0.0215 | H31: 0.0237 | I31: 0.0256 | J31: 0.0272 | K31: 0.0276 | L31: 0.0287 | M31: 0.0288
A32: 1955 | B32: 6 | C32: 27 | D32: 0.0141 | E32: 0.016 | F32: 0.0191 | G32: 0.0218 | H32: 0.0239 | I32: 0.0259 | J32: 0.0274 | K32: 0.0278 | L32: 0.0286 | M32: 0.0287
A33: 1955 | B33: 7 | C33: 28 | D33: 0.016 | E33: 0.0176 | F33: 0.0202 | G33: 0.023 | H33: 0.0251 | I33: 0.0272 | J33: 0.0285 | K33: 0.029 | L33: 0.0294 | M33: 0.0295
A34: 1955 | B34: 8 | C34: 29 | D34: 0.019 | E34: 0.0207 | F34: 0.0237 | G34: 0.0259 | H34: 0.0272 | I34: 0.0286 | J34: 0.0295 | K34: 0.0297 | L34: 0.0301 | M34: 0.0302
A35: 1955 | B35: 9 | C35: 30 | D35: 0.0207 | E35: 0.0218 | F35: 0.0236 | G35: 0.0255 | H35: 0.0269 | I35: 0.0285 | J35: 0.0293 | K35: 0.0297 | L35: 0.03 | M35: 0.0301
A36: 1955 | B36: 10 | C36: 31 | D36: 0.0223 | E36: 0.0229 | F36: 0.0239 | G36: 0.0252 | H36: 0.0262 | I36: 0.0276 | J36: 0.0283 | K36: 0.0288 | L36: 0.0293 | M36: 0.0294
A37: 1955 | B37: 11 | C37: 32 | D37: 0.0224 | E37: 0.0233 | F37: 0.0248 | G37: 0.0262 | H37: 0.0273 | I37: 0.0281 | J37: 0.0288 | K37: 0.0289 | L37: 0.0293 | M37: 0.0294
A38: 1955 | B38: 12 | C38: 33 | D38: 0.0254 | E38: 0.0261 | F38: 0.0273 | G38: 0.0283 | H38: 0.0288 | I38: 0.0293 | J38: 0.0296 | K38: 0.0296 | L38: 0.0298 | M38: 0.0299
A39: 1956 | B39: 1 | C39: 34 | D39: 0.0241 | E39: 0.0247 | F39: 0.0258 | G39: 0.0269 | H39: 0.0278 | I39: 0.0284 | J39: 0.0289 | K39: 0.029 | L39: 0.0294 | M39: 0.0295
A40: 1956 | B40: 2 | C40: 35 | D40: 0.0232 | E40: 0.0239 | F40: 0.0249 | G40: 0.0257 | H40: 0.0267 | I40: 0.0274 | J40: 0.0282 | K40: 0.0284 | L40: 0.0291 | M40: 0.0292
A41: 1956 | B41: 3 | C41: 36 | D41: 0.0225 | E41: 0.024 | F41: 0.0261 | G41: 0.0281 | H41: 0.0289 | I41: 0.0293 | J41: 0.0296 | K41: 0.0296 | L41: 0.0299 | M41: 0.03
A42: 1956 | B42: 4 | C42: 37 | D42: 0.026 | E42: 0.0273 | F42: 0.0292 | G42: 0.0312 | H42: 0.0319 | I42: 0.032 | J42: 0.0318 | K42: 0.0318 | L42: 0.0314 | M42: 0.0315
A43: 1956 | B43: 5 | C43: 38 | D43: 0.0261 | E43: 0.0276 | F43: 0.0294 | G43: 0.0306 | H43: 0.0308 | I43: 0.0308 | J43: 0.0307 | K43: 0.0307 | L43: 0.0306 | M43: 0.0307
A44: 1956 | B44: 6 | C44: 39 | D44: 0.0249 | E44: 0.0259 | F44: 0.0274 | G44: 0.0289 | H44: 0.0295 | I44: 0.0297 | J44: 0.0299 | K44: 0.03 | L44: 0.03 | M44: 0.0301
A45: 1956 | B45: 7 | C45: 40 | D45: 0.0231 | E45: 0.025 | F45: 0.0276 | G45: 0.0299 | H45: 0.0306 | I45: 0.0312 | J45: 0.031 | K45: 0.0311 | L45: 0.0308 | M45: 0.0309
A46: 1956 | B46: 8 | C46: 41 | D46: 0.026 | E46: 0.028 | F46: 0.031 | G46: 0.0334 | H46: 0.0339 | I46: 0.0341 | J46: 0.0334 | K46: 0.0333 | L46: 0.0322 | M46: 0.0323
A47: 1956 | B47: 9 | C47: 42 | D47: 0.0284 | E47: 0.0306 | F47: 0.0335 | G47: 0.0353 | H47: 0.035 | I47: 0.0347 | J47: 0.0337 | K47: 0.0338 | L47: 0.0328 | M47: 0.0329
A48: 1956 | B48: 10 | C48: 43 | D48: 0.029 | E48: 0.0306 | F48: 0.0328 | G48: 0.0342 | H48: 0.034 | I48: 0.034 | J48: 0.0333 | K48: 0.0334 | L48: 0.0326 | M48: 0.0327
A49: 1956 | B49: 11 | C49: 44 | D49: 0.0299 | E49: 0.0318 | F49: 0.0344 | G49: 0.036 | H49: 0.0357 | I49: 0.0356 | J49: 0.0347 | K49: 0.0349 | L49: 0.0337 | M49: 0.0339
A50: 1956 | B50: 12 | C50: 45 | D50: 0.0321 | E50: 0.0341 | F50: 0.0368 | G50: 0.0382 | H50: 0.0376 | I50: 0.037 | J50: 0.0358 | K50: 0.0359 | L50: 0.0345 | M50: 0.0347
A51: 1957 | B51: 1 | C51: 46 | D51: 0.0311 | E51: 0.0323 | F51: 0.0337 | G51: 0.0346 | H51: 0.0346 | I51: 0.0347 | J51: 0.0344 | K51: 0.0346 | L51: 0.0341 | M51: 0.0343
A52: 1957 | B52: 2 | C52: 47 | D52: 0.031 | E52: 0.0323 | F52: 0.0338 | G52: 0.0346 | H52: 0.0342 | I52: 0.0339 | J52: 0.0334 | K52: 0.0334 | L52: 0.033 | M52: 0.0331
A53: 1957 | B53: 3 | C53: 48 | D53: 0.0308 | E53: 0.0323 | F53: 0.0342 | G53: 0.0351 | H53: 0.0347 | I53: 0.0346 | J53: 0.0339 | K53: 0.0341 | L53: 0.0332 | M53: 0.0333
A54: 1957 | B54: 4 | C54: 49 | D54: 0.0307 | E54: 0.0327 | F54: 0.0349 | G54: 0.0359 | H54: 0.0353 | I54: 0.0353 | J54: 0.0346 | K54: 0.0348 | L54: 0.034 | M54: 0.0342
A55: 1957 | B55: 5 | C55: 50 | D55: 0.0306 | E55: 0.0324 | F55: 0.0348 | G55: 0.0363 | H55: 0.0361 | I55: 0.0364 | J55: 0.0357 | K55: 0.036 | L55: 0.0349 | M55: 0.0351
A56: 1957 | B56: 6 | C56: 51 | D56: 0.0329 | E56: 0.0343 | F56: 0.0365 | G56: 0.0379 | H56: 0.038 | I56: 0.0383 | J56: 0.0377 | K56: 0.038 | L56: 0.0365 | M56: 0.0367
A57: 1957 | B57: 7 | C57: 52 | D57: 0.0316 | E57: 0.0344 | F57: 0.0381 | G57: 0.0402 | H57: 0.0396 | I57: 0.04 | J57: 0.0387 | K57: 0.0393 | L57: 0.0372 | M57: 0.0374
A58: 1957 | B58: 8 | C58: 53 | D58: 0.0337 | E58: 0.0367 | F58: 0.0401 | G58: 0.0413 | H58: 0.0402 | I58: 0.04 | J58: 0.0388 | K58: 0.0393 | L58: 0.0375 | M58: 0.0377
A59: 1957 | B59: 9 | C59: 54 | D59: 0.0353 | E59: 0.0377 | F59: 0.0407 | G59: 0.0418 | H59: 0.0406 | I59: 0.0403 | J59: 0.0388 | K59: 0.0392 | L59: 0.0373 | M59: 0.0375
A60: 1957 | B60: 10 | C60: 55 | D60: 0.0358 | E60: 0.0375 | F60: 0.0401 | G60: 0.0412 | H60: 0.0409 | I60: 0.0408 | J60: 0.0397 | K60: 0.0397 | L60: 0.0376 | M60: 0.0378
A61: 1957 | B61: 11 | C61: 56 | D61: 0.0331 | E61: 0.0341 | F61: 0.0357 | G61: 0.0368 | H61: 0.037 | I61: 0.0372 | J61: 0.0369 | K61: 0.0372 | L61: 0.0361 | M61: 0.0363
A62: 1957 | B62: 12 | C62: 57 | D62: 0.0304 | E62: 0.031 | F62: 0.0318 | G62: 0.031 | H62: 0.0311 | I62: 0.0308 | J62: 0.0315 | K62: 0.0321 | L62: 0.0338 | M62: 0.034
A63: 1958 | B63: 1 | C63: 58 | D63: 0.0244 | E63: 0.0253 | F63: 0.0265 | G63: 0.0268 | H63: 0.0278 | I63: 0.0288 | J63: 0.03 | K63: 0.0309 | L63: 0.0327 | M63: 0.0328
A64: 1958 | B64: 2 | C64: 59 | D64: 0.0153 | E64: 0.0171 | F64: 0.0199 | G64: 0.0227 | H64: 0.0258 | I64: 0.0278 | J64: 0.0302 | K64: 0.0305 | L64: 0.0331 | M64: 0.0332
A65: 1958 | B65: 3 | C65: 60 | D65: 0.013 | E65: 0.0151 | F65: 0.0184 | G65: 0.0208 | H65: 0.024 | I65: 0.0264 | J65: 0.0291 | K65: 0.0298 | L65: 0.0329 | M65: 0.033
A66: 1958 | B66: 4 | C66: 61 | D66: 0.0113 | E66: 0.0125 | F66: 0.0145 | G66: 0.0181 | H66: 0.0215 | I66: 0.0246 | J66: 0.0273 | K66: 0.0288 | L66: 0.0317 | M66: 0.0318
A67: 1958 | B67: 5 | C67: 62 | D67: 0.0091 | E67: 0.0109 | F67: 0.0137 | G67: 0.0171 | H67: 0.0207 | I67: 0.0241 | J67: 0.0273 | K67: 0.0292 | L67: 0.0317 | M67: 0.0318
A68: 1958 | B68: 6 | C68: 63 | D68: 0.0083 | E68: 0.0098 | F68: 0.0123 | G68: 0.0168 | H68: 0.0208 | I68: 0.0246 | J68: 0.0278 | K68: 0.0297 | L68: 0.0323 | M68: 0.0324
A69: 1958 | B69: 7 | C69: 64 | D69: 0.0091 | E69: 0.0117 | F69: 0.0161 | G69: 0.0202 | H69: 0.0242 | I69: 0.0277 | J69: 0.0308 | K69: 0.032 | L69: 0.0339 | M69: 0.0341
A70: 1958 | B70: 8 | C70: 65 | D70: 0.0169 | E70: 0.0199 | F70: 0.025 | G70: 0.0282 | H70: 0.0306 | I70: 0.0329 | J70: 0.035 | K70: 0.0354 | L70: 0.0365 | M70: 0.0367
A71: 1958 | B71: 9 | C71: =C70+1 -> 66 | D71: 0.0244 | E71: 0.0267 | F71: 0.0305 | G71: 0.0338 | H71: 0.0352 | I71: 0.0369 | J71: 0.0375 | K71: 0.0376 | L71: 0.038 | M71: 0.0382
A72: =IF(B71=12,A71+1,A71) -> 1958 | B72: =MOD(B71,12)+1 -> 10 | C72: 67 | D72: 0.0263 | E72: 0.0286 | F72: 0.0319 | G72: 0.0353 | H72: 0.0367 | I72: 0.0378 | J72: 0.038 | K72: 0.038 | L72: 0.0381 | M72: 0.0383
A73: 1958 | B73: 11 | C73: 68 | D73: 0.0267 | E73: 0.0284 | F73: 0.031 | G73: 0.0343 | H73: 0.036 | I73: 0.037 | J73: 0.0374 | K73: 0.0374 | L73: 0.0376 | M73: 0.0378
A74: 1958 | B74: 12 | C74: 69 | D74: 0.0277 | E74: 0.0301 | F74: 0.0329 | G74: 0.0355 | H74: 0.0372 | I74: 0.0382 | J74: 0.0385 | K74: 0.0386 | L74: 0.0386 | M74: 0.0388
A75: 1959 | B75: 1 | C75: 70 | D75: 0.0282 | E75: 0.0309 | F75: 0.0336 | G75: 0.0369 | H75: 0.0391 | I75: 0.0401 | J75: 0.0402 | K75: 0.0402 | L75: 0.0395 | M75: 0.0397
A76: 1959 | B76: 2 | C76: 71 | D76: 0.027 | E76: 0.0313 | F76: 0.0354 | G76: 0.0377 | H76: 0.0392 | I76: 0.0396 | J76: 0.0396 | K76: 0.0396 | L76: 0.0396 | M76: 0.0398
A77: 1959 | B77: 3 | C77: 72 | D77: 0.028 | E77: 0.0313 | F77: 0.0361 | G77: 0.0383 | H77: 0.0397 | I77: 0.0399 | J77: 0.0399 | K77: 0.0399 | L77: 0.0399 | M77: 0.0401
A78: 1959 | B78: 4 | C78: 73 | D78: 0.0295 | E78: 0.0327 | F78: 0.0372 | G78: 0.0391 | H78: 0.0403 | I78: 0.0412 | J78: 0.0412 | K78: 0.0412 | L78: 0.0406 | M78: 0.0408
A79: 1959 | B79: 5 | C79: 74 | D79: 0.0284 | E79: 0.0333 | F79: 0.0396 | G79: 0.0413 | H79: 0.0425 | I79: 0.0435 | J79: 0.0432 | K79: 0.0431 | L79: 0.0413 | M79: 0.0415
A80: 1959 | B80: 6 | C80: 75 | D80: 0.0321 | E80: 0.0352 | F80: 0.0407 | G80: 0.0434 | H80: 0.0452 | I80: 0.045 | J80: 0.0439 | K80: 0.0434 | L80: 0.0414 | M80: 0.0416
A81: 1959 | B81: 7 | C81: 76 | D81: 0.032 | E81: 0.0382 | F81: 0.0439 | G81: 0.0452 | H81: 0.046 | I81: 0.0458 | J81: 0.0446 | K81: 0.044 | L81: 0.0416 | M81: 0.0418
A82: 1959 | B82: 8 | C82: 77 | D82: 0.0338 | E82: 0.0387 | F82: 0.0442 | G82: 0.0453 | H82: 0.046 | I82: 0.0457 | J82: 0.0448 | K82: 0.0443 | L82: 0.0415 | M82: 0.0417
A83: 1959 | B83: 9 | C83: 78 | D83: 0.0404 | E83: 0.047 | F83: 0.05 | G83: 0.0498 | H83: 0.0497 | I83: 0.049 | J83: 0.0475 | K83: 0.0468 | L83: 0.0429 | M83: 0.0431
A84: 1959 | B84: 10 | C84: 79 | D84: 0.0405 | E84: 0.0453 | F84: 0.048 | G84: 0.0479 | H84: 0.0478 | I84: 0.0472 | J84: 0.0459 | K84: 0.0453 | L84: 0.0419 | M84: 0.0421
A85: 1959 | B85: 11 | C85: 80 | D85: 0.0415 | E85: 0.0454 | F85: 0.0481 | G85: 0.0483 | H85: 0.0485 | I85: 0.0475 | J85: 0.046 | K85: 0.0453 | L85: 0.042 | M85: 0.0422
A86: 1959 | B86: 12 | C86: 81 | D86: 0.0449 | E86: 0.0485 | F86: 0.0514 | G86: 0.0513 | H86: 0.0512 | I86: 0.0501 | J86: 0.0479 | K86: 0.0469 | L86: 0.0433 | M86: 0.0435
A87: 1960 | B87: 1 | C87: 82 | D87: 0.0435 | E87: 0.0474 | F87: 0.0503 | G87: 0.0501 | H87: 0.0499 | I87: 0.0492 | J87: 0.0479 | K87: 0.0472 | L87: 0.0442 | M87: 0.0444
A88: 1960 | B88: 2 | C88: 83 | D88: 0.0396 | E88: 0.043 | F88: 0.0466 | G88: 0.047 | H88: 0.0473 | I88: 0.0469 | J88: 0.0456 | K88: 0.0449 | L88: 0.0428 | M88: 0.043
A89: 1960 | B89: 3 | C89: 84 | D89: 0.0331 | E89: 0.0361 | F89: 0.0402 | G89: 0.0418 | H89: 0.0429 | I89: 0.0431 | J89: 0.0427 | K89: 0.0425 | L89: 0.0414 | M89: 0.0416
A90: 1960 | B90: 4 | C90: 85 | D90: 0.0323 | E90: 0.0355 | F90: 0.0404 | G90: 0.0418 | H90: 0.0427 | I90: 0.0429 | J90: 0.0428 | K90: 0.0428 | L90: 0.0423 | M90: 0.0425
A91: 1960 | B91: 5 | C91: 86 | D91: 0.0329 | E91: 0.0358 | F91: 0.0421 | G91: 0.0436 | H91: 0.0446 | I91: 0.0449 | J91: 0.044 | K91: 0.0435 | L91: 0.042 | M91: 0.0422
A92: 1960 | B92: 6 | C92: 87 | D92: 0.0246 | E92: 0.0274 | F92: 0.0336 | G92: 0.0375 | H92: 0.0401 | I92: 0.0412 | J92: 0.0414 | K92: 0.0415 | L92: 0.0404 | M92: 0.0406
A93: 1960 | B93: 7 | C93: 88 | D93: 0.023 | E93: 0.0271 | F93: 0.032 | G93: 0.0346 | H93: 0.0363 | I93: 0.0379 | J93: 0.0386 | K93: 0.039 | L93: 0.0391 | M93: 0.0393
A94: 1960 | B94: 8 | C94: 89 | D94: 0.023 | E94: 0.0259 | F94: 0.0295 | G94: 0.0323 | H94: 0.0341 | I94: 0.0362 | J94: 0.0374 | K94: 0.038 | L94: 0.0384 | M94: 0.0386
A95: 1960 | B95: 9 | C95: 90 | D95: 0.0248 | E95: 0.0283 | F95: 0.0307 | G95: 0.0329 | H95: 0.0343 | I95: 0.0361 | J95: 0.0374 | K95: 0.038 | L95: 0.0386 | M95: 0.0388
A96: 1960 | B96: 10 | C96: 91 | D96: 0.023 | E96: 0.0273 | F96: 0.0304 | G96: 0.0333 | H96: 0.0353 | I96: 0.0376 | J96: 0.0385 | K96: 0.0389 | L96: 0.0392 | M96: 0.0394
A97: 1960 | B97: 11 | C97: 92 | D97: 0.0237 | E97: 0.0266 | F97: 0.0308 | G97: 0.0339 | H97: 0.036 | I97: 0.0381 | J97: 0.0389 | K97: 0.0393 | L97: 0.0396 | M97: 0.0398
A98: 1960 | B98: 12 | C98: 93 | D98: 0.0225 | E98: 0.025 | F98: 0.0286 | G98: 0.032 | H98: 0.0342 | I98: 0.0367 | J98: 0.0378 | K98: 0.0384 | L98: 0.0391 | M98: 0.0393
A99: 1961 | B99: 1 | C99: 94 | D99: 0.0224 | E99: 0.0247 | F99: 0.0281 | G99: 0.0316 | H99: 0.0339 | I99: 0.0367 | J99: 0.0378 | K99: 0.0384 | L99: 0.039 | M99: 0.0392
A100: 1961 | B100: 2 | C100: 95 | D100: 0.0242 | E100: 0.026 | F100: 0.0293 | G100: 0.0325 | H100: 0.0346 | I100: 0.0366 | J100: 0.0374 | K100: 0.0378 | L100: 0.0384 | M100: 0.0386
A101: 1961 | B101: 3 | C101: 96 | D101: 0.0239 | E101: 0.0254 | F101: 0.0288 | G101: 0.0316 | H101: 0.0335 | I101: 0.036 | J101: 0.0369 | K101: 0.0374 | L101: 0.0381 | M101: 0.0383
A102: 1961 | B102: 4 | C102: 97 | D102: 0.0229 | E102: 0.0247 | F102: 0.0288 | G102: 0.0315 | H102: 0.0333 | I102: 0.0357 | J102: 0.0371 | K102: 0.0378 | L102: 0.0381 | M102: 0.0383
A103: 1961 | B103: 5 | C103: 98 | D103: 0.0229 | E103: 0.0245 | F103: 0.0287 | G103: 0.0309 | H103: 0.0323 | I103: 0.0347 | J103: 0.0363 | K103: 0.0371 | L103: 0.0374 | M103: 0.0376
A104: 1961 | B104: 6 | C104: 99 | D104: 0.0233 | E104: 0.0254 | F104: 0.0306 | G104: 0.034 | H104: 0.0363 | I104: 0.0381 | J104: 0.0386 | K104: 0.0388 | L104: 0.0389 | M104: 0.0391
A105: 1961 | B105: 7 | C105: 100 | D105: 0.0224 | E105: 0.0245 | F105: 0.0292 | G105: 0.0332 | H105: 0.0359 | I105: 0.0384 | J105: 0.0389 | K105: 0.0392 | L105: 0.0393 | M105: 0.0395
A106: 1961 | B106: 8 | C106: 101 | D106: 0.0239 | E106: 0.0266 | F106: 0.0306 | G106: 0.0348 | H106: 0.0376 | I106: 0.0396 | J106: 0.0401 | K106: 0.0404 | L106: 0.0404 | M106: 0.0406
A107: 1961 | B107: 9 | C107: 102 | D107: 0.0228 | E107: 0.0268 | F107: 0.0306 | G107: 0.0346 | H107: 0.0373 | I107: 0.039 | J107: 0.0395 | K107: 0.0398 | L107: 0.0404 | M107: 0.0406
A108: 1961 | B108: 10 | C108: 103 | D108: 0.023 | E108: 0.0266 | F108: 0.0305 | G108: 0.0339 | H108: 0.0362 | I108: 0.038 | J108: 0.0388 | K108: 0.0392 | L108: 0.0401 | M108: 0.0403
A109: 1961 | B109: 11 | C109: 104 | D109: 0.0248 | E109: 0.027 | F109: 0.0307 | G109: 0.0339 | H109: 0.0361 | I109: 0.0382 | J109: 0.039 | K109: 0.0394 | L109: 0.04 | M109: 0.0402
A110: 1961 | B110: 12 | C110: 105 | D110: 0.026 | E110: 0.0288 | F110: 0.0318 | G110: 0.035 | H110: 0.0372 | I110: 0.0391 | J110: 0.0401 | K110: 0.0406 | L110: 0.0407 | M110: 0.0409
A111: 1962 | B111: 1 | C111: 106 | D111: 0.0273 | E111: 0.0295 | F111: 0.0329 | G111: 0.0359 | H111: 0.0381 | I111: 0.0399 | J111: 0.0407 | K111: 0.041 | L111: 0.0413 | M111: 0.0415
A112: 1962 | B112: 2 | C112: 107 | D112: 0.0267 | E112: 0.0287 | F112: 0.0321 | G112: 0.0341 | H112: 0.0353 | I112: 0.0377 | J112: 0.0391 | K112: 0.04 | L112: 0.041 | M112: 0.0412
A113: 1962 | B113: 3 | C113: 108 | D113: 0.0264 | E113: 0.0279 | F113: 0.0297 | G113: 0.0322 | H113: 0.0339 | I113: 0.0361 | J113: 0.0375 | K113: 0.0386 | L113: 0.0398 | M113: 0.04
A114: 1962 | B114: 4 | C114: 109 | D114: 0.028 | E114: 0.0291 | F114: 0.0307 | G114: 0.0331 | H114: 0.0347 | I114: 0.0364 | J114: 0.0377 | K114: 0.0386 | L114: 0.0391 | M114: 0.0393
A115: 1962 | B115: 5 | C115: 110 | D115: 0.0265 | E115: 0.0274 | F115: 0.0299 | G115: 0.0321 | H115: 0.0336 | I115: 0.0366 | J115: 0.038 | K115: 0.039 | L115: 0.0394 | M115: 0.0396
A116: 1962 | B116: 6 | C116: 111 | D116: 0.0288 | E116: 0.0296 | F116: 0.032 | G116: 0.0342 | H116: 0.0356 | I116: 0.0376 | J116: 0.039 | K116: 0.04 | L116: 0.0402 | M116: 0.0404
A117: 1962 | B117: 7 | C117: 112 | D117: 0.0296 | E117: 0.0312 | F117: 0.0333 | G117: 0.0352 | H117: 0.0362 | I117: 0.0382 | J117: 0.0395 | K117: 0.0404 | L117: 0.0406 | M117: 0.0408
A118: 1962 | B118: 8 | C118: 113 | D118: 0.0277 | E118: 0.0293 | F118: 0.0314 | G118: 0.0332 | H118: 0.0342 | I118: 0.0366 | J118: 0.0383 | K118: 0.0396 | L118: 0.0399 | M118: 0.0401
A119: 1962 | B119: 9 | C119: 114 | D119: 0.0274 | E119: 0.0289 | F119: 0.0302 | G119: 0.0322 | H119: 0.0335 | I119: 0.0366 | J119: 0.0382 | K119: 0.0394 | L119: 0.0397 | M119: 0.0399
A120: 1962 | B120: 10 | C120: 115 | D120: 0.0273 | E120: 0.0283 | F120: 0.0297 | G120: 0.032 | H120: 0.0336 | I120: 0.0364 | J120: 0.038 | K120: 0.0392 | L120: 0.0394 | M120: 0.0396
A121: 1962 | B121: 11 | C121: 116 | D121: 0.0285 | E121: 0.0291 | F121: 0.0302 | G121: 0.0325 | H121: 0.0341 | I121: 0.0359 | J121: 0.0377 | K121: 0.0392 | L121: 0.0394 | M121: 0.0396
A122: 1962 | B122: 12 | C122: 117 | D122: 0.0291 | E122: 0.0295 | F122: 0.0305 | G122: 0.0326 | H122: 0.034 | I122: 0.0356 | J122: 0.0372 | K122: 0.0385 | L122: 0.0392 | M122: 0.0394
A123: 1963 | B123: 1 | C123: 118 | D123: 0.029 | E123: 0.0295 | F123: 0.0303 | G123: 0.0326 | H123: 0.0341 | I123: 0.0365 | J123: 0.0378 | K123: 0.0387 | L123: 0.0396 | M123: 0.0398
A124: 1963 | B124: 2 | C124: 119 | D124: 0.0293 | E124: 0.0299 | F124: 0.0302 | G124: 0.0326 | H124: 0.0342 | I124: 0.0368 | J124: 0.0383 | K124: 0.0394 | L124: 0.0397 | M124: 0.0399
A125: 1963 | B125: 3 | C125: 120 | D125: 0.0295 | E125: 0.0301 | F125: 0.0309 | G125: 0.033 | H125: 0.0344 | I125: 0.0371 | J125: 0.0385 | K125: 0.0395 | L125: 0.04 | M125: 0.0402
A126: 1963 | B126: 4 | C126: 121 | D126: 0.029 | E126: 0.0298 | F126: 0.0311 | G126: 0.0337 | H126: 0.0354 | I126: 0.0373 | J126: 0.0386 | K126: 0.0395 | L126: 0.0404 | M126: 0.0406
A127: 1963 | B127: 5 | C127: 122 | D127: 0.0301 | E127: 0.0309 | F127: 0.032 | G127: 0.0344 | H127: 0.0359 | I127: 0.0378 | J127: 0.0389 | K127: 0.0396 | L127: 0.0403 | M127: 0.0405
A128: 1963 | B128: 6 | C128: 123 | D128: 0.0298 | E128: 0.0307 | F128: 0.0319 | G128: 0.0344 | H128: 0.0361 | I128: 0.0382 | J128: 0.0393 | K128: 0.04 | L128: 0.0403 | M128: 0.0405
A129: 1963 | B129: 7 | C129: 124 | D129: 0.032 | E129: 0.0333 | F129: 0.035 | G129: 0.0368 | H129: 0.0377 | I129: 0.0388 | J129: 0.0396 | K129: 0.04 | L129: 0.0403 | M129: 0.0405
A130: 1963 | B130: 8 | C130: 125 | D130: 0.0338 | E130: 0.035 | F130: 0.0359 | G130: 0.0375 | H130: 0.0381 | I130: 0.0393 | J130: 0.04 | K130: 0.0402 | L130: 0.0404 | M130: 0.0406
A131: 1963 | B131: 9 | C131: 126 | D131: 0.034 | E131: 0.0352 | F131: 0.0359 | G131: 0.0375 | H131: 0.0382 | I131: 0.0394 | J131: 0.0403 | K131: 0.0407 | L131: 0.0408 | M131: 0.041
A132: 1963 | B132: 10 | C132: 127 | D132: 0.0349 | E132: 0.0362 | F132: 0.0368 | G132: 0.0385 | H132: 0.0392 | I132: 0.0401 | J132: 0.041 | K132: 0.0415 | L132: 0.0415 | M132: 0.0417
A133: 1963 | B133: 11 | C133: 128 | D133: 0.0352 | E133: 0.0365 | F133: 0.0374 | G133: 0.0389 | H133: 0.0394 | I133: 0.0399 | J133: 0.0406 | K133: 0.0408 | L133: 0.0415 | M133: 0.0417
A134: 1963 | B134: 12 | C134: 129 | D134: 0.0354 | E134: 0.0368 | F134: 0.0383 | G134: 0.0399 | H134: 0.0405 | I134: 0.0406 | J134: 0.0412 | K134: 0.0414 | L134: 0.0419 | M134: 0.0421
A135: 1964 | B135: 1 | C135: =C134+1 -> 130 | D135: 0.0349 | E135: 0.0361 | F135: 0.0376 | G135: 0.0393 | H135: 0.04 | I135: 0.0403 | J135: 0.0411 | K135: 0.0415 | L135: 0.0418 | M135: 0.042
A136: =IF(B135=12,A135+1,A135) -> 1964 | B136: =MOD(B135,12)+1 -> 2 | C136: 131 | D136: 0.0365 | E136: 0.038 | F136: 0.0391 | G136: 0.0404 | H136: 0.0407 | I136: 0.041 | J136: 0.0416 | K136: 0.0418 | L136: 0.0419 | M136: 0.0421
A137: 1964 | B137: 3 | C137: 132 | D137: 0.0357 | E137: 0.0375 | F137: 0.0394 | G137: 0.041 | H137: 0.0416 | I137: 0.0416 | J137: 0.0422 | K137: 0.0423 | L137: 0.0424 | M137: 0.0426
A138: 1964 | B138: 4 | C138: 133 | D138: 0.0341 | E138: 0.0359 | F138: 0.0384 | G138: 0.0402 | H138: 0.041 | I138: 0.0413 | J138: 0.042 | K138: 0.0422 | L138: 0.0424 | M138: 0.0426
A139: 1964 | B139: 5 | C139: 134 | D139: 0.0348 | E139: 0.036 | F139: 0.0384 | G139: 0.0398 | H139: 0.0403 | I139: 0.0403 | J139: 0.0413 | K139: 0.0419 | L139: 0.0418 | M139: 0.042
A140: 1964 | B140: 6 | C140: 135 | D140: 0.0343 | E140: 0.0351 | F140: 0.0378 | G140: 0.0391 | H140: 0.0395 | I140: 0.0401 | J140: 0.041 | K140: 0.0415 | L140: 0.0415 | M140: 0.0417
A141: 1964 | B141: 7 | C141: 136 | D141: 0.0343 | E141: 0.0353 | F141: 0.0369 | G141: 0.0385 | H141: 0.0392 | I141: 0.0404 | J141: 0.0414 | K141: 0.0419 | L141: 0.0417 | M141: 0.0419
A142: 1964 | B142: 8 | C142: 137 | D142: 0.0357 | E142: 0.0368 | F142: 0.0381 | G142: 0.0393 | H142: 0.0396 | I142: 0.0407 | J142: 0.0416 | K142: 0.0421 | L142: 0.042 | M142: 0.0422
A143: 1964 | B143: 9 | C143: 138 | D143: 0.0353 | E143: 0.0368 | F143: 0.0384 | G143: 0.0397 | H143: 0.0401 | I143: 0.0405 | J143: 0.0414 | K143: 0.0418 | L143: 0.0419 | M143: 0.0421
A144: 1964 | B144: 10 | C144: 139 | D144: 0.0357 | E144: 0.0372 | F144: 0.0386 | G144: 0.0398 | H144: 0.0401 | I144: 0.0405 | J144: 0.0413 | K144: 0.0416 | L144: 0.0417 | M144: 0.0419
A145: 1964 | B145: 11 | C145: 140 | D145: 0.0382 | E145: 0.04 | F145: 0.041 | G145: 0.0418 | H145: 0.0416 | I145: 0.0413 | J145: 0.0419 | K145: 0.042 | L145: 0.042 | M145: 0.0422
A146: 1964 | B146: 12 | C146: 141 | D146: 0.0381 | E146: 0.0392 | F146: 0.0399 | G146: 0.0407 | H146: 0.0406 | I146: 0.0412 | J146: 0.0419 | K146: 0.0421 | L146: 0.0421 | M146: 0.0423
A147: 1965 | B147: 1 | C147: 142 | D147: 0.0383 | E147: 0.0396 | F147: 0.0396 | G147: 0.0405 | H147: 0.0404 | I147: 0.0411 | J147: 0.0417 | K147: 0.0419 | L147: 0.0419 | M147: 0.0421
A148: 1965 | B148: 2 | C148: 143 | D148: 0.0399 | E148: 0.0406 | F148: 0.0409 | G148: 0.0416 | H148: 0.0412 | I148: 0.0416 | J148: 0.0421 | K148: 0.0422 | L148: 0.0421 | M148: 0.0423
A149: 1965 | B149: 3 | C149: 144 | D149: 0.039 | E149: 0.0397 | F149: 0.0403 | G149: 0.0412 | H149: 0.0411 | I149: 0.0414 | J149: 0.0419 | K149: 0.042 | L149: 0.042 | M149: 0.0422
A150: 1965 | B150: 4 | C150: 145 | D150: 0.0393 | E150: 0.0399 | F150: 0.0404 | G150: 0.0413 | H150: 0.0412 | I150: 0.0416 | J150: 0.0421 | K150: 0.0421 | L150: 0.0421 | M150: 0.0423
A151: 1965 | B151: 5 | C151: 146 | D151: 0.039 | E151: 0.0396 | F151: 0.0404 | G151: 0.0412 | H151: 0.041 | I151: 0.0415 | J151: 0.0421 | K151: 0.0423 | L151: 0.0422 | M151: 0.0424
A152: 1965 | B152: 6 | C152: 147 | D152: 0.0377 | E152: 0.0383 | F152: 0.0396 | G152: 0.0406 | H152: 0.0406 | I152: 0.0414 | J152: 0.0419 | K152: 0.042 | L152: 0.042 | M152: 0.0422
A153: 1965 | B153: 7 | C153: 148 | D153: 0.0388 | E153: 0.0394 | F153: 0.0402 | G153: 0.0411 | H153: 0.0411 | I153: 0.0418 | J153: 0.0422 | K153: 0.0422 | L153: 0.0422 | M153: 0.0424
A154: 1965 | B154: 8 | C154: 149 | D154: 0.039 | E154: 0.0401 | F154: 0.0413 | G154: 0.0422 | H154: 0.0421 | I154: 0.0422 | J154: 0.0427 | K154: 0.0427 | L154: 0.0428 | M154: 0.043
A155: 1965 | B155: 9 | C155: 150 | D155: 0.0407 | E155: 0.0423 | F155: 0.0436 | G155: 0.044 | H155: 0.0433 | I155: 0.0433 | J155: 0.0436 | K155: 0.0435 | L155: 0.0434 | M155: 0.0436
A156: 1965 | B156: 10 | C156: 151 | D156: 0.0406 | E156: 0.0422 | F156: 0.0433 | G156: 0.0441 | H156: 0.0438 | I156: 0.044 | J156: 0.0443 | K156: 0.0441 | L156: 0.0436 | M156: 0.0438
A157: 1965 | B157: 11 | C157: 152 | D157: 0.0412 | E157: 0.0427 | F157: 0.044 | G157: 0.045 | H157: 0.0449 | I157: 0.0447 | J157: 0.045 | K157: 0.0448 | L157: 0.0441 | M157: 0.0443
A158: 1965 | B158: 12 | C158: 153 | D158: 0.046 | E158: 0.0478 | F158: 0.0496 | G158: 0.0504 | H158: 0.05 | I158: 0.0488 | J158: 0.0479 | K158: 0.0465 | L158: 0.0452 | M158: 0.0454
A159: 1966 | B159: 1 | C159: 154 | D159: 0.046 | E159: 0.0472 | F159: 0.0489 | G159: 0.05 | H159: 0.0498 | I159: 0.0498 | J159: 0.0486 | K159: 0.0469 | L159: 0.0459 | M159: 0.0461
A160: 1966 | B160: 2 | C160: 155 | D160: 0.0472 | E160: 0.0489 | F160: 0.0501 | G160: 0.051 | H160: 0.0506 | I160: 0.0503 | J160: 0.0505 | K160: 0.0502 | L160: 0.0481 | M160: 0.0483
A161: 1966 | B161: 3 | C161: 156 | D161: 0.0453 | E161: 0.0471 | F161: 0.049 | G161: 0.0495 | H161: 0.0489 | I161: 0.0484 | J161: 0.048 | K161: 0.0471 | L161: 0.0461 | M161: 0.0463
A162: 1966 | B162: 4 | C162: 157 | D162: 0.0463 | E162: 0.0475 | F162: 0.0491 | G162: 0.05 | H162: 0.0497 | I162: 0.0485 | J162: 0.0485 | K162: 0.0479 | L162: 0.047 | M162: 0.0472
A163: 1966 | B163: 5 | C163: 158 | D163: 0.0474 | E163: 0.0492 | F163: 0.0504 | G163: 0.0513 | H163: 0.051 | I163: 0.05 | J163: 0.0493 | K163: 0.048 | L163: 0.0473 | M163: 0.0475
A164: 1966 | B164: 6 | C164: 159 | D164: 0.0457 | E164: 0.0472 | F164: 0.0505 | G164: 0.052 | H164: 0.0522 | I164: 0.0509 | J164: 0.0506 | K164: 0.0497 | L164: 0.0482 | M164: 0.0484
A165: 1966 | B165: 7 | C165: 160 | D165: 0.0486 | E165: 0.05 | F165: 0.0524 | G165: 0.0534 | H165: 0.0532 | I165: 0.0526 | J165: 0.0518 | K165: 0.0505 | L165: 0.0486 | M165: 0.0488
A166: 1966 | B166: 8 | C166: 161 | D166: 0.0523 | E166: 0.0556 | F166: 0.0584 | G166: 0.0593 | H166: 0.0587 | I166: 0.0568 | J166: 0.0555 | K166: 0.0536 | L166: 0.0502 | M166: 0.0504
A167: 1966 | B167: 9 | C167: 162 | D167: 0.0519 | E167: 0.0559 | F167: 0.0562 | G167: 0.0565 | H167: 0.0554 | I167: 0.0534 | J167: 0.0521 | K167: 0.0502 | L167: 0.0489 | M167: 0.0491
A168: 1966 | B168: 10 | C168: 163 | D168: 0.0527 | E168: 0.0554 | F168: 0.055 | G168: 0.0551 | H168: 0.0538 | I168: 0.0522 | J168: 0.0512 | K168: 0.0497 | L168: 0.0476 | M168: 0.0478
A169: 1966 | B169: 11 | C169: 164 | D169: 0.0523 | E169: 0.0545 | F169: 0.0545 | G169: 0.0553 | H169: 0.0548 | I169: 0.0528 | J169: 0.0523 | K169: 0.0512 | L169: 0.0487 | M169: 0.0489
A170: 1966 | B170: 12 | C170: 165 | D170: 0.0477 | E170: 0.0488 | F170: 0.05 | G170: 0.0503 | H170: 0.0494 | I170: 0.048 | J170: 0.0474 | K170: 0.0464 | L170: 0.0458 | M170: 0.046
A171: 1967 | B171: 1 | C171: 166 | D171: 0.0459 | E171: 0.0461 | F171: 0.0462 | G171: 0.0468 | H171: 0.0463 | I171: 0.0467 | J171: 0.0462 | K171: 0.0452 | L171: 0.0448 | M171: 0.045
A172: 1967 | B172: 2 | C172: 167 | D172: 0.0461 | E172: 0.0464 | F172: 0.0476 | G172: 0.0483 | H172: 0.0479 | I172: 0.0478 | J172: 0.0478 | K172: 0.0472 | L172: 0.047 | M172: 0.0472
A173: 1967 | B173: 3 | C173: 168 | D173: 0.0404 | E173: 0.0401 | F173: 0.0413 | G173: 0.0427 | H173: 0.043 | I173: 0.0442 | J173: 0.0448 | K173: 0.045 | L173: 0.0456 | M173: 0.0458
A174: 1967 | B174: 4 | C174: 169 | D174: 0.0387 | E174: 0.0392 | F174: 0.0414 | G174: 0.0441 | H174: 0.0457 | I174: 0.0472 | J174: 0.0478 | K174: 0.0478 | L174: 0.0481 | M174: 0.0483
A175: 1967 | B175: 5 | C175: 170 | D175: 0.0363 | E175: 0.0383 | F175: 0.0418 | G175: 0.0443 | H175: 0.0458 | I175: 0.0472 | J175: 0.0479 | K175: 0.0481 | L175: 0.0485 | M175: 0.0487
A176: 1967 | B176: 6 | C176: 171 | D176: 0.0393 | E176: 0.0432 | F176: 0.0497 | G176: 0.051 | H176: 0.051 | I176: 0.0535 | J176: 0.0531 | K176: 0.0522 | L176: 0.0508 | M176: 0.051
A177: 1967 | B177: 7 | C177: 172 | D177: 0.0424 | E177: 0.0476 | F177: 0.0505 | G177: 0.051 | H177: 0.0502 | I177: 0.0512 | J177: 0.0517 | K177: 0.0516 | L177: 0.0506 | M177: 0.0508
A178: 1967 | B178: 8 | C178: 173 | D178: 0.0433 | E178: 0.049 | F178: 0.052 | G178: 0.0534 | H178: 0.0536 | I178: 0.0534 | J178: 0.0533 | K178: 0.0527 | L178: 0.0514 | M178: 0.0516
A179: 1967 | B179: 9 | C179: 174 | D179: 0.0445 | E179: 0.0499 | F179: 0.0527 | G179: 0.054 | H179: 0.0539 | I179: 0.0538 | J179: 0.0537 | K179: 0.0531 | L179: 0.0519 | M179: 0.0521
A180: 1967 | B180: 10 | C180: 175 | D180: 0.0464 | E180: 0.0516 | F180: 0.0547 | G180: 0.0562 | H180: 0.0563 | I180: 0.0572 | J180: 0.0571 | K180: 0.0564 | L180: 0.0552 | M180: 0.0554
A181: 1967 | B181: 11 | C181: 176 | D181: 0.0476 | E181: 0.0529 | F181: 0.0565 | G181: 0.0574 | H181: 0.0569 | I181: 0.0577 | J181: 0.0579 | K181: 0.0574 | L181: 0.0565 | M181: 0.0567
A182: 1967 | B182: 12 | C182: 177 | D182: 0.0501 | E182: 0.0554 | F182: 0.0576 | G182: 0.0585 | H182: 0.058 | I182: 0.0578 | J182: 0.0577 | K182: 0.057 | L182: 0.0556 | M182: 0.0558
A183: 1968 | B183: 1 | C183: 178 | D183: 0.0494 | E183: 0.0517 | F183: 0.0536 | G183: 0.0551 | H183: 0.0552 | I183: 0.0555 | J183: 0.0557 | K183: 0.0554 | L183: 0.0537 | M183: 0.0539
A184: 1968 | B184: 2 | C184: 179 | D184: 0.0501 | E184: 0.052 | F184: 0.0544 | G184: 0.0561 | H184: 0.0565 | I184: 0.0558 | J184: 0.056 | K184: 0.0557 | L184: 0.054 | M184: 0.0542
A185: 1968 | B185: 3 | C185: 180 | D185: 0.0518 | E185: 0.0534 | F185: 0.0559 | G185: 0.0576 | H185: 0.0579 | I185: 0.0576 | J185: 0.0579 | K185: 0.0576 | L185: 0.0562 | M185: 0.0564
A186: 1968 | B186: 4 | C186: 181 | D186: 0.0565 | E186: 0.0577 | F186: 0.06 | G186: 0.0607 | H186: 0.06 | I186: 0.0596 | J186: 0.0588 | K186: 0.0574 | L186: 0.055 | M186: 0.0552
A187: 1968 | B187: 5 | C187: 182 | D187: 0.0559 | E187: 0.0575 | F187: 0.0606 | G187: 0.0607 | H187: 0.0594 | I187: 0.0597 | J187: 0.0595 | K187: 0.0586 | L187: 0.055 | M187: 0.0552
A188: 1968 | B188: 6 | C188: 183 | D188: 0.0546 | E188: 0.0557 | F188: 0.0591 | G188: 0.0592 | H188: 0.0578 | I188: 0.0579 | J188: 0.0575 | K188: 0.0564 | L188: 0.0536 | M188: 0.0538
A189: 1968 | B189: 7 | C189: 184 | D189: 0.0517 | E189: 0.0527 | F189: 0.055 | G189: 0.0556 | H189: 0.0548 | I189: 0.055 | J189: 0.0547 | K189: 0.0539 | L189: 0.0519 | M189: 0.0521
A190: 1968 | B190: 8 | C190: 185 | D190: 0.0509 | E190: 0.0523 | F190: 0.0543 | G190: 0.0546 | H190: 0.0536 | I190: 0.0548 | J190: 0.0548 | K190: 0.0542 | L190: 0.0522 | M190: 0.0524
A191: 1968 | B191: 9 | C191: 186 | D191: 0.0518 | E191: 0.0524 | F191: 0.0544 | G191: 0.055 | H191: 0.0543 | I191: 0.0548 | J191: 0.0551 | K191: 0.0549 | L191: 0.0532 | M191: 0.0534
A192: 1968 | B192: 10 | C192: 187 | D192: 0.0544 | E192: 0.055 | F192: 0.0566 | G192: 0.0567 | H192: 0.0555 | I192: 0.0557 | J192: 0.0562 | K192: 0.0561 | L192: 0.0546 | M192: 0.0548
A193: 1968 | B193: 11 | C193: 188 | D193: 0.0548 | E193: 0.0563 | F193: 0.0578 | G193: 0.0577 | H193: 0.0562 | I193: 0.0572 | J193: 0.0578 | K193: 0.0578 | L193: 0.0566 | M193: 0.0568
A194: 1968 | B194: 12 | C194: 189 | D194: 0.0622 | E194: 0.0632 | F194: 0.0646 | G194: 0.0649 | H194: 0.0637 | I194: 0.0633 | J194: 0.0628 | K194: 0.0616 | L194: 0.0598 | M194: 0.06
A195: 1969 | B195: 1 | C195: 190 | D195: 0.0621 | E195: 0.0635 | F195: 0.0641 | G195: 0.0641 | H195: 0.0626 | I195: 0.063 | J195: 0.0628 | K195: 0.0619 | L195: 0.0614 | M195: 0.0616
A196: 1969 | B196: 2 | C196: 191 | D196: 0.0618 | E196: 0.0636 | F196: 0.0647 | G196: 0.0656 | H196: 0.065 | I196: 0.0644 | J196: 0.0638 | K196: 0.0626 | L196: 0.0617 | M196: 0.0619
A197: 1969 | B197: 3 | C197: 192 | D197: 0.0595 | E197: 0.0609 | F197: 0.0627 | G197: 0.0635 | H197: 0.0628 | I197: 0.0636 | J197: 0.0636 | K197: 0.063 | L197: 0.0622 | M197: 0.0624
A198: 1969 | B198: 4 | C198: 193 | D198: 0.0611 | E198: 0.0613 | F198: 0.0626 | G198: 0.0637 | H198: 0.0632 | I198: 0.0637 | J198: 0.0632 | K198: 0.062 | L198: 0.0598 | M198: 0.06
A199: 1969 | B199: 5 | C199: =C198+1 -> 194 | D199: 0.0625 | E199: 0.0636 | F199: 0.0664 | G199: 0.0675 | H199: 0.067 | I199: 0.0669 | J199: 0.0666 | K199: 0.0656 | L199: 0.0643 | M199: 0.0645
A200: =IF(B199=12,A199+1,A199) -> 1969 | B200: =MOD(B199,12)+1 -> 6 | C200: 195 | D200: 0.0693 | E200: 0.0727 | F200: 0.0758 | G200: 0.0749 | H200: 0.0721 | I200: 0.0698 | J200: 0.0689 | K200: 0.0673 | L200: 0.0628 | M200: 0.063
A201: 1969 | B201: 7 | C201: 196 | D201: 0.0697 | E201: 0.0721 | F201: 0.0757 | G201: 0.0753 | H201: 0.073 | I201: 0.0698 | J201: 0.0671 | K201: 0.0666 | L201: 0.0623 | M201: 0.0625
... 857 more rows

Sheet Single Scenario
B1: Worksheet example for a single interest rate scenario
B3: The scenario in this worksheet is updated whenever the scenario number in cell F16 is changed.
B4: All scenario calculations are done in this worksheet page except for generation of the
B5: uncorrelated random numbers, which is done in VBA code.
D9: Uncorrelated unit normal
D10: random deviates are
D11: generated using a specific | U11: Yield Curve Interpolation based on the Nelson-Siegel formula
D12: seed value for each of the
D13: 10,000 scenarios.
D16: Scenario number: | F16: 1389
D17: Base scenario seed: | F17: 200 | X17: Difference between initial curve and NS fitted curve - to be used to perturb the fitted curves in the first 12 months
D18: Seed value to use: | F18: =F17+F16-1 -> 1588 | X18: =X26-'Scenario Generator'!C6 -> -0.00594221607 | Y18: =Y26-'Scenario Generator'!C7 -> -0.003917502271 | Z18: =Z26-'Scenario Generator'!C8 -> 2.602085214e-18 | AA18: =AA26-'Scenario Generator'!C9 -> 0.004475288104 | AB18: =AB26-'Scenario Generator'!C10 -> 0.005917501101 | AC18: =AC26-'Scenario Generator'!C11 -> 0.003918997242 | AD18: =AD26-'Scenario Generator'!C12 -> 0.001894350375 | AE18: =AE26-'Scenario Generator'!C13 -> 0.0006152690245 | AF18: =AF26-'Scenario Generator'!C14 -> 0 | AG18: =AG26-'Scenario Generator'!C15 -> -0.0002629048087
D20: The starting curve is taken from the | X20: Nelson-Siegel interpolation factors rate = b0 + ( b1 x factor ) | AX20: Calculation of significance measure
D21: "Scenario Generator" tab. | X21: =(1-EXP(-0.4*X24))/(0.4*X24) -> 0.9516258196 | Y21: =(1-EXP(-0.4*Y24))/(0.4*Y24) -> 0.9063462346 | Z21: 0.8241998849 | AA21: 0.6883387949 | AB21: 0.5823381567 | AC21: 0.4323323584 | AD21: 0.3354249776 | AE21: 0.2454210903 | AF21: 0.1249580672 | AG21: 0.08333282132 | AX21: for the scenario picker, based on
AX22: the path of 20-yr rates.
D23: Uncorrelated Normals | H23: Correlated Normals | L23: Generator Process | P23: Generator Results | U23: Fitted parameters | X23: Nelson-Siegel Fitted Curve | AI23: Perturbation | AJ23: Fully Interpolated Curve from Generator
D24: 1Nt | E24: 2Nt | F24: 3Nt | H24: 1Zt | I24: 2Zt | J24: 3Zt | L24: nt | M24: 1st | N24: at | P24: 1it | Q24: 1rt | R24: 2rt* | S24: 2rt | U24: b0 | V24: b1 | X24: 0.25 | Y24: 0.5 | Z24: 1 | AA24: 2 | AB24: 3 | AC24: 5 | AD24: 7 | AE24: 10 | AF24: 20 | AG24: 30 | AI24: Coefficient | AJ24: 0.25 | AK24: 0.5 | AL24: 1 | AM24: 2 | AN24: 3 | AO24: 5 | AP24: 7 | AQ24: 10 | AR24: 20 | AS24: 30
B25: Scenario Month | D25: shock to log(long rate) | E25: shock to (long-short) | F25: shock to log(volatility) | H25: shock to log(long rate) | I25: shock to (long-short) | J25: shock to log(volatility) | L25: long rate log volatility | M25: long rate volatility | N25: difference (long-short) | P25: log of long rate | Q25: long rate | R25: short rate before floor | S25: short rate | AJ25: Cells highlighted in yellow have been floored at 0.01%. | AU25: 1-yr | AV25: 20-yr | AX25: Discount factor | AY25: Annuity factor | AZ25: Significance value
B26: Start date | L26: =LN(Parameters!C25) -> -3.550858156 | M26: =EXP(L26) -> 0.0287 | N26: =Init_Rate_Long-Init_Rate_Short -> 0.0359 | P26: =LN(Init_Rate_Long) -> -3.291446518 | Q26: =EXP(P26) -> 0.0372 | R26: =Q26-N26 -> 0.0013 | S26: =IF(R26<Minr2,Minr2,R26) -> 0.0013 | U26: =S26-V26*$Z$21 -> 0.04361551248 | V26: =(S26-Q26)/($Z$21-$AF$21) -> -0.05134132297 | X26: =$U26+$V26*X$21 -> -0.00524221607 | Y26: =$U26+$V26*Y$21 -> -0.002917502271 | Z26: 0.0013 | AA26: 0.008275288104 | AB26: 0.0137175011 | AC26: 0.02141899724 | AD26: 0.02639435038 | AE26: 0.03101526902 | AF26: 0.0372 | AG26: 0.03933709519 | AI26: =1 -> 1 | AJ26: =MAX(0.0001,X26-$AI26*X$18) -> 0.0007 | AK26: =MAX(0.0001,Y26-$AI26*Y$18) -> 0.001 | AL26: =MAX(0.0001,Z26-$AI26*Z$18) -> 0.0013 | AM26: =MAX(0.0001,AA26-$AI26*AA$18) -> 0.0038 | AN26: =MAX(0.0001,AB26-$AI26*AB$18) -> 0.0078 | AO26: =MAX(0.0001,AC26-$AI26*AC$18) -> 0.0175 | AP26: =MAX(0.0001,AD26-$AI26*AD$18) -> 0.0245 | AQ26: =MAX(0.0001,AE26-$AI26*AE$18) -> 0.0304 | AR26: =MAX(0.0001,AF26-$AI26*AF$18) -> 0.0372 | AS26: =MAX(0.0001,AG26-$AI26*AG$18) -> 0.0396 | AU26: =AL26 -> 0.0013 | AV26: =AR26 -> 0.0372 | AX26: 1 | AY26: 0 | AZ26: =SQRT(AY386) -> 12.42414993
B27: 1 | D27: 1.956714051 | E27: 0.6128829618 | F27: -0.2328326876 | H27: =D27 -> 1.956714051 | I27: =D27*Correl12+E27*Const1 -> 0.2258534292 | J27: =D27* Correl13+E27*Const2+F27*Const3 -> -0.2328326876 | L27: =(1-Beta3)*L26+Const4+Sigma3*J27 -> -3.577608304 | M27: =EXP(L27) -> 0.02794244825 | N27: =(1-Beta2)*N26+Beta2*_Tau2+Phi*(P26-LN(_Tau1))+Sigma2*I27*Q26^Theta -> 0.03553857535 | P27: =MAX(LN(Parameters!$C$21),MIN(LN(Parameters!$C$22),(1-Beta1)*P26+Const5+Psi*(_Tau2-N26))+M27*H27) -> -3.242919228 | Q27: =EXP(P27) -> 0.03904973348 | R27: =Q27-N27 -> 0.003511158131 | S27: 0.003511158131 | U27: =S27-V27*$Z$21 -> 0.04540065754 | V27: =(S27-Q27)/($Z$21-$AF$21) -> -0.0508244422 | X27: -0.002965193923 | Y27: -0.0006638842711 | Z27: 0.003511158131 | AA27: 0.01041622225 | AB27: 0.01580364556 | AC27: 0.02342760658 | AD27: 0.02835287016 | AE27: 0.03292726753 | AF27: 0.03904973348 | AG27: 0.04116531338 | AI27: =AI26-1/12 -> 0.9166666667 | AJ27: =MAX(0.0001,X27-$AI27*X$18) -> 0.002481837474 | AK27: 0.002927159477 | AL27: 0.003511158131 | AM27: 0.006313874822 | AN27: 0.01037926955 | AO27: 0.01983519245 | AP27: 0.02661638231 | AQ27: 0.03236327092 | AR27: 0.03904973348 | AS27: 0.04140630946 | AU27: =AL27 -> 0.003511158131 | AV27: =AR27 -> 0.03904973348 | AX27: =AX26*(1+AV27/2)^-0.33333333 -> 0.9935751609 | AY27: =AY26+AX27 -> 0.9935751609
B28: =B27+1 -> 2 | D28: -1.484632517 | E28: -0.193522719 | F28: -1.111371924 | H28: =D28 -> -1.484632517 | I28: 0.09508155417 | J28: -1.111371924 | L28: -3.704223551 | M28: 0.02461932561 | N28: 0.0350020674 | P28: =MAX(LN(Parameters!$C$21),MIN(LN(Parameters!$C$22),(1-Beta1)*P27+Const5+Psi*(_Tau2-N27))+M28*H28) -> -3.285774025 | Q28: 0.03741161635 | R28: 0.002409548945 | S28: 0.002409548945 | U28: 0.04366666371 | V28: -0.05005717123 | X28: -0.003969032889 | Y28: -0.001702464948 | Z28: 0.002409548945 | AA28: 0.009210370793 | AB28: 0.01451646289 | AC28: 0.02202532882 | AD28: 0.02687623817 | AE28: 0.03138157817 | AF28: 0.03741161635 | AG28: 0.03949525841 | AI28: =AI27-1/12 -> 0.8333333333 | AJ28: =MAX(0.0001,X28-$AI28*X$18) -> 0.0009828138357 | AK28: 0.001562120278 | AL28: 0.002409548945 | AM28: 0.00548096404 | AN28: 0.009585211968 | AO28: 0.01875949778 | AP28: 0.02529761286 | AQ28: 0.03086885398 | AR28: 0.03741161635 | AS28: 0.03971434575 | AU28: 0.002409548945 | AV28: 0.03741161635 | AX28: =AX27*(1+AV28/2)^-0.33333333 -> 0.987456103 | AY28: =AY27+AX28 -> 1.981031264
B29: =B28+1 -> 3 | D29: 0.002757463794 | E29: -0.499223641 | F29: 0.4779998378 | H29: 0.002757463794 | I29: -0.4904678281 | J29: 0.4779998378 | L29: -3.64317 | M29: 0.0261692558 | N29: 0.03355625768 | P29: =MAX(LN(Parameters!$C$21),MIN(LN(Parameters!$C$22),(1-Beta1)*P28+Const5+Psi*(_Tau2-N28))+M29*H29) -> -3.291652873 | Q29: 0.03719232438 | R29: 0.003636066702 | S29: 0.003636066702 | U29: 0.0431889982 | V29: -0.04798948922 | X29: -0.002479038819 | Y29: -0.0003060946613 | Z29: 0.003636066702 | AA29: 0.01015597102 | AB29: 0.0152428875 | AC29: 0.02244158914 | AD29: 0.02709212485 | AE29: 0.03141136543 | AF29: 0.03719232438 | AG29: 0.03918989867 | AI29: 0.75 | AJ29: 0.001977623233 | AK29: 0.002632032042 | AL29: 0.003636066702 | AM29: 0.006799504941 | AN29: 0.01080476167 | AO29: 0.01950234121 | AP29: 0.02567136207 | AQ29: 0.03094991366 | AR29: 0.03719232438 | AS29: 0.03938707727 | AU29: 0.003636066702 | AV29: 0.03719232438 | AX29: 0.9814099419 | AY29: =AY28+AX29 -> 2.962441206
B30: 4 | D30: -0.8058597799 | E30: 0.6993154398 | F30: -0.2854429317 | H30: -0.8058597799 | I30: 0.8410096301 | J30: -0.2854429317 | L30: -3.672271141 | M30: 0.02541867494 | N30: 0.03420667394 | P30: =MAX(LN(Parameters!$C$21),MIN(LN(Parameters!$C$22),(1-Beta1)*P29+Const5+Psi*(_Tau2-N29))+M30*H30) -> -3.317694022 | Q30: 0.03623629558 | R30: 0.002029621638 | S30: 0.002029621638 | U30: 0.04234920209 | V30: -0.0489196628 | X30: -0.004204012121 | Y30: -0.001988950089 | Z30: 0.002029621638 | AA30: 0.008675900351 | AB30: 0.01386141582 | AC30: 0.0211996489 | AD30: 0.02594032529 | AE30: 0.03034328511 | AF30: 0.03623629558 | AG30: 0.03827258857 | AI30: 0.6666666667 | AJ30: 0.0001 | AK30: 0.0006227180914 | AL30: 0.002029621638 | AM30: 0.005692374949 | AN30: 0.009916415091 | AO30: 0.01858698407 | AP30: 0.02467742504 | AQ30: 0.02993310576 | AR30: 0.03623629558 | AS30: 0.03844785844 | AU30: 0.002029621638 | AV30: 0.03623629558 | AX30: 0.9755534301 | AY30: 3.937994636
B31: 5 | D31: -1.304298106 | E31: 1.041265396 | F31: 0.819848326 | H31: -1.304298106 | I31: 1.272284795 | J31: 0.819848326 | L31: -3.573221034 | M31: 0.02806530863 | N31: 0.03544930889 | P31: =MAX(LN(Parameters!$C$21),MIN(LN(Parameters!$C$22),(1-Beta1)*P30+Const5+Psi*(_Tau2-N30))+M31*H31) -> -3.359887934 | Q31: 0.03473915181 | R31: -0.0007101570852 | S31: 0.0001 | U31: 0.04092934431 | V31: -0.04953815823 | X31: -0.006212446117 | Y31: -0.003969378869 | Z31: 0.0001 | AA31: 0.006830308176 | AB31: 0.01208138456 | AC31: 0.01951239553 | AD31: 0.0243130087 | AE31: 0.02877163551 | AF31: 0.03473915181 | AG31: 0.03680118982 | AI31: 0.5833333333 | AJ31: 0.0001 | AK31: 0.0001 | AL31: 0.0001 | AM31: 0.004219723449 | AN31: 0.008629508918 | AO31: 0.01722631381 | AP31: 0.02320797098 | AQ31: 0.02841272858 | AR31: 0.03473915181 | AS31: 0.03695455096 | AU31: 0.0001 | AV31: 0.03473915181 | AX31: 0.9699696486 | AY31: 4.907964285
B32: 6 | D32: 0.3747686805 | E32: -0.6117409709 | F32: 0.3631873881 | H32: 0.3747686805 | I32: -0.6723074183 | J32: 0.3631873881 | L32: -3.530599696 | M32: 0.0292873471 | N32: 0.03376901097 | P32: =MAX(LN(Parameters!$C$21),MIN(LN(Parameters!$C$22),(1-Beta1)*P31+Const5+Psi*(_Tau2-N31))+M32*H32) -> -3.354598266 | Q32: 0.03492339726 | R32: 0.001154386283 | S32: 0.001154386283 | U32: 0.04095809117 | V32: -0.04829375205 | X32: -0.004999490214 | Y32: -0.002812769161 | Z32: 0.001154386283 | AA32: 0.00771562808 | AB32: 0.01283479662 | AC32: 0.02007913945 | AD32: 0.02475916047 | AE32: 0.02910578589 | AF32: 0.03492339726 | AG32: 0.03693363656 | AI32: 0.5 | AJ32: 0.0001 | AK32: 0.0001 | AL32: 0.001154386283 | AM32: 0.005477984028 | AN32: 0.009876046065 | AO32: 0.01811964083 | AP32: 0.02381198528 | AQ32: 0.02879815137 | AR32: 0.03492339726 | AS32: 0.03706508896 | AU32: 0.001154386283 | AV32: 0.03492339726 | AX32: 0.9643887195 | AY32: 5.872353004
B33: 7 | D33: 1.65325103 | E33: 0.05224197994 | F33: 0.1084320381 | H33: 1.65325103 | I33: -0.2661042797 | J33: 0.1084320381 | L33: -3.51895248 | M33: 0.02963045741 | N33: 0.03271818389 | P33: =MAX(LN(Parameters!$C$21),MIN(LN(Parameters!$C$22),(1-Beta1)*P32+Const5+Psi*(_Tau2-N32))+M33*H33) -> -3.310902088 | Q33: 0.03648324779 | R33: 0.003765063903 | S33: 0.003765063903 | U33: 0.04233015356 | V33: -0.04679094279 | X33: -0.002197315718 | Y33: -7.864124575e-05 | Z33: 0.003765063903 | AA33: 0.01012213239 | AB33: 0.01508200219 | AC33: 0.02210091492 | AD33: 0.02663530262 | AE33: 0.03084666937 | AF33: 0.03648324779 | AG33: 0.03843093229 | AI33: 0.4166666667 | AJ33: 0.0002786076442 | AK33: 0.001553651367 | AL33: 0.003765063903 | AM33: 0.008257429018 | AN33: 0.01261637673 | AO33: 0.0204679994 | AP33: 0.02584598997 | AQ33: 0.03059030728 | AR33: 0.03648324779 | AS33: 0.03854047596 | AU33: 0.003765063903 | AV33: 0.03648324779 | AX33: 0.9585950301 | AY33: 6.830948034
B34: 8 | D34: -0.8835629995 | E34: 0.617334097 | F34: 0.8008211038 | H34: -0.8835629995 | I34: 0.7754697621 | J34: 0.8008211038 | L34: -3.42822269 | M34: 0.0324445536 | N34: 0.03326333327 | P34: =MAX(LN(Parameters!$C$21),MIN(LN(Parameters!$C$22),(1-Beta1)*P33+Const5+Psi*(_Tau2-N33))+M34*H34) -> -3.344817286 | Q34: 0.0352666583 | R34: 0.002003325028 | S34: 0.002003325028 | U34: 0.04121098503 | V34: -0.04757057204 | X34: -0.00405839958 | Y34: -0.001904423818 | Z34: 0.002003325028 | AA34: 0.008466314801 | AB34: 0.01350882579 | AC34: 0.02064468743 | AD34: 0.02525462697 | AE34: 0.02953616338 | AF34: 0.0352666583 | AG34: 0.03724679505 | AI34: 0.3333333333 | AJ34: 0.0001 | AK34: 0.0001 | AL34: 0.002003325028 | AM34: 0.0069745521 | AN34: 0.01153632543 | AO34: 0.01933835502 | AP34: 0.02462317684 | AQ34: 0.0293310737 | AR34: 0.0352666583 | AS34: 0.03733442999 | AU34: 0.002003325028 | AV34: 0.0352666583 | AX34: 0.9530259633 | AY34: 7.783973997
B35: 9 | D35: 0.3266807297 | E35: 0.3879403042 | F35: 0.7174692087 | H35: 0.3266807297 | I35: 0.318012023 | J35: 0.7174692087 | L35: -3.350699297 | M35: 0.03505982829 | N35: 0.03307873186 | P35: =MAX(LN(Parameters!$C$21),MIN(LN(Parameters!$C$22),(1-Beta1)*P34+Const5+Psi*(_Tau2-N34))+M35*H35) -> -3.338576858 | Q35: 0.03548742543 | R35: 0.002408693573 | S35: 0.002408693573 | U35: 0.04139876296 | V35: -0.0473065698 | X35: -0.003619390303 | Y35: -0.001477368453 | Z35: 0.002408693573 | AA35: 0.008835815713 | AB35: 0.0138503423 | AC35: 0.02094660207 | AD35: 0.02553095784 | AE35: 0.02978873302 | AF35: 0.03548742543 | AG35: 0.03745657303 | AI35: 0.25 | AJ35: 0.0001 | AK35: 0.0001 | AL35: 0.002408693573 | AM35: 0.007716993687 | AN35: 0.01237096702 | AO35: 0.01996685276 | AP35: 0.02505737025 | AQ35: 0.02963491576 | AR35: 0.03548742543 | AS35: 0.03752229923 | AU35: 0.002408693573 | AV35: 0.03548742543 | AX35: 0.9474549947 | AY35: 8.731428992
B36: 10 | D36: 0.7601139087 | E36: 0.5463556628 | F36: 0.2611321583 | H36: 0.7601139087 | I36: 0.3902748144 | J36: 0.2611321583 | L36: -3.328706179 | M36: 0.03583944489 | N36: 0.03300961941 | P36: =MAX(LN(Parameters!$C$21),MIN(LN(Parameters!$C$22),(1-Beta1)*P35+Const5+Psi*(_Tau2-N35))+M36*H36) -> -3.316533052 | Q36: 0.03627838928 | R36: 0.003268769864 | S36: 0.003268769864 | U36: 0.04217737606 | V36: -0.04720773068 | X36: -0.002746719344 | Y36: -0.0006091728886 | Z36: 0.003268769864 | AA36: 0.009682463614 | AB36: 0.01468651319 | AC36: 0.02176794652 | AD36: 0.02634272405 | AE36: 0.03059160332 | AF36: 0.03627838928 | AG36: 0.03824342267 | AI36: 0.1666666667 | AJ36: 0.0001 | AK36: 0.0001 | AL36: 0.003268769864 | AM36: 0.008936582263 | AN36: 0.01370026301 | AO36: 0.02111478031 | AP36: 0.02602699899 | AQ36: 0.03048905849 | AR36: 0.03627838928 | AS36: 0.03828724014 | AU36: 0.003268769864 | AV36: 0.03627838928 | AX36: 0.9417946176 | AY36: 9.67322361
B37: 11 | D37: -2.347433505 | E37: 0.4175673201 | F37: -0.5861949983 | H37: -2.347433505 | I37: 0.8604377096 | J37: -0.5861949983 | L37: -3.404942423 | M37: 0.03320873207 | N37: 0.03366709009 | P37: =MAX(LN(Parameters!$C$21),MIN(LN(Parameters!$C$22),(1-Beta1)*P36+Const5+Psi*(_Tau2-N36))+M37*H37) -> -3.399781407 | Q37: 0.03338056591 | R37: -0.0002865241806 | S37: 0.0001 | U37: 0.0393279722 | V37: -0.04759521679 | X37: -0.005964864989 | Y37: -0.003809773323 | Z37: 0.0001 | AA37: 0.006566338035 | AB37: 0.01161146139 | AC37: 0.01875101988 | AD37: 0.02336334768 | AE37: 0.02764710221 | AF37: 0.03338056591 | AG37: 0.03536172851 | AI37: 0.08333333333 | AJ37: 0.0001 | AK37: 0.0001 | AL37: 0.0001 | AM37: 0.00619339736 | AN37: 0.01111833629 | AO37: 0.01842443678 | AP37: 0.02320548514 | AQ37: 0.02759582979 | AR37: 0.03338056591 | AS37: 0.03538363724 | AU37: 0.0001 | AV37: 0.03338056591 | AX37: 0.9366125654 | AY37: 10.60983618
B38: 12 | D38: -0.3667837676 | E38: 1.4491543 | F38: -0.6286931691 | H38: -0.3667837676 | I38: 1.492612661 | J38: -0.6286931691 | L38: -3.48301107 | M38: 0.03071478728 | N38: 0.03506215771 | P38: =MAX(LN(Parameters!$C$21),MIN(LN(Parameters!$C$22),(1-Beta1)*P37+Const5+Psi*(_Tau2-N37))+M38*H38) -> -3.41608187 | Q38: 0.03284085794 | R38: -0.002221299774 | S38: 0.0001 | U38: 0.03869181568 | V38: -0.04682336941 | X38: -0.005866511614 | Y38: -0.003746368878 | Z38: 0.0001 | AA38: 0.006461474008 | AB38: 0.01142478104 | AC38: 0.01844855795 | AD38: 0.02298608804 | AE38: 0.02720037331 | AF38: 0.03284085794 | AG38: 0.0347898922 | AI38: 0 | AJ38: 0.0001 | AK38: 0.0001 | AL38: 0.0001 | AM38: 0.006461474008 | AN38: 0.01142478104 | AO38: 0.01844855795 | AP38: 0.02298608804 | AQ38: 0.02720037331 | AR38: 0.03284085794 | AS38: 0.0347898922 | AU38: 0.0001 | AV38: 0.03284085794 | AX38: 0.9315414515 | AY38: 11.54137763
B39: 13 | D39: 2.884806606 | E39: -0.04848489596 | F39: -0.6021183036 | H39: 2.884806606 | I39: -0.6013794396 | J39: -0.6021183036 | L39: -3.554903004 | M39: 0.02858414733 | N39: 0.03353057517 | P39: =MAX(LN(Parameters!$C$21),MIN(LN(Parameters!$C$22),(1-Beta1)*P38+Const5+Psi*(_Tau2-N38))+M39*H39) -> -3.338924995 | Q39: 0.03547507309 | R39: 0.001944497924 | S39: 0.001944497924 | U39: 0.04146715732 | V39: -0.04795276015 | X39: -0.00416592736 | Y39: -0.001994646279 | Z39: 0.001944497924 | AA39: 0.008459412189 | AB39: 0.01354243536 | AC39: 0.02073562743 | AD39: 0.02538260382 | AE39: 0.02969853864 | AF39: 0.03547507309 | AG39: 0.03747111852 | AI39: 0 | AJ39: 0.0001 | AK39: 0.0001 | AL39: 0.001944497924 | AM39: 0.008459412189 | AN39: 0.01354243536 | AO39: 0.02073562743 | AP39: 0.02538260382 | AQ39: 0.02969853864 | AR39: 0.03547507309 | AS39: 0.03747111852 | AU39: 0.001944497924 | AV39: 0.03547507309 | AX39: 0.9260979452 | AY39: 12.46747557
B40: 14 | D40: -0.7863248514 | E40: -0.09211778472 | F40: -0.4366098116 | H40: -0.7863248514 | I40: 0.06054631462 | J40: -0.4366098116 | L40: -3.604903271 | M40: 0.02719007476 | N40: 0.03296386366 | P40: =MAX(LN(Parameters!$C$21),MIN(LN(Parameters!$C$22),(1-Beta1)*P39+Const5+Psi*(_Tau2-N39))+M40*H40) -> -3.365615411 | Q40: 0.03454075283 | R40: 0.001576889169 | S40: 0.001576889169 | U40: 0.04043156282 | V40: -0.04714229444 | X40: -0.004430261766 | Y40: -0.002295678236 | Z40: 0.001576889169 | AA40: 0.00798169268 | AB40: 0.01297880597 | AC40: 0.02005042349 | AD40: 0.02461885977 | AE40: 0.02886184952 | AF40: 0.03454075283 | AG40: 0.03650306243 | AI40: 0 | AJ40: 0.0001 | AK40: 0.0001 | AL40: 0.001576889169 | AM40: 0.00798169268 | AN40: 0.01297880597 | AO40: 0.02005042349 | AP40: 0.02461885977 | AQ40: 0.02886184952 | AR40: 0.03454075283 | AS40: 0.03650306243 | AU40: 0.001576889169 | AV40: 0.03454075283 | AX40: 0.9208271621 | AY40: 13.38830273
B41: 15 | D41: -0.8024721027 | E41: -0.7296768369 | F41: -0.06801905978 | H41: -0.8024721027 | I41: -0.5620548578 | J41: -0.06801905978 | L41: -3.610555636 | M41: 0.02703682007 | N41: 0.03151265167 | P41: =MAX(LN(Parameters!$C$21),MIN(LN(Parameters!$C$22),(1-Beta1)*P40+Const5+Psi*(_Tau2-N40))+M41*H41) -> -3.392343427 | Q41: 0.03362977557 | R41: 0.002117123908 | S41: 0.002117123908 | U41: 0.03926124661 | V41: -0.04506688654 | X41: -0.003625566235 | Y41: -0.001584956314 | Z41: 0.002117123908 | AA41: 0.008239960239 | AB41: 0.01301707897 | AC41: 0.01977737327 | AD41: 0.0241446872 | AE41: 0.02820088218 | AF41: 0.03362977557 | AG41: 0.03550569581 | AI41: 0 | AJ41: 0.0001 | AK41: 0.0001 | AL41: 0.002117123908 | AM41: 0.008239960239 | AN41: 0.01301707897 | AO41: 0.01977737327 | AP41: 0.0241446872 | AQ41: 0.02820088218 | AR41: 0.03362977557 | AS41: 0.03550569581 | AU41: 0.002117123908 | AV41: 0.03362977557 | AX41: 0.9157230708 | AY41: 14.3040258
B42: 16 | D42: -0.6892313002 | E42: -1.035953414 | F42: -0.1055467447 | H42: -0.6892313002 | I42: -0.8843737707 | J42: -0.1055467447 | L42: -3.620293405 | M42: 0.02677481948 | N42: 0.02966667468 | P42: =MAX(LN(Parameters!$C$21),MIN(LN(Parameters!$C$22),(1-Beta1)*P41+Const5+Psi*(_Tau2-N41))+M42*H42) -> -3.415327964 | Q42: 0.0328656262 | R42: 0.003198951517 | S42: 0.003198951517 | U42: 0.03816721176 | V42: -0.04242691716 | X42: -0.002207338061 | Y42: =$U42+$V42*Y$21 -> -0.0002862648575 | Z42: 0.003198951517 | AA42: 0.00896311873 | AB42: 0.01346039902 | AC42: 0.0198246826 | AD42: 0.02393616402 | AE42: 0.02775475149 | AF42: 0.0328656262 | AG42: 0.03463165705 | AI42: 0 | AJ42: 0.0001 | AK42: 0.0001 | AL42: 0.003198951517 | AM42: 0.00896311873 | AN42: 0.01346039902 | AO42: 0.0198246826 | AP42: 0.02393616402 | AQ42: 0.02775475149 | AR42: 0.0328656262 | AS42: 0.03463165705 | AU42: 0.003198951517 | AV42: 0.0328656262 | AX42: 0.9107613603 | AY42: 15.21478716
B43: 17 | D43: 1.405862235 | E43: 0.7085865007 | F43: 0.523910321 | H43: 1.405862235 | I43: 0.4255239813 | J43: 0.523910321 | L43: -3.557323244 | M43: 0.02851505049 | N43: 0.02967943649 | P43: =MAX(LN(Parameters!$C$21),MIN(LN(Parameters!$C$22),(1-Beta1)*P42+Const5+Psi*(_Tau2-N42))+M43*H43) -> -3.379188712 | Q43: 0.03407508824 | R43: 0.004395651752 | S43: 0.004395651752 | U43: 0.0393789544 | V43: -0.04244516809 | X43: -0.001012963467 | Y43: 0.0009089361309 | Z43: 0.004395651752 | AA43: 0.01016229856 | AB43: 0.01466151346 | AC43: 0.02102853478 | AD43: 0.02514178485 | AE43: 0.02896201497 | AF43: 0.03407508824 | AG43: 0.0358418788 | AI43: 0 | AJ43: 0.0001 | AK43: 0.0009089361309 | AL43: 0.004395651752 | AM43: 0.01016229856 | AN43: 0.01466151346 | AO43: 0.02102853478 | AP43: 0.02514178485 | AQ43: 0.02896201497 | AR43: 0.03407508824 | AS43: 0.0358418788 | AU43: 0.004395651752 | AV43: 0.03407508824 | AX43: 0.9056469635 | AY43: 16.12043413
B44: 18 | D44: -0.2527354291 | E44: -0.2318715498 | F44: 1.653388028 | H44: -0.2527354291 | I44: -0.1790413028 | J44: 1.653388028 | L44: -3.367106825 | M44: 0.03448927665 | N44: 0.02886591786 | P44: =MAX(LN(Parameters!$C$21),MIN(LN(Parameters!$C$22),(1-Beta1)*P43+Const5+Psi*(_Tau2-N43))+M44*H44) -> -3.392041515 | Q44: 0.03363993033 | R44: 0.004774012477 | S44: 0.004774012477 | U44: 0.03879841658 | V44: -0.04128173848 | X44: -0.0004863516361 | Y44: 0.001382868352 | Z44: 0.004774012477 | AA44: 0.01038259447 | AB44: 0.01475848509 | AC44: 0.02095098523 | AD44: 0.02495149038 | AE44: 0.02866700732 | AF44: 0.03363993033 | AG44: 0.03535829285 | AI44: 0 | AJ44: 0.0001 | AK44: 0.001382868352 | AL44: 0.004774012477 | AM44: 0.01038259447 | AN44: 0.01475848509 | AO44: 0.02095098523 | AP44: 0.02495149038 | AQ44: 0.02866700732 | AR44: 0.03363993033 | AS44: 0.03535829285 | AU44: 0.004774012477 | AV44: 0.03363993033 | AX44: 0.9006255161 | AY44: 17.02105964
B45: 19 | D45: 0.3231292406 | E45: -1.451007283 | F45: 0.01178378997 | H45: 0.3231292406 | I45: -1.486050821 | J45: 0.01178378997 | L45: -3.373104876 | M45: 0.03428302737 | N45: 0.02625112282 | P45: =MAX(LN(Parameters!$C$21),MIN(LN(Parameters!$C$22),(1-Beta1)*P44+Const5+Psi*(_Tau2-N44))+M45*H45) -> -3.384829672 | Q45: 0.03388341313 | R45: 0.00763229031 | S45: 0.00763229031 | U45: 0.03857462222 | V45: -0.03754226672 | X45: 0.002848431881 | Y45: 0.004548330139 | Z45: 0.00763229031 | AA45: 0.01273282359 | AB45: 0.01671232782 | AC45: 0.02234388551 | AD45: 0.02598200825 | AE45: 0.02936095819 | AF45: 0.03388341313 | AG45: 0.03544611922 | AI45: 0 | AJ45: 0.002848431881 | AK45: 0.004548330139 | AL45: 0.00763229031 | AM45: 0.01273282359 | AN45: 0.01671232782 | AO45: 0.02234388551 | AP45: 0.02598200825 | AQ45: 0.02936095819 | AR45: 0.03388341313 | AS45: 0.03544611922 | AU45: 0.00763229031 | AV45: 0.03388341313 | AX45: 0.8955961695 | AY45: 17.91665581
B46: 20 | D46: 0.9018150431 | E46: 0.4723080789 | F46: 0.1588622767 | H46: 0.9018150431 | I46: 0.2904020899 | J46: 0.1588622767 | L46: -3.361965098 | M46: 0.03466706778 | N46: 0.02618974489 | P46: =MAX(LN(Parameters!$C$21),MIN(LN(Parameters!$C$22),(1-Beta1)*P45+Const5+Psi*(_Tau2-N45))+M46*H46) -> -3.356811117 | Q46: 0.03484620243 | R46: 0.008656457541 | S46: 0.008656457541 | U46: 0.03952644297 | V46: -0.03745448889 | X46: 0.003883784285 | Y46: 0.005579707999 | Z46: 0.008656457541 | AA46: 0.01374506523 | AB46: 0.01771526495 | AC46: 0.02333365546 | AD46: 0.02696327187 | AE46: 0.03033432147 | AF46: 0.03484620243 | AG46: 0.03640525474 | AI46: 0 | AJ46: 0.003883784285 | AK46: 0.005579707999 | AL46: 0.008656457541 | AM46: 0.01374506523 | AN46: 0.01771526495 | AO46: 0.02333365546 | AP46: 0.02696327187 | AQ46: 0.03033432147 | AR46: 0.03484620243 | AS46: 0.03640525474 | AU46: 0.008656457541 | AV46: 0.03484620243 | AX46: 0.8904544242 | AY46: 18.80711024
B47: 21 | D47: 0.7846728653 | E47: 0.4442299623 | F47: -0.02333490941 | H47: 0.7846728653 | I47: 0.2853339879 | J47: -0.02333490941 | L47: -3.372203657 | M47: 0.03431393782 | N47: 0.02613989077 | P47: =MAX(LN(Parameters!$C$21),MIN(LN(Parameters!$C$22),(1-Beta1)*P46+Const5+Psi*(_Tau2-N46))+M47*H47) -> -3.333257798 | Q47: 0.03567668811 | R47: 0.009536797342 | S47: 0.009536797342 | U47: 0.04034801947 | V47: -0.03738319149 | X47: 0.004773209223 | Y47: 0.00646590462 | Z47: 0.009536797342 | AA47: 0.01461571849 | AB47: 0.01857836064 | AC47: 0.02418605613 | AD47: 0.0278087633 | AE47: 0.03117339585 | AF47: 0.03567668811 | AG47: 0.03723277265 | AI47: 0 | AJ47: 0.004773209223 | AK47: 0.00646590462 | AL47: 0.009536797342 | AM47: 0.01461571849 | AN47: 0.01857836064 | AO47: 0.02418605613 | AP47: 0.0278087633 | AQ47: 0.03117339585 | AR47: 0.03567668811 | AS47: 0.03723277265 | AU47: 0.009536797342 | AV47: 0.03567668811 | AX47: 0.8852217856 | AY47: 19.69233202
B48: 22 | D48: 0.4939525652 | E48: 0.3317067917 | F48: 0.1667810838 | H48: 0.4939525652 | I48: 0.2307132349 | J48: 0.1667810838 | L48: -3.360190145 | M48: 0.03472865484 | N48: 0.02602508368 | P48: =MAX(LN(Parameters!$C$21),MIN(LN(Parameters!$C$22),(1-Beta1)*P47+Const5+Psi*(_Tau2-N47))+M48*H48) -> -3.319582727 | Q48: 0.03616792049 | R48: 0.01014283681 | S48: 0.01014283681 | U48: 0.04081873524 | V48: -0.03721900352 | X48: 0.0054001705 | Y48: 0.007085431535 | Z48: 0.01014283681 | AA48: 0.0151994512 | AB48: 0.01914468933 | AC48: 0.02472775567 | AD48: 0.02833455181 | AE48: 0.03168440681 | AF48: 0.03616792049 | AG48: 0.03771717067 | AI48: 0 | AJ48: 0.0054001705 | AK48: 0.007085431535 | AL48: 0.01014283681 | AM48: 0.0151994512 | AN48: 0.01914468933 | AO48: 0.02472775567 | AP48: 0.02833455181 | AQ48: 0.03168440681 | AR48: 0.03616792049 | AS48: 0.03771717067 | AU48: 0.01014283681 | AV48: 0.03616792049 | AX48: 0.879949121 | AY48: 20.57228114
B49: 23 | D49: -0.06952994594 | E49: -0.3319179607 | F49: -0.1421498376 | H49: -0.06952994594 | I49: -0.3123968865 | J49: -0.1421498376 | L49: -3.384150367 | M49: 0.03390643815 | N49: 0.02510599683 | P49: =MAX(LN(Parameters!$C$21),MIN(LN(Parameters!$C$22),(1-Beta1)*P48+Const5+Psi*(_Tau2-N48))+M49*H49) -> -3.325460194 | Q49: 0.03595596823 | R49: 0.0108499714 | S49: 0.0108499714 | U49: 0.04044253748 | V49: -0.03590459865 | X49: 0.006274794352 | Y49: 0.00790053968 | Z49: 0.0108499714 | AA49: 0.01572800931 | AB49: 0.01953391968 | AC49: 0.02491981766 | AD49: 0.02839923828 | AE49: 0.03163079173 | AF49: 0.03595596823 | AG49: 0.03745050597 | AI49: 0 | AJ49: 0.006274794352 | AK49: 0.00790053968 | AL49: 0.0108499714 | AM49: 0.01572800931 | AN49: 0.01953391968 | AO49: 0.02491981766 | AP49: 0.02839923828 | AQ49: 0.03163079173 | AR49: 0.03595596823 | AS49: 0.03745050597 | AU49: 0.0108499714 | AV49: 0.03595596823 | AX49: 0.8747382146 | AY49: 21.44701936
B50: 24 | D50: -1.203790133 | E50: 0.008875402628 | F50: 1.117607763 | H50: -1.203790133 | I50: 0.2398019189 | J50: 1.117607763 | L50: -3.26241839 | M50: 0.03829567209 | N50: 0.02503673737 | P50: =MAX(LN(Parameters!$C$21),MIN(LN(Parameters!$C$22),(1-Beta1)*P49+Const5+Psi*(_Tau2-N49))+M50*H50) -> -3.374818905 | Q50: 0.03422431561 | R50: 0.009187578245 | S50: 0.009187578245 | U50: 0.03869850784 | V50: -0.03580554928 | X50: 0.004625022659 | Y50: 0.006246283073 | Z50: 0.009187578245 | AA50: 0.0140521592 | AB50: 0.01784757027 | AC50: 0.02321861028 | AD50: 0.02668843228 | AE50: 0.0299110709 | AF50: 0.03422431561 | AG50: 0.0357147304 | AI50: 0 | AJ50: 0.004625022659 | AK50: 0.006246283073 | AL50: 0.009187578245 | AM50: 0.0140521592 | AN50: 0.01784757027 | AO50: 0.02321861028 | AP50: 0.02668843228 | AQ50: 0.0299110709 | AR50: 0.03422431561 | AS50: 0.0357147304 | AU50: 0.009187578245 | AV50: 0.03422431561 | AX50: 0.8698048363 | AY50: 22.3168242
B51: 25 | D51: 0.3267330286 | E51: -1.612687045 | F51: 0.5454093964 | H51: 0.3267330286 | I51: -1.645415287 | J51: 0.5454093964 | L51: -3.211296779 | M51: 0.04030431358 | N51: 0.02226594031 | P51: =MAX(LN(Parameters!$C$21),MIN(LN(Parameters!$C$22),(1-Beta1)*P50+Const5+Psi*(_Tau2-N50))+M51*H51) -> -3.364640249 | Q51: 0.03457445209 | R51: 0.01230851177 | S51: 0.01230851177 | U51: 0.0385534888 | V51: -0.03184297585 | X51: 0.008250890811 | Y51: 0.009692727543 | Z51: 0.01230851177 | AA51: 0.01663473318 | AB51: 0.02001010894 | AC51: 0.02478673996 | AD51: 0.02787255934 | AE51: 0.03073855095 | AF51: 0.03457445209 | AG51: 0.03589992379 | AI51: 0 | AJ51: 0.008250890811 | AK51: 0.009692727543 | AL51: 0.01230851177 | AM51: 0.01663473318 | AN51: 0.02001010894 | AO51: 0.02478673996 | AP51: 0.02787255934 | AQ51: 0.03073855095 | AR51: 0.03457445209 | AS51: 0.03589992379 | AU51: 0.01230851177 | AV51: 0.03457445209 | AX51: 0.8648496641 | AY51: 23.18167386
B52: 26 | D52: 0.8074608405 | E52: 0.1181967476 | F52: -1.415823136 | H52: 0.8074608405 | I52: -0.03900987559 | J52: -1.415823136 | L52: -3.38754655 | M52: 0.03379148099 | N52: 0.02185150099 | P52: =MAX(LN(Parameters!$C$21),MIN(LN(Parameters!$C$22),(1-Beta1)*P51+Const5+Psi*(_Tau2-N51))+M52*H52) -> -3.339699611 | Q52: 0.03544760418 | R52: 0.0135961032 | S52: 0.0135961032 | U52: 0.03935257848 | V52: -0.0312502777 | X52: 0.009614007349 | Y52: =$U52+$V52*Y$21 -> 0.01102900696 | Z52: 0.0135961032 | AA52: 0.01784179999 | AB52: 0.02115434937 | AC52: 0.02584207222 | AD52: 0.02887045478 | AE52: 0.03168310126 | AF52: 0.03544760418 | AG52: 0.03674840467 | AI52: 0 | AJ52: 0.009614007349 | AK52: 0.01102900696 | AL52: 0.0135961032 | AM52: 0.01784179999 | AN52: 0.02115434937 | AO52: 0.02584207222 | AP52: 0.02887045478 | AQ52: 0.03168310126 | AR52: 0.03544760418 | AS52: 0.03674840467 | AU52: 0.0135961032 | AV52: 0.03544760418 | AX52: 0.8597997421 | AY52: 24.0414736
B53: 27 | D53: 0.2722734951 | E53: -1.532938252 | F53: 1.584117009 | H53: 0.2722734951 | I53: -1.556695161 | J53: 1.584117009 | L53: -3.212081444 | M53: 0.0402727006 | N53: 0.01922021082 | P53: =MAX(LN(Parameters!$C$21),MIN(LN(Parameters!$C$22),(1-Beta1)*P52+Const5+Psi*(_Tau2-N52))+M53*H53) -> -3.331101741 | Q53: 0.03575369205 | R53: 0.01653348123 | S53: 0.01653348123 | U53: 0.03918844143 | V53: -0.02748721592 | X53: 0.01303089705 | Y53: 0.01427550678 | Z53: 0.01653348123 | AA53: 0.02026792435 | AB53: 0.02318158677 | AC53: 0.02730482854 | AD53: 0.02996854264 | AE53: 0.03244249893 | AF53: 0.03575369205 | AG53: 0.03689785417 | AI53: 0 | AJ53: 0.01303089705 | AK53: 0.01427550678 | AL53: 0.01653348123 | AM53: 0.02026792435 | AN53: 0.02318158677 | AO53: 0.02730482854 | AP53: 0.02996854264 | AQ53: 0.03244249893 | AR53: 0.03575369205 | AS53: 0.03689785417 | AU53: 0.01653348123 | AV53: 0.03575369205 | AX53: 0.8547364645 | AY53: 24.89621007
B54: 28 | D54: -1.221285317 | E54: 1.393456044 | F54: -0.2171911458 | H54: -1.221285317 | I54: 1.601989011 | J54: -0.2171911458 | L54: -3.250588991 | M54: 0.0387513769 | N54: 0.02132605384 | P54: =MAX(LN(Parameters!$C$21),MIN(LN(Parameters!$C$22),(1-Beta1)*P53+Const5+Psi*(_Tau2-N53))+M54*H54) -> -3.380177173 | Q54: 0.03404142299 | R54: 0.01271536915 | S54: 0.01271536915 | U54: 0.03785249722 | V54: -0.03049882501 | X54: 0.008829027867 | Y54: 0.01021000201 | Z54: 0.01271536915 | AA54: 0.01685897276 | AB54: 0.02009186768 | AC54: 0.02466686827 | AD54: 0.02762242952 | AE54: 0.03036744233 | AF54: 0.03404142299 | AG54: 0.03531094408 | AI54: 0 | AJ54: 0.008829027867 | AK54: 0.01021000201 | AL54: 0.01271536915 | AM54: 0.01685897276 | AN54: 0.02009186768 | AO54: 0.02466686827 | AP54: 0.02762242952 | AQ54: 0.03036744233 | AR54: 0.03404142299 | AS54: 0.03531094408 | AU54: 0.01271536915 | AV54: 0.03404142299 | AX54: 0.8499413656 | AY54: 25.74615143
B55: 29 | D55: -1.228135527 | E55: -0.4890988627 | F55: -0.993346278 | H55: -1.228135527 | I55: -0.2442368351 | J55: -0.993346278 | L55: -3.376728314 | M55: 0.03415902973 | N55: 0.02064481728 | P55: =MAX(LN(Parameters!$C$21),MIN(LN(Parameters!$C$22),(1-Beta1)*P54+Const5+Psi*(_Tau2-N54))+M55*H55) -> -3.424158155 | Q55: 0.03257669398 | R55: 0.0119318767 | S55: 0.0119318767 | U55: 0.03626602777 | V55: -0.0295245747 | X55: 0.008169680172 | Y55: 0.009506540663 | Z55: 0.0119318767 | AA55: 0.0159431176 | AB55: 0.01907274136 | AC55: 0.02350159876 | AD55: 0.02636274796 | AE55: 0.02902007446 | AF55: 0.03257669398 | AG55: 0.03380566166 | AI55: 0 | AJ55: 0.008169680172 | AK55: 0.009506540663 | AL55: 0.0119318767 | AM55: 0.0159431176 | AN55: 0.01907274136 | AO55: 0.02350159876 | AP55: 0.02636274796 | AQ55: 0.02902007446 | AR55: 0.03257669398 | AS55: 0.03380566166 | AU55: 0.0119318767 | AV55: 0.03257669398 | AX55: 0.8453761367 | AY55: 26.59152757
B56: 30 | D56: -0.2374711188 | E56: -0.5904338099 | F56: -0.8480263986 | H56: -0.2374711188 | I56: -0.5338648794 | J56: -0.8480263986 | L56: -3.481125002 | M56: 0.03077277212 | N56: 0.01959654586 | P56: =MAX(LN(Parameters!$C$21),MIN(LN(Parameters!$C$22),(1-Beta1)*P55+Const5+Psi*(_Tau2-N55))+M56*H56) -> -3.433099574 | Q56: 0.03228671046 | R56: 0.0126901646 | S56: 0.0126901646 | U56: 0.03578871282 | V56: -0.02802542034 | X56: 0.009118999219 | Y56: 0.01038797862 | Z56: 0.0126901646 | AA56: 0.01649772876 | AB56: 0.0194684412 | AC56: 0.02367241675 | AD56: 0.02638828683 | AE56: 0.0289106836 | AF56: 0.03228671046 | AG56: 0.03345327547 | AI56: 0 | AJ56: 0.009118999219 | AK56: 0.01038797862 | AL56: 0.0126901646 | AM56: 0.01649772876 | AN56: 0.0194684412 | AO56: 0.02367241675 | AP56: 0.02638828683 | AQ56: 0.0289106836 | AR56: 0.03228671046 | AS56: 0.03345327547 | AU56: 0.0126901646 | AV56: 0.03228671046 | AX56: 0.8408754192 | AY56: 27.43240299
B57: 31 | D57: 0.5908165043 | E57: 0.1523761164 | F57: -0.7136297043 | H57: 0.5908165043 | I57: 0.03612299737 | J57: -0.7136297043 | L57: -3.565903942 | M57: 0.0282714182 | N57: 0.01934441168 | P57: =MAX(LN(Parameters!$C$21),MIN(LN(Parameters!$C$22),(1-Beta1)*P56+Const5+Psi*(_Tau2-N56))+M57*H57) -> -3.41772083 | Q57: 0.03278707718 | R57: 0.0134426655 | S57: 0.0134426655 | U57: 0.03624402188 | V57: -0.02766483809 | X57: 0.009917447648 | Y57: 0.01117010004 | Z57: 0.0134426655 | AA57: 0.01720124056 | AB57: 0.02013373105 | AC57: 0.02428361718 | AD57: 0.02696454418 | AE57: 0.02945448715 | AF57: 0.03278707718 | AG57: 0.03393863287 | AI57: 0 | AJ57: 0.009917447648 | AK57: 0.01117010004 | AL57: 0.0134426655 | AM57: 0.01720124056 | AN57: 0.02013373105 | AO57: 0.02428361718 | AP57: 0.02696454418 | AQ57: 0.02945448715 | AR57: 0.03278707718 | AS57: 0.03393863287 | AU57: 0.0134426655 | AV57: 0.03278707718 | AX57: 0.8363300316 | AY57: 28.26873302
B58: 32 | D58: 0.3031777108 | E58: 0.06974520825 | F58: 0.6060410888 | H58: 0.3031777108 | I58: 0.01024697764 | J58: 0.6060410888 | L58: -3.4956739 | M58: 0.03032830331 | N58: 0.01906768119 | P58: =MAX(LN(Parameters!$C$21),MIN(LN(Parameters!$C$22),(1-Beta1)*P57+Const5+Psi*(_Tau2-N57))+M58*H58) -> -3.409865271 | Q58: 0.03304565229 | R58: 0.0139779711 | S58: 0.0139779711 | U58: 0.03645314384 | V58: -0.02726908018 | X58: =$U58+$V58*X$21 -> 0.01050318307 | Y58: 0.0117379157 | Z58: 0.0139779711 | AA58: 0.01768277806 | AB58: 0.02057331795 | AC58: 0.0246638381 | AD58: 0.02730641323 | AE58: 0.02976073645 | AF58: 0.03304565229 | AG58: 0.03418073446 | AI58: 0 | AJ58: 0.01050318307 | AK58: 0.0117379157 | AL58: 0.0139779711 | AM58: 0.01768277806 | AN58: 0.02057331795 | AO58: 0.0246638381 | AP58: 0.02730641323 | AQ58: 0.02976073645 | AR58: 0.03304565229 | AS58: 0.03418073446 | AU58: 0.0139779711 | AV58: 0.03304565229 | AX58: 0.831773948 | AY58: 29.10050697
B59: 33 | D59: -1.871338741 | E59: 0.3511598712 | F59: -0.8543640401 | H59: -1.871338741 | I59: 0.7038694747 | J59: -0.8543640401 | L59: -3.596039706 | M59: 0.02743214697 | N59: 0.01975083364 | P59: =MAX(LN(Parameters!$C$21),MIN(LN(Parameters!$C$22),(1-Beta1)*P58+Const5+Psi*(_Tau2-N58))+M59*H59) -> -3.462509765 | Q59: 0.0313509796 | R59: 0.01160014596 | S59: 0.01160014596 | U59: 0.03488055397 | V59: -0.02824607045 | X59: 0.008000864028 | Y59: 0.009279834376 | Z59: 0.01160014596 | AA59: 0.01543768788 | AB59: 0.01843178937 | AC59: 0.02266886372 | AD59: 0.02540611642 | AE59: 0.02794837256 | AF59: 0.0313509796 | AG59: 0.03252672923 | AI59: 0 | AJ59: 0.008000864028 | AK59: 0.009279834376 | AL59: 0.01160014596 | AM59: 0.01543768788 | AN59: 0.01843178937 | AO59: 0.02266886372 | AP59: 0.02540611642 | AQ59: 0.02794837256 | AR59: 0.0313509796 | AS59: 0.03252672923 | AU59: 0.01160014596 | AV59: 0.0313509796 | AX59: 0.8274726655 | AY59: 29.92797963
B60: 34 | D60: -0.2109266257 | E60: 2.249694184 | F60: 0.3327798994 | H60: -0.2109266257 | I60: 2.248343244 | J60: 0.3327798994 | L60: -3.55599891 | M60: 0.02855283895 | N60: 0.02236412939 | P60: =MAX(LN(Parameters!$C$21),MIN(LN(Parameters!$C$22),(1-Beta1)*P59+Const5+Psi*(_Tau2-N59))+M60*H60) -> -3.469745922 | Q60: 0.03112493781 | R60: 0.008760808425 | S60: 0.008760808425 | U60: 0.03512152141 | V60: -0.03198339805 | X60: 0.004685294033 | Y60: 0.006133489024 | Z60: 0.008760808425 | AA60: 0.01310610775 | AB60: 0.01649636835 | AC60: 0.02129406351 | AD60: 0.02439349084 | AE60: 0.02727212099 | AF60: 0.03112493781 | AG60: 0.03245625462 | AI60: 0 | AJ60: 0.004685294033 | AK60: 0.006133489024 | AL60: 0.008760808425 | AM60: 0.01310610775 | AN60: 0.01649636835 | AO60: 0.02129406351 | AP60: 0.02439349084 | AQ60: 0.02727212099 | AR60: 0.03112493781 | AS60: 0.03245625462 | AU60: 0.008760808425 | AV60: 0.03112493781 | AX60: 0.8232241621 | AY60: 30.7512038
B61: 35 | D61: 0.9238923915 | E61: -0.07769570923 | F61: -1.355776565 | H61: 0.9238923915 | I61: -0.2536102532 | J61: -1.355776565 | L61: -3.711558398 | M61: 0.02443940726 | N61: 0.02165455183 | P61: =MAX(LN(Parameters!$C$21),MIN(LN(Parameters!$C$22),(1-Beta1)*P60+Const5+Psi*(_Tau2-N60))+M61*H61) -> -3.44900092 | Q61: 0.03177736864 | R61: 0.01012281681 | S61: 0.01012281681 | U61: 0.03564714713 | V61: -0.03096861669 | X61: 0.006176611886 | Y61: 0.007578857998 | Z61: 0.01012281681 | AA61: 0.01433024684 | AB61: 0.01761293997 | AC61: 0.02225841204 | AD61: 0.02525949957 | AE61: 0.02804679545 | AF61: 0.03177736864 | AG61: 0.03306644493 | AI61: 0 | AJ61: 0.006176611886 | AK61: 0.007578857998 | AL61: 0.01012281681 | AM61: 0.01433024684 | AN61: 0.01761293997 | AO61: 0.02225841204 | AP61: 0.02525949957 | AQ61: 0.02804679545 | AR61: 0.03177736864 | AS61: 0.03306644493 | AU61: 0.01012281681 | AV61: 0.03177736864 | AX61: 0.8189097989 | AY61: 31.57011359
B62: 36 | D62: -1.58700207 | E62: 0.8613613678 | F62: 0.246199532 | H62: -1.58700207 | I62: 1.149997518 | J62: 0.246199532 | L62: -3.676842917 | M62: 0.02530273169 | N62: 0.02281144286 | P62: =MAX(LN(Parameters!$C$21),MIN(LN(Parameters!$C$22),(1-Beta1)*P61+Const5+Psi*(_Tau2-N61))+M62*H62) -> -3.490917823 | Q62: 0.03047289062 | R62: 0.007661447761 | S62: 0.007661447761 | U62: 0.03454941141 | V62: -0.03262311017 | X62: 0.003504417453 | Y62: =$U62+$V62*Y$21 -> 0.004981578344 | Z62: 0.007661447761 | AA62: 0.01209365907 | AB62: 0.01555172957 | AC62: 0.02044538525 | AD62: 0.02360680541 | AE62: 0.02654301214 | AF62: 0.03047289062 | AG62: 0.0318308356 | AI62: 0 | AJ62: 0.003504417453 | AK62: 0.004981578344 | AL62: 0.007661447761 | AM62: 0.01209365907 | AN62: 0.01555172957 | AO62: 0.02044538525 | AP62: 0.02360680541 | AQ62: 0.02654301214 | AR62: 0.03047289062 | AS62: 0.0318308356 | AU62: 0.007661447761 | AV62: 0.03047289062 | AX62: 0.8147924596 | AY62: 32.38490605
B63: 37 | D63: 0.7576720385 | E63: 1.371759572 | F63: 0.09301976545 | H63: 0.7576720385 | I63: 1.200795632 | J63: 0.09301976545 | L63: -3.661115226 | M63: 0.02570383116 | N63: 0.02393087151 | P63: =MAX(LN(Parameters!$C$21),MIN(LN(Parameters!$C$22),(1-Beta1)*P62+Const5+Psi*(_Tau2-N62))+M63*H63) -> -3.473281926 | Q63: 0.03101507426 | R63: 0.007084202744 | S63: 0.007084202744 | U63: 0.03529164264 | V63: -0.03422402795 | X63: 0.002723173992 | Y63: 0.004272823776 | Z63: 0.007084202744 | AA63: 0.01173391649 | AB63: 0.01536168529 | AC63: 0.02049548792 | AD63: 0.02381204883 | AE63: 0.02689234439 | AF63: 0.03101507426 | AG63: 0.03243965783 | AI63: 0 | AJ63: 0.002723173992 | AK63: 0.004272823776 | AL63: 0.007084202744 | AM63: 0.01173391649 | AN63: 0.01536168529 | AO63: 0.02049548792 | AP63: 0.02381204883 | AQ63: 0.02689234439 | AR63: 0.03101507426 | AS63: 0.03243965783 | AU63: 0.007084202744 | AV63: 0.03101507426 | AX63: 0.8106236762 | AY63: 33.19552973
B64: 38 | D64: -0.5479101735 | E64: 1.579615703 | F64: -0.07234423473 | H64: -0.5479101735 | I64: 1.655418421 | J64: -0.07234423473 | L64: -3.66501547 | M64: 0.0256037752 | N64: 0.02563565093 | P64: =MAX(LN(Parameters!$C$21),MIN(LN(Parameters!$C$22),(1-Beta1)*P63+Const5+Psi*(_Tau2-N63))+M64*H64) -> -3.489521133 | Q64: 0.03051548154 | R64: 0.004879830607 | S64: 0.004879830607 | U64: 0.03509670267 | V64: -0.0366620678 | X64: 0.0002081323479 | Y64: 0.001868175564 | Z64: 0.004879830607 | AA64: 0.009860779102 | AB64: 0.01374698168 | AC64: 0.01924650443 | AD64: 0.0227993294 | AE64: 0.02609905802 | AF64: 0.03051548154 | AG64: 0.03204154913 | AI64: 0 | AJ64: 0.0002081323479 | AK64: 0.001868175564 | AL64: 0.004879830607 | AM64: 0.009860779102 | AN64: 0.01374698168 | AO64: 0.01924650443 | AP64: 0.0227993294 | AQ64: 0.02609905802 | AR64: 0.03051548154 | AS64: 0.03204154913 | AU64: 0.004879830607 | AV64: 0.03051548154 | AX64: 0.8065423589 | AY64: 34.00207209
B65: 39 | D65: -1.114471882 | E65: -0.2362300922 | F65: 1.190788268 | H65: -1.114471882 | I65: -0.0178912329 | J65: 1.190788268 | L65: -3.523638371 | M65: 0.02949193711 | N65: 0.02513905824 | P65: =MAX(LN(Parameters!$C$21),MIN(LN(Parameters!$C$22),(1-Beta1)*P64+Const5+Psi*(_Tau2-N64))+M65*H65) -> -3.524946038 | Q65: 0.02945339669 | R65: 0.004314338453 | S65: 0.004314338453 | U65: 0.03394587419 | V65: -0.03595188045 | X65: -0.0002668635195 | Y65: 0.001361022709 | Z65: 0.004314338453 | AA65: 0.009198800121 | AB65: 0.01300972239 | AC65: 0.01840271292 | AD65: 0.02188671549 | AE65: 0.02512252449 | AF65: 0.02945339669 | AG65: 0.03094990256 | AI65: 0 | AJ65: 0.0001 | AK65: 0.001361022709 | AL65: 0.004314338453 | AM65: 0.009198800121 | AN65: 0.01300972239 | AO65: 0.01840271292 | AP65: 0.02188671549 | AQ65: 0.02512252449 | AR65: 0.02945339669 | AS65: 0.03094990256 | AU65: 0.004314338453 | AV65: 0.02945339669 | AX65: 0.8026215548 | AY65: 34.80469364
B66: 40 | D66: -0.314049022 | E66: 0.7330997975 | F66: -0.7575560755 | H66: -0.314049022 | I66: 0.7797527144 | J66: -0.7575560755 | L66: -3.611763053 | M66: 0.02700419506 | N66: 0.02562400535 | P66: =MAX(LN(Parameters!$C$21),MIN(LN(Parameters!$C$22),(1-Beta1)*P65+Const5+Psi*(_Tau2-N65))+M66*H66) -> -3.535678374 | Q66: 0.02913898315 | R66: 0.003514977803 | S66: 0.003514977803 | U66: 0.03371812315 | V66: -0.03664541321 | X66: -0.00115459823 | Y66: 0.000504690874 | Z66: 0.003514977803 | AA66: 0.008493663587 | AB66: 0.01237810077 | AC66: 0.01787512524 | AD66: 0.02142633625 | AE66: 0.02472456589 | AF66: 0.02913898315 | AG66: 0.03066435748 | AI66: 0 | AJ66: 0.0001 | AK66: 0.000504690874 | AL66: 0.003514977803 | AM66: 0.008493663587 | AN66: 0.01237810077 | AO66: 0.01787512524 | AP66: 0.02142633625 | AQ66: 0.02472456589 | AR66: 0.02913898315 | AS66: 0.03066435748 | AU66: 0.003514977803 | AV66: 0.02913898315 | AX66: 0.7987610621 | AY66: 35.60345471
B67: 41 | D67: 0.2678483647 | E67: -0.564149939 | F67: -0.1044983721 | H67: 0.2678483647 | I67: -0.6050760489 | J67: -0.1044983721 | L67: -3.621332066 | M67: 0.02674702396 | N67: 0.02440979394 | P67: =MAX(LN(Parameters!$C$21),MIN(LN(Parameters!$C$22),(1-Beta1)*P66+Const5+Psi*(_Tau2-N66))+M67*H67) -> -3.530833327 | Q67: 0.02928050545 | R67: 0.004870711517 | S67: 0.004870711517 | U67: 0.03364265971 | V67: -0.03490894468 | X67: 0.0004224066103 | Y67: 0.002003069139 | Z67: 0.004870711517 | AA67: 0.009613478795 | AB67: 0.01331384921 | AC67: 0.01855039332 | AD67: 0.02193332772 | AE67: 0.02507526844 | AF67: 0.02928050545 | AG67: 0.03073359886 | AI67: 0 | AJ67: 0.0004224066103 | AK67: 0.002003069139 | AL67: 0.004870711517 | AM67: 0.009613478795 | AN67: 0.01331384921 | AO67: 0.01855039332 | AP67: 0.02193332772 | AQ67: 0.02507526844 | AR67: 0.02928050545 | AS67: 0.03073359886 | AU67: 0.004870711517 | AV67: 0.02928050545 | AX67: 0.7949006583 | AY67: 36.39835536
B68: 42 | D68: -0.1342211116 | E68: -0.05354975499 | F68: -0.3760769626 | H68: -0.1342211116 | I68: -0.02678734529 | J68: -0.3760769626 | L68: -3.661719887 | M68: 0.02568829376 | N68: 0.02392796475 | P68: =MAX(LN(Parameters!$C$21),MIN(LN(Parameters!$C$22),(1-Beta1)*P67+Const5+Psi*(_Tau2-N67))+M68*H68) -> -3.536319455 | Q68: 0.02912030868 | R68: 0.005192343924 | S68: 0.005192343924 | U68: 0.03339635761 | V68: -0.03421987093 | X68: 0.0008318448837 | Y68: 0.002381306439 | Z68: 0.005192343924 | AA68: 0.00984149289 | AB68: 0.01346882105 | AC68: 0.0186020001 | AD68: 0.02191815817 | AE68: 0.02499807958 | AF68: 0.02912030868 | AG68: 0.03054471922 | AI68: 0 | AJ68: 0.0008318448837 | AK68: 0.002381306439 | AL68: 0.005192343924 | AM68: 0.00984149289 | AN68: 0.01346882105 | AO68: 0.0186020001 | AP68: 0.02191815817 | AQ68: 0.02499807958 | AR68: 0.02912030868 | AS68: 0.03054471922 | AU68: 0.005192343924 | AV68: 0.02912030868 | AX68: 0.7910797289 | AY68: 37.18943509
B69: 43 | D69: -0.5856080768 | E69: 0.3306785158 | F69: -0.7209953745 | H69: -0.5856080768 | I69: 0.4369473406 | J69: -0.7209953745 | L69: -3.740119467 | M69: 0.02375126546 | N69: 0.02401830341 | P69: =MAX(LN(Parameters!$C$21),MIN(LN(Parameters!$C$22),(1-Beta1)*P68+Const5+Psi*(_Tau2-N68))+M69*H69) -> -3.552117433 | Q69: 0.02866388149 | R69: 0.004645578079 | S69: 0.004645578079 | U69: 0.0329560744 | V69: -0.03434906609 | X69: 0.000268616225 | Y69: 0.001823927684 | Z69: 0.004645578079 | AA69: 0.009312279641 | AB69: 0.01295330257 | AC69: 0.01810586165 | AD69: 0.02143453967 | AE69: 0.02452608915 | AF69: 0.02866388149 | AG69: 0.03009366981 | AI69: 0 | AJ69: 0.000268616225 | AK69: 0.001823927684 | AL69: 0.004645578079 | AM69: 0.009312279641 | AN69: 0.01295330257 | AO69: 0.01810586165 | AP69: 0.02143453967 | AQ69: 0.02452608915 | AR69: 0.02866388149 | AS69: 0.03009366981 | AU69: 0.004645578079 | AV69: 0.02866388149 | AX69: 0.7873362044 | AY69: 37.9767713
B70: 44 | D70: -0.2970934842 | E70: -1.877078499 | F70: 0.1126747498 | H70: -0.2970934842 | I70: -1.785133293 | J70: 0.1126747498 | L70: -3.71960192 | M70: 0.02424361681 | N70: 0.02145277978 | P70: =MAX(LN(Parameters!$C$21),MIN(LN(Parameters!$C$22),(1-Beta1)*P69+Const5+Psi*(_Tau2-N69))+M70*H70) -> -3.56115142 | Q70: 0.02840609853 | R70: 0.006953318745 | S70: 0.006953318745 | U70: 0.03223981932 | V70: -0.03068005837 | X70: 0.00304388363 | Y70: 0.004433063941 | Z70: 0.006953318745 | AA70: 0.01112154492 | AB70: 0.01437365068 | AC70: 0.01897583733 | AD70: 0.02194896143 | AE70: 0.02471028595 | AF70: 0.02840609853 | AG70: 0.0296831635 | AI70: 0 | AJ70: 0.00304388363 | AK70: 0.004433063941 | AL70: 0.006953318745 | AM70: 0.01112154492 | AN70: 0.01437365068 | AO70: 0.01897583733 | AP70: 0.02194896143 | AQ70: 0.02471028595 | AR70: 0.02840609853 | AS70: 0.0296831635 | AU70: 0.006953318745 | AV70: 0.02840609853 | AX70: 0.7836435889 | AY70: 38.76041489
B71: 45 | D71: -1.345793286 | E71: -0.3856359224 | F71: 0.5744633832 | H71: -1.345793286 | I71: -0.1201114635 | J71: 0.5744633832 | L71: -3.646850384 | M71: 0.0260731199 | N71: 0.02093529199 | P71: =MAX(LN(Parameters!$C$21),MIN(LN(Parameters!$C$22),(1-Beta1)*P70+Const5+Psi*(_Tau2-N70))+M71*H71) -> -3.597380244 | Q71: 0.02739539777 | R71: 0.006460105772 | S71: 0.006460105772 | U71: 0.03113664086 | V71: -0.02993998852 | X71: 0.00264497475 | Y71: 0.004000645005 | Z71: 0.006460105772 | AA71: 0.01052778525 | AB71: 0.01370144314 | AC71: 0.01819261502 | AD71: 0.02109402088 | AE71: 0.02378873624 | AF71: 0.02739539777 | AG71: 0.02864165715 | AI71: 0 | AJ71: 0.00264497475 | AK71: 0.004000645005 | AL71: 0.006460105772 | AM71: 0.01052778525 | AN71: 0.01370144314 | AO71: 0.01819261502 | AP71: 0.02109402088 | AQ71: 0.02378873624 | AR71: 0.02739539777 | AS71: 0.02864165715 | AU71: 0.006460105772 | AV71: 0.02739539777 | AX71: 0.7800978807 | AY71: 39.54051277
B72: 46 | D72: -0.9969655034 | E72: 0.3986404151 | F72: 2.158096208 | H72: -0.9969655034 | I72: 0.5826134877 | J72: 2.158096208 | L72: -3.395066062 | M72: 0.03353833849 | N72: 0.02122803782 | P72: =MAX(LN(Parameters!$C$21),MIN(LN(Parameters!$C$22),(1-Beta1)*P71+Const5+Psi*(_Tau2-N71))+M72*H72) -> -3.63164198 | Q72: 0.02647268108 | R72: 0.005244643258 | S72: 0.005244643258 | U72: 0.03026623934 | V72: -0.0303586503 | X72: 0.001376163866 | Y72: =$U72+$V72*Y$21 -> 0.002750790953 | Z72: 0.005244643258 | AA72: 0.009369202581 | AB72: 0.01258723889 | AC72: 0.01714121246 | AD72: 0.02008318975 | AE72: 0.02281558629 | AF72: 0.02647268108 | AG72: 0.02773636736 | AI72: 0 | AJ72: 0.001376163866 | AK72: 0.002750790953 | AL72: 0.005244643258 | AM72: 0.009369202581 | AN72: 0.01258723889 | AO72: 0.01714121246 | AP72: 0.02008318975 | AQ72: 0.02281558629 | AR72: 0.02647268108 | AS72: 0.02773636736 | AU72: 0.005244643258 | AV72: 0.02647268108 | AX72: 0.776686063 | AY72: 40.31719883
B73: 47 | D73: 0.6140661813 | E73: 1.180552895 | F73: -1.020671331 | H73: 0.6140661813 | I73: 1.040713264 | J73: -1.020671331 | L73: -3.518564233 | M73: 0.02964196359 | N73: 0.02198680529 | P73: =MAX(LN(Parameters!$C$21),MIN(LN(Parameters!$C$22),(1-Beta1)*P72+Const5+Psi*(_Tau2-N72))+M73*H73) -> -3.614164297 | Q73: 0.02693942918 | R73: 0.004952623897 | S73: 0.004952623897 | U73: 0.03086858305 | V73: -0.03144377915 | X73: 0.0009458709481 | Y73: 0.00236963222 | Z73: 0.004952623897 | AA73: 0.009224610007 | AB73: 0.01255767066 | AC73: 0.01727441986 | AD73: 0.02032155413 | AE73: 0.02315161649 | AF73: 0.02693942918 | AG73: 0.02824828422 | AI73: 0 | AJ73: 0.0009458709481 | AK73: 0.00236963222 | AL73: 0.004952623897 | AM73: 0.009224610007 | AN73: 0.01255767066 | AO73: 0.01727441986 | AP73: 0.02032155413 | AQ73: 0.02315161649 | AR73: 0.02693942918 | AS73: 0.02824828422 | AU73: 0.004952623897 | AV73: 0.02693942918 | AX73: 0.7732298069 | AY73: 41.09042864
B74: 48 | D74: 0.08473311163 | E74: -1.544109482 | F74: -0.1185075162 | H74: 0.08473311163 | I74: -1.531656487 | J74: -0.1185075162 | L74: -3.533471641 | M74: 0.0292033561 | N74: 0.01987435612 | P74: =MAX(LN(Parameters!$C$21),MIN(LN(Parameters!$C$22),(1-Beta1)*P73+Const5+Psi*(_Tau2-N73))+M74*H74) -> -3.612694147 | Q74: 0.02697906331 | R74: 0.007104707186 | S74: 0.007104707186 | U74: 0.03053071177 | V74: -0.02842272247 | X74: 0.003482915208 | Y74: 0.004769884287 | Z74: 0.007104707186 | AA74: 0.01096624924 | AB74: 0.01397907596 | AC74: 0.01824264914 | AD74: 0.02099702072 | AE74: 0.02355517624 | AF74: 0.02697906331 | AG74: 0.02816216612 | AI74: 0 | AJ74: 0.003482915208 | AK74: 0.004769884287 | AL74: 0.007104707186 | AM74: 0.01096624924 | AN74: 0.01397907596 | AO74: 0.01824264914 | AP74: 0.02099702072 | AQ74: 0.02355517624 | AR74: 0.02697906331 | AS74: 0.02816216612 | AU74: 0.007104707186 | AV74: 0.02697906331 | AX74: 0.7697839138 | AY74: 41.86021255
B75: 49 | D75: -0.5547677569 | E75: 1.737609335 | F75: 0.232301274 | H75: -0.5547677569 | I75: 1.811789947 | J75: 0.232301274 | L75: -3.507478182 | M75: 0.02997240415 | N75: 0.02155802481 | P75: =MAX(LN(Parameters!$C$21),MIN(LN(Parameters!$C$22),(1-Beta1)*P74+Const5+Psi*(_Tau2-N74))+M75*H75) -> -3.629802118 | Q75: 0.02652143201 | R75: 0.004963407196 | S75: 0.004963407196 | U75: 0.03037396062 | V75: -0.03083057143 | X75: 0.001034792813 | Y75: 0.002430788293 | Z75: 0.004963407196 | AA75: 0.009152082237 | AB75: 0.01242014248 | AC75: 0.01704490696 | AD75: 0.02003261689 | AE75: 0.02280748817 | AF75: 0.02652143201 | AG75: 0.02780476212 | AI75: 0 | AJ75: 0.001034792813 | AK75: 0.002430788293 | AL75: 0.004963407196 | AM75: 0.009152082237 | AN75: 0.01242014248 | AO75: 0.01704490696 | AP75: 0.02003261689 | AQ75: 0.02280748817 | AR75: 0.02652143201 | AS75: 0.02780476212 | AU75: 0.004963407196 | AV75: 0.02652143201 | AX75: 0.7664110592 | AY75: 42.62662361
B76: 50 | D76: -1.114058198 | E76: 0.2607139925 | F76: -1.573032687 | H76: -1.114058198 | I76: 0.4697306716 | J76: -1.573032687 | L76: -3.689939541 | M76: 0.02497351188 | N76: 0.02168226152 | P76: =MAX(LN(Parameters!$C$21),MIN(LN(Parameters!$C$22),(1-Beta1)*P75+Const5+Psi*(_Tau2-N75))+M76*H76) -> -3.65844091 | Q76: 0.02577266332 | R76: 0.004090401793 | S76: 0.004090401793 | U76: 0.02964739367 | V76: -0.03100824489 | X76: 0.0001391472036 | Y76: 0.001543187665 | Z76: 0.004090401793 | AA76: 0.008303215745 | AB76: 0.01159010949 | AC76: 0.01624152602 | AD76: 0.01924645382 | AE76: 0.0220373164 | AF76: 0.02577266332 | AG76: 0.02706338913 | AI76: 0 | AJ76: 0.0001391472036 | AK76: 0.001543187665 | AL76: 0.004090401793 | AM76: 0.008303215745 | AN76: 0.01159010949 | AO76: 0.01624152602 | AP76: 0.01924645382 | AQ76: 0.0220373164 | AR76: 0.02577266332 | AS76: 0.02706338913 | AU76: 0.004090401793 | AV76: 0.02577266332 | AX76: 0.763146985 | AY76: 43.38977059
B77: 51 | D77: 0.3743771936 | E77: -0.5773071991 | F77: -1.477707614 | H77: 0.3743771936 | I77: -0.6384389336 | J77: -1.477707614 | L77: -3.854148722 | M77: 0.02119163561 | N77: 0.0205981566 | P77: =MAX(LN(Parameters!$C$21),MIN(LN(Parameters!$C$22),(1-Beta1)*P76+Const5+Psi*(_Tau2-N76))+M77*H77) -> -3.651209583 | Q77: 0.02595970936 | R77: 0.00536155276 | S77: 0.00536155276 | U77: 0.02964070464 | V77: -0.0294578443 | X77: 0.001607859415 | Y77: 0.002941698381 | Z77: 0.00536155276 | AA77: 0.009363727597 | AB77: 0.01248627789 | AC77: 0.01690512534 | AD77: 0.01975980788 | AE77: 0.02241112838 | AF77: 0.02595970936 | AG77: 0.02718589937 | AI77: 0 | AJ77: 0.001607859415 | AK77: 0.002941698381 | AL77: 0.00536155276 | AM77: 0.009363727597 | AN77: 0.01248627789 | AO77: 0.01690512534 | AP77: 0.01975980788 | AQ77: 0.02241112838 | AR77: 0.02595970936 | AS77: 0.02718589937 | AU77: 0.00536155276 | AV77: 0.02595970936 | AX77: 0.7598734257 | AY77: 44.14964402
B78: 52 | D78: 0.6798609897 | E78: 0.2199241245 | F78: 0.1431023382 | H78: 0.6798609897 | I78: 0.08532079633 | J78: 0.1431023382 | L78: -3.825573039 | M78: 0.0218059363 | N78: 0.02031900352 | P78: =MAX(LN(Parameters!$C$21),MIN(LN(Parameters!$C$22),(1-Beta1)*P77+Const5+Psi*(_Tau2-N77))+M78*H78) -> -3.636850919 | Q78: 0.02633514503 | R78: 0.006016141511 | S78: 0.006016141511 | U78: 0.02996625424 | V78: -0.02905862179 | X78: 0.002313319468 | Y78: 0.003629081804 | Z78: 0.006016141511 | AA78: 0.009964077543 | AB78: 0.01304431 | AC78: 0.01740327176 | AD78: 0.02021926668 | AE78: 0.0228346556 | AF78: 0.02633514503 | AG78: 0.02754471731 | AI78: 0 | AJ78: 0.002313319468 | AK78: 0.003629081804 | AL78: 0.006016141511 | AM78: 0.009964077543 | AN78: 0.01304431 | AO78: 0.01740327176 | AP78: 0.02021926668 | AQ78: 0.0228346556 | AR78: 0.02633514503 | AS78: 0.02754471731 | AU78: 0.006016141511 | AV78: 0.02633514503 | AX78: 0.7565671775 | AY78: 44.9062112
B79: 53 | D79: -0.9645754853 | E79: 0.7518041542 | F79: 0.9450567505 | H79: -0.9645754853 | I79: 0.9229907501 | J79: 0.9450567505 | L79: -3.706004126 | M79: 0.02457552804 | N79: 0.02096660157 | P79: =MAX(LN(Parameters!$C$21),MIN(LN(Parameters!$C$22),(1-Beta1)*P78+Const5+Psi*(_Tau2-N78))+M79*H79) -> -3.661025052 | Q79: 0.02570614909 | R79: 0.00473954752 | S79: 0.00473954752 | U79: 0.02945298736 | V79: -0.02998476498 | X79: 0.0009187108146 | Y79: 0.00227640853 | Z79: 0.00473954752 | AA79: 0.008813310374 | AB79: 0.0119917146 | AC79: 0.0164896032 | AD79: 0.01939534824 | AE79: 0.02209409365 | AF79: 0.02570614909 | AG79: 0.0269542723 | AI79: 0 | AJ79: 0.0009187108146 | AK79: 0.00227640853 | AL79: 0.00473954752 | AM79: 0.008813310374 | AN79: 0.0119917146 | AO79: 0.0164896032 | AP79: 0.01939534824 | AQ79: 0.02209409365 | AR79: 0.02570614909 | AS79: 0.0269542723 | AU79: 0.00473954752 | AV79: 0.02570614909 | AX79: 0.7533532727 | AY79: 45.65956447
B80: 54 | D80: -0.5208215132 | E80: 2.300249185 | F80: 1.619338352 | H80: -0.5208215132 | I80: 2.357448483 | J80: 1.619338352 | L80: -3.513750953 | M80: 0.02978498258 | N80: 0.02309744472 | P80: =MAX(LN(Parameters!$C$21),MIN(LN(Parameters!$C$22),(1-Beta1)*P79+Const5+Psi*(_Tau2-N79))+M80*H80) -> -3.677046807 | Q80: 0.02529757324 | R80: 0.002200128515 | S80: 0.002200128515 | U80: 0.02942520402 | V80: -0.03303212728 | X80: -0.00200902118 | Y80: -0.0005133401639 | Z80: 0.002200128515 | AA80: 0.006687909334 | AB80: 0.0101893359 | AC80: 0.01514434653 | AD80: 0.01834540346 | AE80: 0.02131842332 | AF80: 0.02529757324 | AG80: 0.02667254366 | AI80: 0 | AJ80: 0.0001 | AK80: 0.0001 | AL80: 0.002200128515 | AM80: 0.006687909334 | AN80: 0.0101893359 | AO80: 0.01514434653 | AP80: 0.01834540346 | AQ80: 0.02131842332 | AR80: 0.02529757324 | AS80: 0.02667254366 | AU80: 0.002200128515 | AV80: 0.02529757324 | AX80: 0.7502034616 | AY80: 46.40976793
B81: 55 | D81: -1.241938663 | E81: 0.9076470751 | F81: -0.7883448939 | H81: -1.241938663 | I81: 1.129180526 | J81: -0.7883448939 | L81: -3.605808557 | M81: 0.0271654711 | N81: 0.0238390422 | P81: =MAX(LN(Parameters!$C$21),MIN(LN(Parameters!$C$22),(1-Beta1)*P80+Const5+Psi*(_Tau2-N80))+M81*H81) -> -3.711748407 | Q81: 0.02443476399 | R81: 0.0005957217963 | S81: 0.0005957217963 | U81: 0.02869492201 | V81: -0.03409270097 | X81: -0.003748572492 | Y81: -0.00220486914 | Z81: 0.0005957217963 | AA81: 0.005227593313 | AB81: 0.00884144137 | AC81: 0.0139555442 | AD81: 0.01725937855 | AE81: 0.02032785417 | AF81: 0.02443476399 | AG81: 0.02585388105 | AI81: 0 | AJ81: 0.0001 | AK81: 0.0001 | AL81: 0.0005957217963 | AM81: 0.005227593313 | AN81: 0.00884144137 | AO81: 0.0139555442 | AP81: 0.01725937855 | AQ81: 0.02032785417 | AR81: 0.02443476399 | AS81: 0.02585388105 | AU81: 0.0005957217963 | AV81: 0.02443476399 | AX81: 0.7471729376 | AY81: 47.15694087
B82: 56 | D82: -0.3120929946 | E82: 0.1771146152 | F82: 0.2951862709 | H82: -0.3120929946 | I82: 0.2337329162 | J82: 0.2951862709 | L82: -3.569696041 | M82: 0.02816441321 | N82: 0.02360579033 | P82: =MAX(LN(Parameters!$C$21),MIN(LN(Parameters!$C$22),(1-Beta1)*P81+Const5+Psi*(_Tau2-N81))+M82*H82) -> -3.721512058 | Q82: 0.02419735237 | R82: 0.0005915620365 | S82: 0.0005915620365 | U82: 0.02841582709 | V82: -0.03375912271 | X82: -0.003710225731 | Y82: =$U82+$V82*Y$21 -> -0.002181626663 | Z82: 0.0005915620365 | AA82: 0.005178113248 | AB82: 0.008756601797 | AC82: 0.01382066595 | AD82: 0.01709217411 | AE82: 0.02013062639 | AF82: 0.02419735237 | AG82: 0.02560258415 | AI82: 0 | AJ82: 0.0001 | AK82: 0.0001 | AL82: 0.0005915620365 | AM82: 0.005178113248 | AN82: 0.008756601797 | AO82: 0.01382066595 | AP82: 0.01709217411 | AQ82: 0.02013062639 | AR82: 0.02419735237 | AS82: 0.02560258415 | AU82: 0.0005915620365 | AV82: 0.02419735237 | AX82: 0.7441837478 | AY82: 47.90112462
B83: 57 | D83: -0.5026809753 | E83: -1.004577641 | F83: 0.6435432496 | H83: -0.5026809753 | I83: -0.889393628 | J83: 0.6435432496 | L83: -3.495005653 | M83: 0.03034857688 | N83: 0.02224725774 | P83: =MAX(LN(Parameters!$C$21),MIN(LN(Parameters!$C$22),(1-Beta1)*P82+Const5+Psi*(_Tau2-N82))+M83*H83) -> -3.737633053 | Q83: 0.02381039443 | R83: 0.001563136691 | S83: 0.001563136691 | U83: 0.02778609247 | V83: -0.03181625751 | X83: -0.002491079662 | Y83: -0.001050452724 | Z83: 0.001563136691 | AA83: 0.005885728118 | AB83: 0.009258271717 | AC83: 0.01403089483 | AD83: 0.01711412501 | AE83: 0.01997771186 | AF83: 0.02381039443 | AG83: 0.02513475397 | AI83: 0 | AJ83: 0.0001 | AK83: 0.0001 | AL83: 0.001563136691 | AM83: 0.005885728118 | AN83: 0.009258271717 | AO83: 0.01403089483 | AP83: 0.01711412501 | AQ83: 0.01997771186 | AR83: 0.02381039443 | AS83: 0.02513475397 | AU83: 0.001563136691 | AV83: 0.02381039443 | AX83: 0.7412537539 | AY83: 48.64237837
B84: 58 | D84: 0.09597815111 | E84: 0.2153683751 | F84: 0.0575966226 | H84: 0.09597815111 | I84: 0.1929377687 | J84: 0.0575966226 | L84: -3.490623036 | M84: 0.03048187496 | N84: 0.0220052234 | P84: =MAX(LN(Parameters!$C$21),MIN(LN(Parameters!$C$22),(1-Beta1)*P83+Const5+Psi*(_Tau2-N83))+M84*H84) -> -3.735148885 | Q84: 0.02386961699 | R84: 0.001864393582 | S84: 0.001864393582 | U84: 0.02780206226 | V84: -0.03147011927 | X84: -0.002145715783 | Y84: -0.0007207618412 | Z84: 0.001864393582 | AA84: 0.00613995829 | AB84: 0.009475811014 | AC84: 0.01419651138 | AD84: 0.01724619821 | AE84: 0.02007863128 | AF84: 0.02386961699 | AG84: 0.02517956844 | AI84: 0 | AJ84: 0.0001 | AK84: 0.0001 | AL84: 0.001864393582 | AM84: 0.00613995829 | AN84: 0.009475811014 | AO84: 0.01419651138 | AP84: 0.01724619821 | AQ84: 0.02007863128 | AR84: 0.02386961699 | AS84: 0.02517956844 | AU84: 0.001864393582 | AV84: 0.02386961699 | AX84: 0.7383280942 | AY84: 49.38070647
B85: 59 | D85: 0.3437797655 | E85: -0.4204278549 | F85: -1.267595813 | H85: 0.3437797655 | I85: -0.4786036323 | J85: -1.267595813 | L85: -3.638667126 | M85: 0.02628735837 | N85: 0.02110575748 | P85: =MAX(LN(Parameters!$C$21),MIN(LN(Parameters!$C$22),(1-Beta1)*P84+Const5+Psi*(_Tau2-N84))+M85*H85) -> -3.726504987 | Q85: 0.02407683781 | R85: 0.00297108033 | S85: 0.00297108033 | U85: 0.02784854396 | V85: -0.03018377469 | X85: -0.0008751153732 | Y85: 0.0004915934195 | Z85: 0.00297108033 | AA85: 0.007071880862 | AB85: 0.01027138024 | AC85: 0.01479912146 | AD85: 0.01772415201 | AE85: 0.02044080906 | AF85: 0.02407683781 | AG85: 0.02533324485 | AI85: 0 | AJ85: 0.0001 | AK85: 0.0004915934195 | AL85: 0.00297108033 | AM85: 0.007071880862 | AN85: 0.01027138024 | AO85: 0.01479912146 | AP85: 0.01772415201 | AQ85: 0.02044080906 | AR85: 0.02407683781 | AS85: 0.02533324485 | AU85: 0.00297108033 | AV85: 0.02407683781 | AX85: 0.7353888842 | AY85: 50.11609535
B86: 60 | D86: 0.4953884162 | E86: -0.1815310079 | F86: -0.2670246974 | H86: 0.4953884162 | I86: -0.2732543896 | J86: -0.2670246974 | L86: -3.665832356 | M86: 0.02558286836 | N86: 0.02043314093 | P86: =MAX(LN(Parameters!$C$21),MIN(LN(Parameters!$C$22),(1-Beta1)*P85+Const5+Psi*(_Tau2-N85))+M86*H86) -> -3.714042351 | Q86: 0.02437877625 | R86: 0.003945635325 | S86: 0.003945635325 | U86: 0.0280302824 | V86: -0.02922185202 | X86: 0.0002220135166 | Y86: 0.00154516685 | Z86: 0.003945635325 | AA86: 0.007915747994 | AB86: 0.01101328296 | AC86: 0.0153967302 | AD86: 0.01822854334 | AE86: 0.02085862361 | AF86: 0.02437877625 | AG86: 0.02559514302 | AI86: 0 | AJ86: 0.0002220135166 | AK86: 0.00154516685 | AL86: 0.003945635325 | AM86: 0.007915747994 | AN86: 0.01101328296 | AO86: 0.0153967302 | AP86: 0.01822854334 | AQ86: 0.02085862361 | AR86: 0.02437877625 | AS86: 0.02559514302 | AU86: 0.003945635325 | AV86: 0.02437877625 | AX86: 0.7324249573 | AY86: 50.84852031
B87: 61 | D87: -1.974201165 | E87: 1.504246819 | F87: -0.5157910296 | H87: -1.974201165 | I87: 1.855256421 | J87: -0.5157910296 | L87: -3.72049147 | M87: 0.0242220605 | N87: 0.02193007178 | P87: =MAX(LN(Parameters!$C$21),MIN(LN(Parameters!$C$22),(1-Beta1)*P86+Const5+Psi*(_Tau2-N86))+M87*H87) -> -3.761966569 | Q87: 0.02323799629 | R87: 0.001307924509 | S87: 0.001307924509 | U87: 0.02715701159 | V87: -0.0313626434 | X87: -0.002688489642 | Y87: -0.001268402163 | Z87: 0.001307924509 | AA87: 0.005568887428 | AB87: 0.00889334764 | AC87: 0.013597926 | AD87: 0.01663719763 | AE87: 0.01945995745 | AF87: 0.02323799629 | AG87: 0.02454347403 | AI87: 0 | AJ87: 0.0001 | AK87: 0.0001 | AL87: 0.001307924509 | AM87: 0.005568887428 | AN87: 0.00889334764 | AO87: 0.013597926 | AP87: 0.01663719763 | AQ87: 0.01945995745 | AR87: 0.02323799629 | AS87: 0.02454347403 | AU87: 0.001307924509 | AV87: 0.02323799629 | AX87: 0.7296100521 | AY87: 51.57813036
B88: 62 | D88: 0.03653900213 | E88: -0.3938420942 | F88: -0.191883868 | H88: 0.03653900213 | I88: -0.3935313363 | J88: -0.191883868 | L88: -3.735749979 | M88: 0.02385527341 | N88: 0.02112180159 | P88: =MAX(LN(Parameters!$C$21),MIN(LN(Parameters!$C$22),(1-Beta1)*P87+Const5+Psi*(_Tau2-N87))+M88*H88) -> -3.761332673 | Q88: 0.02325273144 | R88: 0.002130929851 | S88: 0.002130929851 | U88: 0.02702730475 | V88: -0.0302067197 | X88: -0.001718189642 | Y88: -0.000350441909 | Z88: 0.002130929851 | AA88: 0.006234847716 | AB88: 0.009436779279 | AC88: 0.01396796238 | AD88: 0.01689521647 | AE88: 0.01961393867 | AF88: 0.02325273144 | AG88: 0.02451009357 | AI88: 0 | AJ88: 0.0001 | AK88: 0.0001 | AL88: 0.002130929851 | AM88: 0.006234847716 | AN88: 0.009436779279 | AO88: 0.01396796238 | AP88: 0.01689521647 | AQ88: 0.01961393867 | AR88: 0.02325273144 | AS88: 0.02451009357 | AU88: 0.002130929851 | AV88: 0.02325273144 | AX88: 0.726804201 | AY88: 52.30493456
B89: 63 | D89: 1.128105943 | E89: 0.3494676152 | F89: 1.140932333 | H89: 1.128105943 | I89: 0.1264052972 | J89: 1.140932333 | L89: -3.597270741 | M89: 0.02739839781 | N89: 0.0208366107 | P89: =MAX(LN(Parameters!$C$21),MIN(LN(Parameters!$C$22),(1-Beta1)*P88+Const5+Psi*(_Tau2-N88))+M89*H89) -> -3.730461962 | Q89: 0.02398175462 | R89: 0.003145143918 | S89: 0.003145143918 | U89: 0.02770536287 | V89: -0.02979886239 | X89: -0.0006520039756 | Y89: 0.0006972761476 | Z89: 0.003145143918 | AA89: 0.007193649844 | AB89: 0.01035234827 | AC89: 0.01482235041 | AD89: 0.01771008012 | AE89: 0.02039209357 | AF89: 0.02398175462 | AG89: 0.02522213959 | AI89: 0 | AJ89: 0.0001 | AK89: 0.0006972761476 | AL89: 0.003145143918 | AM89: 0.007193649844 | AN89: 0.01035234827 | AO89: 0.01482235041 | AP89: 0.01771008012 | AQ89: 0.02039209357 | AR89: 0.02398175462 | AS89: 0.02522213959 | AU89: 0.003145143918 | AV89: 0.02398175462 | AX89: 0.7239222023 | AY89: 53.02885676
B90: 64 | D90: 0.2017350029 | E90: -1.512720764 | F90: 1.157470593 | H90: 0.2017350029 | I90: -1.523312428 | J90: 1.157470593 | L90: -3.462431977 | M90: 0.03135341842 | N90: 0.01892799536 | P90: =MAX(LN(Parameters!$C$21),MIN(LN(Parameters!$C$22),(1-Beta1)*P89+Const5+Psi*(_Tau2-N89))+M90*H90) -> -3.724259831 | Q90: 0.0241309548 | R90: 0.005202959437 | S90: =IF(R90<Minr2,Minr2,R90) -> 0.005202959437 | U90: 0.02751348378 | V90: -0.02706931262 | X90: 0.001753626974 | Y90: 0.002979314217 | Z90: 0.005202959437 | AA90: 0.008880625757 | AB90: 0.01174999017 | AC90: 0.01581054402 | AD90: 0.0184337602 | AE90: 0.02087010357 | AF90: 0.0241309548 | AG90: 0.02525772159 | AI90: 0 | AJ90: 0.001753626974 | AK90: =MAX(0.0001,Y90-$AI90*Y$18) -> 0.002979314217 | AL90: =MAX(0.0001,Z90-$AI90*Z$18) -> 0.005202959437 | AM90: =MAX(0.0001,AA90-$AI90*AA$18) -> 0.008880625757 | AN90: =MAX(0.0001,AB90-$AI90*AB$18) -> 0.01174999017 | AO90: =MAX(0.0001,AC90-$AI90*AC$18) -> 0.01581054402 | AP90: =MAX(0.0001,AD90-$AI90*AD$18) -> 0.0184337602 | AQ90: =MAX(0.0001,AE90-$AI90*AE$18) -> 0.02087010357 | AR90: =MAX(0.0001,AF90-$AI90*AF$18) -> 0.0241309548 | AS90: =MAX(0.0001,AG90-$AI90*AG$18) -> 0.02525772159 | AU90: 0.005202959437 | AV90: 0.0241309548 | AX90: 0.7210339148 | AY90: 53.74989068
B91: 65 | D91: 0.5441207354 | E91: -0.7697574039 | F91: 1.104146814 | H91: 0.5441207354 | I91: =D91*Correl12+E91*Const1 -> -0.8598953852 | J91: =D91* Correl13+E91*Const2+F91*Const3 -> 1.104146814 | L91: =(1-Beta3)*L90+Const4+Sigma3*J91 -> -3.339114481 | M91: =EXP(L91) -> 0.03546835171 | N91: =(1-Beta2)*N90+Beta2*_Tau2+Phi*(P90-LN(_Tau1))+Sigma2*I91*Q90^Theta -> 0.01772648787 | P91: =MAX(LN(Parameters!$C$21),MIN(LN(Parameters!$C$22),(1-Beta1)*P90+Const5+Psi*(_Tau2-N90))+M91*H91) -> -3.704635002 | Q91: =EXP(P91) -> 0.02460919804 | R91: =Q91-N91 -> 0.006882710169 | S91: 0.006882710169 | U91: =S91-V91*$Z$21 -> 0.02777701153 | V91: =(S91-Q91)/($Z$21-$AF$21) -> -0.02535101223 | X91: 0.003652333739 | Y91: 0.004800217053 | Z91: 0.006882710169 | AA91: 0.01032692632 | AB91: 0.0130141498 | AC91: 0.01681694863 | AD91: 0.01927364882 | AE91: 0.02155533847 | AF91: 0.02460919804 | AG91: 0.02566444016 | AI91: 0 | AJ91: =MAX(0.0001,X91-$AI91*X$18) -> 0.003652333739 | AK91: 0.004800217053 | AL91: 0.006882710169 | AM91: 0.01032692632 | AN91: 0.0130141498 | AO91: 0.01681694863 | AP91: 0.01927364882 | AQ91: 0.02155533847 | AR91: 0.02460919804 | AS91: 0.02566444016 | AU91: =AL91 -> 0.006882710169 | AV91: =AR91 -> 0.02460919804 | AX91: 0.7181005999 | AY91: 54.46799128
B92: 66 | D92: 0.1575177529 | E92: -0.2722510178 | F92: 1.631569396 | H92: =D92 -> 0.1575177529 | I92: -0.2974260482 | J92: 1.631569396 | L92: -3.160135338 | M92: 0.04241999966 | N92: 0.01711827044 | P92: =MAX(LN(Parameters!$C$21),MIN(LN(Parameters!$C$22),(1-Beta1)*P91+Const5+Psi*(_Tau2-N91))+M92*H92) -> -3.697424878 | Q92: 0.02478727461 | R92: 0.007669004171 | S92: 0.007669004171 | U92: 0.02784639656 | V92: -0.02448118806 | X92: =$U92+$V92*X$21 -> 0.004549465899 | Y92: =$U92+$V92*Y$21 -> 0.005657963936 | Z92: 0.007669004171 | AA92: 0.01099504507 | AB92: 0.01359006662 | AC92: 0.01726238678 | AD92: 0.0196347946 | AE92: 0.02183819669 | AF92: 0.02478727461 | AG92: 0.02580631008 | AI92: 0 | AJ92: 0.004549465899 | AK92: 0.005657963936 | AL92: 0.007669004171 | AM92: 0.01099504507 | AN92: 0.01359006662 | AO92: 0.01726238678 | AP92: 0.0196347946 | AQ92: 0.02183819669 | AR92: 0.02478727461 | AS92: 0.02580631008 | AU92: 0.007669004171 | AV92: 0.02478727461 | AX92: =AX91*(1+AV92/2)^-0.33333333 -> 0.7151582515 | AY92: 55.18314953
B93: =B92+1 -> 67 | D93: 1.040760024 | E93: 0.7526024982 | F93: 0.3787953013 | H93: 1.040760024 | I93: 0.5388099878 | J93: 0.3787953013 | L93: -3.132248366 | M93: 0.04361961408 | N93: 0.01738542665 | P93: =MAX(LN(Parameters!$C$21),MIN(LN(Parameters!$C$22),(1-Beta1)*P92+Const5+Psi*(_Tau2-N92))+M93*H93) -> -3.651382754 | Q93: 0.02595521427 | R93: 0.008569787622 | S93: 0.008569787622 | U93: 0.02906207839 | V93: -0.02486325361 | X93: 0.005401564291 | Y93: 0.006527362097 | Z93: 0.008569787622 | AA93: 0.01194773636 | AB93: 0.01458325711 | AC93: 0.01831288932 | AD93: 0.0207223221 | AE93: 0.02296011158 | AF93: 0.02595521427 | AG93: 0.02699015332 | AI93: 0 | AJ93: 0.005401564291 | AK93: 0.006527362097 | AL93: 0.008569787622 | AM93: 0.01194773636 | AN93: 0.01458325711 | AO93: 0.01831288932 | AP93: 0.0207223221 | AQ93: 0.02296011158 | AR93: 0.02595521427 | AS93: 0.02699015332 | AU93: 0.008569787622 | AV93: 0.02595521427 | AX93: 0.712091069 | AY93: =AY92+AX93 -> 55.8952406
B94: 68 | D94: -0.06981540257 | E94: 2.480612104 | F94: -1.077387859 | H94: -0.06981540257 | I94: 2.447877152 | J94: -1.077387859 | L94: -3.272778034 | M94: 0.03790099043 | N94: 0.01973606566 | P94: =MAX(LN(Parameters!$C$21),MIN(LN(Parameters!$C$22),(1-Beta1)*P93+Const5+Psi*(_Tau2-N93))+M94*H94) -> -3.653685836 | Q94: 0.02589550608 | R94: 0.006159440426 | S94: 0.006159440426 | U94: 0.02942244134 | V94: -0.02822495045 | X94: 0.002562849732 | Y94: 0.003840863776 | Z94: 0.006159440426 | AA94: 0.00999411296 | AB94: 0.01298597572 | AC94: 0.01721988194 | AD94: 0.01995508796 | AE94: 0.02249544322 | AF94: 0.02589550608 | AG94: 0.02707037658 | AI94: 0 | AJ94: 0.002562849732 | AK94: 0.003840863776 | AL94: 0.006159440426 | AM94: 0.00999411296 | AN94: 0.01298597572 | AO94: 0.01721988194 | AP94: 0.01995508796 | AQ94: 0.02249544322 | AR94: 0.02589550608 | AS94: 0.02707037658 | AU94: 0.006159440426 | AV94: 0.02589550608 | AX94: 0.7090440067 | AY94: 56.6042846
B95: 69 | D95: -1.196336817 | E95: -0.620680435 | F95: -1.421724336 | H95: -1.196336817 | I95: -0.3794754931 | J95: -1.421724336 | L95: -3.447245929 | M95: 0.03183318662 | N95: 0.01898007836 | P95: =MAX(LN(Parameters!$C$21),MIN(LN(Parameters!$C$22),(1-Beta1)*P94+Const5+Psi*(_Tau2-N94))+M95*H95) -> -3.692005849 | Q95: 0.02492196217 | R95: 0.005941883806 | S95: 0.005941883806 | U95: 0.02831379865 | V95: -0.02714379758 | X95: 0.002483060026 | Y95: 0.003712119917 | Z95: 0.005941883806 | AA95: 0.009629669734 | AB95: 0.0125069296 | AC95: 0.01657865663 | AD95: 0.01920909095 | AE95: 0.02165213825 | AF95: 0.02492196217 | AG95: 0.02605182942 | AI95: 0 | AJ95: 0.002483060026 | AK95: 0.003712119917 | AL95: 0.005941883806 | AM95: 0.009629669734 | AN95: 0.0125069296 | AO95: 0.01657865663 | AP95: 0.01920909095 | AQ95: 0.02165213825 | AR95: 0.02492196217 | AS95: 0.02605182942 | AU95: 0.005941883806 | AV95: 0.02492196217 | AX95: 0.7061231102 | AY95: 57.31040772
B96: 70 | D96: 2.384498366 | E96: -0.2640588613 | F96: 0.948709009 | H96: 2.384498366 | I96: -0.7168997275 | J96: 0.948709009 | L96: -3.342394276 | M96: 0.03535221335 | N96: 0.01790323285 | P96: =MAX(LN(Parameters!$C$21),MIN(LN(Parameters!$C$22),(1-Beta1)*P95+Const5+Psi*(_Tau2-N95))+M96*H96) -> -3.60756007 | Q96: 0.02711793208 | R96: 0.009214699232 | S96: 0.009214699232 | U96: 0.03031733079 | V96: -0.02560377883 | X96: 0.005952113782 | Y96: 0.007111442263 | Z96: 0.009214699232 | AA96: 0.01269325653 | AB96: 0.01540727343 | AC96: 0.01924798871 | AD96: 0.02172918385 | AE96: 0.02403362348 | AF96: 0.02711793208 | AG96: 0.02818369567 | AI96: 0 | AJ96: 0.005952113782 | AK96: 0.007111442263 | AL96: 0.009214699232 | AM96: 0.01269325653 | AN96: 0.01540727343 | AO96: 0.01924798871 | AP96: 0.02172918385 | AQ96: 0.02403362348 | AR96: 0.02711793208 | AS96: 0.02818369567 | AU96: 0.009214699232 | AV96: 0.02711793208 | AX96: 0.7029602247 | AY96: 58.01336794
B97: 71 | D97: 0.4592957832 | E97: 0.334597718 | F97: 1.185376715 | H97: 0.4592957832 | I97: 0.2402034547 | J97: 1.185376715 | L97: -3.214546985 | M97: 0.0401735289 | N97: 0.01788348749 | P97: =MAX(LN(Parameters!$C$21),MIN(LN(Parameters!$C$22),(1-Beta1)*P96+Const5+Psi*(_Tau2-N96))+M97*H97) -> -3.589118904 | Q97: 0.02762265792 | R97: 0.009739170431 | S97: 0.009739170431 | U97: 0.03081852804 | V97: -0.02557554059 | X97: 0.006480183265 | Y97: 0.00763823313 | Z97: 0.009739170431 | AA97: 0.01321389125 | AB97: 0.01592491488 | AC97: 0.01976139426 | AD97: 0.02223985291 | AE97: 0.02454175099 | AF97: 0.02762265792 | AG97: 0.02868724609 | AI97: 0 | AJ97: 0.006480183265 | AK97: 0.00763823313 | AL97: 0.009739170431 | AM97: 0.01321389125 | AN97: 0.01592491488 | AO97: 0.01976139426 | AP97: 0.02223985291 | AQ97: 0.02454175099 | AR97: 0.02762265792 | AS97: 0.02868724609 | AU97: 0.009739170431 | AV97: 0.02762265792 | AX97: 0.6997534348 | AY97: 58.71312137
B98: 72 | D98: -1.869961069 | E98: -3.45380548 | F98: 1.63703971 | H98: -1.869961069 | I98: -3.030591015 | J98: 1.63703971 | L98: -3.039923303 | M98: 0.04783855843 | N98: 0.01412535287 | P98: =MAX(LN(Parameters!$C$21),MIN(LN(Parameters!$C$22),(1-Beta1)*P97+Const5+Psi*(_Tau2-N97))+M98*H98) -> -3.678674409 | Q98: 0.02525643235 | R98: 0.01113107948 | S98: 0.01113107948 | U98: 0.02778070471 | V98: -0.02020095554 | X98: 0.008556953836 | Y98: 0.00947164472 | Z98: 0.01113107948 | AA98: 0.01387560332 | AB98: 0.0160169175 | AC98: 0.01904717796 | AD98: 0.02100479965 | AE98: 0.02282296418 | AF98: 0.02525643235 | AG98: 0.02609730209 | AI98: 0 | AJ98: 0.008556953836 | AK98: 0.00947164472 | AL98: 0.01113107948 | AM98: 0.01387560332 | AN98: 0.0160169175 | AO98: 0.01904717796 | AP98: 0.02100479965 | AQ98: 0.02282296418 | AR98: 0.02525643235 | AS98: 0.02609730209 | AU98: 0.01113107948 | AV98: 0.02525643235 | AX98: 0.6968324459 | AY98: 59.40995382
B99: 73 | D99: -0.1327111111 | E99: 0.2214495239 | F99: -0.04561116871 | H99: -0.1327111111 | I99: 0.2428072907 | J99: -0.04561116871 | L99: -3.065606074 | M99: 0.04662557477 | N99: 0.01417700129 | P99: =MAX(LN(Parameters!$C$21),MIN(LN(Parameters!$C$22),(1-Beta1)*P98+Const5+Psi*(_Tau2-N98))+M99*H99) -> -3.68355987 | Q99: 0.02513334395 | R99: 0.01095634267 | S99: 0.01095634267 | U99: 0.02766684615 | V99: -0.02027481899 | X99: 0.008372804907 | Y99: 0.009290840298 | Z99: 0.01095634267 | AA99: 0.01371090168 | AB99: 0.01586004543 | AC99: 0.01890138584 | AD99: 0.02086616544 | AE99: 0.02269097797 | AF99: 0.02513334395 | AG99: 0.02597728828 | AI99: 0 | AJ99: 0.008372804907 | AK99: 0.009290840298 | AL99: 0.01095634267 | AM99: 0.01371090168 | AN99: 0.01586004543 | AO99: 0.01890138584 | AP99: 0.02086616544 | AQ99: 0.02269097797 | AR99: 0.02513334395 | AS99: 0.02597728828 | AU99: 0.01095634267 | AV99: 0.02513334395 | AX99: 0.6939377088 | AY99: 60.10389153
B100: 74 | D100: -0.6958504277 | E100: 0.5411444868 | F100: 0.8034509286 | H100: -0.6958504277 | I100: 0.6646620358 | J100: 0.8034509286 | L100: -2.992712532 | M100: 0.05015121527 | N100: 0.01466484284 | P100: =MAX(LN(Parameters!$C$21),MIN(LN(Parameters!$C$22),(1-Beta1)*P99+Const5+Psi*(_Tau2-N99))+M100*H100) -> -3.717143473 | Q100: 0.02430329178 | R100: 0.009638448944 | S100: 0.009638448944 | U100: 0.02692397374 | V100: -0.02097249116 | X100: 0.006966009654 | Y100: 0.007915635351 | Z100: 0.009638448944 | AA100: 0.01248779445 | AB100: 0.0147108919 | AC100: 0.01785688718 | AD100: 0.01988927637 | AE100: 0.0217768821 | AF100: 0.02430329178 | AG100: 0.02517627688 | AI100: 0 | AJ100: 0.006966009654 | AK100: 0.007915635351 | AL100: 0.009638448944 | AM100: 0.01248779445 | AN100: 0.0147108919 | AO100: 0.01785688718 | AP100: 0.01988927637 | AQ100: 0.0217768821 | AR100: 0.02430329178 | AS100: 0.02517627688 | AU100: 0.009638448944 | AV100: 0.02430329178 | AX100: 0.6911494381 | AY100: 60.79504097
B101: 75 | D101: 0.1505187687 | E101: -0.1705739495 | F101: 1.805538233 | H101: 0.1505187687 | I101: -0.1962964976 | J101: 1.805538233 | L101: -2.807605651 | M101: 0.06034931686 | N101: 0.01424205167 | P101: =MAX(LN(Parameters!$C$21),MIN(LN(Parameters!$C$22),(1-Beta1)*P100+Const5+Psi*(_Tau2-N100))+M101*H101) -> -3.706697447 | Q101: 0.02455849522 | R101: 0.01031644354 | S101: 0.01031644354 | U101: 0.02710362224 | V101: -0.02036784888 | X101: 0.007721051359 | Y101: 0.008643299104 | Z101: 0.01031644354 | AA101: 0.01308364169 | AB101: 0.01524264667 | AC101: 0.0182979421 | AD101: 0.02027173699 | AE101: 0.02210492257 | AF101: 0.02455849522 | AG101: 0.02540631193 | AI101: 0 | AJ101: 0.007721051359 | AK101: 0.008643299104 | AL101: 0.01031644354 | AM101: 0.01308364169 | AN101: 0.01524264667 | AO101: 0.0182979421 | AP101: 0.02027173699 | AQ101: 0.02210492257 | AR101: 0.02455849522 | AS101: 0.02540631193 | AU101: 0.01031644354 | AV101: 0.02455849522 | AX101: 0.6883434456 | AY101: 61.48338441
B102: 76 | D102: -0.7320233748 | E102: -0.3158630078 | F102: 0.8513671534 | H102: -0.7320233748 | I102: -0.1694616795 | J102: 0.8513671534 | L102: -2.739529612 | M102: 0.06460072718 | N102: 0.01385795996 | P102: =MAX(LN(Parameters!$C$21),MIN(LN(Parameters!$C$22),(1-Beta1)*P101+Const5+Psi*(_Tau2-N101))+M102*H102) -> -3.752571147 | Q102: 0.02345735593 | R102: 0.009599395975 | S102: 0.009599395975 | U102: 0.02593384382 | V102: -0.01981855147 | X102: 0.007073998529 | Y102: =$U102+$V102*Y$21 -> 0.007971374315 | Z102: 0.009599395975 | AA102: 0.01229196598 | AB102: 0.01439274508 | AC102: 0.01736564272 | AD102: 0.01928620663 | AE102: 0.02106995331 | AF102: 0.02345735593 | AG102: 0.02428230801 | AI102: 0 | AJ102: 0.007073998529 | AK102: 0.007971374315 | AL102: 0.009599395975 | AM102: 0.01229196598 | AN102: 0.01439274508 | AO102: 0.01736564272 | AP102: 0.01928620663 | AQ102: 0.02106995331 | AR102: 0.02345735593 | AS102: 0.02428230801 | AU102: 0.009599395975 | AV102: 0.02345735593 | AX102: 0.6856731782 | AY102: 62.16905759
B103: 77 | D103: -0.4770594122 | E103: -0.7755954546 | F103: 0.9367578292 | H103: -0.4770594122 | I103: -0.6695888999 | J103: 0.9367578292 | L103: -2.66436676 | M103: 0.06964344061 | N103: 0.01299611722 | P103: =MAX(LN(Parameters!$C$21),MIN(LN(Parameters!$C$22),(1-Beta1)*P102+Const5+Psi*(_Tau2-N102))+M103*H103) -> -3.784049514 | Q103: 0.02273045749 | R103: 0.009734340271 | S103: 0.009734340271 | U103: 0.0250529297 | V103: -0.01858601258 | X103: 0.007366000245 | Y103: 0.008207567182 | Z103: 0.009734340271 | AA103: 0.0122594562 | AB103: 0.01422958539 | AC103: 0.01701759505 | AD103: 0.01881871685 | AE103: 0.02049153023 | AF103: 0.02273045749 | AG103: 0.02350410483 | AI103: 0 | AJ103: 0.007366000245 | AK103: 0.008207567182 | AL103: 0.009734340271 | AM103: 0.0122594562 | AN103: 0.01422958539 | AO103: 0.01701759505 | AP103: 0.01881871685 | AQ103: 0.02049153023 | AR103: 0.02273045749 | AS103: 0.02350410483 | AU103: 0.009734340271 | AV103: 0.02273045749 | AX103: 0.6830950767 | AY103: 62.85215267
B104: 78 | D104: 0.7014830965 | E104: -0.5392844058 | F104: 1.390341911 | H104: 0.7014830965 | I104: -0.6639178543 | J104: 1.390341911 | L104: -2.540098898 | M104: 0.07885860042 | N104: 0.01217665556 | P104: =MAX(LN(Parameters!$C$21),MIN(LN(Parameters!$C$22),(1-Beta1)*P103+Const5+Psi*(_Tau2-N103))+M104*H104) -> -3.726608748 | Q104: 0.02407433972 | R104: 0.01189768416 | S104: 0.01189768416 | U104: 0.02625036996 | V104: -0.01741408373 | X104: 0.009678678259 | Y104: 0.01046718074 | Z104: 0.01189768416 | AA104: 0.01426358055 | AB104: 0.01610948454 | AC104: 0.01872169807 | AD104: 0.02040925132 | AE104: 0.02197658655 | AF104: 0.02407433972 | AG104: 0.02479920523 | AI104: 0 | AJ104: 0.009678678259 | AK104: 0.01046718074 | AL104: 0.01189768416 | AM104: 0.01426358055 | AN104: 0.01610948454 | AO104: 0.01872169807 | AP104: 0.02040925132 | AQ104: 0.02197658655 | AR104: 0.02407433972 | AS104: 0.02479920523 | AU104: 0.01189768416 | AV104: 0.02407433972 | AX104: 0.6803760237 | AY104: 63.53252869
B105: 79 | D105: -1.794611436 | E105: 0.05082669475 | F105: -1.013032814 | H105: -1.794611436 | I105: 0.394392916 | J105: -1.013032814 | L105: -2.696926716 | M105: 0.06741237206 | N105: 0.01241050796 | P105: =MAX(LN(Parameters!$C$21),MIN(LN(Parameters!$C$22),(1-Beta1)*P104+Const5+Psi*(_Tau2-N104))+M105*H105) -> -3.845551135 | Q105: 0.02137461802 | R105: 0.008964110057 | S105: 0.008964110057 | U105: 0.02359243888 | V105: -0.01774852083 | X105: 0.006702488201 | Y105: 0.007506133858 | Z105: 0.008964110057 | AA105: 0.01137544344 | AB105: 0.01325679798 | AC105: 0.01591917901 | AD105: 0.01763914168 | AE105: 0.01923657755 | AF105: 0.02137461802 | AG105: 0.02211340456 | AI105: 0 | AJ105: 0.006702488201 | AK105: 0.007506133858 | AL105: 0.008964110057 | AM105: 0.01137544344 | AN105: 0.01325679798 | AO105: 0.01591917901 | AP105: 0.01763914168 | AQ105: 0.01923657755 | AR105: 0.02137461802 | AS105: 0.02211340456 | AU105: 0.008964110057 | AV105: 0.02137461802 | AX105: 0.6779693544 | AY105: 64.21049805
B106: 80 | D106: 0.4128452017 | E106: 0.1740248641 | F106: -1.379045675 | H106: 0.4128452017 | I106: 0.09153424646 | J106: -1.379045675 | L106: -2.889531071 | M106: 0.05560228004 | N106: 0.01230160678 | P106: =MAX(LN(Parameters!$C$21),MIN(LN(Parameters!$C$22),(1-Beta1)*P105+Const5+Psi*(_Tau2-N105))+M106*H106) -> -3.820012803 | Q106: 0.02192752015 | R106: 0.009625913373 | S106: 0.009625913373 | U106: 0.02412587982 | V106: -0.01759277902 | X106: 0.007384137063 | Y106: 0.008180730796 | Z106: 0.009625913373 | AA106: 0.01201608751 | AB106: 0.01388093331 | AC106: 0.01651995217 | AD106: 0.01822482231 | AE106: 0.01980824081 | AF106: 0.02192752015 | AG106: 0.02265982391 | AI106: 0 | AJ106: 0.007384137063 | AK106: 0.008180730796 | AL106: 0.009625913373 | AM106: 0.01201608751 | AN106: 0.01388093331 | AO106: 0.01651995217 | AP106: 0.01822482231 | AQ106: 0.01980824081 | AR106: 0.02192752015 | AS106: 0.02265982391 | AU106: 0.009625913373 | AV106: 0.02192752015 | AX106: 0.6755096135 | AY106: 64.88600766
B107: 81 | D107: 0.3512559904 | E107: 1.019512242 | F107: -1.617888855 | H107: 0.3512559904 | I107: 0.9331195116 | J107: -1.617888855 | L107: -3.101870018 | M107: 0.0449650383 | N107: 0.01296830339 | P107: =MAX(LN(Parameters!$C$21),MIN(LN(Parameters!$C$22),(1-Beta1)*P106+Const5+Psi*(_Tau2-N106))+M107*H107) -> -3.801737953 | Q107: 0.02233192627 | R107: 0.009363622876 | S107: 0.009363622876 | U107: 0.02464942801 | V107: -0.01854623546 | X107: 0.007000351487 | Y107: 0.007840117333 | Z107: 0.009363622876 | AA107: 0.01188333464 | AB107: 0.01384924743 | AC107: 0.01663129029 | AD107: 0.01842855739 | AE107: 0.02009779068 | AF107: 0.02233192627 | AG107: 0.02310391788 | AI107: 0 | AJ107: 0.007000351487 | AK107: 0.007840117333 | AL107: 0.009363622876 | AM107: 0.01188333464 | AN107: 0.01384924743 | AO107: 0.01663129029 | AP107: 0.01842855739 | AQ107: 0.02009779068 | AR107: 0.02233192627 | AS107: 0.02310391788 | AU107: 0.009363622876 | AV107: 0.02233192627 | AX107: 0.67301393 | AY107: 65.55902159
B108: 82 | D108: 1.224418907 | E108: -1.284315848 | F108: -0.07107173632 | H108: 1.224418907 | I108: -1.495480291 | J108: -0.07107173632 | L108: -3.127999465 | M108: 0.04380534377 | N108: 0.0113867263 | P108: =MAX(LN(Parameters!$C$21),MIN(LN(Parameters!$C$22),(1-Beta1)*P107+Const5+Psi*(_Tau2-N107))+M108*H108) -> -3.745882038 | Q108: 0.02361479073 | R108: 0.01222806442 | S108: 0.01222806442 | U108: 0.0256496566 | V108: -0.01628438977 | X108: 0.01015301083 | Y108: 0.01089036125 | Z108: 0.01222806442 | AA108: 0.01444047937 | AB108: 0.01616663507 | AC108: 0.01860938796 | AD108: 0.02018746552 | AE108: 0.0216531239 | AF108: 0.02361479073 | AG108: 0.02429263245 | AI108: 0 | AJ108: 0.01015301083 | AK108: 0.01089036125 | AL108: 0.01222806442 | AM108: 0.01444047937 | AN108: 0.01616663507 | AO108: 0.01860938796 | AP108: 0.02018746552 | AQ108: 0.0216531239 | AR108: 0.02361479073 | AS108: 0.02429263245 | AU108: 0.01222806442 | AV108: 0.02361479073 | AX108: 0.6703857438 | AY108: 66.22940733
B109: 83 | D109: 0.3055422236 | E109: 1.538088129 | F109: 0.2728309776 | H109: 0.3055422236 | I109: 1.450825971 | J109: 0.2728309776 | L109: -3.11357249 | M109: 0.04444190313 | N109: 0.01266523574 | P109: =MAX(LN(Parameters!$C$21),MIN(LN(Parameters!$C$22),(1-Beta1)*P108+Const5+Psi*(_Tau2-N108))+M109*H109) -> -3.729969654 | Q109: 0.02399356394 | R109: 0.0113283282 | S109: 0.0113283282 | U109: 0.02625690594 | V109: -0.01811281221 | X109: 0.009020286175 | Y109: 0.009840426796 | Z109: 0.0113283282 | AA109: 0.01378915461 | AB109: 0.01570912427 | AC109: 0.01842615112 | AD109: 0.02018141631 | AE109: 0.02181163982 | AF109: 0.02399356394 | AG109: 0.0247475142 | AI109: 0 | AJ109: 0.009020286175 | AK109: 0.009840426796 | AL109: 0.0113283282 | AM109: 0.01378915461 | AN109: 0.01570912427 | AO109: 0.01842615112 | AP109: 0.02018141631 | AQ109: 0.02181163982 | AR109: 0.02399356394 | AS109: 0.0247475142 | AU109: 0.0113283282 | AV109: 0.02399356394 | AX109: 0.6677261628 | AY109: 66.8971335
B110: 84 | D110: -0.7623441952 | E110: 0.8837281708 | F110: 0.5381108043 | H110: -0.7623441952 | I110: 1.013638744 | J110: 0.5381108043 | L110: -3.06924474 | M110: 0.04645622816 | N110: 0.01350028242 | P110: =MAX(LN(Parameters!$C$21),MIN(LN(Parameters!$C$22),(1-Beta1)*P109+Const5+Psi*(_Tau2-N109))+M110*H110) -> -3.763454502 | Q110: 0.02320344541 | R110: 0.009703162991 | S110: 0.009703162991 | U110: 0.02561601451 | V110: -0.01930702953 | X110: 0.007242946706 | Y110: 0.008117160991 | Z110: 0.009703162991 | AA110: 0.01232623707 | AB110: 0.01437279452 | AC110: 0.0172689609 | AD110: 0.01913995456 | AE110: 0.02087766227 | AF110: 0.02320344541 | AG110: 0.02400710527 | AI110: 0 | AJ110: 0.007242946706 | AK110: 0.008117160991 | AL110: 0.009703162991 | AM110: 0.01232623707 | AN110: 0.01437279452 | AO110: 0.0172689609 | AP110: 0.01913995456 | AQ110: 0.02087766227 | AR110: 0.02320344541 | AS110: 0.02400710527 | AU110: 0.009703162991 | AV110: 0.02320344541 | AX110: 0.6651636988 | AY110: 67.56229719
B111: 85 | D111: 0.9944535994 | E111: -0.8175871548 | F111: -0.4582122668 | H111: 0.9944535994 | I111: -0.9932859407 | J111: -0.4582122668 | L111: -3.1411581 | M111: 0.04323270112 | N111: 0.01234136733 | P111: =MAX(LN(Parameters!$C$21),MIN(LN(Parameters!$C$22),(1-Beta1)*P110+Const5+Psi*(_Tau2-N110))+M111*H111) -> -3.718570492 | Q111: 0.02426863526 | R111: 0.01192726793 | S111: 0.01192726793 | U111: 0.02647410033 | V111: -0.01764964139 | X111: 0.009678245877 | Y111: 0.01047741431 | Z111: 0.01192726793 | AA111: 0.01432516745 | AB111: 0.0161960407 | AC111: 0.01884358925 | AD111: 0.02055396976 | AE111: 0.0221425061 | AF111: 0.02426863526 | AG111: 0.02500330592 | AI111: 0 | AJ111: 0.009678245877 | AK111: 0.01047741431 | AL111: 0.01192726793 | AM111: 0.01432516745 | AN111: 0.0161960407 | AO111: 0.01884358925 | AP111: 0.02055396976 | AQ111: 0.0221425061 | AR111: 0.02426863526 | AS111: 0.02500330592 | AU111: 0.01192726793 | AV111: 0.02426863526 | AX111: 0.662494824 | AY111: 68.22479202
B112: 86 | D112: 0.5164548052 | E112: 1.583506236 | F112: -1.221575387 | H112: 0.5164548052 | I112: 1.454910448 | J112: -1.221575387 | L112: -3.297896995 | M112: 0.0369608145 | N112: 0.01364316719 | P112: =MAX(LN(Parameters!$C$21),MIN(LN(Parameters!$C$22),(1-Beta1)*P111+Const5+Psi*(_Tau2-N111))+M112*H112) -> -3.697527638 | Q112: 0.0247847276 | R112: 0.01114156042 | S112: 0.01114156042 | U112: 0.02722283093 | V112: -0.01951137195 | X112: 0.008655305607 | Y112: =$U112+$V112*Y$21 -> 0.009538772432 | Z112: 0.01114156042 | AA112: 0.01379239668 | AB112: 0.01586061455 | AC112: 0.01878743348 | AD112: 0.02067822943 | AE112: 0.02243432875 | AF112: 0.0247847276 | AG112: 0.02559689326 | AI112: 0 | AJ112: 0.008655305607 | AK112: 0.009538772432 | AL112: 0.01114156042 | AM112: 0.01379239668 | AN112: 0.01586061455 | AO112: 0.01878743348 | AP112: 0.02067822943 | AQ112: 0.02243432875 | AR112: 0.0247847276 | AS112: 0.02559689326 | AU112: 0.01114156042 | AV112: 0.0247847276 | AX112: 0.6597805916 | AY112: 68.88457261
B113: 87 | D113: 0.0286728108 | E113: -0.2279053653 | F113: 0.8429261274 | H113: 0.0286728108 | I113: -0.229170826 | J113: 0.8429261274 | L113: -3.211174188 | M113: 0.04030925482 | N113: 0.01321401402 | P113: =MAX(LN(Parameters!$C$21),MIN(LN(Parameters!$C$22),(1-Beta1)*P112+Const5+Psi*(_Tau2-N112))+M113*H113) -> -3.694852287 | Q113: 0.02485112422 | R113: 0.0116371102 | S113: 0.0116371102 | U113: 0.02721253569 | V113: -0.01889763124 | X113: 0.009229061876 | Y113: 0.01008473878 | Z113: 0.0116371102 | AA113: 0.01420456298 | AB113: 0.01620772395 | AC113: 0.01904247821 | AD113: 0.02087379816 | AE113: 0.02257465843 | AF113: 0.02485112422 | AG113: 0.02563774277 | AI113: 0 | AJ113: 0.009229061876 | AK113: 0.01008473878 | AL113: 0.0116371102 | AM113: 0.01420456298 | AN113: 0.01620772395 | AO113: 0.01904247821 | AP113: 0.02087379816 | AQ113: 0.02257465843 | AR113: 0.02485112422 | AS113: 0.02563774277 | AU113: 0.0116371102 | AV113: 0.02485112422 | AX113: 0.6570702972 | AY113: 69.54164291
B114: 88 | D114: 2.812895765 | E114: -0.2060023524 | F114: -1.191589468 | H114: 2.812895765 | I114: -0.7421624723 | J114: -1.191589468 | L114: -3.361666658 | M114: 0.03467741537 | N114: 0.01226748309 | P114: =MAX(LN(Parameters!$C$21),MIN(LN(Parameters!$C$22),(1-Beta1)*P113+Const5+Psi*(_Tau2-N113))+M114*H114) -> -3.595694387 | Q114: 0.02744162146 | R114: 0.01517413837 | S114: 0.01517413837 | U114: 0.02963388305 | V114: -0.01754397804 | X114: 0.01293858057 | Y114: 0.01373296461 | Z114: 0.01517413837 | AA114: 0.01755768235 | AB114: 0.01941735522 | AC114: 0.02204905365 | AD114: 0.02374919461 | AE114: 0.02532822083 | AF114: 0.02744162146 | AG114: 0.02817189386 | AI114: 0 | AJ114: 0.01293858057 | AK114: 0.01373296461 | AL114: 0.01517413837 | AM114: 0.01755768235 | AN114: 0.01941735522 | AO114: 0.02204905365 | AP114: 0.02374919461 | AQ114: 0.02532822083 | AR114: 0.02744162146 | AS114: 0.02817189386 | AU114: 0.01517413837 | AV114: 0.02744162146 | AX114: 0.6540923171 | AY114: 70.19573522
B115: 89 | D115: 0.6382401927 | E115: 1.035705784 | F115: -0.3900918322 | H115: 0.6382401927 | I115: 0.8939195091 | J115: -0.3900918322 | L115: -3.41405386 | M115: 0.03290752709 | N115: 0.01314876678 | P115: =MAX(LN(Parameters!$C$21),MIN(LN(Parameters!$C$22),(1-Beta1)*P114+Const5+Psi*(_Tau2-N114))+M115*H115) -> -3.573344063 | Q115: 0.02806185598 | R115: 0.0149130892 | S115: 0.0149130892 | U115: 0.03041160744 | V115: -0.01880431983 | X115: 0.01251693117 | Y115: 0.01336838297 | Z115: 0.0149130892 | AA115: 0.01746786459 | AB115: 0.01946113449 | AC115: 0.0222818915 | AD115: 0.02410416888 | AE115: 0.02579663077 | AF115: 0.02806185598 | AG115: 0.02884459042 | AI115: 0 | AJ115: 0.01251693117 | AK115: 0.01336838297 | AL115: 0.0149130892 | AM115: 0.01746786459 | AN115: 0.01946113449 | AO115: 0.0222818915 | AP115: 0.02410416888 | AQ115: 0.02579663077 | AR115: 0.02806185598 | AS115: 0.02884459042 | AU115: 0.0149130892 | AV115: 0.02806185598 | AX115: 0.6510614497 | AY115: 70.84679667
B116: 90 | D116: 0.3411371013 | E116: -0.8703675886 | F116: 0.6040991579 | H116: 0.3411371013 | I116: -0.9196675322 | J116: 0.6040991579 | L116: -3.350122448 | M116: 0.03508005835 | N116: 0.01192283042 | P116: =MAX(LN(Parameters!$C$21),MIN(LN(Parameters!$C$22),(1-Beta1)*P115+Const5+Psi*(_Tau2-N115))+M116*H116) -> -3.560365066 | Q116: 0.02842844456 | R116: 0.01650561414 | S116: 0.01650561414 | U116: 0.03055911496 | V116: -0.01705108321 | X116: 0.01433286393 | Y116: 0.0151049299 | Z116: 0.01650561414 | AA116: 0.01882219289 | AB116: 0.02062961859 | AC116: 0.02318737994 | AD116: 0.02483975575 | AE116: 0.02637441953 | AF116: 0.02842844456 | AG116: 0.02913820009 | AI116: 0 | AJ116: 0.01433286393 | AK116: 0.0151049299 | AL116: 0.01650561414 | AM116: 0.01882219289 | AN116: 0.02062961859 | AO116: 0.02318737994 | AP116: 0.02483975575 | AQ116: 0.02637441953 | AR116: 0.02842844456 | AS116: 0.02913820009 | AU116: 0.01650561414 | AV116: 0.02842844456 | AX116: 0.6480055848 | AY116: 71.49480226
B117: 91 | D117: 0.8295986487 | E117: -0.5965000361 | F117: -0.7224664195 | H117: 0.8295986487 | I117: -0.7446636618 | J117: -0.7224664195 | L117: -3.441158051 | M117: 0.03202757429 | N117: 0.01092478833 | P117: =MAX(LN(Parameters!$C$21),MIN(LN(Parameters!$C$22),(1-Beta1)*P116+Const5+Psi*(_Tau2-N116))+M117*H117) -> -3.532540715 | Q117: 0.02923055494 | R117: 0.01830576661 | S117: 0.01830576661 | U117: 0.03118287015 | V117: -0.01562376285 | X117: 0.01631489403 | Y117: 0.01702233152 | Z117: 0.01830576661 | AA117: 0.02042842806 | AB117: 0.02208455689 | AC117: 0.02442821191 | AD117: 0.02594226985 | AE117: 0.02734846924 | AF117: 0.02923055494 | AG117: 0.02988089791 | AI117: 0 | AJ117: 0.01631489403 | AK117: 0.01702233152 | AL117: 0.01830576661 | AM117: 0.02042842806 | AN117: 0.02208455689 | AO117: 0.02442821191 | AP117: 0.02594226985 | AQ117: 0.02734846924 | AR117: 0.02923055494 | AS117: 0.02988089791 | AU117: 0.01830576661 | AV117: 0.02923055494 | AX117: 0.6448790718 | AY117: 72.13968133
B118: 92 | D118: 0.5762534971 | E118: -1.54905162 | F118: -0.3314898614 | H118: 0.5762534971 | I118: -1.630863874 | J118: -0.3314898614 | L118: -3.483632022 | M118: 0.03069572079 | N118: 0.008859829382 | P118: =MAX(LN(Parameters!$C$21),MIN(LN(Parameters!$C$22),(1-Beta1)*P117+Const5+Psi*(_Tau2-N117))+M118*H118) -> -3.513488358 | Q118: 0.029792805 | R118: 0.02093297562 | S118: 0.02093297562 | U118: 0.03137610155 | V118: -0.01267062289 | X118: 0.01931840965 | Y118: 0.0198921302 | Z118: 0.02093297562 | AA118: 0.02265442025 | AB118: 0.02399751437 | AC118: 0.02589818127 | AD118: 0.02712605815 | AE118: 0.02826646346 | AF118: 0.029792805 | AG118: 0.03032022279 | AI118: 0 | AJ118: 0.01931840965 | AK118: 0.0198921302 | AL118: 0.02093297562 | AM118: 0.02265442025 | AN118: 0.02399751437 | AO118: 0.02589818127 | AP118: 0.02712605815 | AQ118: 0.02826646346 | AR118: 0.029792805 | AS118: 0.03032022279 | AU118: 0.02093297562 | AV118: 0.029792805 | AX118: 0.641708382 | AY118: 72.78138971
B119: 93 | D119: -0.5485771083 | E119: -1.351929355 | F119: -0.9652549326 | H119: -0.5485771083 | I119: -1.221474196 | J119: -0.9652549326 | L119: -3.597219879 | M119: 0.0273997914 | N119: 0.007322015865 | P119: =MAX(LN(Parameters!$C$21),MIN(LN(Parameters!$C$22),(1-Beta1)*P118+Const5+Psi*(_Tau2-N118))+M119*H119) -> -3.526732766 | Q119: 0.02940081848 | R119: 0.02207880261 | S119: 0.02207880261 | U119: 0.03070929993 | V119: -0.01047136438 | X119: 0.02074447922 | Y119: 0.02121861825 | Z119: 0.02207880261 | AA119: 0.02350145359 | AB119: 0.0246114249 | AC119: 0.02618219027 | AD119: 0.02719694277 | AE119: 0.02813940627 | AF119: 0.02940081848 | AG119: 0.0298366916 | AI119: 0 | AJ119: 0.02074447922 | AK119: 0.02121861825 | AL119: 0.02207880261 | AM119: 0.02350145359 | AN119: 0.0246114249 | AO119: 0.02618219027 | AP119: 0.02719694277 | AQ119: 0.02813940627 | AR119: 0.02940081848 | AS119: 0.0298366916 | AU119: 0.02207880261 | AV119: 0.02940081848 | AX119: 0.6385943918 | AY119: 73.4199841
B120: 94 | D120: 0.1882220815 | E120: -1.272721945 | F120: -0.9579239521 | H120: 0.1882220815 | I120: -1.285183321 | J120: -0.9579239521 | L120: -3.705420829 | M120: 0.02458986706 | N120: 0.005765008236 | P120: =MAX(LN(Parameters!$C$21),MIN(LN(Parameters!$C$22),(1-Beta1)*P119+Const5+Psi*(_Tau2-N119))+M120*H120) -> -3.51986353 | Q120: 0.02960347488 | R120: 0.02383846665 | S120: 0.02383846665 | U120: 0.03063371116 | V120: -0.008244655983 | X120: 0.02278788365 | Y120: 0.02316119825 | Z120: 0.02383846665 | AA120: 0.02495859459 | AB120: 0.02583253339 | AC120: 0.02706927959 | AD120: 0.02786824761 | AE120: 0.0286102987 | AF120: 0.02960347488 | AG120: 0.02994666071 | AI120: 0 | AJ120: 0.02278788365 | AK120: 0.02316119825 | AL120: 0.02383846665 | AM120: 0.02495859459 | AN120: 0.02583253339 | AO120: 0.02706927959 | AP120: 0.02786824761 | AQ120: 0.0286102987 | AR120: 0.02960347488 | AS120: 0.02994666071 | AU120: 0.02383846665 | AV120: 0.02960347488 | AX120: 0.6354743607 | AY120: 74.05545847
B121: 95 | D121: -0.1140431258 | E121: -0.2833470736 | F121: -0.3973033067 | H121: -0.1140431258 | I121: -0.2561841842 | J121: -0.3973033067 | L121: -3.744882954 | M121: 0.02363839568 | N121: 0.005503938307 | P121: =MAX(LN(Parameters!$C$21),MIN(LN(Parameters!$C$22),(1-Beta1)*P120+Const5+Psi*(_Tau2-N120))+M121*H121) -> -3.519961606 | Q121: 0.02960057164 | R121: 0.02409663333 | S121: 0.02409663333 | U121: 0.03058415339 | V121: -0.007871294547 | X121: 0.02309362627 | Y121: 0.02345003522 | Z121: 0.02409663333 | AA121: 0.02516603599 | AB121: 0.02600039823 | AC121: 0.02718113806 | AD121: 0.0279439246 | AE121: 0.0286523717 | AF121: 0.02960057164 | AG121: 0.02992821621 | AI121: 0 | AJ121: 0.02309362627 | AK121: 0.02345003522 | AL121: 0.02409663333 | AM121: 0.02516603599 | AN121: 0.02600039823 | AO121: 0.02718113806 | AP121: 0.0279439246 | AQ121: 0.0286523717 | AR121: 0.02960057164 | AS121: 0.02992821621 | AU121: 0.02409663333 | AV121: 0.02960057164 | AX121: 0.6323698749 | AY121: 74.68782834
B122: 96 | D122: 2.414406264 | E122: -1.891082018 | F122: -1.781489522 | H122: 2.414406264 | I122: -2.319402965 | J122: -1.781489522 | L122: -3.941795353 | M122: 0.01941332967 | N122: 0.002716603895 | P122: =MAX(LN(Parameters!$C$21),MIN(LN(Parameters!$C$22),(1-Beta1)*P121+Const5+Psi*(_Tau2-N121))+M122*H122) -> -3.470426025 | Q122: 0.03110377684 | R122: 0.02838717295 | S122: 0.02838717295 | U122: 0.03158924777 | V122: -0.003885070695 | X122: 0.02789211418 | Y122: =$U122+$V122*Y$21 -> 0.02806802857 | Z122: 0.02838717295 | AA122: 0.02891500289 | AB122: 0.02932682286 | AC122: 0.02990960599 | AD122: 0.03028609802 | AE122: 0.03063576948 | AF122: 0.03110377684 | AG122: 0.03126549386 | AI122: 0 | AJ122: 0.02789211418 | AK122: 0.02806802857 | AL122: 0.02838717295 | AM122: 0.02891500289 | AN122: 0.02932682286 | AO122: 0.02990960599 | AP122: 0.03028609802 | AQ122: 0.03063576948 | AR122: 0.03110377684 | AS122: 0.03126549386 | AU122: 0.02838717295 | AV122: 0.03110377684 | AX122: 0.6291252751 | AY122: 75.31695362
B123: 97 | D123: -0.04441135078 | E123: 0.5504687442 | F123: 0.2560239746 | H123: -0.04441135078 | I123: 0.5487561098 | J123: 0.2560239746 | L123: -3.896739361 | M123: 0.02030802073 | N123: 0.003569849757 | P123: =MAX(LN(Parameters!$C$21),MIN(LN(Parameters!$C$22),(1-Beta1)*P122+Const5+Psi*(_Tau2-N122))+M123*H123) -> -3.468214748 | Q123: 0.03117263203 | R123: 0.02760278227 | S123: 0.02760278227 | U123: 0.03181058233 | V123: -0.005105315023 | X123: 0.02695223273 | Y123: 0.02718339928 | Z123: 0.02760278227 | AA123: 0.02829639594 | AB123: 0.02883756259 | AC123: 0.02960338944 | AD123: 0.03009813215 | AE123: 0.03055763035 | AF123: 0.03117263203 | AG123: 0.03138514202 | AI123: 0 | AJ123: 0.02695223273 | AK123: 0.02718339928 | AL123: 0.02760278227 | AM123: 0.02829639594 | AN123: 0.02883756259 | AO123: 0.02960338944 | AP123: 0.03009813215 | AQ123: 0.03055763035 | AR123: 0.03117263203 | AS123: 0.03138514202 | AU123: 0.02760278227 | AV123: 0.03117263203 | AX123: 0.6258902503 | AY123: 75.94284387
B124: 98 | D124: 0.9515142789 | E124: 0.5019027879 | F124: -1.187426155 | H124: 0.9515142789 | I124: 0.3099055986 | J124: -1.187426155 | L124: -4.019324045 | M124: 0.01796510444 | N124: 0.004093352082 | P124: =MAX(LN(Parameters!$C$21),MIN(LN(Parameters!$C$22),(1-Beta1)*P123+Const5+Psi*(_Tau2-N123))+M124*H124) -> -3.448233476 | Q124: 0.03180176536 | R124: 0.02770841328 | S124: 0.02770841328 | U124: 0.03253326819 | V124: -0.005853986387 | X124: 0.0269624636 | Y124: 0.02722752967 | Z124: 0.02770841328 | AA124: 0.02850374225 | AB124: 0.02912426855 | AC124: 0.03000240045 | AD124: 0.03056969494 | AE124: 0.03109657647 | AF124: 0.03180176536 | AG124: 0.03204543899 | AI124: 0 | AJ124: 0.0269624636 | AK124: 0.02722752967 | AL124: 0.02770841328 | AM124: 0.02850374225 | AN124: 0.02912426855 | AO124: 0.03000240045 | AP124: 0.03056969494 | AQ124: 0.03109657647 | AR124: 0.03180176536 | AS124: 0.03204543899 | AU124: 0.02770841328 | AV124: 0.03180176536 | AX124: 0.622607585 | AY124: 76.56545145
B125: 99 | D125: -0.74359806 | E125: -0.3252863616 | F125: -0.1063937367 | H125: -0.74359806 | I125: -0.1764877741 | J125: -0.1063937367 | L125: -4.012804301 | M125: 0.01808261497 | N125: 0.003973262456 | P125: =MAX(LN(Parameters!$C$21),MIN(LN(Parameters!$C$22),(1-Beta1)*P124+Const5+Psi*(_Tau2-N124))+M125*H125) -> -3.459025894 | Q125: 0.03146039285 | R125: 0.02748713039 | S125: 0.02748713039 | U125: 0.03217043505 | V125: -0.00568224376 | X125: 0.02676306517 | Y125: 0.02702035481 | Z125: 0.02748713039 | AA125: 0.02825912622 | AB125: 0.02886144769 | AC125: 0.0297138172 | AD125: 0.03026446856 | AE125: 0.03077589259 | AF125: 0.03146039285 | AG125: 0.03169691764 | AI125: 0 | AJ125: 0.02676306517 | AK125: 0.02702035481 | AL125: 0.02748713039 | AM125: 0.02825912622 | AN125: 0.02886144769 | AO125: 0.0297138172 | AP125: 0.03026446856 | AQ125: 0.03077589259 | AR125: 0.03146039285 | AS125: 0.03169691764 | AU125: 0.02748713039 | AV125: 0.03146039285 | AX125: 0.6193768267 | AY125: 77.18482828
B126: 100 | D126: 2.744310799 | E126: -0.6337445795 | F126: 1.276461671 | H126: 2.744310799 | I126: -1.148782778 | J126: 1.276461671 | L126: -3.847669154 | M126: 0.02132939407 | N126: 0.002587915132 | P126: =MAX(LN(Parameters!$C$21),MIN(LN(Parameters!$C$22),(1-Beta1)*P125+Const5+Psi*(_Tau2-N125))+M126*H126) -> -3.397752476 | Q126: 0.03344836155 | R126: 0.03086044642 | S126: 0.03086044642 | U126: 0.03391083514 | V126: -0.003701030268 | X126: 0.03038883918 | Y126: 0.03055642029 | Z126: 0.03086044642 | AA126: 0.03136327243 | AB126: 0.031755584 | AC126: 0.03231076 | AD126: 0.03266941715 | AE126: 0.03300252426 | AF126: 0.03344836155 | AG126: 0.03360241785 | AI126: 0 | AJ126: 0.03038883918 | AK126: 0.03055642029 | AL126: 0.03086044642 | AM126: 0.03136327243 | AN126: 0.031755584 | AO126: 0.03231076 | AP126: 0.03266941715 | AQ126: 0.03300252426 | AR126: 0.03344836155 | AS126: 0.03360241785 | AU126: 0.03086044642 | AV126: 0.03344836155 | AX126: 0.6159619737 | AY126: 77.80079025
B127: 101 | D127: 0.3232732362 | E127: -0.7204039666 | F127: -0.2198477556 | H127: 0.3232732362 | I127: -0.7690637882 | J127: -0.2198477556 | L127: -3.861052055 | M127: 0.02104584648 | N127: 0.001684125928 | P127: =MAX(LN(Parameters!$C$21),MIN(LN(Parameters!$C$22),(1-Beta1)*P126+Const5+Psi*(_Tau2-N126))+M127*H127) -> -3.388173258 | Q127: 0.03377031025 | R127: 0.03208618432 | S127: 0.03208618432 | U127: 0.03407127211 | V127: -0.002408502875 | X127: 0.03177927859 | Y127: 0.0318883346 | Z127: 0.03208618432 | AA127: 0.03241340615 | AB127: 0.03266870899 | AC127: 0.03302999838 | AD127: 0.03326340009 | AE127: 0.03348017471 | AF127: 0.03377031025 | AG127: 0.03387056477 | AI127: 0 | AJ127: 0.03177927859 | AK127: 0.0318883346 | AL127: 0.03208618432 | AM127: 0.03241340615 | AN127: 0.03266870899 | AO127: 0.03302999838 | AP127: 0.03326340009 | AQ127: 0.03348017471 | AR127: 0.03377031025 | AS127: 0.03387056477 | AU127: 0.03208618432 | AV127: 0.03377031025 | AX127: 0.6125336229 | AY127: 78.41332387
B128: 102 | D128: 0.8498534016 | E128: 0.4586569751 | F128: -0.3216294205 | H128: 0.8498534016 | I128: 0.2869799622 | J128: -0.3216294205 | L128: -3.885593201 | M128: 0.02053564338 | N128: 0.00227554703 | P128: =MAX(LN(Parameters!$C$21),MIN(LN(Parameters!$C$22),(1-Beta1)*P127+Const5+Psi*(_Tau2-N127))+M128*H128) -> -3.367766641 | Q128: 0.03446652759 | R128: 0.03219098056 | S128: 0.03219098056 | U128: 0.03487317941 | V128: -0.003254306268 | X128: 0.03177629754 | Y128: 0.03192365118 | Z128: 0.03219098056 | AA128: 0.03263311416 | AB128: 0.0329780727 | AC128: 0.03346623751 | AD128: 0.0337816038 | AE128: 0.03407450402 | AF128: 0.03446652759 | AG128: 0.03460198889 | AI128: 0 | AJ128: 0.03177629754 | AK128: 0.03192365118 | AL128: 0.03219098056 | AM128: 0.03263311416 | AN128: 0.0329780727 | AO128: 0.03346623751 | AP128: 0.0337816038 | AQ128: 0.03407450402 | AR128: 0.03446652759 | AS128: 0.03460198889 | AU128: 0.03219098056 | AV128: 0.03446652759 | AX128: 0.6090548628 | AY128: 79.02237874
B129: 103 | D129: -1.022884127 | E129: -2.196646101 | F129: -0.02780130375 | H129: -1.022884127 | I129: -1.959427163 | J129: -0.02780130375 | L129: -3.875394544 | M129: 0.02074615099 | N129: -0.0003481668682 | P129: =MAX(LN(Parameters!$C$21),MIN(LN(Parameters!$C$22),(1-Beta1)*P128+Const5+Psi*(_Tau2-N128))+M129*H129) -> -3.386285914 | Q129: 0.03383410662 | R129: 0.03418227349 | S129: 0.03418227349 | U129: 0.03377188743 | V129: 0.0004979205468 | X129: 0.03424572148 | Y129: 0.03422317584 | Z129: 0.03418227349 | AA129: 0.03411462546 | AB129: 0.03406184557 | AC129: 0.0339871546 | AD129: 0.03393890242 | AE129: 0.03389408764 | AF129: 0.03383410662 | AG129: 0.03381338056 | AI129: 0 | AJ129: 0.03424572148 | AK129: 0.03422317584 | AL129: 0.03418227349 | AM129: 0.03411462546 | AN129: 0.03406184557 | AO129: 0.0339871546 | AP129: 0.03393890242 | AQ129: 0.03389408764 | AR129: 0.03383410662 | AS129: 0.03381338056 | AU129: 0.03418227349 | AV129: 0.03383410662 | AX129: 0.6056586232 | AY129: 79.62803736
B130: 104 | D130: 1.454822445 | E130: -0.4980297516 | F130: -1.502526498 | H130: 1.454822445 | I130: -0.7680490587 | J130: -1.502526498 | L130: -4.035035112 | M130: 0.01768505914 | N130: -0.001181710411 | P130: =MAX(LN(Parameters!$C$21),MIN(LN(Parameters!$C$22),(1-Beta1)*P129+Const5+Psi*(_Tau2-N129))+M130*H130) -> -3.357101163 | Q130: 0.0348360969 | R130: 0.03601780731 | S130: 0.03601780731 | U130: 0.03462491924 | V130: 0.001689988185 | X130: 0.03623315563 | Y130: 0.03615663367 | Z130: 0.03601780731 | AA130: 0.03578820367 | AB130: 0.03560906385 | AC130: 0.03535555582 | AD130: 0.03519178349 | AE130: 0.03503967798 | AF130: 0.0348360969 | AG130: 0.03476575072 | AI130: 0 | AJ130: 0.03623315563 | AK130: 0.03615663367 | AL130: 0.03601780731 | AM130: 0.03578820367 | AN130: 0.03560906385 | AO130: 0.03535555582 | AP130: 0.03519178349 | AQ130: 0.03503967798 | AR130: 0.0348360969 | AS130: 0.03476575072 | AU130: 0.03601780731 | AV130: 0.0348360969 | AX130: 0.6021824475 | AY130: 80.23021981
B131: 105 | D131: 0.5611402107 | E131: -0.2242408705 | F131: -0.9439440396 | H131: 0.5611402107 | I131: -0.3277922547 | J131: -0.9439440396 | L131: -4.124112923 | M131: 0.01617783921 | N131: -0.001382786788 | P131: =MAX(LN(Parameters!$C$21),MIN(LN(Parameters!$C$22),(1-Beta1)*P130+Const5+Psi*(_Tau2-N130))+M131*H131) -> -3.344505794 | Q131: 0.03527764528 | R131: 0.03666043207 | S131: 0.03666043207 | U131: 0.03503053425 | V131: 0.001977551617 | X131: 0.03691242343 | Y131: 0.03682288071 | Z131: 0.03666043207 | AA131: 0.03639175975 | AB131: 0.03618213801 | AC131: 0.0358854938 | AD131: 0.03569385446 | AE131: 0.03551586712 | AF131: 0.03527764528 | AG131: 0.03519532921 | AI131: 0 | AJ131: 0.03691242343 | AK131: 0.03682288071 | AL131: 0.03666043207 | AM131: 0.03639175975 | AN131: 0.03618213801 | AO131: 0.0358854938 | AP131: 0.03569385446 | AQ131: 0.03551586712 | AR131: 0.03527764528 | AS131: 0.03519532921 | AU131: 0.03666043207 | AV131: 0.03527764528 | AX131: 0.5986829228 | AY131: 80.82890273
B132: 106 | D132: 1.423510598 | E132: 0.5898254992 | F132: -1.356791602 | H132: 1.423510598 | I132: 0.3055838839 | J132: -1.356791602 | L132: -4.257058787 | M132: 0.01416390025 | N132: -0.0006551189477 | P132: =MAX(LN(Parameters!$C$21),MIN(LN(Parameters!$C$22),(1-Beta1)*P131+Const5+Psi*(_Tau2-N131))+M132*H132) -> -3.320839511 | Q132: 0.0361224938 | R132: 0.03677761275 | S132: 0.03677761275 | U132: 0.03600542071 | V132: 0.0009368989827 | X132: 0.03689699797 | Y132: =$U132+$V132*Y$21 -> 0.03685457558 | Z132: 0.03677761275 | AA132: 0.03665032463 | AB132: 0.03655101274 | AC132: 0.03641047246 | AD132: 0.03631968003 | AE132: 0.03623535548 | AF132: 0.0361224938 | AG132: 0.03608349515 | AI132: 0 | AJ132: 0.03689699797 | AK132: 0.03685457558 | AL132: 0.03677761275 | AM132: 0.03665032463 | AN132: 0.03655101274 | AO132: 0.03641047246 | AP132: 0.03631968003 | AQ132: 0.03623535548 | AR132: 0.0361224938 | AS132: 0.03608349515 | AU132: 0.03677761275 | AV132: 0.0361224938 | AX132: 0.5951214012 | AY132: 81.42402413
B133: 107 | D133: 0.8047524942 | E133: 0.2338259082 | F133: -1.401018698 | H133: 0.8047524942 | I133: 0.07498859572 | J133: -1.401018698 | L133: -4.389766738 | M133: 0.01240362218 | N133: -0.0002770617507 | P133: =MAX(LN(Parameters!$C$21),MIN(LN(Parameters!$C$22),(1-Beta1)*P132+Const5+Psi*(_Tau2-N132))+M133*H133) -> -3.307657416 | Q133: 0.03660181625 | R133: 0.036878878 | S133: 0.036878878 | U133: 0.0365523039 | V133: 0.0003962316664 | X133: 0.03692936819 | Y133: 0.03691142698 | Z133: 0.036878878 | AA133: 0.03682504553 | AB133: 0.03678304472 | AC133: 0.03672360767 | AD133: 0.0366852099 | AE133: 0.03664954751 | AF133: 0.03660181625 | AG133: 0.03658532301 | AI133: 0 | AJ133: 0.03692936819 | AK133: 0.03691142698 | AL133: 0.036878878 | AM133: 0.03682504553 | AN133: 0.03678304472 | AO133: 0.03672360767 | AP133: 0.0366852099 | AQ133: 0.03664954751 | AR133: 0.03660181625 | AS133: 0.03658532301 | AU133: 0.036878878 | AV133: 0.03660181625 | AX133: 0.5915346529 | AY133: 82.01555878
B134: 108 | D134: -0.8339653266 | E134: 1.307198994 | F134: 0.3039134421 | H134: -0.8339653266 | I134: 1.442982454 | J134: 0.3039134421 | L134: -4.32128539 | M134: 0.01328279898 | N134: 0.002171919537 | P134: =MAX(LN(Parameters!$C$21),MIN(LN(Parameters!$C$22),(1-Beta1)*P133+Const5+Psi*(_Tau2-N133))+M134*H134) -> -3.315696791 | Q134: 0.03630874015 | R134: 0.03413682061 | S134: 0.03413682061 | U134: 0.03669687321 | V134: -0.003106106474 | X134: 0.03374102209 | Y134: 0.0338816653 | Z134: 0.03413682061 | AA134: 0.03455881962 | AB134: 0.03488806889 | AC134: 0.03535400287 | AD134: 0.03565500751 | AE134: 0.03593456917 | AF134: 0.03630874015 | AG134: 0.03643803259 | AI134: 0 | AJ134: 0.03374102209 | AK134: 0.0338816653 | AL134: 0.03413682061 | AM134: 0.03455881962 | AN134: 0.03488806889 | AO134: 0.03535400287 | AP134: 0.03565500751 | AQ134: 0.03593456917 | AR134: 0.03630874015 | AS134: 0.03643803259 | AU134: 0.03413682061 | AV134: 0.03630874015 | AX134: 0.5879977281 | AY134: 82.60355651
B135: 109 | D135: 0.7912010344 | E135: 0.8759354118 | F135: -0.4054647678 | H135: 0.7912010344 | I135: 0.7077568463 | J135: -0.4054647678 | L135: -4.337044444 | M135: 0.01307511539 | N135: 0.003428682365 | P135: =MAX(LN(Parameters!$C$21),MIN(LN(Parameters!$C$22),(1-Beta1)*P134+Const5+Psi*(_Tau2-N134))+M135*H135) -> -3.30288907 | Q135: 0.03677676314 | R135: 0.03334808078 | S135: 0.03334808078 | U135: 0.03738948611 | V135: -0.004903428654 | X135: 0.0327232568 | Y135: 0.03294528201 | Z135: 0.03334808078 | AA135: 0.03401426594 | AB135: 0.03453403251 | AC135: 0.03526957524 | AD135: 0.03574475366 | AE135: 0.0361860813 | AF135: 0.03677676314 | AG135: 0.03698086957 | AI135: 0 | AJ135: 0.0327232568 | AK135: 0.03294528201 | AL135: 0.03334808078 | AM135: 0.03401426594 | AN135: 0.03453403251 | AO135: 0.03526957524 | AP135: 0.03574475366 | AQ135: 0.0361860813 | AR135: 0.03677676314 | AS135: 0.03698086957 | AU135: 0.03334808078 | AV135: 0.03677676314 | AX135: 0.5844371794 | AY135: 83.18799369
B136: 110 | D136: -0.4438384947 | E136: 1.333221167 | F136: -0.7885459641 | H136: -0.4438384947 | I136: 1.393627988 | J136: -0.7885459641 | L136: -4.396185176 | M136: 0.01232426524 | N136: 0.005714299279 | P136: =MAX(LN(Parameters!$C$21),MIN(LN(Parameters!$C$22),(1-Beta1)*P135+Const5+Psi*(_Tau2-N135))+M136*H136) -> -3.306277819 | Q136: 0.03665234683 | R136: 0.03093804755 | S136: 0.03093804755 | U136: 0.03767352116 | V136: -0.008172136068 | X136: 0.02989670547 | Y136: 0.0302667364 | Z136: 0.03093804755 | AA136: 0.03204832287 | AB136: 0.0329145745 | AC136: 0.0341404423 | AD136: 0.0349323826 | AE136: 0.03566790661 | AF136: 0.03665234683 | AG136: 0.036992514 | AI136: 0 | AJ136: 0.02989670547 | AK136: 0.0302667364 | AL136: 0.03093804755 | AM136: 0.03204832287 | AN136: 0.0329145745 | AO136: 0.0341404423 | AP136: 0.0349323826 | AQ136: 0.03566790661 | AR136: 0.03665234683 | AS136: 0.036992514 | AU136: 0.03093804755 | AV136: 0.03665234683 | AX136: 0.5809100196 | AY136: 83.76890371
B137: 111 | D137: 0.05517252268 | E137: -2.349028903 | F137: -2.883979403 | H137: 0.05517252268 | I137: -2.3159303 | J137: -2.883979403 | L137: -4.693704036 | M137: 0.009152721284 | N137: 0.002290889986 | P137: =MAX(LN(Parameters!$C$21),MIN(LN(Parameters!$C$22),(1-Beta1)*P136+Const5+Psi*(_Tau2-N136))+M137*H137) -> -3.304249511 | Q137: 0.03672676455 | R137: 0.03443587456 | S137: 0.03443587456 | U137: 0.03713615823 | V137: -0.003276248541 | X137: 0.03401839553 | Y137: 0.0341667427 | Z137: 0.03443587456 | AA137: 0.03488098926 | AB137: 0.0352282737 | AC137: 0.03571972997 | AD137: 0.03603722264 | AE137: 0.03633209774 | AF137: 0.03672676455 | AG137: 0.0368631392 | AI137: 0 | AJ137: 0.03401839553 | AK137: 0.0341667427 | AL137: 0.03443587456 | AM137: 0.03488098926 | AN137: 0.0352282737 | AO137: 0.03571972997 | AP137: 0.03603722264 | AQ137: 0.03633209774 | AR137: 0.03672676455 | AS137: 0.0368631392 | AU137: 0.03443587456 | AV137: 0.03672676455 | AX137: 0.5773971144 | AY137: 84.34630083
B138: 112 | D138: -0.4249345848 | E138: 0.2058720355 | F138: -1.734745597 | H138: -0.4249345848 | I138: 0.2836176714 | J138: -1.734745597 | L138: -4.847283694 | M138: 0.007849670725 | N138: 0.002912875442 | P138: =MAX(LN(Parameters!$C$21),MIN(LN(Parameters!$C$22),(1-Beta1)*P137+Const5+Psi*(_Tau2-N137))+M138*H138) -> -3.305210635 | Q138: 0.03669148253 | R138: 0.03377860709 | S138: 0.03377860709 | U138: 0.03721202818 | V138: -0.004165762642 | X138: 0.03324778089 | Y138: 0.03343640489 | Z138: 0.03377860709 | AA138: 0.03434457214 | AB138: 0.03478614564 | AC138: 0.03541103419 | AD138: 0.03581472733 | AE138: 0.03618966217 | AF138: 0.03669148253 | AG138: 0.03686488342 | AI138: 0 | AJ138: 0.03324778089 | AK138: 0.03343640489 | AL138: 0.03377860709 | AM138: 0.03434457214 | AN138: 0.03478614564 | AO138: 0.03541103419 | AP138: 0.03581472733 | AQ138: 0.03618966217 | AR138: 0.03669148253 | AS138: 0.03686488342 | AU138: 0.03377860709 | AV138: 0.03669148253 | AX138: 0.5739087664 | AY138: 84.92020959
B139: 113 | D139: -0.8998565481 | E139: -0.7680994255 | F139: -1.124933803 | H139: -0.8998565481 | I139: -0.5810679247 | J139: -1.124933803 | L139: -4.924657353 | M139: 0.007265215259 | N139: 0.002201534069 | P139: =MAX(LN(Parameters!$C$21),MIN(LN(Parameters!$C$22),(1-Beta1)*P138+Const5+Psi*(_Tau2-N138))+M139*H139) -> -3.309525438 | Q139: 0.03653350706 | R139: 0.03433197299 | S139: 0.03433197299 | U139: 0.03692693239 | V139: -0.003148458822 | X139: 0.03393077768 | Y139: 0.03407333859 | Z139: 0.03433197299 | AA139: 0.03475972604 | AB139: 0.03509346468 | AC139: 0.03556575176 | AD139: 0.03587086066 | AE139: 0.03615423419 | AF139: 0.03653350706 | AG139: 0.03666456243 | AI139: 0 | AJ139: 0.03393077768 | AK139: 0.03407333859 | AL139: 0.03433197299 | AM139: 0.03475972604 | AN139: 0.03509346468 | AO139: 0.03556575176 | AP139: 0.03587086066 | AQ139: 0.03615423419 | AR139: 0.03653350706 | AS139: 0.03666456243 | AU139: 0.03433197299 | AV139: 0.03653350706 | AX139: 0.5704562428 | AY139: 85.49066584
B140: 114 | D140: 0.6213603513 | E140: 1.668225557 | F140: -0.2990025358 | H140: 0.6213603513 | I140: 1.51791534 | J140: -0.2990025358 | L140: -4.904044048 | M140: 0.00741652954 | N140: 0.004693056849 | P140: =MAX(LN(Parameters!$C$21),MIN(LN(Parameters!$C$22),(1-Beta1)*P139+Const5+Psi*(_Tau2-N139))+M140*H140) -> -3.302493288 | Q140: 0.03679132159 | R140: 0.03209826474 | S140: 0.03209826474 | U140: 0.0376299947 | V140: -0.006711636418 | X140: 0.0312430282 | Y140: 0.03154692831 | Z140: 0.03209826474 | AA140: 0.03301011498 | AB140: 0.03372155272 | AC140: 0.0347283371 | AD140: 0.03537874421 | AE140: 0.03598281758 | AF140: 0.03679132159 | AG140: 0.03707069511 | AI140: 0 | AJ140: 0.0312430282 | AK140: 0.03154692831 | AL140: 0.03209826474 | AM140: 0.03301011498 | AN140: 0.03372155272 | AO140: 0.0347283371 | AP140: 0.03537874421 | AQ140: 0.03598281758 | AR140: 0.03679132159 | AS140: 0.03707069511 | AU140: 0.03209826474 | AV140: 0.03679132159 | AX140: 0.5670005635 | AY140: 86.0576664
B141: 115 | D141: -1.806829368 | E141: 1.00905627 | F141: -1.24688579 | H141: -1.806829368 | I141: 1.337145659 | J141: -1.24688579 | L141: -4.993157789 | M141: 0.006784207535 | N141: 0.006859448145 | P141: =MAX(LN(Parameters!$C$21),MIN(LN(Parameters!$C$22),(1-Beta1)*P140+Const5+Psi*(_Tau2-N140))+M141*H141) -> -3.312990141 | Q141: 0.03640714831 | R141: 0.02954770017 | S141: 0.02954770017 | U141: 0.03763296657 | V141: -0.009809836842 | X141: 0.02829767254 | Y141: 0.02874185788 | Z141: 0.02954770017 | AA141: 0.0308804753 | AB141: 0.03192032426 | AC141: 0.03339185667 | AD141: 0.03434250226 | AE141: 0.03522542571 | AF141: 0.03640714831 | AG141: 0.03681548519 | AI141: 0 | AJ141: 0.02829767254 | AK141: 0.02874185788 | AL141: 0.02954770017 | AM141: 0.0308804753 | AN141: 0.03192032426 | AO141: 0.03339185667 | AP141: 0.03434250226 | AQ141: 0.03522542571 | AR141: 0.03640714831 | AS141: 0.03681548519 | AU141: 0.02954770017 | AV141: 0.03640714831 | AX141: 0.563601255 | AY141: 86.62126765
B142: 116 | D142: 0.2231417099 | E142: -0.2584265048 | F142: 0.8865480288 | H142: 0.2231417099 | I142: -0.2964564912 | J142: 0.8865480288 | L142: -4.833595878 | M142: 0.007957854284 | N142: 0.006477249841 | P142: =MAX(LN(Parameters!$C$21),MIN(LN(Parameters!$C$22),(1-Beta1)*P141+Const5+Psi*(_Tau2-N141))+M142*H142) -> -3.309945082 | Q142: 0.03651817921 | R142: 0.03004092937 | S142: 0.03004092937 | U142: 0.03767569668 | V142: -0.009263247244 | X142: 0.02886055143 | Y142: =$U142+$V142*Y$21 -> 0.02927998742 | Z142: 0.03004092937 | AA142: 0.03129944424 | AB142: 0.03228135436 | AC142: 0.03367089516 | AD142: 0.03456857218 | AE142: 0.03540230044 | AF142: 0.03651817921 | AG142: 0.03690376416 | AI142: 0 | AJ142: 0.02886055143 | AK142: 0.02927998742 | AL142: 0.03004092937 | AM142: 0.03129944424 | AN142: 0.03228135436 | AO142: 0.03367089516 | AP142: 0.03456857218 | AQ142: 0.03540230044 | AR142: 0.03651817921 | AS142: 0.03690376416 | AU142: 0.03004092937 | AV142: 0.03651817921 | AX142: 0.5602121448 | AY142: 87.1814798
B143: 117 | D143: 0.9376724641 | E143: -1.481114271 | F143: 0.2594920806 | H143: 0.9376724641 | I143: -1.633571705 | J143: 0.2594920806 | L143: -4.752460496 | M143: 0.008630433905 | N143: 0.004079129765 | P143: =MAX(LN(Parameters!$C$21),MIN(LN(Parameters!$C$22),(1-Beta1)*P142+Const5+Psi*(_Tau2-N142))+M143*H143) -> -3.300502554 | Q143: 0.03686463627 | R143: 0.0327855065 | S143: 0.0327855065 | U143: 0.03759359749 | V143: -0.005833646761 | X143: 0.03204214861 | Y143: 0.03230629372 | Z143: 0.0327855065 | AA143: 0.03357807211 | AB143: 0.03419644239 | AC143: 0.03507152323 | AD143: 0.03563684666 | AE143: 0.03616189754 | AF143: 0.03686463627 | AG143: 0.03710746325 | AI143: 0 | AJ143: 0.03204214861 | AK143: 0.03230629372 | AL143: 0.0327855065 | AM143: 0.03357807211 | AN143: 0.03419644239 | AO143: 0.03507152323 | AP143: 0.03563684666 | AQ143: 0.03616189754 | AR143: 0.03686463627 | AS143: 0.03710746325 | AU143: 0.0327855065 | AV143: 0.03686463627 | AX143: 0.5568118409 | AY143: 87.73829164
B144: 118 | D144: -1.40695531 | E144: 0.4798788381 | F144: -0.1488561391 | H144: -1.40695531 | I144: 0.7410466838 | J144: -0.1488561391 | L144: -4.721486469 | M144: 0.00890193626 | N144: 0.005354947699 | P144: =MAX(LN(Parameters!$C$21),MIN(LN(Parameters!$C$22),(1-Beta1)*P143+Const5+Psi*(_Tau2-N143))+M144*H144) -> -3.311121773 | Q144: 0.03647523387 | R144: 0.03112028617 | S144: 0.03112028617 | U144: 0.03743219024 | V144: -0.007658220037 | X144: 0.03014443032 | Y144: 0.03049119135 | Z144: 0.03112028617 | AA144: 0.03216074029 | AB144: 0.0329725165 | AC144: 0.03412129391 | AD144: 0.03486343196 | AE144: 0.03555270153 | AF144: 0.03647523387 | AG144: 0.03679400916 | AI144: 0 | AJ144: 0.03014443032 | AK144: 0.03049119135 | AL144: 0.03112028617 | AM144: 0.03216074029 | AN144: 0.0329725165 | AO144: 0.03412129391 | AP144: 0.03486343196 | AQ144: 0.03555270153 | AR144: 0.03647523387 | AS144: 0.03679400916 | AU144: 0.03112028617 | AV144: 0.03647523387 | AX144: 0.5534674481 | AY144: 88.29175909
B145: 119 | D145: -0.9692604438 | E145: -0.8933731873 | F145: -0.7169693287 | H145: -0.9692604438 | I145: -0.6906882282 | J145: -0.7169693287 | L145: -4.757022236 | M145: 0.008591153774 | N145: 0.004416211916 | P145: =MAX(LN(Parameters!$C$21),MIN(LN(Parameters!$C$22),(1-Beta1)*P144+Const5+Psi*(_Tau2-N144))+M145*H145) -> -3.317810426 | Q145: 0.0362320778 | R145: 0.03181586588 | S145: 0.03181586588 | U145: 0.03702127731 | V145: -0.006315714827 | X145: 0.03101108002 | Y145: 0.03129705296 | Z145: 0.03181586588 | AA145: 0.03267392578 | AB145: 0.03334339558 | AC145: 0.03429078943 | AD145: 0.03490282881 | AE145: 0.0354712677 | AF145: 0.0362320778 | AG145: 0.03649497098 | AI145: 0 | AJ145: 0.03101108002 | AK145: 0.03129705296 | AL145: 0.03181586588 | AM145: 0.03267392578 | AN145: 0.03334339558 | AO145: 0.03429078943 | AP145: 0.03490282881 | AQ145: 0.0354712677 | AR145: 0.0362320778 | AS145: 0.03649497098 | AU145: 0.03181586588 | AV145: 0.0362320778 | AX145: 0.5501650403 | AY145: 88.84192413
B146: 120 | D146: -0.005478963991 | E146: -0.3148747702 | F146: -1.305226711 | H146: -0.005478963991 | I146: -0.3079665528 | J146: -1.305226711 | L146: -4.858721108 | M146: 0.007760402264 | N146: 0.004083504745 | P146: =MAX(LN(Parameters!$C$21),MIN(LN(Parameters!$C$22),(1-Beta1)*P145+Const5+Psi*(_Tau2-N145))+M146*H146) -> -3.315944263 | Q146: 0.03629975587 | R146: 0.03221625113 | S146: 0.03221625113 | U146: 0.03702949893 | V146: -0.005839903509 | X146: 0.03147209597 | Y146: 0.03173652437 | Z146: 0.03221625113 | AA146: 0.03300966679 | AB146: 0.03362870028 | AC146: 0.03450471967 | AD146: 0.03507064943 | AE146: 0.03559626344 | AF146: 0.03629975587 | AG146: 0.03654284329 | AI146: 0 | AJ146: 0.03147209597 | AK146: 0.03173652437 | AL146: 0.03221625113 | AM146: 0.03300966679 | AN146: 0.03362870028 | AO146: 0.03450471967 | AP146: 0.03507064943 | AQ146: 0.03559626344 | AR146: 0.03629975587 | AS146: 0.03654284329 | AU146: 0.03221625113 | AV146: 0.03629975587 | AX146: 0.5468762785 | AY146: 89.38880041
B147: 121 | D147: 0.559442065 | E147: -1.568781288 | F147: -0.9149724676 | H147: 0.559442065 | I147: -1.646999295 | J147: -0.9149724676 | L147: -4.911514698 | M147: 0.007361329691 | N147: 0.001743039266 | P147: =MAX(LN(Parameters!$C$21),MIN(LN(Parameters!$C$22),(1-Beta1)*P146+Const5+Psi*(_Tau2-N146))+M147*H147) -> -3.30984312 | Q147: 0.03652190285 | R147: 0.03477886358 | S147: 0.03477886358 | U147: 0.03683339283 | V147: -0.002492756043 | X147: 0.03446122182 | Y147: 0.03457409278 | Z147: 0.03477886358 | AA147: 0.03511753214 | AB147: 0.03538176587 | AC147: 0.03575569373 | AD147: 0.03599726019 | AE147: 0.03622161792 | AF147: 0.03652190285 | AG147: 0.03662566443 | AI147: 0 | AJ147: 0.03446122182 | AK147: 0.03457409278 | AL147: 0.03477886358 | AM147: 0.03511753214 | AN147: 0.03538176587 | AO147: 0.03575569373 | AP147: 0.03599726019 | AQ147: 0.03622161792 | AR147: 0.03652190285 | AS147: 0.03662566443 | AU147: 0.03477886358 | AV147: 0.03652190285 | AX147: 0.5435874095 | AY147: 89.93238782
B148: 122 | D148: -0.6935675929 | E148: -1.142065226 | F148: 0.2528743441 | H148: -0.6935675929 | I148: -0.9876795492 | J148: 0.2528743441 | L148: -4.828022096 | M148: 0.008002333467 | N148: 0.0004502812752 | P148: =MAX(LN(Parameters!$C$21),MIN(LN(Parameters!$C$22),(1-Beta1)*P147+Const5+Psi*(_Tau2-N147))+M148*H148) -> -3.312852474 | Q148: 0.03641216073 | R148: 0.03596187945 | S148: 0.03596187945 | U148: 0.03649262828 | V148: -0.0006439564451 | X148: 0.0358798227 | Y148: 0.03590898078 | Z148: 0.03596187945 | AA148: 0.03604936807 | AB148: 0.03611762787 | AC148: 0.03621422507 | AD148: 0.0362766292 | AE148: 0.03633458778 | AF148: 0.03641216073 | AG148: 0.03643896557 | AI148: 0 | AJ148: 0.0358798227 | AK148: 0.03590898078 | AL148: 0.03596187945 | AM148: 0.03604936807 | AN148: 0.03611762787 | AO148: 0.03621422507 | AP148: 0.0362766292 | AQ148: 0.03633458778 | AR148: 0.03641216073 | AS148: 0.03643896557 | AU148: 0.03596187945 | AV148: 0.03641216073 | AX148: 0.5403280253 | AY148: 90.47271584
B149: 123 | D149: 1.034633875 | E149: 2.474226419 | F149: 0.6093858727 | H149: 1.034633875 | I149: 2.229589108 | J149: 0.6093858727 | L149: -4.706910424 | M149: 0.009032641547 | N149: 0.004055414723 | P149: =MAX(LN(Parameters!$C$21),MIN(LN(Parameters!$C$22),(1-Beta1)*P148+Const5+Psi*(_Tau2-N148))+M149*H149) -> -3.300625565 | Q149: 0.0368601018 | R149: 0.03280468708 | S149: 0.03280468708 | U149: 0.03758482502 | V149: -0.005799731395 | X149: 0.03206565088 | Y149: 0.03232826031 | Z149: 0.03280468708 | AA149: 0.0335926449 | AB149: 0.03420742013 | AC149: 0.03507741347 | AD149: 0.03563945025 | AE149: 0.03616144862 | AF149: 0.0368601018 | AG149: 0.03710151704 | AI149: 0 | AJ149: 0.03206565088 | AK149: 0.03232826031 | AL149: 0.03280468708 | AM149: 0.0335926449 | AN149: 0.03420742013 | AO149: 0.03507741347 | AP149: 0.03563945025 | AQ149: 0.03616144862 | AR149: 0.0368601018 | AS149: 0.03710151704 | AU149: 0.03280468708 | AV149: 0.0368601018 | AX149: 0.53704881 | AY149: 91.00976465
B150: 124 | D150: 0.01158594218 | E150: -0.5026086819 | F150: 1.332711537 | H150: 0.01158594218 | I150: -0.4954847129 | J150: 1.332711537 | L150: -4.507541545 | M150: 0.01102553266 | N150: 0.003441102058 | P150: =MAX(LN(Parameters!$C$21),MIN(LN(Parameters!$C$22),(1-Beta1)*P149+Const5+Psi*(_Tau2-N149))+M150*H150) -> -3.298585822 | Q150: 0.03693536366 | R150: 0.0334942616 | S150: 0.0334942616 | U150: 0.03755030609 | V150: -0.00492119031 | X150: 0.03286717432 | Y150: 0.03309000378 | Z150: 0.0334942616 | AA150: 0.03416285988 | AB150: 0.03468450919 | AC150: 0.03542271627 | AD150: 0.03589961594 | AE150: 0.03634254219 | AF150: 0.03693536366 | AG150: 0.03714020941 | AI150: 0 | AJ150: 0.03286717432 | AK150: 0.03309000378 | AL150: 0.0334942616 | AM150: 0.03416285988 | AN150: 0.03468450919 | AO150: 0.03542271627 | AP150: 0.03589961594 | AQ150: 0.03634254219 | AR150: 0.03693536366 | AS150: 0.03714020941 | AU150: 0.0334942616 | AV150: 0.03693536366 | AX150: 0.5337829217 | AY150: 91.54354757
B151: 125 | D151: -0.7155530273 | E151: 0.9519563778 | F151: 0.6327338608 | H151: -0.7155530273 | I151: 1.07161546 | J151: 0.6327338608 | L151: -4.396569849 | M151: 0.01231952534 | N151: 0.005243065887 | P151: =MAX(LN(Parameters!$C$21),MIN(LN(Parameters!$C$22),(1-Beta1)*P150+Const5+Psi*(_Tau2-N150))+M151*H151) -> -3.305344891 | Q151: 0.0366865568 | R151: 0.03144349091 | S151: 0.03144349091 | U151: 0.03762351932 | V151: -0.007498215573 | X151: 0.03048802378 | Y151: 0.03082753987 | Z151: 0.03144349091 | AA151: 0.03246220665 | AB151: 0.03325702229 | AC151: 0.0343817981 | AD151: 0.03510843053 | AE151: 0.03578329908 | AF151: 0.0366865568 | AG151: 0.03699867186 | AI151: 0 | AJ151: 0.03048802378 | AK151: 0.03082753987 | AL151: 0.03144349091 | AM151: 0.03246220665 | AN151: 0.03325702229 | AO151: 0.0343817981 | AP151: 0.03510843053 | AQ151: 0.03578329908 | AR151: 0.0366865568 | AS151: 0.03699867186 | AU151: 0.03144349091 | AV151: 0.0366865568 | AX151: 0.5305584968 | AY151: 92.07410607
B152: 126 | D152: -0.06003858026 | E152: 1.461243201 | F152: 0.1993007255 | H152: -0.06003858026 | I152: 1.445590844 | J152: 0.1993007255 | L152: -4.339835264 | M152: 0.01303867597 | N152: 0.00755333573 | P152: =MAX(LN(Parameters!$C$21),MIN(LN(Parameters!$C$22),(1-Beta1)*P151+Const5+Psi*(_Tau2-N151))+M152*H152) -> -3.304490552 | Q152: 0.03671791294 | R152: 0.02916457721 | S152: 0.02916457721 | U152: 0.03806773243 | V152: -0.01080217964 | X152: 0.02778809937 | Y152: =$U152+$V152*Y$21 -> 0.02827721758 | Z152: 0.02916457721 | AA152: 0.03063217311 | AB152: 0.03177721105 | AC152: 0.03339760063 | AD152: 0.03444441156 | AE152: 0.03541664972 | AF152: 0.03671791294 | AG152: 0.03716755632 | AI152: 0 | AJ152: 0.02778809937 | AK152: 0.02827721758 | AL152: 0.02916457721 | AM152: 0.03063217311 | AN152: 0.03177721105 | AO152: 0.03339760063 | AP152: 0.03444441156 | AQ152: 0.03541664972 | AR152: 0.03671791294 | AS152: 0.03716755632 | AU152: 0.02916457721 | AV152: 0.03671791294 | AX152: 0.5273508435 | AY152: 92.60145691
B153: 127 | D153: -2.266128384 | E153: 1.553850555 | F153: 2.213557477 | H153: -2.266128384 | I153: 1.959978834 | J153: 2.213557477 | L153: -4.053952671 | M153: 0.01735364564 | N153: 0.01058706918 | P153: =MAX(LN(Parameters!$C$21),MIN(LN(Parameters!$C$22),(1-Beta1)*P152+Const5+Psi*(_Tau2-N152))+M153*H153) -> -3.342764683 | Q153: 0.03533912106 | R153: 0.02475205188 | S153: 0.02475205188 | U153: 0.03723108414 | V153: -0.01514078379 | X153: 0.02282272335 | Y153: 0.02350829176 | Z153: 0.02475205188 | AA153: 0.02680909527 | AB153: 0.02841402801 | AC153: 0.03068523337 | AD153: 0.03215248707 | AE153: 0.03351521647 | AF153: 0.03533912106 | AG153: 0.03596935991 | AI153: 0 | AJ153: 0.02282272335 | AK153: 0.02350829176 | AL153: 0.02475205188 | AM153: 0.02680909527 | AN153: 0.02841402801 | AO153: 0.03068523337 | AP153: 0.03215248707 | AQ153: 0.03351521647 | AR153: 0.03533912106 | AS153: 0.03596935991 | AU153: 0.02475205188 | AV153: 0.03533912106 | AX153: 0.5242809168 | AY153: 93.12573783
B154: 128 | D154: 0.6528818828 | E154: -0.8577336452 | F154: 1.032633428 | H154: 0.6528818828 | I154: -0.9671142157 | J154: 1.032633428 | L154: -3.915184605 | M154: 0.01993686786 | N154: 0.009128868036 | P154: =MAX(LN(Parameters!$C$21),MIN(LN(Parameters!$C$22),(1-Beta1)*P153+Const5+Psi*(_Tau2-N153))+M154*H154) -> -3.329265399 | Q154: 0.03581940836 | R154: 0.02669054033 | S154: =IF(R154<Minr2,Minr2,R154) -> 0.02669054033 | U154: 0.03745078349 | V154: -0.01305538056 | X154: 0.02502694626 | Y154: 0.02561808847 | Z154: 0.02669054033 | AA154: 0.02846425856 | AB154: 0.02984813723 | AC154: 0.03180652002 | AD154: 0.03307168275 | AE154: 0.03424671775 | AF154: 0.03581940836 | AG154: 0.03636284179 | AI154: 0 | AJ154: 0.02502694626 | AK154: =MAX(0.0001,Y154-$AI154*Y$18) -> 0.02561808847 | AL154: =MAX(0.0001,Z154-$AI154*Z$18) -> 0.02669054033 | AM154: =MAX(0.0001,AA154-$AI154*AA$18) -> 0.02846425856 | AN154: =MAX(0.0001,AB154-$AI154*AB$18) -> 0.02984813723 | AO154: =MAX(0.0001,AC154-$AI154*AC$18) -> 0.03180652002 | AP154: =MAX(0.0001,AD154-$AI154*AD$18) -> 0.03307168275 | AQ154: =MAX(0.0001,AE154-$AI154*AE$18) -> 0.03424671775 | AR154: =MAX(0.0001,AF154-$AI154*AF$18) -> 0.03581940836 | AS154: =MAX(0.0001,AG154-$AI154*AG$18) -> 0.03636284179 | AU154: 0.02669054033 | AV154: 0.03581940836 | AX154: 0.521187869 | AY154: 93.6469257
B155: 129 | D155: -1.313017252 | E155: -0.6652964324 | F155: 1.587611334 | H155: -1.313017252 | I155: =D155*Correl12+E155*Const1 -> -0.4008625253 | J155: =D155* Correl13+E155*Const2+F155*Const3 -> 1.587611334 | L155: =(1-Beta3)*L154+Const4+Sigma3*J155 -> -3.718207238 | M155: =EXP(L155) -> 0.02427745256 | N155: =(1-Beta2)*N154+Beta2*_Tau2+Phi*(P154-LN(_Tau1))+Sigma2*I155*Q154^Theta -> 0.00853458286 | P155: =MAX(LN(Parameters!$C$21),MIN(LN(Parameters!$C$22),(1-Beta1)*P154+Const5+Psi*(_Tau2-N154))+M155*H155) -> -3.360361019 | Q155: =EXP(P155) -> 0.03472272112 | R155: =Q155-N155 -> 0.02618813826 | S155: 0.02618813826 | U155: =S155-V155*$Z$21 -> 0.03624789446 | V155: =(S155-Q155)/($Z$21-$AF$21) -> -0.0122054812 | X155: 0.02463284341 | Y155: 0.02518550254 | Z155: 0.02618813826 | AA155: 0.02784638824 | AB155: 0.02914017704 | AC155: 0.03097106999 | AD155: 0.03215387121 | AE155: 0.03325241196 | AF155: 0.03472272112 | AG155: 0.03523077728 | AI155: 0 | AJ155: =MAX(0.0001,X155-$AI155*X$18) -> 0.02463284341 | AK155: 0.02518550254 | AL155: 0.02618813826 | AM155: 0.02784638824 | AN155: 0.02914017704 | AO155: 0.03097106999 | AP155: 0.03215387121 | AQ155: 0.03325241196 | AR155: 0.03472272112 | AS155: 0.03523077728 | AU155: =AL155 -> 0.02618813826 | AV155: =AR155 -> 0.03472272112 | AX155: 0.5182061374 | AY155: 94.16513184
B156: 130 | D156: 0.3059359554 | E156: 1.134173288 | F156: -0.3654282576 | H156: =D156 -> 0.3059359554 | I156: 1.05434804 | J156: -0.3654282576 | L156: -3.753495653 | M156: 0.02343567949 | N156: 0.01006420814 | P156: =MAX(LN(Parameters!$C$21),MIN(LN(Parameters!$C$22),(1-Beta1)*P155+Const5+Psi*(_Tau2-N155))+M156*H156) -> -3.352102285 | Q156: 0.03501067428 | R156: 0.02494646613 | S156: 0.02494646613 | U156: 0.03680919943 | V156: -0.01439302955 | X156: =$U156+$V156*X$21 -> 0.02311242089 | Y156: 0.02376413129 | Z156: 0.02494646613 | AA156: 0.02690191882 | AB156: 0.02842758913 | AC156: 0.03058662702 | AD156: 0.03198141782 | AE156: 0.03327684643 | AF156: 0.03501067428 | AG156: 0.03560978767 | AI156: 0 | AJ156: 0.02311242089 | AK156: 0.02376413129 | AL156: 0.02494646613 | AM156: 0.02690191882 | AN156: 0.02842758913 | AO156: 0.03058662702 | AP156: 0.03198141782 | AQ156: 0.03327684643 | AR156: 0.03501067428 | AS156: 0.03560978767 | AU156: 0.02494646613 | AV156: 0.03501067428 | AX156: =AX155*(1+AV156/2)^-0.33333333 -> 0.5152171612 | AY156: 94.680349
B157: =B156+1 -> 131 | D157: -0.292507512 | E157: -1.338417201 | F157: 0.3212424615 | H157: -0.292507512 | I157: -1.257371037 | J157: 0.3212424615 | L157: -3.708480581 | M157: 0.02451474316 | N157: 0.008209830866 | P157: =MAX(LN(Parameters!$C$21),MIN(LN(Parameters!$C$22),(1-Beta1)*P156+Const5+Psi*(_Tau2-N156))+M157*H157) -> -3.358611066 | Q157: 0.03478353745 | R157: 0.02657370659 | S157: 0.02657370659 | U157: 0.03625067596 | V157: -0.01174104674 | X157: 0.02507759273 | Y157: 0.02560922245 | Z157: 0.02657370659 | AA157: 0.028168858 | AB157: 0.02941341644 | AC157: 0.03117464153 | AD157: 0.03231243562 | AE157: 0.03336917547 | AF157: 0.03478353745 | AG157: 0.03527226141 | AI157: 0 | AJ157: 0.02507759273 | AK157: 0.02560922245 | AL157: 0.02657370659 | AM157: 0.028168858 | AN157: 0.02941341644 | AO157: 0.03117464153 | AP157: 0.03231243562 | AQ157: 0.03336917547 | AR157: 0.03478353745 | AS157: 0.03527226141 | AU157: 0.02657370659 | AV157: 0.03478353745 | AX157: 0.5122644846 | AY157: =AY156+AX157 -> 95.19261348
B158: 132 | D158: 1.870350306 | E158: 0.9317912233 | F158: 1.223659941 | H158: 1.870350306 | I158: 0.5554094985 | J158: 1.223659941 | L158: -3.561587817 | M158: 0.0283937049 | N158: 0.009031306421 | P158: =MAX(LN(Parameters!$C$21),MIN(LN(Parameters!$C$22),(1-Beta1)*P157+Const5+Psi*(_Tau2-N157))+M158*H158) -> -3.304343161 | Q158: 0.03672332524 | R158: 0.02769201882 | S158: 0.02769201882 | U158: 0.03833726561 | V158: -0.01291585571 | X158: 0.02604620383 | Y158: 0.02663102842 | Z158: 0.02769201882 | AA158: 0.02944678105 | AB158: 0.03081587 | AC158: 0.03275332325 | AD158: 0.03400496499 | AE158: 0.03516744222 | AF158: 0.03672332524 | AG158: 0.03726095091 | AI158: 0 | AJ158: 0.02604620383 | AK158: 0.02663102842 | AL158: 0.02769201882 | AM158: 0.02944678105 | AN158: 0.03081587 | AO158: 0.03275332325 | AP158: 0.03400496499 | AQ158: 0.03516744222 | AR158: 0.03672332524 | AS158: 0.03726095091 | AU158: 0.02769201882 | AV158: 0.03672332524 | AX158: 0.5091669823 | AY158: 95.70178046
B159: 133 | D159: -0.3268693564 | E159: -0.889171731 | F159: 0.581190592 | H159: -0.3268693564 | I159: -0.8098847327 | J159: 0.581190592 | L159: -3.494385536 | M159: 0.03036740238 | N159: 0.007806538301 | P159: =MAX(LN(Parameters!$C$21),MIN(LN(Parameters!$C$22),(1-Beta1)*P158+Const5+Psi*(_Tau2-N158))+M159*H159) -> -3.313590543 | Q159: 0.03638529596 | R159: 0.02857875766 | S159: 0.02857875766 | U159: 0.03778036403 | V159: -0.01116428981 | X159: 0.02715613759 | Y159: 0.027661652 | Z159: 0.02857875766 | AA159: 0.03009555024 | AB159: 0.03127897208 | AC159: 0.03295368029 | AD159: 0.03403558237 | AE159: 0.03504041186 | AF159: 0.03638529596 | AG159: 0.03685001227 | AI159: 0 | AJ159: 0.02715613759 | AK159: 0.027661652 | AL159: 0.02857875766 | AM159: 0.03009555024 | AN159: 0.03127897208 | AO159: 0.03295368029 | AP159: 0.03403558237 | AQ159: 0.03504041186 | AR159: 0.03638529596 | AS159: 0.03685001227 | AU159: 0.02857875766 | AV159: 0.03638529596 | AX159: 0.5061162107 | AY159: 96.20789667
B160: 134 | D160: 0.5892868389 | E160: -1.370668052 | F160: 1.319997084 | H160: 0.5892868389 | I160: -1.458300109 | J160: 1.319997084 | L160: -3.344990541 | M160: 0.0352605487 | N160: 0.005645532754 | P160: =MAX(LN(Parameters!$C$21),MIN(LN(Parameters!$C$22),(1-Beta1)*P159+Const5+Psi*(_Tau2-N159))+M160*H160) -> -3.291777905 | Q160: 0.03718767443 | R160: 0.03154214167 | S160: 0.03154214167 | U160: 0.03819655983 | V160: -0.008073791656 | X160: 0.03051333122 | Y160: 0.03087890916 | Z160: 0.03154214167 | AA160: 0.03263905581 | AB160: 0.03349488287 | AC160: 0.03470599844 | AD160: 0.03548840844 | AE160: 0.03621508107 | AF160: 0.03718767443 | AG160: 0.03752374799 | AI160: 0 | AJ160: 0.03051333122 | AK160: 0.03087890916 | AL160: 0.03154214167 | AM160: 0.03263905581 | AN160: 0.03349488287 | AO160: 0.03470599844 | AP160: 0.03548840844 | AQ160: 0.03621508107 | AR160: 0.03718767443 | AS160: 0.03752374799 | AU160: 0.03154214167 | AV160: 0.03718767443 | AX160: 0.5030176606 | AY160: 96.71091434
B161: 135 | D161: 0.189906929 | E161: -0.1602494405 | F161: 1.573639748 | H161: 0.189906929 | I161: -0.1937253613 | J161: 1.573639748 | L161: -3.172431833 | M161: 0.04190157626 | N161: 0.005449039747 | P161: =MAX(LN(Parameters!$C$21),MIN(LN(Parameters!$C$22),(1-Beta1)*P160+Const5+Psi*(_Tau2-N160))+M161*H161) -> -3.282353676 | Q161: 0.03753979623 | R161: 0.03209075649 | S161: 0.03209075649 | U161: 0.03851356733 | V161: -0.007792782996 | X161: 0.03109775383 | Y161: 0.03145060781 | Z161: 0.03209075649 | AA161: 0.03314949248 | AB161: 0.03397553245 | AC161: 0.03514449508 | AD161: 0.03589967327 | AE161: 0.03660105403 | AF161: 0.03753979623 | AG161: 0.03786417274 | AI161: 0 | AJ161: 0.03109775383 | AK161: 0.03145060781 | AL161: 0.03209075649 | AM161: 0.03314949248 | AN161: 0.03397553245 | AO161: 0.03514449508 | AP161: 0.03589967327 | AQ161: 0.03660105403 | AR161: 0.03753979623 | AS161: 0.03786417274 | AU161: 0.03209075649 | AV161: 0.03753979623 | AX161: 0.4999092795 | AY161: 97.21082362
B162: 136 | D162: 2.591548879 | E162: 0.2065365846 | F162: -1.048764961 | H162: 2.591548879 | I162: -0.2948044701 | J162: -1.048764961 | L162: -3.308065277 | M162: 0.03658689083 | N162: 0.005099482459 | P162: =MAX(LN(Parameters!$C$21),MIN(LN(Parameters!$C$22),(1-Beta1)*P161+Const5+Psi*(_Tau2-N161))+M162*H162) -> -3.186068654 | Q162: 0.04133405039 | R162: 0.03623456793 | S162: 0.03623456793 | U162: 0.04224535383 | V162: -0.007292873981 | X162: 0.03530526665 | Y162: =$U162+$V162*Y$21 -> 0.03563548496 | Z162: 0.03623456793 | AA162: 0.03722538574 | AB162: 0.03799843504 | AC162: 0.03909240842 | AD162: 0.03979914173 | AE162: 0.04045552874 | AF162: 0.04133405039 | AG162: 0.04163761806 | AI162: 0 | AJ162: 0.03530526665 | AK162: 0.03563548496 | AL162: 0.03623456793 | AM162: 0.03722538574 | AN162: 0.03799843504 | AO162: 0.03909240842 | AP162: 0.03979914173 | AQ162: 0.04045552874 | AR162: 0.04133405039 | AS162: 0.04163761806 | AU162: 0.03623456793 | AV162: 0.04133405039 | AX162: 0.4965121003 | AY162: 97.70733572
B163: 137 | D163: 0.01566784628 | E163: -0.3541683009 | F163: -2.013903759 | H163: 0.01566784628 | I163: -0.3505888083 | J163: -2.013903759 | L163: -3.549156823 | M163: 0.02874886983 | N163: 0.004636525512 | P163: =MAX(LN(Parameters!$C$21),MIN(LN(Parameters!$C$22),(1-Beta1)*P162+Const5+Psi*(_Tau2-N162))+M163*H163) -> -3.184552043 | Q163: 0.04139678561 | R163: 0.0367602601 | S163: 0.0367602601 | U163: 0.04222535629 | V163: -0.006630789799 | X163: 0.03591532551 | Y163: 0.03621556492 | Z163: 0.0367602601 | AA163: 0.03766112643 | AB163: 0.03836399438 | AC163: 0.0393586513 | AD163: 0.04000122377 | AE163: 0.04059802063 | AF163: 0.04139678561 | AG163: 0.04167279387 | AI163: 0 | AJ163: 0.03591532551 | AK163: 0.03621556492 | AL163: 0.0367602601 | AM163: 0.03766112643 | AN163: 0.03836399438 | AO163: 0.0393586513 | AP163: 0.04000122377 | AQ163: 0.04059802063 | AR163: 0.04139678561 | AS163: 0.04167279387 | AU163: 0.0367602601 | AV163: 0.04139678561 | AX163: 0.4931329553 | AY163: 98.20046867
B164: 138 | D164: -0.2833693821 | E164: -0.243886757 | F164: 0.3667047198 | H164: -0.2833693821 | I164: -0.1849522368 | J164: 0.3667047198 | L164: -3.507094188 | M164: 0.0299839156 | N164: 0.004469810921 | P164: =MAX(LN(Parameters!$C$21),MIN(LN(Parameters!$C$22),(1-Beta1)*P163+Const5+Psi*(_Tau2-N163))+M164*H164) -> -3.19187361 | Q164: 0.04109480311 | R164: 0.03662499219 | S164: 0.03662499219 | U164: 0.04189358105 | V164: -0.006392367858 | X164: 0.03581043874 | Y164: 0.03609988251 | Z164: 0.03662499219 | AA164: 0.03749346626 | AB164: 0.03817106133 | AC164: 0.03912995357 | AD164: 0.0397494212 | AE164: 0.04032475916 | AF164: 0.04109480311 | AG164: 0.041360887 | AI164: 0 | AJ164: 0.03581043874 | AK164: 0.03609988251 | AL164: 0.03662499219 | AM164: 0.03749346626 | AN164: 0.03817106133 | AO164: 0.03912995357 | AP164: 0.0397494212 | AQ164: 0.04032475916 | AR164: 0.04109480311 | AS164: 0.041360887 | AU164: 0.03662499219 | AV164: 0.04109480311 | AX164: 0.4898009611 | AY164: 98.69026963
B165: 139 | D165: 1.09130278 | E165: 0.8306811262 | F165: -2.013878897 | H165: 1.09130278 | I165: 0.6057337223 | J165: -2.013878897 | L165: -3.740219731 | M165: 0.0237488842 | N165: 0.005656238175 | P165: =MAX(LN(Parameters!$C$21),MIN(LN(Parameters!$C$22),(1-Beta1)*P164+Const5+Psi*(_Tau2-N164))+M165*H165) -> -3.164702212 | Q165: 0.04222671457 | R165: 0.0365704764 | S165: 0.0365704764 | U165: 0.04323751308 | V165: -0.008089101697 | X165: 0.03553971505 | Y165: 0.03590598622 | Z165: 0.0365704764 | AA165: 0.03766947057 | AB165: 0.03852692051 | AC165: 0.03974033267 | AD165: 0.04052422633 | AE165: 0.04125227693 | AF165: 0.04222671457 | AG165: 0.04256342542 | AI165: 0 | AJ165: 0.03553971505 | AK165: 0.03590598622 | AL165: 0.0365704764 | AM165: 0.03766947057 | AN165: 0.03852692051 | AO165: 0.03974033267 | AP165: 0.04052422633 | AQ165: 0.04125227693 | AR165: 0.04222671457 | AS165: 0.04256342542 | AU165: 0.0365704764 | AV165: 0.04222671457 | AX165: 0.486401584 | AY165: 99.17667122
B166: 140 | D166: -1.088253578 | E166: 0.8582038607 | F166: 0.6512432392 | H166: -1.088253578 | I166: 1.05115399 | J166: 0.6512432392 | L166: -3.657822038 | M166: 0.02578861823 | N166: 0.007624866516 | P166: =MAX(LN(Parameters!$C$21),MIN(LN(Parameters!$C$22),(1-Beta1)*P165+Const5+Psi*(_Tau2-N165))+M166*H166) -> -3.191949447 | Q166: 0.04109168674 | R166: 0.03346682022 | S166: 0.03346682022 | U166: 0.04245428914 | V166: -0.01090447728 | X166: 0.03207730701 | Y166: 0.03257105722 | Z166: 0.03346682022 | AA166: 0.03494831439 | AB166: 0.03610419594 | AC166: 0.03773993076 | AD166: 0.0387966551 | AE166: 0.03977810044 | AF166: 0.04109168674 | AG166: 0.04154558829 | AI166: 0 | AJ166: 0.03207730701 | AK166: 0.03257105722 | AL166: 0.03346682022 | AM166: 0.03494831439 | AN166: 0.03610419594 | AO166: 0.03773993076 | AP166: 0.0387966551 | AQ166: 0.03977810044 | AR166: 0.04109168674 | AS166: 0.04154558829 | AU166: 0.03346682022 | AV166: 0.04109168674 | AX166: 0.4831153181 | AY166: 99.65978653
B167: 141 | D167: -0.08529040197 | E167: 0.5573166973 | F167: 1.819961011 | H167: -0.08529040197 | I167: 0.5633242479 | J167: 1.819961011 | L167: -3.444447093 | M167: 0.03192240729 | N167: 0.008654200823 | P167: =MAX(LN(Parameters!$C$21),MIN(LN(Parameters!$C$22),(1-Beta1)*P166+Const5+Psi*(_Tau2-N166))+M167*H167) -> -3.194211499 | Q167: 0.04099884027 | R167: 0.03234463945 | S167: 0.03234463945 | U167: 0.04254538995 | V167: -0.01237654929 | X167: 0.03076754609 | Y167: 0.0313279511 | Z167: 0.03234463945 | AA167: 0.03402613093 | AB167: 0.03533805305 | AC167: 0.03719460721 | AD167: 0.03839398618 | AE167: 0.03950792373 | AF167: 0.04099884027 | AG167: 0.04151401718 | AI167: 0 | AJ167: 0.03076754609 | AK167: 0.0313279511 | AL167: 0.03234463945 | AM167: 0.03402613093 | AN167: 0.03533805305 | AO167: 0.03719460721 | AP167: 0.03839398618 | AQ167: 0.03950792373 | AR167: 0.04099884027 | AS167: 0.04151401718 | AU167: 0.03234463945 | AV167: 0.04099884027 | AX167: 0.4798585314 | AY167: 100.1396451
B168: 142 | D168: -0.234869002 | E168: 0.8613989015 | F168: -0.7244302753 | H168: -0.234869002 | I168: 0.8904653685 | J168: -0.7244302753 | L168: -3.531934394 | M168: 0.02924828341 | N168: 0.0102096222 | P168: =MAX(LN(Parameters!$C$21),MIN(LN(Parameters!$C$22),(1-Beta1)*P167+Const5+Psi*(_Tau2-N167))+M168*H168) -> -3.200867898 | Q168: 0.04072684188 | R168: 0.03051721967 | S168: 0.03051721967 | U168: 0.04255135326 | V168: -0.01460098916 | X168: 0.02865667498 | Y168: 0.02931780171 | Z168: 0.03051721967 | AA168: 0.03250092598 | AB168: 0.03404864015 | AC168: 0.03623887318 | AD168: 0.0376538168 | AE168: 0.03896796258 | AF168: 0.04072684188 | AG168: 0.04133461164 | AI168: 0 | AJ168: 0.02865667498 | AK168: 0.02931780171 | AL168: 0.03051721967 | AM168: 0.03250092598 | AN168: 0.03404864015 | AO168: 0.03623887318 | AP168: 0.0376538168 | AQ168: 0.03896796258 | AR168: 0.04072684188 | AS168: 0.04133461164 | AU168: 0.03051721967 | AV168: 0.04072684188 | AX168: 0.476644874 | AY168: 100.6162899
B169: 143 | D169: 0.3153935306 | E169: 1.566083496 | F169: 0.2565356608 | H169: 0.3153935306 | I169: 1.476409491 | J169: 0.2565356608 | L169: -3.503218151 | M169: 0.03010035987 | N169: 0.01270176692 | P169: =MAX(LN(Parameters!$C$21),MIN(LN(Parameters!$C$22),(1-Beta1)*P168+Const5+Psi*(_Tau2-N168))+M169*H169) -> -3.191518849 | Q169: 0.04110938454 | R169: 0.02840761762 | S169: 0.02840761762 | U169: 0.04337925485 | V169: -0.01816505621 | X169: 0.02609291835 | Y169: 0.02691542456 | Z169: 0.02840761762 | AA169: 0.03087554196 | AB169: 0.0328010495 | AC169: 0.03552591326 | AD169: 0.03728624128 | AE169: 0.03892116695 | AF169: 0.04110938454 | AG169: 0.04186550947 | AI169: 0 | AJ169: 0.02609291835 | AK169: 0.02691542456 | AL169: 0.02840761762 | AM169: 0.03087554196 | AN169: 0.0328010495 | AO169: 0.03552591326 | AP169: 0.03728624128 | AQ169: 0.03892116695 | AR169: 0.04110938454 | AS169: 0.04186550947 | AU169: 0.02840761762 | AV169: 0.04110938454 | AX169: 0.4734231589 | AY169: 101.0897131
B170: 144 | D170: 0.3054300392 | E170: 0.5721845942 | F170: -1.209994548 | H170: 0.3054300392 | I170: 0.5029090107 | J170: -1.209994548 | L170: -3.644140502 | M170: 0.02614387082 | N170: 0.01349226501 | P170: =MAX(LN(Parameters!$C$21),MIN(LN(Parameters!$C$22),(1-Beta1)*P169+Const5+Psi*(_Tau2-N169))+M170*H170) -> -3.184352845 | Q170: 0.04140503259 | R170: 0.02791276758 | S170: 0.02791276758 | U170: 0.04381616893 | V170: -0.01929556366 | X170: 0.02545401235 | Y170: 0.02632770746 | Z170: 0.02791276758 | AA170: 0.0305342839 | AB170: 0.03257962596 | AC170: 0.03547407239 | AD170: 0.03734395492 | AE170: 0.03908063066 | AF170: 0.04140503259 | AG170: 0.04220821517 | AI170: 0 | AJ170: 0.02545401235 | AK170: 0.02632770746 | AL170: 0.02791276758 | AM170: 0.0305342839 | AN170: 0.03257962596 | AO170: 0.03547407239 | AP170: 0.03734395492 | AQ170: 0.03908063066 | AR170: 0.04140503259 | AS170: 0.04220821517 | AU170: 0.02791276758 | AV170: 0.04140503259 | AX170: 0.4702005186 | AY170: 101.5599136
B171: 145 | D171: 1.424662493 | E171: -0.5832104495 | F171: -0.02706089757 | H171: 1.424662493 | I171: -0.8458556572 | J171: -0.02706089757 | L171: -3.643517301 | M171: 0.02616016876 | N171: 0.01195266148 | P171: =MAX(LN(Parameters!$C$21),MIN(LN(Parameters!$C$22),(1-Beta1)*P170+Const5+Psi*(_Tau2-N170))+M171*H171) -> -3.14813795 | Q171: 0.04293199402 | R171: 0.03097933254 | S171: 0.03097933254 | U171: 0.04506799538 | V171: -0.01709374521 | X171: 0.02880114608 | Y171: 0.02957514377 | Z171: 0.03097933254 | AA171: 0.0333017074 | AB171: 0.0351136553 | AC171: 0.0376778162 | AD171: 0.03933432627 | AE171: 0.04087282979 | AF171: 0.04293199402 | AG171: 0.04364352537 | AI171: 0 | AJ171: 0.02880114608 | AK171: 0.02957514377 | AL171: 0.03097933254 | AM171: 0.0333017074 | AN171: 0.0351136553 | AO171: 0.0376778162 | AP171: 0.03933432627 | AQ171: 0.04087282979 | AR171: 0.04293199402 | AS171: 0.04364352537 | AU171: 0.03097933254 | AV171: 0.04293199402 | AX171: 0.4668834353 | AY171: 102.0267971
B172: 146 | D172: -0.2017928517 | E172: -1.223261096 | F172: 0.5904952857 | H172: -0.2017928517 | I172: -1.161771237 | J172: 0.5904952857 | L172: -3.571968006 | M172: 0.02810049729 | N172: 0.009845475668 | P172: =MAX(LN(Parameters!$C$21),MIN(LN(Parameters!$C$22),(1-Beta1)*P171+Const5+Psi*(_Tau2-N171))+M172*H172) -> -3.154659853 | Q172: 0.0426529068 | R172: 0.03280743113 | S172: 0.03280743113 | U172: 0.04441234334 | V172: -0.01408021577 | X172: 0.03101324647 | Y172: =$U172+$V172*Y$21 -> 0.0316507928 | Z172: 0.03280743113 | AA172: 0.03472038459 | AB172: 0.03621289645 | AC172: 0.03832501046 | AD172: 0.03968948729 | AE172: 0.04095676144 | AF172: 0.0426529068 | AG172: 0.04323899924 | AI172: 0 | AJ172: 0.03101324647 | AK172: 0.0316507928 | AL172: 0.03280743113 | AM172: 0.03472038459 | AN172: 0.03621289645 | AO172: 0.03832501046 | AP172: 0.03968948729 | AQ172: 0.04095676144 | AR172: 0.0426529068 | AS172: 0.04323899924 | AU172: 0.03280743113 | AV172: 0.0426529068 | AX172: 0.4636108652 | AY172: 102.4904079
B173: 147 | D173: 0.733439191 | E173: -0.3831318447 | F173: -0.2913918308 | H173: 0.733439191 | I173: -0.5168042182 | J173: -0.2913918308 | L173: -3.604601408 | M173: 0.02719828367 | N173: 0.008948115815 | P173: =MAX(LN(Parameters!$C$21),MIN(LN(Parameters!$C$22),(1-Beta1)*P172+Const5+Psi*(_Tau2-N172))+M173*H173) -> -3.13499954 | Q173: 0.04349977383 | R173: 0.03455165801 | S173: 0.03455165801 | U173: 0.04509884761 | V173: -0.01279688312 | X173: 0.03292100322 | Y173: 0.03350044077 | Z173: 0.03455165801 | AA173: 0.0362902565 | AB173: 0.03764673428 | AC173: 0.03956634095 | AD173: 0.04080645337 | AE173: 0.0419582226 | AF173: 0.04349977383 | AG173: 0.04403244723 | AI173: 0 | AJ173: 0.03292100322 | AK173: 0.03350044077 | AL173: 0.03455165801 | AM173: 0.0362902565 | AN173: 0.03764673428 | AO173: 0.03956634095 | AP173: 0.04080645337 | AQ173: 0.0419582226 | AR173: 0.04349977383 | AS173: 0.04403244723 | AU173: 0.03455165801 | AV173: 0.04349977383 | AX173: 0.4602976307 | AY173: 102.9507055
B174: 148 | D174: -1.505189831 | E174: 0.8890618014 | F174: -2.110649523 | H174: -1.505189831 | I174: 1.16147725 | J174: -2.110649523 | L174: -3.844943664 | M174: 0.02138760641 | N174: 0.01108886959 | P174: =MAX(LN(Parameters!$C$21),MIN(LN(Parameters!$C$22),(1-Beta1)*P173+Const5+Psi*(_Tau2-N173))+M174*H174) -> -3.167354182 | Q174: 0.04211487892 | R174: 0.03102600934 | S174: 0.03102600934 | U174: 0.04409651628 | V174: -0.0158584188 | X174: 0.0290052355 | Y174: 0.02972329812 | Z174: 0.03102600934 | AA174: 0.0331805514 | AB174: 0.03486155391 | AC174: 0.03724040868 | AD174: 0.03877720651 | AE174: 0.04020452585 | AF174: 0.04211487892 | AG174: 0.0427749895 | AI174: 0 | AJ174: 0.0290052355 | AK174: 0.02972329812 | AL174: 0.03102600934 | AM174: 0.0331805514 | AN174: 0.03486155391 | AO174: 0.03724040868 | AP174: 0.03877720651 | AQ174: 0.04020452585 | AR174: 0.04211487892 | AS174: 0.0427749895 | AU174: 0.03102600934 | AV174: 0.04211487892 | AX174: 0.4571113604 | AY174: 103.4078169
B175: 149 | D175: -0.9381299563 | E175: -1.054075042 | F175: -0.4995594372 | H175: -0.9381299563 | I175: -0.8543772758 | J175: -0.4995594372 | L175: -3.890571687 | M175: 0.02043366104 | N175: 0.009577404592 | P175: =MAX(LN(Parameters!$C$21),MIN(LN(Parameters!$C$22),(1-Beta1)*P174+Const5+Psi*(_Tau2-N174))+M175*H175) -> -3.18705986 | Q175: 0.04129310013 | R175: 0.03171569554 | S175: 0.03171569554 | U175: 0.04300463102 | V175: -0.01369684185 | X175: 0.02997036266 | Y175: 0.03059054998 | Z175: 0.03171569554 | AA175: 0.0335765634 | AB175: 0.03502843738 | AC175: 0.03708304308 | AD175: 0.03841036814 | AE175: 0.03964313716 | AF175: 0.04129310013 | AG175: 0.04186323454 | AI175: 0 | AJ175: 0.02997036266 | AK175: 0.03059054998 | AL175: 0.03171569554 | AM175: 0.0335765634 | AN175: 0.03502843738 | AO175: 0.03708304308 | AP175: 0.03841036814 | AQ175: 0.03964313716 | AR175: 0.04129310013 | AS175: 0.04186323454 | AU175: 0.03171569554 | AV175: 0.04129310013 | AX175: 0.4540080543 | AY175: 103.861825
B176: 150 | D176: 0.9776487141 | E176: -2.485425293 | F176: -0.8408980186 | H176: 0.9776487141 | I176: -2.626877581 | J176: -0.8408980186 | L176: -3.973590522 | M176: 0.01880578917 | N176: 0.005095699273 | P176: =MAX(LN(Parameters!$C$21),MIN(LN(Parameters!$C$22),(1-Beta1)*P175+Const5+Psi*(_Tau2-N175))+M176*H176) -> -3.168730006 | Q176: 0.04205697612 | R176: 0.03696127685 | S176: 0.03696127685 | U176: 0.04296760348 | V176: -0.007287463569 | X176: 0.03603266499 | Y176: 0.03636263832 | Z176: 0.03696127685 | AA176: 0.03795135959 | AB176: 0.03872383538 | AC176: 0.03981699717 | AD176: 0.04052320618 | AE176: 0.04117910623 | AF176: 0.04205697612 | AG176: 0.04236031858 | AI176: 0 | AJ176: 0.03603266499 | AK176: 0.03636263832 | AL176: 0.03696127685 | AM176: 0.03795135959 | AN176: 0.03872383538 | AO176: 0.03981699717 | AP176: 0.04052320618 | AQ176: 0.04117910623 | AR176: 0.04205697612 | AS176: 0.04236031858 | AU176: 0.03696127685 | AV176: 0.04205697612 | AX176: 0.4508695832 | AY176: 104.3126945
B177: 151 | D177: 1.030977392 | E177: -2.330287636 | F177: 1.222245266 | H177: 1.030977392 | I177: -2.484862867 | J177: 1.222245266 | L177: -3.816253241 | M177: 0.02201011318 | N177: 0.000902507569 | P177: =MAX(LN(Parameters!$C$21),MIN(LN(Parameters!$C$22),(1-Beta1)*P176+Const5+Psi*(_Tau2-N176))+M177*H177) -> -3.145059201 | Q177: 0.04306437453 | R177: 0.04216186696 | S177: 0.04216186696 | U177: 0.04322565722 | V177: -0.001290694501 | X177: 0.04199739901 | Y177: 0.04205584112 | Z177: 0.04216186696 | AA177: 0.04233722213 | AB177: 0.04247403657 | AC177: 0.04266764823 | AD177: 0.04279272605 | AE177: 0.04290889357 | AF177: 0.04306437453 | AG177: 0.04311810001 | AI177: 0 | AJ177: 0.04199739901 | AK177: 0.04205584112 | AL177: 0.04216186696 | AM177: 0.04233722213 | AN177: 0.04247403657 | AO177: 0.04266764823 | AP177: 0.04279272605 | AQ177: 0.04290889357 | AR177: 0.04306437453 | AS177: 0.04311810001 | AU177: 0.04216186696 | AV177: 0.04306437453 | AX177: 0.4476792026 | AY177: 104.7603737
B178: 152 | D178: -0.419136572 | E178: 1.109434878 | F178: -1.394423037 | H178: -0.419136572 | I178: 1.169261919 | J178: -1.394423037 | L178: -3.965840047 | M178: 0.01895210927 | N178: 0.003250203122 | P178: =MAX(LN(Parameters!$C$21),MIN(LN(Parameters!$C$22),(1-Beta1)*P177+Const5+Psi*(_Tau2-N177))+M178*H178) -> -3.151089156 | Q178: 0.04280547961 | R178: 0.03955527649 | S178: 0.03955527649 | U178: 0.04338630743 | V178: -0.004648181845 | X178: 0.03896297757 | Y178: 0.03917344531 | Z178: 0.03955527649 | AA178: 0.04018678354 | AB178: 0.04067949378 | AC178: 0.04137674801 | AD178: 0.04182719114 | AE178: 0.04224554557 | AF178: 0.04280547961 | AG178: 0.04299896132 | AI178: 0 | AJ178: 0.03896297757 | AK178: 0.03917344531 | AL178: 0.03955527649 | AM178: 0.04018678354 | AN178: 0.04067949378 | AO178: 0.04137674801 | AP178: 0.04182719114 | AQ178: 0.04224554557 | AR178: 0.04280547961 | AS178: 0.04299896132 | AU178: 0.03955527649 | AV178: 0.04280547961 | AX178: 0.444530175 | AY178: 105.2049039
B179: 153 | D179: 1.317725881 | E179: 1.57069869 | F179: 0.3752966881 | H179: 1.317725881 | I179: 1.288521105 | J179: 0.3752966881 | L179: -3.906118785 | M179: 0.0201184337 | N179: 0.005732853587 | P179: =MAX(LN(Parameters!$C$21),MIN(LN(Parameters!$C$22),(1-Beta1)*P178+Const5+Psi*(_Tau2-N178))+M179*H179) -> -3.123225091 | Q179: 0.04401498694 | R179: 0.03828213335 | S179: 0.03828213335 | U179: 0.04503947701 | V179: -0.008198670963 | X179: 0.03723741004 | Y179: 0.03760864246 | Z179: 0.03828213335 | AA179: 0.03939601372 | AB179: 0.04026507808 | AC179: 0.04149492626 | AD179: 0.04228943799 | AE179: 0.04302735025 | AF179: 0.04401498694 | AG179: 0.04435625863 | AI179: 0 | AJ179: 0.03723741004 | AK179: 0.03760864246 | AL179: 0.03828213335 | AM179: 0.03939601372 | AN179: 0.04026507808 | AO179: 0.04149492626 | AP179: 0.04228943799 | AQ179: 0.04302735025 | AR179: 0.04401498694 | AS179: 0.04435625863 | AU179: 0.03828213335 | AV179: 0.04401498694 | AX179: 0.4413162168 | AY179: 105.6462201
B180: 154 | D180: 1.289822862 | E180: 0.8716847292 | F180: -0.09410151097 | H180: 1.289822862 | I180: 0.6078647909 | J180: -0.09410151097 | L180: -3.90271613 | M180: 0.02018700639 | N180: 0.006976360686 | P180: =MAX(LN(Parameters!$C$21),MIN(LN(Parameters!$C$22),(1-Beta1)*P179+Const5+Psi*(_Tau2-N179))+M180*H180) -> -3.096600506 | Q180: 0.04520260749 | R180: 0.0382262468 | S180: 0.0382262468 | U180: 0.0464493186 | V180: -0.009977035854 | X180: 0.03695491368 | Y180: 0.03740666973 | Z180: 0.0382262468 | AA180: 0.03958173777 | AB180: 0.04063930994 | AC180: 0.04213592316 | AD180: 0.04310277158 | AE180: 0.04400074359 | AF180: 0.04520260749 | AG180: 0.04561790406 | AI180: 0 | AJ180: 0.03695491368 | AK180: 0.03740666973 | AL180: 0.0382262468 | AM180: 0.03958173777 | AN180: 0.04063930994 | AO180: 0.04213592316 | AP180: 0.04310277158 | AQ180: 0.04400074359 | AR180: 0.04520260749 | AS180: 0.04561790406 | AU180: 0.0382262468 | AV180: 0.04520260749 | AX180: 0.4380406746 | AY180: 106.0842608
B181: 155 | D181: -0.6814803855 | E181: 0.4394263153 | F181: 1.710721419 | H181: -0.6814803855 | I181: 0.5620771245 | J181: 1.710721419 | L181: -3.692093508 | M181: 0.02491977764 | N181: 0.008135897412 | P181: =MAX(LN(Parameters!$C$21),MIN(LN(Parameters!$C$22),(1-Beta1)*P180+Const5+Psi*(_Tau2-N180))+M181*H181) -> -3.113444358 | Q181: 0.04444759792 | R181: 0.03631170051 | S181: 0.03631170051 | U181: 0.04590152415 | V181: -0.011635313 | X181: 0.03482905988 | Y181: 0.03535590202 | Z181: 0.03631170051 | AA181: 0.03789248682 | AB181: 0.03912583742 | AC181: 0.04087120184 | AD181: 0.04199874954 | AE181: 0.04304597294 | AF181: 0.04444759792 | AG181: 0.04493192069 | AI181: 0 | AJ181: 0.03482905988 | AK181: 0.03535590202 | AL181: 0.03631170051 | AM181: 0.03789248682 | AN181: 0.03912583742 | AO181: 0.04087120184 | AP181: 0.04199874954 | AQ181: 0.04304597294 | AR181: 0.04444759792 | AS181: 0.04493192069 | AU181: 0.03631170051 | AV181: 0.04444759792 | AX181: 0.4348429599 | AY181: 106.5191038
B182: 156 | D182: -1.54634141 | E182: -1.427792563 | F182: -0.2145112322 | H182: -1.54634141 | I182: -1.104385595 | J182: -0.2145112322 | L182: -3.711087877 | M182: 0.02445090921 | N182: 0.0061708942 | P182: =MAX(LN(Parameters!$C$21),MIN(LN(Parameters!$C$22),(1-Beta1)*P181+Const5+Psi*(_Tau2-N181))+M182*H182) -> -3.151321375 | Q182: 0.04279554052 | R182: 0.03662464632 | S182: 0.03662464632 | U182: 0.04389831068 | V182: -0.008825121787 | X182: 0.03550009693 | Y182: =$U182+$V182*Y$21 -> 0.03589969478 | Z182: 0.03662464632 | AA182: 0.03782363699 | AB182: 0.03875910553 | AC182: 0.04008292497 | AD182: 0.0409381444 | AE182: 0.04173243967 | AF182: 0.04279554052 | AG182: 0.04316288838 | AI182: 0 | AJ182: 0.03550009693 | AK182: 0.03589969478 | AL182: 0.03662464632 | AM182: 0.03782363699 | AN182: 0.03875910553 | AO182: 0.04008292497 | AP182: 0.0409381444 | AQ182: 0.04173243967 | AR182: 0.04279554052 | AS182: 0.04316288838 | AU182: 0.03662464632 | AV182: 0.04279554052 | AX182: 0.4317849242 | AY182: 106.9508887
B183: 157 | D183: 0.163924655 | E183: -1.742299995 | F183: 0.4351655043 | H183: 0.163924655 | I183: -1.741363215 | J183: 0.4351655043 | L183: -3.654680921 | M183: 0.02586975065 | N183: 0.003196019962 | P183: =MAX(LN(Parameters!$C$21),MIN(LN(Parameters!$C$22),(1-Beta1)*P182+Const5+Psi*(_Tau2-N182))+M183*H183) -> -3.146460981 | Q183: 0.04300405002 | R183: 0.03980803005 | S183: 0.03980803005 | U183: 0.04357519503 | V183: -0.0045706934 | X183: 0.03922560518 | Y183: 0.03943256428 | Z183: 0.03980803005 | AA183: 0.04042900944 | AB183: 0.04091350586 | AC183: 0.04159913637 | AD183: 0.0420420703 | AE183: 0.04245345047 | AF183: 0.04300405002 | AG183: 0.04319430625 | AI183: 0 | AJ183: 0.03922560518 | AK183: 0.03943256428 | AL183: 0.03980803005 | AM183: 0.04042900944 | AN183: 0.04091350586 | AO183: 0.04159913637 | AP183: 0.0420420703 | AQ183: 0.04245345047 | AR183: 0.04300405002 | AS183: 0.04319430625 | AU183: 0.03980803005 | AV183: 0.04300405002 | AX183: 0.4287338075 | AY183: 107.3796225
B184: 158 | D184: -0.1752180712 | E184: 1.237726486 | F184: 0.03695727346 | H184: -0.1752180712 | I184: 1.24834237 | J184: 0.03695727346 | L184: -3.646280951 | M184: 0.02608797102 | N184: 0.005619992893 | P184: =MAX(LN(Parameters!$C$21),MIN(LN(Parameters!$C$22),(1-Beta1)*P183+Const5+Psi*(_Tau2-N183))+M184*H184) -> -3.149688503 | Q184: 0.04286547724 | R184: 0.03724548435 | S184: 0.03724548435 | U184: 0.04386979854 | V184: -0.00803726658 | X184: 0.03622132814 | Y184: 0.03658525224 | Z184: 0.03724548435 | AA184: 0.03833743615 | AB184: 0.03918939154 | AC184: 0.04039502813 | AD184: 0.04117389858 | AE184: 0.04189728381 | AF184: 0.04286547724 | AG184: 0.04320003044 | AI184: 0 | AJ184: 0.03622132814 | AK184: 0.03658525224 | AL184: 0.03724548435 | AM184: 0.03833743615 | AN184: 0.03918939154 | AO184: 0.04039502813 | AP184: 0.04117389858 | AQ184: 0.04189728381 | AR184: 0.04286547724 | AS184: 0.04320003044 | AU184: 0.03724548435 | AV184: 0.04286547724 | AX184: 0.4257138763 | AY184: 107.8053364
B185: 159 | D185: -0.3666768257 | E185: -1.082866387 | F185: 0.4719140967 | H185: -0.3666768257 | I185: -0.9923349822 | J185: 0.4719140967 | L185: -3.588244875 | M185: 0.02764681148 | N185: 0.003987002414 | P185: =MAX(LN(Parameters!$C$21),MIN(LN(Parameters!$C$22),(1-Beta1)*P184+Const5+Psi*(_Tau2-N184))+M185*H185) -> -3.159075927 | Q185: 0.04246496369 | R185: 0.03847796128 | S185: 0.03847796128 | U185: 0.04317746129 | V185: -0.005701893555 | X185: 0.03775139216 | Y185: 0.03800957153 | Z185: 0.03847796128 | AA185: 0.03925262675 | AB185: 0.0398570311 | AC185: 0.0407123482 | AD185: 0.04126490377 | AE185: 0.04177809635 | AF185: 0.04246496369 | AG185: 0.04270230641 | AI185: 0 | AJ185: 0.03775139216 | AK185: 0.03800957153 | AL185: 0.03847796128 | AM185: 0.03925262675 | AN185: 0.0398570311 | AO185: 0.0407123482 | AP185: 0.04126490377 | AQ185: 0.04177809635 | AR185: 0.04246496369 | AS185: 0.04270230641 | AU185: 0.03847796128 | AV185: 0.04246496369 | AX185: 0.4227428456 | AY185: 108.2280792
B186: 160 | D186: 1.010730556 | E186: -0.02424475868 | F186: 1.673725105 | H186: 1.010730556 | I186: -0.2178237703 | J186: 1.673725105 | L186: -3.394454755 | M186: 0.03355884699 | N186: 0.003776726419 | P186: =MAX(LN(Parameters!$C$21),MIN(LN(Parameters!$C$22),(1-Beta1)*P185+Const5+Psi*(_Tau2-N185))+M186*H186) -> -3.123948246 | Q186: 0.0439831688 | R186: 0.04020644238 | S186: 0.04020644238 | U186: 0.04465808901 | V186: -0.005401173561 | X186: 0.03951819279 | Y186: 0.03976275569 | Z186: 0.04020644238 | AA186: 0.04094025171 | AB186: 0.04151277955 | AC186: 0.04232298691 | AD186: 0.04284640049 | AE186: 0.04333252711 | AF186: 0.0439831688 | AG186: 0.04420799398 | AI186: 0 | AJ186: 0.03951819279 | AK186: 0.03976275569 | AL186: 0.04020644238 | AM186: 0.04094025171 | AN186: 0.04151277955 | AO186: 0.04232298691 | AP186: 0.04284640049 | AQ186: 0.04333252711 | AR186: 0.0439831688 | AS186: 0.04420799398 | AU186: 0.04020644238 | AV186: 0.0439831688 | AX186: 0.4196885878 | AY186: 108.6477678
B187: 161 | D187: 0.4441640134 | E187: 0.9030378641 | F187: -1.289533336 | H187: 0.4441640134 | I187: 0.8009759115 | J187: -1.289533336 | L187: -3.54886694 | M187: 0.02875720484 | N187: 0.005424124778 | P187: =MAX(LN(Parameters!$C$21),MIN(LN(Parameters!$C$22),(1-Beta1)*P186+Const5+Psi*(_Tau2-N186))+M187*H187) -> -3.110092487 | Q187: 0.04459683053 | R187: 0.03917270575 | S187: 0.03917270575 | U187: 0.0455661492 | V187: -0.007757151589 | X187: 0.03818424346 | Y187: 0.03853548407 | Z187: 0.03917270575 | AA187: 0.04022660082 | AB187: 0.04104886384 | AC187: 0.04221248156 | AD187: 0.0429642068 | AE187: 0.0436623806 | AF187: 0.04459683053 | AG187: 0.04491972387 | AI187: 0 | AJ187: 0.03818424346 | AK187: 0.03853548407 | AL187: 0.03917270575 | AM187: 0.04022660082 | AN187: 0.04104886384 | AO187: 0.04221248156 | AP187: 0.0429642068 | AQ187: 0.0436623806 | AR187: 0.04459683053 | AS187: 0.04491972387 | AU187: 0.03917270575 | AV187: 0.04459683053 | AX187: 0.4166147075 | AY187: 109.0643825
B188: 162 | D188: 0.840249164 | E188: -0.1823276238 | F188: -0.1708264017 | H188: 0.840249164 | I188: -0.3402391069 | J188: -0.1708264017 | L188: -3.568572854 | M188: 0.02819606489 | N188: 0.004939343357 | P188: =MAX(LN(Parameters!$C$21),MIN(LN(Parameters!$C$22),(1-Beta1)*P187+Const5+Psi*(_Tau2-N187))+M188*H188) -> -3.085803001 | Q188: 0.04569332739 | R188: 0.04075398403 | S188: 0.04075398403 | U188: 0.04657601315 | V188: -0.007063855781 | X188: 0.0398538656 | Y188: 0.04017371406 | Z188: 0.04075398403 | AA188: 0.04171368718 | AB188: 0.0424624604 | AC188: 0.04352207972 | AD188: 0.04420661948 | AE188: 0.04484239396 | AF188: 0.04569332739 | AG188: 0.04598736212 | AI188: 0 | AJ188: 0.0398538656 | AK188: 0.04017371406 | AL188: 0.04075398403 | AM188: 0.04171368718 | AN188: 0.0424624604 | AO188: 0.04352207972 | AP188: 0.04420661948 | AQ188: 0.04484239396 | AR188: 0.04569332739 | AS188: 0.04598736212 | AU188: 0.04075398403 | AV188: 0.04569332739 | AX188: 0.4134894373 | AY188: 109.477872
B189: 163 | D189: -0.9892929336 | E189: 0.1059267564 | F189: -0.2558295567 | H189: -0.9892929336 | I189: 0.2938711674 | J189: -0.2558295567 | L189: -3.597256346 | M189: 0.02739879221 | N189: 0.005658827979 | P189: =MAX(LN(Parameters!$C$21),MIN(LN(Parameters!$C$22),(1-Beta1)*P188+Const5+Psi*(_Tau2-N188))+M189*H189) -> -3.112312309 | Q189: 0.04449794328 | R189: 0.0388391153 | S189: 0.0388391153 | U189: 0.0455092046 | V189: -0.008092805429 | X189: 0.037807882 | Y189: 0.03817432087 | Z189: 0.0388391153 | AA189: 0.03993861267 | AB189: 0.04079645521 | AC189: 0.04201042294 | AD189: 0.04279467552 | AE189: 0.04352305947 | AF189: 0.04449794328 | AG189: 0.04483480829 | AI189: 0 | AJ189: 0.037807882 | AK189: 0.03817432087 | AL189: 0.0388391153 | AM189: 0.03993861267 | AN189: 0.04079645521 | AO189: 0.04201042294 | AP189: 0.04279467552 | AQ189: 0.04352305947 | AR189: 0.04449794328 | AS189: 0.04483480829 | AU189: 0.0388391153 | AV189: 0.04449794328 | AX189: 0.4104675783 | AY189: 109.8883395
B190: 164 | D190: -0.04976539809 | E190: 0.05064861782 | F190: 1.525039934 | H190: -0.04976539809 | I190: 0.05926005724 | J190: 1.525039934 | L190: -3.420188117 | M190: 0.03270628176 | N190: 0.005906081864 | P190: =MAX(LN(Parameters!$C$21),MIN(LN(Parameters!$C$22),(1-Beta1)*P189+Const5+Psi*(_Tau2-N189))+M190*H190) -> -3.113389946 | Q190: 0.04445001648 | R190: 0.03854393462 | S190: 0.03854393462 | U190: 0.04550546333 | V190: -0.008446408259 | X190: 0.03746764315 | Y190: 0.03785009301 | Z190: 0.03854393462 | AA190: 0.03969147285 | AB190: 0.04058679751 | AC190: 0.04185380773 | AD190: 0.04267232703 | AE190: 0.04343253661 | AF190: 0.04445001648 | AG190: 0.0448016003 | AI190: 0 | AJ190: 0.03746764315 | AK190: 0.03785009301 | AL190: 0.03854393462 | AM190: 0.03969147285 | AN190: 0.04058679751 | AO190: 0.04185380773 | AP190: 0.04267232703 | AQ190: 0.04343253661 | AR190: 0.04445001648 | AS190: 0.0448016003 | AU190: 0.03854393462 | AV190: 0.04445001648 | AX190: 0.4074709877 | AY190: 110.2958105
B191: 165 | D191: -0.5338640569 | E191: -0.341411848 | F191: 0.9115569762 | H191: -0.5338640569 | I191: -0.2325759759 | J191: 0.9115569762 | L191: -3.320687444 | M191: 0.03612798725 | N191: 0.005608280255 | P191: =MAX(LN(Parameters!$C$21),MIN(LN(Parameters!$C$22),(1-Beta1)*P190+Const5+Psi*(_Tau2-N190))+M191*H191) -> -3.13218411 | Q191: 0.04362241699 | R191: 0.03801413673 | S191: 0.03801413673 | U191: 0.04462464518 | V191: -0.008020516097 | X191: 0.03699211497 | Y191: 0.03735528061 | Z191: 0.03801413673 | AA191: 0.03910381279 | AB191: 0.03995399262 | AC191: 0.04115711654 | AD191: 0.04193436374 | AE191: 0.04265624137 | AF191: 0.04362241699 | AG191: 0.04395627294 | AI191: 0 | AJ191: 0.03699211497 | AK191: 0.03735528061 | AL191: 0.03801413673 | AM191: 0.03910381279 | AN191: 0.03995399262 | AO191: 0.04115711654 | AP191: 0.04193436374 | AQ191: 0.04265624137 | AR191: 0.04362241699 | AS191: 0.04395627294 | AU191: 0.03801413673 | AV191: 0.04362241699 | AX191: 0.4045508686 | AY191: 110.7003614
B192: 166 | D192: 1.12417381 | E192: 1.886853612 | F192: 0.3734545526 | H192: 1.12417381 | I192: 1.635951988 | J192: 0.3734545526 | L192: -3.286990381 | M192: 0.03736613819 | N192: 0.00870372245 | P192: =MAX(LN(Parameters!$C$21),MIN(LN(Parameters!$C$22),(1-Beta1)*P191+Const5+Psi*(_Tau2-N191))+M192*H192) -> -3.089514204 | Q192: 0.04552406443 | R192: 0.03682034198 | S192: 0.03682034198 | U192: 0.04707946388 | V192: -0.01244737118 | X192: 0.03523422407 | Y192: =$U192+$V192*Y$21 -> 0.03579783588 | Z192: 0.03682034198 | AA192: 0.0385114554 | AB192: 0.03983088469 | AC192: 0.04169806254 | AD192: 0.04290430468 | AE192: 0.04402461647 | AF192: 0.04552406443 | AG192: 0.04604218932 | AI192: 0 | AJ192: 0.03523422407 | AK192: 0.03579783588 | AL192: 0.03682034198 | AM192: 0.0385114554 | AN192: 0.03983088469 | AO192: 0.04169806254 | AP192: 0.04290430468 | AQ192: 0.04402461647 | AR192: 0.04552406443 | AS192: 0.04604218932 | AU192: 0.03682034198 | AV192: 0.04552406443 | AX192: 0.4015271709 | AY192: 111.1018886
B193: 167 | D193: 1.153265392 | E193: -0.2172412853 | F193: 0.8809131326 | H193: 1.153265392 | I193: -0.4345931272 | J193: 0.8809131326 | L193: -3.196339621 | M193: 0.04091168252 | N193: 0.007943741026 | P193: =MAX(LN(Parameters!$C$21),MIN(LN(Parameters!$C$22),(1-Beta1)*P192+Const5+Psi*(_Tau2-N192))+M193*H193) -> -3.042664432 | Q193: 0.04770760633 | R193: 0.0397638653 | S193: 0.0397638653 | U193: 0.04912719323 | V193: -0.01136050623 | X193: 0.03831624218 | Y193: 0.03883064118 | Z193: 0.0397638653 | AA193: 0.04130731606 | AB193: 0.04251153697 | AC193: 0.04421567878 | AD193: 0.04531659568 | AE193: 0.0463390854 | AF193: 0.04770760633 | AG193: 0.04818049019 | AI193: 0 | AJ193: 0.03831624218 | AK193: 0.03883064118 | AL193: 0.0397638653 | AM193: 0.04130731606 | AN193: 0.04251153697 | AO193: 0.04421567878 | AP193: 0.04531659568 | AQ193: 0.0463390854 | AR193: 0.04770760633 | AS193: 0.04818049019 | AU193: 0.0397638653 | AV193: 0.04770760633 | AX193: 0.3983843685 | AY193: 111.5002729
B194: 168 | D194: -0.4703200423 | E194: 0.2531113552 | F194: 0.0202506537 | H194: -0.4703200423 | I194: 0.3386910236 | J194: 0.0202506537 | L194: -3.20819731 | M194: 0.04042942936 | N194: 0.008704433423 | P194: =MAX(LN(Parameters!$C$21),MIN(LN(Parameters!$C$22),(1-Beta1)*P193+Const5+Psi*(_Tau2-N193))+M194*H194) -> -3.062058682 | Q194: 0.04679126766 | R194: 0.03808683424 | S194: 0.03808683424 | U194: 0.04834679416 | V194: -0.01244838796 | X194: 0.03650058677 | Y194: 0.03706424461 | Z194: 0.03808683424 | AA194: 0.03977808579 | AB194: 0.04109762286 | AC194: 0.04296495323 | AD194: 0.04417129391 | AE194: 0.04529169721 | AF194: 0.04679126766 | AG194: 0.04730943487 | AI194: 0 | AJ194: 0.03650058677 | AK194: 0.03706424461 | AL194: 0.03808683424 | AM194: 0.03977808579 | AN194: 0.04109762286 | AO194: 0.04296495323 | AP194: 0.04417129391 | AQ194: 0.04529169721 | AR194: 0.04679126766 | AS194: 0.04730943487 | AU194: 0.03808683424 | AV194: 0.04679126766 | AX194: 0.3953251427 | AY194: 111.8955981
B195: 169 | D195: 0.695891493 | E195: 2.962312124 | F195: 1.3772768 | H195: 0.695891493 | I195: 2.773625181 | J195: 1.3772768 | L195: -3.063671839 | M195: 0.04671584686 | N195: 0.01415391687 | P195: =MAX(LN(Parameters!$C$21),MIN(LN(Parameters!$C$22),(1-Beta1)*P194+Const5+Psi*(_Tau2-N194))+M195*H195) -> -3.030021704 | Q195: 0.04831458948 | R195: 0.0341606726 | S195: 0.0341606726 | U195: 0.05084396637 | V195: -0.0202418055 | X195: 0.03158134162 | Y195: 0.03249788217 | Z195: 0.0341606726 | AA195: 0.03691074636 | AB195: 0.03905639066 | AC195: 0.04209277886 | AD195: 0.04405435921 | AE195: 0.04587620039 | AF195: 0.04831458948 | AG195: 0.04915715961 | AI195: 0 | AJ195: 0.03158134162 | AK195: 0.03249788217 | AL195: 0.0341606726 | AM195: 0.03691074636 | AN195: 0.03905639066 | AO195: 0.04209277886 | AP195: 0.04405435921 | AQ195: 0.04587620039 | AR195: 0.04831458948 | AS195: 0.04915715961 | AU195: 0.0341606726 | AV195: 0.04831458948 | AX195: 0.3921921368 | AY195: 112.2877902
B196: 170 | D196: -0.571973487 | E196: 0.002449598033 | F196: 1.407760469 | H196: -0.571973487 | I196: 0.1122057878 | J196: 1.407760469 | L196: -2.921426563 | M196: 0.05385680236 | N196: 0.01430502543 | P196: =MAX(LN(Parameters!$C$21),MIN(LN(Parameters!$C$22),(1-Beta1)*P195+Const5+Psi*(_Tau2-N195))+M196*H196) -> -3.062832927 | Q196: 0.04675505379 | R196: 0.03245002836 | S196: 0.03245002836 | U196: 0.04931143455 | V196: -0.02045790894 | X196: 0.02984316019 | Y196: 0.03076948582 | Z196: 0.03245002836 | AA196: 0.03522946217 | AB196: 0.03739801357 | AC196: 0.04046681853 | AD196: 0.0424493409 | AE196: 0.04429063224 | AF196: 0.04675505379 | AG196: 0.04760661928 | AI196: 0 | AJ196: 0.02984316019 | AK196: 0.03076948582 | AL196: 0.03245002836 | AM196: 0.03522946217 | AN196: 0.03739801357 | AO196: 0.04046681853 | AP196: 0.0424493409 | AQ196: 0.04429063224 | AR196: 0.04675505379 | AS196: 0.04760661928 | AU196: 0.03245002836 | AV196: 0.04675505379 | AX196: 0.3891827569 | AY196: 112.676973
B197: 171 | D197: -0.8554328574 | E197: 1.036067375 | F197: -0.4487722099 | H197: -0.8554328574 | I197: 1.181014791 | J197: -0.4487722099 | L197: -2.99816956 | M197: 0.04987828406 | N197: 0.01651110373 | P197: =MAX(LN(Parameters!$C$21),MIN(LN(Parameters!$C$22),(1-Beta1)*P196+Const5+Psi*(_Tau2-N196))+M197*H197) -> -3.107378025 | Q197: 0.04471805139 | R197: 0.02820694766 | S197: 0.02820694766 | U197: 0.04766866956 | V197: -0.02361286655 | X197: 0.02519805607 | Y197: 0.02626723687 | Z197: 0.02820694766 | AA197: 0.03141501745 | AB197: 0.03391799638 | AC197: 0.03746006327 | AD197: 0.03974832432 | AE197: 0.0418735741 | AF197: 0.04471805139 | AG197: 0.04570094277 | AI197: 0 | AJ197: 0.02519805607 | AK197: 0.02626723687 | AL197: 0.02820694766 | AM197: 0.03141501745 | AN197: 0.03391799638 | AO197: 0.03746006327 | AP197: 0.03974832432 | AQ197: 0.0418735741 | AR197: 0.04471805139 | AS197: 0.04570094277 | AU197: 0.02820694766 | AV197: 0.04471805139 | AX197: 0.3863246725 | AY197: 113.0632976
B198: 172 | D198: -0.6816001482 | E198: -0.05417879481 | F198: 0.4082443354 | H198: -0.6816001482 | I198: 0.07767566818 | J198: 0.4082443354 | L198: -2.973379439 | M198: 0.05113022655 | N198: 0.01650266112 | P198: =MAX(LN(Parameters!$C$21),MIN(LN(Parameters!$C$22),(1-Beta1)*P197+Const5+Psi*(_Tau2-N197))+M198*H198) -> -3.144434373 | Q198: 0.04309129077 | R198: 0.02658862965 | S198: 0.02658862965 | U198: 0.0460404002 | V198: -0.02360079261 | X198: 0.02358127659 | Y198: 0.02464991069 | Z198: 0.02658862965 | AA198: 0.02979505906 | AB198: 0.03229675814 | AC198: 0.03583701387 | AD198: 0.03812410487 | AE198: 0.04024826795 | AF198: 0.04309129077 | AG198: 0.04407367957 | AI198: 0 | AJ198: 0.02358127659 | AK198: 0.02464991069 | AL198: 0.02658862965 | AM198: 0.02979505906 | AN198: 0.03229675814 | AO198: 0.03583701387 | AP198: 0.03812410487 | AQ198: 0.04024826795 | AR198: 0.04309129077 | AS198: 0.04407367957 | AU198: 0.02658862965 | AV198: 0.04309129077 | AX198: 0.3835893312 | AY198: 113.446887
B199: 173 | D199: -0.3187392153 | E199: -0.5079690476 | F199: 0.1608450408 | H199: -0.3187392153 | I199: -0.4373328597 | J199: 0.1608450408 | L199: -2.978004876 | M199: 0.05089427303 | N199: 0.01556125251 | P199: =MAX(LN(Parameters!$C$21),MIN(LN(Parameters!$C$22),(1-Beta1)*P198+Const5+Psi*(_Tau2-N198))+M199*H199) -> -3.16267161 | Q199: 0.04231254733 | R199: 0.02675129481 | S199: 0.02675129481 | U199: 0.04509342225 | V199: -0.02225446493 | X199: 0.02391549882 | Y199: 0.02492317176 | Z199: 0.02675129481 | AA199: 0.02977481068 | AB199: 0.03213379816 | AC199: 0.03547209694 | AD199: 0.03762871885 | AE199: 0.0396317072 | AF199: 0.04231254733 | AG199: 0.0432388949 | AI199: 0 | AJ199: 0.02391549882 | AK199: 0.02492317176 | AL199: 0.02675129481 | AM199: 0.02977481068 | AN199: 0.03213379816 | AO199: 0.03547209694 | AP199: 0.03762871885 | AQ199: 0.0396317072 | AR199: 0.04231254733 | AS199: 0.0432388949 | AU199: 0.02675129481 | AV199: 0.04231254733 | AX199: 0.3809217606 | AY199: 113.8278087
B200: 174 | D200: 0.3743521448 | E200: -0.503327685 | F200: -0.3725128698 | H200: 0.3743521448 | I200: -0.5658305711 | J200: -0.3725128698 | L200: -3.043722739 | M200: 0.04765714373 | N200: 0.01443007065 | P200: =MAX(LN(Parameters!$C$21),MIN(LN(Parameters!$C$22),(1-Beta1)*P199+Const5+Psi*(_Tau2-N199))+M200*H200) -> -3.146516569 | Q200: 0.04300165959 | R200: 0.02857158894 | S200: 0.02857158894 | U200: 0.04558038657 | V200: -0.02063673865 | X200: 0.02594193323 | Y200: 0.02687635619 | Z200: 0.02857158894 | AA200: 0.03137531875 | AB200: 0.03356282622 | AC200: 0.03665845668 | AD200: 0.03865830897 | AE200: 0.04051569567 | AF200: 0.04300165959 | AG200: 0.04386066891 | AI200: 0 | AJ200: 0.02594193323 | AK200: 0.02687635619 | AL200: 0.02857158894 | AM200: 0.03137531875 | AN200: 0.03356282622 | AO200: 0.03665845668 | AP200: 0.03865830897 | AQ200: 0.04051569567 | AR200: 0.04300165959 | AS200: 0.04386066891 | AU200: 0.02857158894 | AV200: 0.04300165959 | AX200: 0.3782302053 | AY200: 114.2060389
B201: 175 | D201: -0.7037198724 | E201: -0.596509482 | F201: -0.007040228645 | H201: -0.7037198724 | I201: -0.4503217756 | J201: -0.007040228645 | L201: -3.064822079 | M201: 0.0466621433 | N201: 0.01352235217 | P201: =MAX(LN(Parameters!$C$21),MIN(LN(Parameters!$C$22),(1-Beta1)*P200+Const5+Psi*(_Tau2-N200))+M201*H201) -> -3.180836738 | Q201: 0.04155087338 | R201: 0.02802852121 | S201: 0.02802852121 | U201: 0.04396738645 | V201: -0.01933859193 | X201: 0.02556428305 | Y201: 0.02643992647 | Z201: 0.02802852121 | AA201: 0.03065588339 | AB201: 0.03270578647 | AC201: 0.03560668739 | AD201: 0.03748073968 | AE201: 0.03922128813 | AF201: 0.04155087338 | AG201: 0.04235584702 | AI201: 0 | AJ201: 0.02556428305 | AK201: 0.02643992647 | AL201: 0.02802852121 | AM201: 0.03065588339 | AN201: 0.03270578647 | AO201: 0.03560668739 | AP201: 0.03748073968 | AQ201: 0.03922128813 | AR201: 0.04155087338 | AS201: 0.04235584702 | AU201: 0.02802852121 | AV201: 0.04155087338 | AX201: 0.3756466079 | AY201: 114.5816855
B202: 176 | D202: -1.229215649 | E202: 0.9087957989 | F202: -0.4174824729 | H202: -1.229215649 | I202: 1.127865447 | J202: -0.4174824729 | L202: -3.132232944 | M202: 0.04362028677 | N202: 0.01537929502 | P202: =MAX(LN(Parameters!$C$21),MIN(LN(Parameters!$C$22),(1-Beta1)*P201+Const5+Psi*(_Tau2-N201))+M202*H202) -> -3.235535461 | Q202: 0.03933913474 | R202: 0.02395983971 | S202: 0.02395983971 | U202: 0.04208749293 | V202: -0.02199424381 | X202: 0.02115720264 | Y202: =$U202+$V202*Y$21 -> 0.02215309287 | Z202: 0.02395983971 | AA202: 0.02694800165 | AB202: 0.02927940553 | AC202: 0.03257866963 | AD202: 0.03471007419 | AE202: 0.03668964164 | AF202: 0.03933913474 | AG202: 0.04025465054 | AI202: 0 | AJ202: 0.02115720264 | AK202: 0.02215309287 | AL202: 0.02395983971 | AM202: 0.02694800165 | AN202: 0.02927940553 | AO202: 0.03257866963 | AP202: 0.03471007419 | AQ202: 0.03668964164 | AR202: 0.03933913474 | AS202: 0.04025465054 | AU202: 0.02395983971 | AV202: 0.03933913474 | AX202: 0.3732154829 | AY202: 114.954901
B203: 177 | D203: 0.2229604074 | E203: -0.2939017013 | F203: -1.271407024 | H203: 0.2229604074 | I203: -0.3312370725 | J203: -1.271407024 | L203: -3.295054092 | M203: 0.03706604003 | N203: 0.01469102057 | P203: =MAX(LN(Parameters!$C$21),MIN(LN(Parameters!$C$22),(1-Beta1)*P202+Const5+Psi*(_Tau2-N202))+M203*H203) -> -3.22854005 | Q203: 0.03961529295 | R203: 0.02492427238 | S203: 0.02492427238 | U203: 0.04224065301 | V203: -0.02100992847 | X203: 0.0222470626 | Y203: 0.02319838345 | Z203: 0.02492427238 | AA203: 0.02777870416 | AB203: 0.03000576999 | AC203: 0.03315738108 | AD203: 0.03519339822 | AE203: 0.03708437345 | AF203: 0.03961529295 | AG203: 0.04048983639 | AI203: 0 | AJ203: 0.0222470626 | AK203: 0.02319838345 | AL203: 0.02492427238 | AM203: 0.02777870416 | AN203: 0.03000576999 | AO203: 0.03315738108 | AP203: 0.03519339822 | AQ203: 0.03708437345 | AR203: 0.03961529295 | AS203: 0.04048983639 | AU203: 0.02492427238 | AV203: 0.03961529295 | AX203: 0.370783356 | AY203: 115.3256844
B204: 178 | D204: 0.3330418177 | E204: 1.065124384 | F204: -0.189738229 | H204: 0.3330418177 | I204: 0.9813798783 | J204: -0.189738229 | L204: -3.327087837 | M204: 0.03589749233 | N204: 0.01617577881 | P204: =MAX(LN(Parameters!$C$21),MIN(LN(Parameters!$C$22),(1-Beta1)*P203+Const5+Psi*(_Tau2-N203))+M204*H204) -> -3.217715941 | Q204: 0.04004642227 | R204: 0.02387064347 | S204: 0.02387064347 | U204: 0.04293711617 | V204: -0.02313331153 | X204: 0.02092285962 | Y204: 0.02197032637 | Z204: 0.02387064347 | AA204: 0.02701356039 | AB204: 0.02946570617 | AC204: 0.03293583704 | AD204: 0.03517762566 | AE204: 0.03725971363 | AF204: 0.04004642227 | AG204: 0.04100935205 | AI204: 0 | AJ204: 0.02092285962 | AK204: 0.02197032637 | AL204: 0.02387064347 | AM204: 0.02701356039 | AN204: 0.02946570617 | AO204: 0.03293583704 | AP204: 0.03517762566 | AQ204: 0.03725971363 | AR204: 0.04004642227 | AS204: 0.04100935205 | AU204: 0.02387064347 | AV204: 0.04004642227 | AX204: 0.3683411272 | AY204: 115.6940255
B205: 179 | D205: -0.1798580393 | E205: 0.02811758205 | F205: 0.7036244538 | H205: -0.1798580393 | I205: 0.06212196517 | J205: 0.7036244538 | L205: -3.255201474 | M205: 0.0385730484 | N205: 0.01611338351 | P205: =MAX(LN(Parameters!$C$21),MIN(LN(Parameters!$C$22),(1-Beta1)*P204+Const5+Psi*(_Tau2-N204))+M205*H205) -> -3.226213591 | Q205: 0.0397075636 | R205: 0.02359418009 | S205: 0.02359418009 | U205: 0.04258710713 | V205: -0.02304407874 | X205: 0.02065776681 | Y205: 0.02170119314 | Z205: 0.02359418009 | AA205: 0.02672497374 | AB205: 0.0291676608 | AC205: 0.03262440623 | AD205: 0.03485754754 | AE205: 0.03693160421 | AF205: 0.0397075636 | AG205: 0.04066677904 | AI205: 0 | AJ205: 0.02065776681 | AK205: 0.02170119314 | AL205: 0.02359418009 | AM205: 0.02672497374 | AN205: 0.0291676608 | AO205: 0.03262440623 | AP205: 0.03485754754 | AQ205: 0.03693160421 | AR205: 0.0397075636 | AS205: 0.04066677904 | AU205: 0.02359418009 | AV205: 0.0397075636 | AX205: 0.3659352468 | AY205: 116.0599608
B206: 180 | D206: -0.08509843053 | E206: 0.7795159925 | F206: -0.1545981342 | H206: -0.08509843053 | I206: 0.78135396 | J206: -0.1545981342 | L206: -3.284792478 | M206: 0.03744835565 | N206: 0.01723471607 | P206: =MAX(LN(Parameters!$C$21),MIN(LN(Parameters!$C$22),(1-Beta1)*P205+Const5+Psi*(_Tau2-N205))+M206*H206) -> -3.23090141 | Q206: 0.03952185735 | R206: 0.02228714128 | S206: 0.02228714128 | U206: 0.04260178872 | V206: -0.02464771933 | X206: 0.0191463826 | Y206: 0.02026242111 | Z206: 0.02228714128 | AA206: 0.02563580729 | AB206: 0.02824848127 | AC206: 0.03194578209 | AD206: 0.03433432801 | AE206: 0.03655271856 | AF206: 0.03952185735 | AG206: 0.04054782472 | AI206: 0 | AJ206: 0.0191463826 | AK206: 0.02026242111 | AL206: 0.02228714128 | AM206: 0.02563580729 | AN206: 0.02824848127 | AO206: 0.03194578209 | AP206: 0.03433432801 | AQ206: 0.03655271856 | AR206: 0.03952185735 | AS206: 0.04054782472 | AU206: 0.02228714128 | AV206: 0.03952185735 | AX206: 0.3635561145 | AY206: 116.4235169
B207: 181 | D207: -0.5438986093 | E207: 1.14884928 | F207: 1.704576598 | H207: -0.5438986093 | I207: 1.231893812 | J207: 1.704576598 | L207: -3.09959896 | M207: 0.04506727254 | N207: 0.01905758445 | P207: =MAX(LN(Parameters!$C$21),MIN(LN(Parameters!$C$22),(1-Beta1)*P206+Const5+Psi*(_Tau2-N206))+M207*H207) -> -3.25717277 | Q207: 0.03849708441 | R207: 0.01943949996 | S207: 0.01943949996 | U207: 0.04190277162 | V207: -0.02725464062 | X207: 0.0159665519 | Y207: 0.01720063072 | Z207: 0.01943949996 | AA207: 0.02314234515 | AB207: 0.02603135444 | AC207: 0.03011970857 | AD207: 0.0327608844 | AE207: 0.03521390801 | AF207: 0.03849708441 | AG207: 0.03963156553 | AI207: 0 | AJ207: 0.0159665519 | AK207: 0.01720063072 | AL207: 0.01943949996 | AM207: 0.02314234515 | AN207: 0.02603135444 | AO207: 0.03011970857 | AP207: 0.0327608844 | AQ207: 0.03521390801 | AR207: 0.03849708441 | AS207: 0.03963156553 | AU207: 0.01943949996 | AV207: 0.03849708441 | AX207: 0.361252965 | AY207: 116.7847698
... 179 more rows

Sheet Scenario Subsets
A1: Scenario Subsets picked from 10,000 scenarios
C2: Scenario subsets from file: | D2: C:\Test\ScenarioSubsets_ 201209_test.txt
B3: 1000 | C3: 500 | D3: 200 | E3: 50
A4: 1 | B4: 4 | C4: 2 | D4: 5 | E4: 105
A5: 2 | B5: 5 | C5: 35 | D5: 59 | E5: 243
A6: 3 | B6: 7 | C6: 39 | D6: 73 | E6: 478
A7: 4 | B7: 12 | C7: 43 | D7: 82 | E7: 682 | G7: The numbers in each column correspond to the scenario numbers
A8: 5 | B8: 16 | C8: 46 | D8: 119 | E8: 1031 | G8: from the full set of 10,000 scenarios which the scenario picking tool
A9: 6 | B9: 19 | C9: 76 | D9: 157 | E9: 1035 | G9: has selected for each subset size.
A10: 7 | B10: 30 | C10: 88 | D10: 269 | E10: 1101
A11: 8 | B11: 38 | C11: 92 | D11: 421 | E11: 1236 | G11: Each scenario number corresponds to a unique random number seed
A12: 9 | B12: 48 | C12: 108 | D12: 439 | E12: 1353 | G12: that is used when re-creating that scenario.
A13: 10 | B13: 59 | C13: 115 | D13: 492 | E13: 1431
A14: 11 | B14: 73 | C14: 117 | D14: 542 | E14: 1550 | G14: Each time the generator is run to produce a full set of 10,000 scenarios,
A15: 12 | B15: 79 | C15: 120 | D15: 554 | E15: 1590 | G15: the scenario picking tool automatically ranks the scenarios, selects the
A16: 13 | B16: 81 | C16: 141 | D16: 577 | E16: 1624 | G16: scenario numbers for each subset and saves them in a file. The file is named
A17: 14 | B17: 82 | C17: 181 | D17: 618 | E17: 1854
A18: 15 | B18: 83 | C18: 186 | D18: 664 | E18: 2044 | G18: ScenarioSubsets_YYYYMM_(suffix).txt, where:
A19: 16 | B19: 111 | C19: 194 | D19: 688 | E19: 2146
A20: 17 | B20: 119 | C20: 222 | D20: 727 | E20: 2182 | H20: YYYYMM corresponds to the scenario start date
A21: 18 | B21: 132 | C21: 234 | D21: 730 | E21: 2215 | H21: in YYYYMM form, where December 2009 is 200912.
A22: 19 | B22: 135 | C22: 238 | D22: 739 | E22: 2425
A23: 20 | B23: 153 | C23: 246 | D23: 774 | E23: 2448 | H23: (suffix) corresponds to the filename suffix specified
A24: 21 | B24: 157 | C24: 267 | D24: 790 | E24: 2450 | H24: by the user in cell F23 of the Scenario Generator tab.
A25: 22 | B25: 164 | C25: 286 | D25: 846 | E25: 2616
A26: 23 | B26: 175 | C26: 290 | D26: 922 | E26: 2775 | G26: The scenario subsets can be retrieved from such a file by clicking
A27: 24 | B27: 196 | C27: 298 | D27: 960 | E27: 3264 | G27: the button above. Doing so will update the lists of scenario numbers
A28: 25 | B28: 203 | C28: 362 | D28: 969 | E28: 3313 | G28: that appear to the left of this text. These are the scenarios that will
A29: 26 | B29: 232 | C29: 365 | D29: 995 | E29: 3373 | G29: be generated when the user requests a subset of scenarios on the
A30: 27 | B30: 235 | C30: 366 | D30: 1033 | E30: 3506 | G30: Scenario Generator tab.
A31: 28 | B31: 240 | C31: 386 | D31: 1037 | E31: 3534
A32: 29 | B32: 259 | C32: 404 | D32: 1049 | E32: 4032
A33: 30 | B33: 264 | C33: 419 | D33: 1068 | E33: 4386
A34: 31 | B34: 265 | C34: 422 | D34: 1076 | E34: 5037
A35: 32 | B35: 269 | C35: 450 | D35: 1081 | E35: 5344
A36: 33 | B36: 271 | C36: 486 | D36: 1092 | E36: 6155
A37: 34 | B37: 273 | C37: 494 | D37: 1109 | E37: 6508
A38: 35 | B38: 285 | C38: 516 | D38: 1251 | E38: 6571
A39: 36 | B39: 300 | C39: 548 | D39: 1258 | E39: 6589
A40: 37 | B40: 306 | C40: 557 | D40: 1295 | E40: 6832
A41: 38 | B41: 335 | C41: 583 | D41: 1471 | E41: 6856
A42: 39 | B42: 339 | C42: 606 | D42: 1517 | E42: 7129
A43: 40 | B43: 343 | C43: 656 | D43: 1555 | E43: 7426
A44: 41 | B44: 344 | C44: 692 | D44: 1595 | E44: 7468
A45: 42 | B45: 345 | C45: 695 | D45: 1742 | E45: 7547
A46: 43 | B46: 384 | C46: 743 | D46: 1757 | E46: 7756
A47: 44 | B47: 405 | C47: 749 | D47: 1815 | E47: 8070
A48: 45 | B48: 421 | C48: 750 | D48: 1932 | E48: 8985
A49: 46 | B49: 439 | C49: 759 | D49: 2019 | E49: 9030
A50: 47 | B50: 448 | C50: 781 | D50: 2115 | E50: 9421
A51: 48 | B51: 483 | C51: 872 | D51: 2199 | E51: 9589
A52: 49 | B52: 492 | C52: 897 | D52: 2283 | E52: 9902
A53: 50 | B53: 542 | C53: 909 | D53: 2474 | E53: 9917
A54: 51 | B54: 552 | C54: 914 | D54: 2510
A55: 52 | B55: 554 | C55: 917 | D55: 2663
A56: 53 | B56: 563 | C56: 947 | D56: 2664
A57: 54 | B57: 577 | C57: 967 | D57: 2680
A58: 55 | B58: 591 | C58: 968 | D58: 2685
A59: 56 | B59: 608 | C59: 982 | D59: 2703
A60: 57 | B60: 618 | C60: 1026 | D60: 2714
A61: 58 | B61: 623 | C61: 1039 | D61: 2793
A62: 59 | B62: 638 | C62: 1056 | D62: 2828
A63: 60 | B63: 652 | C63: 1107 | D63: 2854
A64: 61 | B64: 661 | C64: 1112 | D64: 2905
A65: 62 | B65: 664 | C65: 1117 | D65: 2920
A66: 63 | B66: 665 | C66: 1148 | D66: 2934
A67: 64 | B67: 666 | C67: 1161 | D67: 2997
A68: 65 | B68: 679 | C68: 1163 | D68: 3000
A69: 66 | B69: 688 | C69: 1164 | D69: 3018
A70: 67 | B70: 689 | C70: 1170 | D70: 3046
A71: 68 | B71: 727 | C71: 1172 | D71: 3065
A72: 69 | B72: 730 | C72: 1216 | D72: 3069
A73: 70 | B73: 731 | C73: 1228 | D73: 3094
A74: 71 | B74: 732 | C74: 1248 | D74: 3146
A75: 72 | B75: 739 | C75: 1274 | D75: 3225
A76: 73 | B76: 744 | C76: 1283 | D76: 3249
A77: 74 | B77: 757 | C77: 1289 | D77: 3279
A78: 75 | B78: 761 | C78: 1342 | D78: 3298
A79: 76 | B79: 774 | C79: 1356 | D79: 3357
A80: 77 | B80: 775 | C80: 1384 | D80: 3407
A81: 78 | B81: 783 | C81: 1400 | D81: 3542
A82: 79 | B82: 790 | C82: 1426 | D82: 3595
A83: 80 | B83: 802 | C83: 1439 | D83: 3661
A84: 81 | B84: 820 | C84: 1444 | D84: 3683
A85: 82 | B85: 834 | C85: 1447 | D85: 3685
A86: 83 | B86: 840 | C86: 1516 | D86: 3712
A87: 84 | B87: 846 | C87: 1533 | D87: 3757
A88: 85 | B88: 853 | C88: 1554 | D88: 3794
A89: 86 | B89: 858 | C89: 1556 | D89: 3882
A90: 87 | B90: 871 | C90: 1559 | D90: 3900
A91: 88 | B91: 881 | C91: 1571 | D91: 3938
A92: 89 | B92: 887 | C92: 1597 | D92: 3939
A93: 90 | B93: 903 | C93: 1608 | D93: 3978
A94: 91 | B94: 904 | C94: 1640 | D94: 4005
A95: 92 | B95: 922 | C95: 1647 | D95: 4128
A96: 93 | B96: 926 | C96: 1650 | D96: 4196
A97: 94 | B97: 949 | C97: 1666 | D97: 4207
A98: 95 | B98: 958 | C98: 1671 | D98: 4228
A99: 96 | B99: 960 | C99: 1677 | D99: 4250
A100: 97 | B100: 969 | C100: 1679 | D100: 4333
A101: 98 | B101: 974 | C101: 1726 | D101: 4359
A102: 99 | B102: 975 | C102: 1734 | D102: 4496
A103: 100 | B103: 994 | C103: 1741 | D103: 4504
A104: 101 | B104: 995 | C104: 1770 | D104: 4511
A105: 102 | B105: 997 | C105: 1780 | D105: 4518
A106: 103 | B106: 1005 | C106: 1805 | D106: 4539
A107: 104 | B107: 1011 | C107: 1807 | D107: 4585
A108: 105 | B108: 1033 | C108: 1818 | D108: 4656
A109: 106 | B109: 1034 | C109: 1822 | D109: 4825
A110: 107 | B110: 1036 | C110: 1861 | D110: 4944
A111: 108 | B111: 1037 | C111: 1894 | D111: 4989
A112: 109 | B112: 1046 | C112: 1895 | D112: 5057
A113: 110 | B113: 1049 | C113: 1923 | D113: 5231
A114: 111 | B114: 1068 | C114: 1969 | D114: 5259
A115: 112 | B115: 1071 | C115: 2027 | D115: 5273
A116: 113 | B116: 1074 | C116: 2031 | D116: 5303
A117: 114 | B117: 1076 | C117: 2085 | D117: 5393
A118: 115 | B118: 1081 | C118: 2089 | D118: 5519
A119: 116 | B119: 1092 | C119: 2092 | D119: 5550
A120: 117 | B120: 1109 | C120: 2112 | D120: 5626
A121: 118 | B121: 1115 | C121: 2116 | D121: 5831
A122: 119 | B122: 1137 | C122: 2143 | D122: 6050
A123: 120 | B123: 1138 | C123: 2175 | D123: 6073
A124: 121 | B124: 1139 | C124: 2205 | D124: 6137
A125: 122 | B125: 1143 | C125: 2206 | D125: 6165
A126: 123 | B126: 1145 | C126: 2212 | D126: 6274
A127: 124 | B127: 1151 | C127: 2237 | D127: 6288
A128: 125 | B128: 1156 | C128: 2267 | D128: 6358
A129: 126 | B129: 1165 | C129: 2289 | D129: 6374
A130: 127 | B130: 1178 | C130: 2324 | D130: 6375
A131: 128 | B131: 1188 | C131: 2368 | D131: 6514
A132: 129 | B132: 1190 | C132: 2391 | D132: 6535
A133: 130 | B133: 1204 | C133: 2446 | D133: 6606
A134: 131 | B134: 1223 | C134: 2472 | D134: 6631
A135: 132 | B135: 1231 | C135: 2477 | D135: 6666
A136: 133 | B136: 1238 | C136: 2513 | D136: 6827
A137: 134 | B137: 1239 | C137: 2529 | D137: 6877
A138: 135 | B138: 1251 | C138: 2578 | D138: 6908
A139: 136 | B139: 1258 | C139: 2580 | D139: 6921
A140: 137 | B140: 1260 | C140: 2588 | D140: 6932
A141: 138 | B141: 1278 | C141: 2613 | D141: 6974
A142: 139 | B142: 1295 | C142: 2640 | D142: 7064
A143: 140 | B143: 1298 | C143: 2697 | D143: 7126
A144: 141 | B144: 1308 | C144: 2716 | D144: 7136
A145: 142 | B145: 1310 | C145: 2746 | D145: 7181
A146: 143 | B146: 1313 | C146: 2749 | D146: 7189
A147: 144 | B147: 1362 | C147: 2761 | D147: 7253
A148: 145 | B148: 1370 | C148: 2763 | D148: 7321
A149: 146 | B149: 1390 | C149: 2766 | D149: 7333
A150: 147 | B150: 1411 | C150: 2772 | D150: 7479
A151: 148 | B151: 1417 | C151: 2784 | D151: 7498
A152: 149 | B152: 1437 | C152: 2858 | D152: 7507
A153: 150 | B153: 1442 | C153: 2877 | D153: 7520
A154: 151 | B154: 1448 | C154: 2915 | D154: 7660
A155: 152 | B155: 1471 | C155: 2926 | D155: 7709
A156: 153 | B156: 1484 | C156: 2940 | D156: 7776
A157: 154 | B157: 1487 | C157: 2956 | D157: 7796
A158: 155 | B158: 1488 | C158: 2968 | D158: 7818
A159: 156 | B159: 1490 | C159: 2970 | D159: 7895
A160: 157 | B160: 1492 | C160: 2973 | D160: 7958
A161: 158 | B161: 1517 | C161: 2974 | D161: 8035
A162: 159 | B162: 1522 | C162: 2976 | D162: 8126
A163: 160 | B163: 1541 | C163: 2983 | D163: 8257
A164: 161 | B164: 1542 | C164: 2984 | D164: 8268
A165: 162 | B165: 1555 | C165: 3012 | D165: 8321
A166: 163 | B166: 1589 | C166: 3027 | D166: 8331
A167: 164 | B167: 1595 | C167: 3030 | D167: 8428
A168: 165 | B168: 1612 | C168: 3033 | D168: 8451
A169: 166 | B169: 1616 | C169: 3130 | D169: 8505
A170: 167 | B170: 1622 | C170: 3183 | D170: 8510
A171: 168 | B171: 1627 | C171: 3187 | D171: 8570
A172: 169 | B172: 1642 | C172: 3192 | D172: 8581
A173: 170 | B173: 1672 | C173: 3193 | D173: 8711
A174: 171 | B174: 1700 | C174: 3206 | D174: 8744
A175: 172 | B175: 1703 | C175: 3226 | D175: 8767
A176: 173 | B176: 1714 | C176: 3234 | D176: 8769
A177: 174 | B177: 1720 | C177: 3237 | D177: 8895
A178: 175 | B178: 1727 | C178: 3259 | D178: 8959
A179: 176 | B179: 1729 | C179: 3276 | D179: 9068
A180: 177 | B180: 1738 | C180: 3295 | D180: 9075
A181: 178 | B181: 1742 | C181: 3296 | D181: 9100
A182: 179 | B182: 1744 | C182: 3301 | D182: 9127
A183: 180 | B183: 1757 | C183: 3309 | D183: 9132
A184: 181 | B184: 1761 | C184: 3325 | D184: 9159
A185: 182 | B185: 1763 | C185: 3348 | D185: 9172
A186: 183 | B186: 1815 | C186: 3398 | D186: 9255
A187: 184 | B187: 1832 | C187: 3409 | D187: 9270
A188: 185 | B188: 1837 | C188: 3462 | D188: 9541
A189: 186 | B189: 1859 | C189: 3490 | D189: 9582
A190: 187 | B190: 1873 | C190: 3507 | D190: 9598
A191: 188 | B191: 1877 | C191: 3539 | D191: 9622
A192: 189 | B192: 1921 | C192: 3548 | D192: 9643
A193: 190 | B193: 1928 | C193: 3569 | D193: 9666
A194: 191 | B194: 1930 | C194: 3599 | D194: 9701
A195: 192 | B195: 1932 | C195: 3612 | D195: 9703
A196: 193 | B196: 1948 | C196: 3635 | D196: 9775
A197: 194 | B197: 1966 | C197: 3660 | D197: 9848
A198: 195 | B198: 1984 | C198: 3701 | D198: 9898
A199: 196 | B199: 1995 | C199: 3725 | D199: 9939
A200: 197 | B200: 2011 | C200: 3735 | D200: 9943
... 803 more rows

Sheet Parameters
A1: Parameters - Interest rate generator | H1: Parameters - Equity and fund return generator
A2: Symbol | B2: Range name | C2: Value in use | D2: Defaults | F2: Description
H3: Parameters for bond index returns:
A4: t1 | B4: Tau1 | C4: 0.04 | D4: 0.0425 | F4: Mean reversion point for the long term rate
I5: Money | J5: US Intermed | K5: US Long
A6: b1 | B6: Beta1 | C6: 0.00509 | D6: 0.00509 | F6: Mean reversion strength for the logarithm of the long term rate | H6: Symbol | I6: Market | J6: Govt | K6: Corporate | L6: Description
A7: q | B7: Theta | C7: =D7 -> 1 | D7: 1 | H7: m | I7: 0.25 | J7: 7 | K7: 10 | L7: Reference maturity on the treasury curve (years)
A8: t2 | B8: Tau2 | C8: 0.01 | D8: 0.01 | F8: Mean reversion point for the slope (defined as long rate - short rate) | H8: Beta0 | I8: 0.08333 | J8: 0.08333 | K8: 0.08333 | L8: Monthly / annual
A9: b2 | B9: Beta2 | C9: 0.02685 | D9: 0.02685 | F9: Mean reversion strength for the slope | H9: Kappa | I9: -0.00445 | J9: -0.00153 | K9: 0.00704 | L9: Mean spread over treasury of reference maturity
A10: s2 | B10: Sigma2 | C10: 0.04148 | D10: 0.04148 | F10: Volatility of the slope | H10: Beta1 | I10: -0.07148 | J10: 3.65043 | K10: 5.81293 | L10: Effective duration in years
A11: t3 | B11: Tau3 | C11: 0.0287 | D11: 0.0287 | F11: Mean reversion point for the volatility of the logarithm of the long rate | H11: Sigma | I11: 0.0037 | J11: 0.05239 | K11: 0.08282 | L11: Random volatility, largely due to credit spread changes
A12: b3 | B12: Beta3 | C12: 0.04001 | D12: 0.04001 | F12: Mean reversion strength for the logarithm of the volatility of the logarithm of the long rate
A13: s3 | B13: Sigma3 | C13: 0.11489 | D13: 0.11489 | F13: Volatility of the stochastic volatility process
A14: r(1,2) | B14: Correl12 | C14: -0.19197 | D14: -0.19197 | F14: Correlation of shocks to long rate and slope (long - short) | H14: Parameters for equity fund returns:
A15: r(1,3) | B15: Correl13 | C15: 0 | D15: 0 | F15: Correlation of shocks to long rate and volatility
A16: r(2,3) | B16: Correl23 | C16: 0 | D16: 0 | F16: Correlation of shocks to slope and volatility | I16: US Diversified | J16: Int'l Diversified | K16: Intermed Risk | L16: Aggressive /
A17: y | B17: Psi | C17: =D17 -> 0.25164 | D17: 0.25164 | H17: Symbol | I17: Equity | J17: Equity | K17: Equity | L17: Exotic Equity | M17: Description
A18: f | B18: Phi | C18: 0.0002 | D18: 0.0002 | H18: tau | I18: 0.12515 | J18: 0.14506 | K18: 0.16341 | L18: 0.20201 | M18: Long run target volatility
A19: r2Min | B19: Minr2 | C19: 0.0001 | D19: 0.0001 | F19: Soft floor on the short rate | H19: phi | I19: 0.35229 | J19: 0.41676 | K19: 0.3632 | L19: 0.35277 | M19: Strength of mean reversion
A20: r2Max | C20: 0.4 | D20: 0.4 | F20: Unused - maximum short rate | H20: sigma(v) | I20: 0.32645 | J20: 0.32634 | K20: 0.35789 | L20: 0.34302 | M20: Monthly std deviation of the log volatility process
A21: r1Min | B21: Minr1 | C21: 0.0115 | D21: 0.0115 | F21: Soft floor on the long rate before random shock | H21: rho | I21: -0.2488 | J21: -0.1572 | K21: -0.2756 | L21: -0.2843 | M21: Correlation between random shock to vol and random component of return
A22: r1Max | B22: Maxr1 | C22: 0.18 | D22: 0.18 | F22: Soft cap on the long rate before random shock | H22: A | I22: 0.055 | J22: 0.055 | K22: 0.055 | L22: 0.055 | M22: Stock return at zero volatility
A23: k | B23: Kappa | C23: 0.25 | D23: 0.25 | F23: Unused - When the short rate would be less than r2Min, it was set to Kappa times the long rate | H23: B | I23: 0.56 | J23: 0.466 | K23: 0.67 | L23: 0.715 | M23: Coefficient in quadratic function for mean return (function of volatility)
A24: g | B24: Gamma | C24: 0 | D24: 0 | F24: Unused - do not change from zero | H24: C | I24: -0.9 | J24: -0.9 | K24: -0.95 | L24: -1 | M24: Coefficient in quadratic function for mean return (function of volatility)
A25: s1(0) | B25: InitialVol | C25: 0.0287 | D25: 0.0287 | F25: Initial volatility of the long term rate | H25: sigma(0) | I25: 0.1476 | J25: 0.1688 | K25: 0.2049 | L25: 0.2496 | M25: Starting volatility
H26: sigma- | I26: 0.0305 | J26: 0.0354 | K26: 0.0403 | L26: 0.0492 | M26: Minimum volatility (annualized)
H27: sigma+ | I27: 0.3 | J27: 0.3 | K27: 0.4 | L27: 0.55 | M27: Maximum volatility (annualized, before random component)
H28: sigma* | I28: 0.7988 | J28: 0.4519 | K28: 0.9463 | L28: 1.1387 | M28: Maximum volatility (annualized, after random component)
H30: mu | I30: = A + B*sigma + C*sigma*sigma | M30: Mean annualized log return
H33: Prameters for equity fund returns in the stochastic exclusion test
H34: In the test scenarios, volatility shocks are zero and a constant volatility and constant expected return are used.
H36: Variable | I36: US Diversified | J36: Int'l Diversified | K36: Intermed Risk | L36: Aggressive /
H37: (Annualized) | I37: Equity | J37: Equity | K37: Equity | L37: Exotic Equity
H38: Median return | I38: 0.0754 | J38: 0.0774 | K38: 0.0792 | L38: 0.0818
H39: Volatility | I39: 0.151 | J39: 0.1703 | K39: 0.2044 | L39: 0.2508
H43: Correlation matrix for random component of fund returns and shocks to volatility
I45: US LogVol | J45: US LogRet | K45: Int'l LogVol | L45: Int'l LogRet | M45: Small LogVol | N45: Small LogRet | O45: Aggr LogVol | P45: Aggr LogRet | Q45: Money Ret | R45: IT Govt Ret | S45: LTCorp Ret
H46: US LogVol | I46: 1 | J46: -0.249 | K46: 0.318 | L46: -0.082 | M46: 0.625 | N46: -0.169 | O46: 0.309 | P46: -0.0183 | Q46: 0.023 | R46: 0.075 | S46: 0.08
H47: US LogRet | I47: -0.249 | J47: 1 | K47: -0.046 | L47: 0.63 | M47: -0.123 | N47: 0.829 | O47: -0.136 | P47: 0.665 | Q47: -0.12 | R47: 0.192 | S47: 0.393
H48: Int'l LogVol | I48: 0.318 | J48: -0.046 | K48: 1 | L48: -0.157 | M48: 0.259 | N48: -0.05 | O48: 0.236 | P48: -0.074 | Q48: -0.066 | R48: 0.034 | S48: 0.044
H49: Int'l LogRet | I49: -0.082 | J49: 0.63 | K49: -0.157 | L49: 1 | M49: -0.063 | N49: 0.515 | O49: -0.098 | P49: 0.558 | Q49: -0.105 | R49: 0.13 | S49: 0.234
H50: Small LogVol | I50: 0.625 | J50: -0.123 | K50: 0.259 | L50: -0.063 | M50: 1 | N50: -0.276 | O50: 0.377 | P50: -0.18 | Q50: 0.034 | R50: 0.028 | S50: 0.054
H51: Small LogRet | I51: -0.169 | J51: 0.829 | K51: -0.05 | L51: 0.515 | M51: -0.276 | N51: 1 | O51: -0.142 | P51: 0.649 | Q51: -0.106 | R51: 0.067 | S51: 0.267
H52: Aggr LogVol | I52: 0.309 | J52: -0.136 | K52: 0.236 | L52: -0.098 | M52: 0.377 | N52: -0.142 | O52: 1 | P52: -0.284 | Q52: 0.026 | R52: 0.006 | S52: 0.045
H53: Aggr LogRet | I53: -0.183 | J53: 0.665 | K53: -0.074 | L53: 0.558 | M53: -0.18 | N53: 0.649 | O53: -0.284 | P53: 1 | Q53: 0.034 | R53: -0.091 | S53: -0.002
H54: Money Ret | I54: 0.023 | J54: -0.12 | K54: -0.066 | L54: -0.105 | M54: 0.034 | N54: -0.106 | O54: 0.026 | P54: 0.034 | Q54: 1 | R54: 0.047 | S54: -0.028
H55: IT Govt Ret | I55: 0.075 | J55: 0.192 | K55: 0.034 | L55: 0.13 | M55: 0.028 | N55: 0.067 | O55: 0.006 | P55: -0.091 | Q55: 0.047 | R55: 1 | S55: 0.697
H56: LTCorp Ret | I56: 0.08 | J56: 0.393 | K56: 0.044 | L56: 0.234 | M56: 0.054 | N56: 0.267 | O56: 0.045 | P56: -0.002 | Q56: -0.028 | R56: 0.697 | S56: 1

Sheet MRP
A1: Mean Reversion Point (MRP) for Long Bond Yield
B3: The mean reversion point is a weighted average of historical 20-year yields.
B5: The AAA MRP at any given date is equal to the following weighted average, rounded to the nearest 0.25%
C6: Weight | D6: Rate
C7: 0.5 | D7: 600 months median less 0.25%
C8: 0.5 | D8: 36 months average
B10: The NAIC MRP at any given date is equal to the following weighted average, rounded to the nearest 0.25%
C11: Weight | D11: Rate
C12: 0.2 | D12: 600 months median (with no adjustment)
C13: 0.3 | D13: 120 months average
C14: 0.5 | D14: 36 months average
A17: Year | B17: month | C17: 20-year yield | D17: 600 months median | E17: 36 months average | F17: AAA MRP Calculated | G17: AAA MRP Rounded | H17: 120 months average | I17: NAIC MRP Calculated | J17: NAIC MRP Rounded | K17: The NAIC MRP changes only once per year, in January.
A18: ='Historical Curves'!A6 -> 1953 | B18: ='Historical Curves'!B6 -> 4 | C18: ='Historical Curves'!L6 -> 0.0308 | D18: =MEDIAN(C$18:C18) -> 0.0308 | E18: =AVERAGE(C$18:C18) -> 0.0308 | F18: =0.5*(D18-0.0025)+0.5*E18 -> 0.02955 | G18: =IF(C18>0,ROUND(F18/0.0025,0)*0.0025,"") -> 0.03 | H18: =AVERAGE(C$18:C18) -> 0.0308 | I18: =0.5*E18+0.3*H18+0.2*D18 -> 0.0308 | J18: =IF(C18>0,ROUND(I18/0.0025,0)*0.0025,"") -> 0.03
A19: =IF(B18=12,A18+1,A18) -> 1953 | B19: =MOD(B18,12)+1 -> 5 | C19: ='Historical Curves'!L7 -> 0.0318 | D19: =MEDIAN(C$18:C19) -> 0.0313 | E19: =AVERAGE(C$18:C19) -> 0.0313 | F19: =0.5*(D19-0.0025)+0.5*E19 -> 0.03005 | G19: =IF(C19>0,ROUND(F19/0.0025,0)*0.0025,"") -> 0.03 | H19: =AVERAGE(C$18:C19) -> 0.0313 | I19: =0.5*E19+0.3*H19+0.2*D19 -> 0.0313 | J19: =J18 -> 0.03
A20: =IF(B19=12,A19+1,A19) -> 1953 | B20: =MOD(B19,12)+1 -> 6 | C20: ='Historical Curves'!L8 -> 0.0321 | D20: =MEDIAN(C$18:C20) -> 0.0318 | E20: =AVERAGE(C$18:C20) -> 0.03156666667 | F20: 0.03043333333 | G20: 0.03 | H20: =AVERAGE(C$18:C20) -> 0.03156666667 | I20: 0.03161333333 | J20: =J19 -> 0.03
A21: 1953 | B21: 7 | C21: ='Historical Curves'!L9 -> 0.0312 | D21: =MEDIAN(C$18:C21) -> 0.0315 | E21: =AVERAGE(C$18:C21) -> 0.031475 | F21: 0.0302375 | G21: 0.03 | H21: =AVERAGE(C$18:C21) -> 0.031475 | I21: 0.03148 | J21: 0.03
A22: 1953 | B22: 8 | C22: ='Historical Curves'!L10 -> 0.031 | D22: =MEDIAN(C$18:C22) -> 0.0312 | E22: =AVERAGE(C$18:C22) -> 0.03138 | F22: 0.03004 | G22: 0.03 | H22: =AVERAGE(C$18:C22) -> 0.03138 | I22: 0.031344 | J22: 0.03
A23: 1953 | B23: 9 | C23: ='Historical Curves'!L11 -> 0.0307 | D23: =MEDIAN(C$18:C23) -> 0.0311 | E23: =AVERAGE(C$18:C23) -> 0.03126666667 | F23: 0.02993333333 | G23: 0.03 | H23: =AVERAGE(C$18:C23) -> 0.03126666667 | I23: 0.03123333333 | J23: 0.03
A24: 1953 | B24: 10 | C24: ='Historical Curves'!L12 -> 0.0295 | D24: =MEDIAN(C$18:C24) -> 0.031 | E24: =AVERAGE(C$18:C24) -> 0.03101428571 | F24: 0.02975714286 | G24: 0.03 | H24: =AVERAGE(C$18:C24) -> 0.03101428571 | I24: 0.03101142857 | J24: 0.03
A25: 1953 | B25: 11 | C25: ='Historical Curves'!L13 -> 0.0295 | D25: =MEDIAN(C$18:C25) -> 0.0309 | E25: =AVERAGE(C$18:C25) -> 0.030825 | F25: 0.0296125 | G25: 0.03 | H25: =AVERAGE(C$18:C25) -> 0.030825 | I25: 0.03084 | J25: 0.03
A26: 1953 | B26: 12 | C26: ='Historical Curves'!L14 -> 0.0289 | D26: =MEDIAN(C$18:C26) -> 0.0308 | E26: =AVERAGE(C$18:C26) -> 0.03061111111 | F26: 0.02945555556 | G26: 0.03 | H26: =AVERAGE(C$18:C26) -> 0.03061111111 | I26: 0.03064888889 | J26: 0.03
A27: 1954 | B27: 1 | C27: ='Historical Curves'!L15 -> 0.028 | D27: =MEDIAN(C$18:C27) -> 0.03075 | E27: =AVERAGE(C$18:C27) -> 0.03035 | F27: 0.0293 | G27: 0.03 | H27: =AVERAGE(C$18:C27) -> 0.03035 | I27: 0.03043 | J27: =IF(C26>0,ROUND(I26/0.0025,0)*0.0025,"") -> 0.03
A28: 1954 | B28: 2 | C28: ='Historical Curves'!L16 -> 0.0272 | D28: =MEDIAN(C$18:C28) -> 0.0307 | E28: =AVERAGE(C$18:C28) -> 0.03006363636 | F28: 0.02913181818 | G28: 0.03 | H28: =AVERAGE(C$18:C28) -> 0.03006363636 | I28: 0.03019090909 | J28: =J27 -> 0.03
A29: 1954 | B29: 3 | C29: ='Historical Curves'!L17 -> 0.0261 | D29: =MEDIAN(C$18:C29) -> 0.0301 | E29: =AVERAGE(C$18:C29) -> 0.02973333333 | F29: 0.02866666667 | G29: 0.0275 | H29: =AVERAGE(C$18:C29) -> 0.02973333333 | I29: 0.02980666667 | J29: =J28 -> 0.03
A30: 1954 | B30: 4 | C30: ='Historical Curves'!L18 -> 0.026 | D30: =MEDIAN(C$18:C30) -> 0.0295 | E30: =AVERAGE(C$18:C30) -> 0.02944615385 | F30: 0.02822307692 | G30: 0.0275 | H30: =AVERAGE(C$18:C30) -> 0.02944615385 | I30: 0.02945692308 | J30: 0.03
A31: 1954 | B31: 5 | C31: ='Historical Curves'!L19 -> 0.0266 | D31: =MEDIAN(C$18:C31) -> 0.0295 | E31: =AVERAGE(C$18:C31) -> 0.02924285714 | F31: 0.02812142857 | G31: 0.0275 | H31: =AVERAGE(C$18:C31) -> 0.02924285714 | I31: 0.02929428571 | J31: 0.03
A32: 1954 | B32: 6 | C32: ='Historical Curves'!L20 -> 0.0264 | D32: =MEDIAN(C$18:C32) -> 0.0295 | E32: =AVERAGE(C$18:C32) -> 0.02905333333 | F32: 0.02802666667 | G32: 0.0275 | H32: =AVERAGE(C$18:C32) -> 0.02905333333 | I32: 0.02914266667 | J32: 0.03
A33: 1954 | B33: 7 | C33: ='Historical Curves'!L21 -> 0.0257 | D33: =MEDIAN(C$18:C33) -> 0.0292 | E33: =AVERAGE(C$18:C33) -> 0.02884375 | F33: 0.027771875 | G33: 0.0275 | H33: =AVERAGE(C$18:C33) -> 0.02884375 | I33: 0.028915 | J33: 0.03
A34: 1954 | B34: 8 | C34: ='Historical Curves'!L22 -> 0.0258 | D34: =MEDIAN(C$18:C34) -> 0.0289 | E34: =AVERAGE(C$18:C34) -> 0.02866470588 | F34: 0.02753235294 | G34: 0.0275 | H34: =AVERAGE(C$18:C34) -> 0.02866470588 | I34: 0.02871176471 | J34: 0.03
A35: 1954 | B35: 9 | C35: ='Historical Curves'!L23 -> 0.026 | D35: =MEDIAN(C$18:C35) -> 0.02845 | E35: =AVERAGE(C$18:C35) -> 0.02851666667 | F35: 0.02723333333 | G35: 0.0275 | H35: =AVERAGE(C$18:C35) -> 0.02851666667 | I35: 0.02850333333 | J35: 0.03
A36: 1954 | B36: 10 | C36: ='Historical Curves'!L24 -> 0.0261 | D36: =MEDIAN(C$18:C36) -> 0.028 | E36: =AVERAGE(C$18:C36) -> 0.02838947368 | F36: 0.02694473684 | G36: 0.0275 | H36: =AVERAGE(C$18:C36) -> 0.02838947368 | I36: 0.02831157895 | J36: 0.03
A37: 1954 | B37: 11 | C37: ='Historical Curves'!L25 -> 0.0265 | D37: =MEDIAN(C$18:C37) -> 0.0276 | E37: =AVERAGE(C$18:C37) -> 0.028295 | F37: 0.0266975 | G37: 0.0275 | H37: =AVERAGE(C$18:C37) -> 0.028295 | I37: 0.028156 | J37: 0.03
A38: 1954 | B38: 12 | C38: ='Historical Curves'!L26 -> 0.0267 | D38: =MEDIAN(C$18:C38) -> 0.0272 | E38: =AVERAGE(C$18:C38) -> 0.02821904762 | F38: 0.02645952381 | G38: 0.0275 | H38: =AVERAGE(C$18:C38) -> 0.02821904762 | I38: 0.0280152381 | J38: 0.03
A39: 1955 | B39: 1 | C39: ='Historical Curves'!L27 -> 0.0275 | D39: =MEDIAN(C$18:C39) -> 0.02735 | E39: =AVERAGE(C$18:C39) -> 0.02818636364 | F39: 0.02651818182 | G39: 0.0275 | H39: =AVERAGE(C$18:C39) -> 0.02818636364 | I39: 0.02801909091 | J39: =IF(C38>0,ROUND(I38/0.0025,0)*0.0025,"") -> 0.0275
A40: 1955 | B40: 2 | C40: ='Historical Curves'!L28 -> 0.0283 | D40: =MEDIAN(C$18:C40) -> 0.0275 | E40: =AVERAGE(C$18:C40) -> 0.02819130435 | F40: 0.02659565217 | G40: 0.0275 | H40: =AVERAGE(C$18:C40) -> 0.02819130435 | I40: 0.02805304348 | J40: =J39 -> 0.0275
A41: 1955 | B41: 3 | C41: ='Historical Curves'!L29 -> 0.0284 | D41: =MEDIAN(C$18:C41) -> 0.02775 | E41: =AVERAGE(C$18:C41) -> 0.0282 | F41: 0.026725 | G41: 0.0275 | H41: =AVERAGE(C$18:C41) -> 0.0282 | I41: 0.02811 | J41: =J40 -> 0.0275
A42: 1955 | B42: 4 | C42: ='Historical Curves'!L30 -> 0.0285 | D42: =MEDIAN(C$18:C42) -> 0.028 | E42: =AVERAGE(C$18:C42) -> 0.028212 | F42: 0.026856 | G42: 0.0275 | H42: =AVERAGE(C$18:C42) -> 0.028212 | I42: 0.0281696 | J42: 0.0275
A43: 1955 | B43: 5 | C43: ='Historical Curves'!L31 -> 0.0287 | D43: =MEDIAN(C$18:C43) -> 0.02815 | E43: =AVERAGE(C$18:C43) -> 0.02823076923 | F43: 0.02694038462 | G43: 0.0275 | H43: =AVERAGE(C$18:C43) -> 0.02823076923 | I43: 0.02821461538 | J43: 0.0275
A44: 1955 | B44: 6 | C44: ='Historical Curves'!L32 -> 0.0286 | D44: =MEDIAN(C$18:C44) -> 0.0283 | E44: =AVERAGE(C$18:C44) -> 0.02824444444 | F44: 0.02702222222 | G44: 0.0275 | H44: =AVERAGE(C$18:C44) -> 0.02824444444 | I44: 0.02825555556 | J44: 0.0275
A45: 1955 | B45: 7 | C45: ='Historical Curves'!L33 -> 0.0294 | D45: =MEDIAN(C$18:C45) -> 0.02835 | E45: =AVERAGE(C$18:C45) -> 0.02828571429 | F45: 0.02706785714 | G45: 0.0275 | H45: =AVERAGE(C$18:C45) -> 0.02828571429 | I45: 0.02829857143 | J45: 0.0275
A46: 1955 | B46: 8 | C46: ='Historical Curves'!L34 -> 0.0301 | D46: =MEDIAN(C$18:C46) -> 0.0284 | E46: =AVERAGE(C$18:C46) -> 0.02834827586 | F46: 0.02712413793 | G46: 0.0275 | H46: =AVERAGE(C$18:C46) -> 0.02834827586 | I46: 0.02835862069 | J46: 0.0275
A47: 1955 | B47: 9 | C47: ='Historical Curves'!L35 -> 0.03 | D47: =MEDIAN(C$18:C47) -> 0.02845 | E47: =AVERAGE(C$18:C47) -> 0.02840333333 | F47: 0.02717666667 | G47: 0.0275 | H47: =AVERAGE(C$18:C47) -> 0.02840333333 | I47: 0.02841266667 | J47: 0.0275
A48: 1955 | B48: 10 | C48: ='Historical Curves'!L36 -> 0.0293 | D48: =MEDIAN(C$18:C48) -> 0.0285 | E48: =AVERAGE(C$18:C48) -> 0.02843225806 | F48: 0.02721612903 | G48: 0.0275 | H48: =AVERAGE(C$18:C48) -> 0.02843225806 | I48: 0.02844580645 | J48: 0.0275
A49: 1955 | B49: 11 | C49: ='Historical Curves'!L37 -> 0.0293 | D49: =MEDIAN(C$18:C49) -> 0.02855 | E49: =AVERAGE(C$18:C49) -> 0.028459375 | F49: 0.0272546875 | G49: 0.0275 | H49: =AVERAGE(C$18:C49) -> 0.028459375 | I49: 0.0284775 | J49: 0.0275
A50: 1955 | B50: 12 | C50: ='Historical Curves'!L38 -> 0.0298 | D50: =MEDIAN(C$18:C50) -> 0.0286 | E50: =AVERAGE(C$18:C50) -> 0.0285 | F50: 0.0273 | G50: 0.0275 | H50: =AVERAGE(C$18:C50) -> 0.0285 | I50: 0.02852 | J50: 0.0275
A51: 1956 | B51: 1 | C51: ='Historical Curves'!L39 -> 0.0294 | D51: =MEDIAN(C$18:C51) -> 0.02865 | E51: =AVERAGE(C$18:C51) -> 0.02852647059 | F51: 0.02733823529 | G51: 0.0275 | H51: =AVERAGE(C$18:C51) -> 0.02852647059 | I51: 0.02855117647 | J51: =IF(C50>0,ROUND(I50/0.0025,0)*0.0025,"") -> 0.0275
A52: 1956 | B52: 2 | C52: ='Historical Curves'!L40 -> 0.0291 | D52: =MEDIAN(C$18:C52) -> 0.0287 | E52: =AVERAGE(C$18:C52) -> 0.02854285714 | F52: 0.02737142857 | G52: 0.0275 | H52: =AVERAGE(C$18:C52) -> 0.02854285714 | I52: 0.02857428571 | J52: =J51 -> 0.0275
A53: 1956 | B53: 3 | C53: ='Historical Curves'!L41 -> 0.0299 | D53: =MEDIAN(C$18:C53) -> 0.0288 | E53: =AVERAGE(C18:C53) -> 0.02858055556 | F53: 0.02744027778 | G53: 0.0275 | H53: =AVERAGE(C$18:C53) -> 0.02858055556 | I53: 0.02862444444 | J53: =J52 -> 0.0275
A54: 1956 | B54: 4 | C54: ='Historical Curves'!L42 -> 0.0314 | D54: =MEDIAN(C$18:C54) -> 0.0289 | E54: =AVERAGE(C19:C54) -> 0.02859722222 | F54: 0.02749861111 | G54: 0.0275 | H54: =AVERAGE(C$18:C54) -> 0.02865675676 | I54: 0.02867563814 | J54: 0.0275
